Workbook

Sheet Contents
B1: REGULATORY REPORTING STATEMENT
B2: ='1.0 Business & other details '!C14 -> Ergon Energy
B3: =RCP_1to5 -> 2015-16 to 2019-20
B4: CONTENTS
E7: 1. Business details | L7: 2. Expenditure | S7: 3. Economic benchmarking
E27: 4. Alternative control services | L27: 5. Network information | S27: 6. Service & quality
S28: 6.1 Telephone answering
S29: 6.2 Reliability & customer service performance
S30: 6.3 Sustained interruptions
S31: 6.4 Historical MEDs
E34: 7. Other templates

Sheet Instructions
B1: REGULATORY REPORTING STATEMENT
B2: ='1.0 Business & other details '!C14 -> Ergon Energy
B3: =RCP_1to5 -> 2015-16 to 2019-20
B4: INSTRUCTIONS
B6: INSTRUCTIONS FOR USE
B7: =CONCATENATE('1.0 Business & other details '!C14, " must fill out and submit the regulatory templates in this spreadsheet as part of its regulatory proposal.") -> Ergon Energy must fill out and submit the regulatory templates in this spreadsheet as part of its regulatory proposal.

Sheet 1.0 Business & other details
B1: REGULATORY REPORTING STATEMENT
B2: =TradingName -> Ergon Energy
B3: =RCP_1to5 -> 2015-16 to 2019-20
B5: 1.0 BUSINESS & OTHER DETAILS
B7: Instructions
B8: Complete the following business details regulatory template before entering data or values in any other regulatory template. This regulatory template is linked to other cells within the spreadsheet and automatically generates column headings.
B10: TABLE 1.2.1 - SUBMISSION PARTICULARS INPUT SHEET
B12: Entity details
B14: Trading name | C14: Ergon Energy
B15: ACN / ABN | C15: 50087646062
B18: Business address | C18: Address 1 | E18: 22 Walker Street
D19: Address 2
C20: Suburb | E20: Townsville
D21: State | E21: QLD | F21: p/code | G21: 4810
B23: Postal address | C23: Address 1 | E23: Level 4, 22 Walker Street
D24: Address 2
C25: Suburb | E25: Townsville
D26: State | E26: QLD | F26: p/code | G26: 4810
B29: Contact name/s | C29: Jenny Doyle | F29: Group Manager Regulatory Affairs
B30: Contact phone/s | C30: (07) 3851 6416
B31: Contact email address/s | C31: jenny.doyle@ergon.com.au
B33: Regulatory control period details
B35: Forthcoming regulatory control period | C35: 2015-16 | D35: 2016-17 | E35: 2017-18 | F35: 2018-19 | G35: 2019-20
B38: Current regulatory control period | C38: 2010-11 | D38: 2011-12 | E38: 2012-13 | F38: 2013-14 | G38: 2014-15
B41: Previous regulatory control period | C41: 2005-06 | D41: 2006-07 | E41: 2007-08 | F41: 2008-09 | G41: 2009-10
B44: Sector | C44: Electricity
B45: Segment | C45: Distribution
B46: Source | C46: Regulatory proposal
B47: Regulatory Year Ending | C47: 2020
B48: Reporting Period Type | C48: Financial Year
B49: RIN Type | C49: Reset
B50: Security Classification | C50: Public
B51: Estimated or actual | C51: Estimated
B52: RIN response - version no. | C52: 1
B53: RIN response - amendment reason | C53: <If this response is a resubmission because data has been amended, NSP to provide amendment reason> eg. corrected data errors in tables 3.1.1 & 3.5.1
B54: RIN template - version no. | C54: 2
B55: $ real | C55: June 2015

Sheet 2.1 Expenditure summary
C1: REGULATORY REPORTING STATEMENT
C2: =TradingName -> Ergon Energy
C3: =RCP_1to5 -> 2015-16 to 2019-20
C4: 2.1 EXPENDITURE SUMMARY & RECONCILIATION
C8: TABLE 2.1.1 - STANDARD CONTROL SERVICES CAPEX
D10: Previous regulatory period | F10: Current regulatory period | K10: Forthcoming regulatory period
D11: Actual ($000's) | J11: =CONCATENATE("Forecast ($000's real, ", DollarReal, ")") -> Forecast ($000's real, June 2015)
D12: =PRCP_y4 -> 2008-09 | E12: =PRCP_y5 -> 2009-10 | F12: =CRCP -> 2010-11 | G12: 2011-12 | H12: 2012-13 | I12: 2013-14 | J12: 2014-15 | K12: =FRCP -> 2015-16 | L12: 2016-17 | M12: 2017-18 | N12: 2018-19 | O12: 2019-20
A13: ED_EXP211_00001 | C13: Replacement expenditure | D13: 86352.67 | E13: 92244.662 | F13: 153547.908 | G13: 183729.082 | H13: 199378.812 | I13: 139225.261 | J13: 137317.369 | K13: 174118.541 | L13: 193600.239 | M13: 166191.377 | N13: 181717.919 | O13: 178698.908
A14: ED_EXP211_00002 | C14: Connections | D14: 94296.189 | E14: 68354.275 | F14: 62244.301 | G14: 61277.762 | H14: 45236.143 | I14: 36424 | J14: 94892.691 | K14: 85165.152 | L14: 86276.859 | M14: 87584.972 | N14: 88776.251 | O14: 89951.56
A15: ED_EXP211_00003 | C15: Augmentation expenditure | D15: 204203 | E15: 155458 | F15: 152019 | G15: 154521 | H15: 131367 | I15: 146760 | J15: 187220.119 | K15: 154295.809 | L15: 147081.576 | M15: 137701.129 | N15: 110903.008 | O15: 110166.713
A16: ED_EXP211_00004 | C16: Non-network | D16: 85472 | E16: 90491 | F16: 106536 | G16: 106149.45 | H16: 106687.55 | I16: 76204 | J16: 102387.289 | K16: 141875.328 | L16: 113390.064 | M16: 91071.412 | N16: 83370.307 | O16: 76560.667
A17: ED_EXP211_00005 | C17: Capitalised network overheads | D17: 90744.074 | E17: 85209.034 | F17: 105840.609 | G17: 107126.241 | H17: 135738.602 | I17: 126098.136 | J17: 100019.228 | K17: 104563.017 | L17: 103748.851 | M17: 101523.034 | N17: 103890.631 | O17: 101644.863
A18: ED_EXP211_00006 | C18: Capitalised corporate overheads | D18: 107001.926 | E18: 103759.966 | F18: 134879.391 | G18: 146218.759 | H18: 100303.398 | I18: 113897.117 | J18: 97374.157 | K18: 101797.783 | L18: 101005.147 | M18: 98838.194 | N18: 101143.178 | O18: 98956.8
A19: ED_EXP211_00007 | C19: Metering | D19: 981.959 | E19: 2499.691 | F19: 1509.333 | G19: 1589.296 | H19: 1193.901 | I19: 907.125 | J19: 16398.807 | K19: 7799.476 | L19: 8473.524 | M19: 8367.869 | N19: 7602.333 | O19: 7438.045
A20: ED_EXP211_00008 | C20: Public lighting | D20: 0 | E20: 0 | F20: 0 | G20: 0 | H20: 0 | I20: 0 | J20: 0 | K20: 0 | L20: 0 | M20: 0 | N20: 0 | O20: 0
A21: ED_EXP211_00009
A22: ED_EXP211_00010
A23: ED_EXP211_00011
A24: ED_EXP211_00012
A25: ED_EXP211_00013
A26: ED_EXP211_00014
A27: ED_EXP211_00015
A28: ED_EXP211_00016
A29: ED_EXP211_00017
A30: ED_EXP211_00018
A31: ED_EXP211_00019
A32: ED_EXP211_00020
A33: ED_EXP211_00021
A34: ED_EXP211_00022
A35: ED_EXP211_00023
A36: ED_EXP211_00050 | C36: balancing item | D36: -981.959 | E36: -2499.691 | F36: -1509.333 | G36: -1589.296 | H36: -1193.901 | I36: -907.125 | J36: 0 | K36: 0 | L36: 0 | M36: 0 | N36: 0 | O36: 0
C37: TOTAL GROSS CAPEX (includes capcons) | D37: =SUM(D13:D36) -> 668069.859 | E37: 595516.937 | F37: 715067.209 | G37: 759022.294 | H37: 718711.505 | I37: 638608.514 | J37: 735609.66 | K37: 769615.106 | L37: 753576.26 | M37: 691277.987 | N37: 677403.627 | O37: 663417.556
A38: ED_EXP211_00009 | C38: capcons | D38: 92614 | E38: 59530 | F38: 69522 | G38: 54734 | H38: 67526 | I38: 59991 | J38: 24499.433 | K38: 29752.961 | L38: 30388.496 | M38: 31876.974 | N38: 32860.654 | O38: 33393.014
C40: TABLE 2.1.2 - STANDARD CONTROL SERVICES OPEX BY CATEGORY
D42: Previous regulatory period | F42: Current regulatory period
D43: Actual ($000's)
D44: =PRCP_y4 -> 2008-09 | E44: =PRCP_y5 -> 2009-10 | F44: =CRCP -> 2010-11 | G44: 2011-12 | H44: 2012-13 | I44: 2013-14
A45: ED_EXP212_00001 | C45: Vegetation management | D45: 49615.293 | E45: 54758.008 | F45: 51880.951 | G45: 63106.594 | H45: 43652.748 | I45: 42398.996
A46: ED_EXP212_00002 | C46: Maintenance | D46: 69023.225 | E46: 70531.944 | F46: 71229.403 | G46: 86451.984 | H46: 88990.92 | I46: 72959.371
A47: ED_EXP212_00003 | C47: Emergency response | D47: 26103 | E47: 35251 | F47: 65258 | G47: 40791 | H47: 46951 | I47: 43994
A48: ED_EXP212_00004 | C48: Non-network | D48: 99365.608 | E48: 105899.007 | F48: 117059.051 | G48: 135773.849 | H48: 123984.517 | I48: 132960.279
A49: ED_EXP212_00005 | C49: Network overheads | D49: 86949.609 | E49: 93357.612 | F49: 125363.667 | G49: 155499.364 | H49: 190918.251 | I49: 249168.512
A50: ED_EXP212_00006 | C50: Corporate overheads | D50: 64302.169 | E50: 71407.721 | F50: 63578.037 | G50: 79952.012 | H50: 39281.76 | I50: 52768.86
A51: ED_EXP212_00007 | C51: Metering | D51: 3231.053 | E51: 2704.213 | F51: 3279.889 | G51: 3899.127 | H51: 4229.303 | I51: 4461.139
A52: ED_EXP212_00008 | C52: Public Lighting | D52: 0 | E52: 0 | F52: 0 | G52: 0 | H52: 0 | I52: 0
A53: ED_EXP212_00009
A54: ED_EXP212_00010
A55: ED_EXP212_00011
A56: ED_EXP212_00012
A57: ED_EXP212_00013
A58: ED_EXP212_00014
A59: ED_EXP212_00015
A60: ED_EXP212_00016
A61: ED_EXP212_00017
A62: ED_EXP212_00018
A63: ED_EXP212_00019
A64: ED_EXP212_00020
A65: ED_EXP212_00021
A66: ED_EXP212_00022
A67: ED_EXP212_00023
A68: ED_EXP212_00050 | C68: balancing item | D68: -102596.661 | E68: -108603.22 | F68: -120338.94 | G68: -139672.976 | H68: -128213.82 | I68: -137421.418
C69: TOTAL OPEX | D69: =SUM(D45:D68) -> 295993.296 | E69: =SUM(E45:E68) -> 325306.285 | F69: =SUM(F45:F68) -> 377310.058 | G69: =SUM(G45:G68) -> 425800.954 | H69: =SUM(H45:H53) -> 538008.499 | I69: =SUM(I45:I68) -> 461289.739
C71: TABLE 2.1.3 - ALTERNATIVE CONTROL SERVICES CAPEX
D73: Previous regulatory period | F73: Current regulatory period | K73: Forthcoming regulatory period
D74: Actual ($000's) | J74: =CONCATENATE("Forecast ($000's real, ", DollarReal, ")") -> Forecast ($000's real, June 2015)
D75: =PRCP_y4 -> 2008-09 | E75: =PRCP_y5 -> 2009-10 | F75: =CRCP -> 2010-11 | G75: 2011-12 | H75: 2012-13 | I75: 2013-14 | J75: 2014-15 | K75: =FRCP -> 2015-16 | L75: 2016-17 | M75: 2017-18 | N75: 2018-19 | O75: 2019-20
A76: ED_EXP213_00001 | C76: Connections | D76: 68951 | E76: 54181 | F76: 42044 | G76: 39225 | H76: 51354 | I76: 49680 | J76: 66686.805 | K76: 70756.536 | L76: 73216.343 | M76: 75862.398 | N76: 78413.392 | O76: 80785.749
A77: ED_EXP213_00002 | C77: Capitalised network overheads | D77: 0 | E77: 0 | F77: 0 | G77: 0 | H77: 0 | I77: 2871.286 | J77: 20430.932 | K77: 21654.947 | L77: 23014.526 | M77: 26242.882 | N77: 28230.894 | O77: 29239.731
A78: ED_EXP213_00003 | C78: Capitalised corporate overheads | D78: 0 | E78: 0 | F78: 235 | G78: 3601 | H78: 6362 | I78: 2593.466 | J78: 19890.623 | K78: 21082.268 | L78: 22405.892 | M78: 25548.872 | N78: 27484.31 | O78: 28466.468
A79: ED_EXP213_00004 | C79: Metering | D79: 6971.041 | E79: 21393.309 | F79: 11917.667 | G79: 12543.704 | H79: 8849.099 | I79: 6239.254 | J79: 17618.19 | K79: 17570.544 | L79: 18251.181 | M79: 18153.212 | N79: 17609.251 | O79: 17295.047
A80: ED_EXP213_00005 | C80: Public lighting | D80: 4878.689 | E80: 6157.178 | F80: 7387.644 | G80: 7482.842 | H80: 7207.75 | I80: 5689.313 | J80: 15699.813 | K80: 17181.271 | L80: 17471.741 | M80: 17436.454 | N80: 17827.643 | O80: 18438.222
A81: ED_EXP213_00006 | C81: Fee and quoted | D81: 0 | E81: 0 | F81: 0 | G81: 0 | H81: 5205 | I81: 2842 | J81: 0 | K81: 0 | L81: 0 | M81: 0 | N81: 0 | O81: 0
A82: ED_EXP213_00007
A83: ED_EXP213_00008
A84: ED_EXP213_00009
A85: ED_EXP213_00010
A86: ED_EXP213_00011
A87: ED_EXP213_00012
A88: ED_EXP213_00013
A89: ED_EXP213_00014
A90: ED_EXP213_00015
A91: ED_EXP213_00016
A92: ED_EXP213_00017
A93: ED_EXP213_00018
A94: ED_EXP213_00019
A95: ED_EXP213_00020
A96: ED_EXP213_00021
A97: ED_EXP213_00050 | C97: balancing item | D97: 0 | E97: 0 | F97: 0 | G97: 0 | H97: 0 | I97: 0 | J97: 0 | K97: 0 | L97: 0 | M97: 0 | N97: 0 | O97: 0
C98: TOTAL CAPEX | D98: =SUM(D76:D97) -> 80800.73 | E98: 81731.487 | F98: 61584.311 | G98: 62852.546 | H98: 78977.849 | I98: 69915.319 | J98: 140326.363 | K98: 148245.566 | L98: 154359.683 | M98: 163243.818 | N98: 169565.49 | O98: 174225.217
C100: TABLE 2.1.4 - ALTERNATIVE CONTROL SERVICES OPEX
D102: Previous regulatory period | F102: Current regulatory period | K102: Forthcoming regulatory period
D103: Actual ($000's) | J103: =CONCATENATE("Forecast ($000's real, ", DollarReal, ")") -> Forecast ($000's real, June 2015)
D104: =PRCP_y4 -> 2008-09 | E104: =PRCP_y5 -> 2009-10 | F104: =CRCP -> 2010-11 | G104: 2011-12 | H104: 2012-13 | I104: 2013-14 | J104: 2014-15 | K104: =FRCP -> 2015-16 | L104: 2016-17 | M104: 2017-18 | N104: 2018-19 | O104: 2019-20
A105: ED_EXP214_00001 | C105: Connections | D105: 0 | E105: 0 | F105: 0 | G105: 0 | H105: 0 | I105: 0 | J105: 0 | K105: 0 | L105: 0 | M105: 0 | N105: 0 | O105: 0
A106: ED_EXP214_00002 | C106: Capitalised network overheads | D106: 26557.763 | E106: 28187.807 | F106: 23823.351 | G106: 39718.627 | H106: 42345.169 | I106: 41408.672 | J106: 68007.345 | K106: 73704.25 | L106: 75412.004 | M106: 78380.19 | N106: 80587.689 | O106: 82084.042
A107: ED_EXP214_00003 | C107: Capitalised corporate overheads | D107: 6095.066 | E107: 6367.541 | F107: 4570.208 | G107: 8979.948 | H107: 6710.623 | I107: 6687.358 | J107: 18073.562 | K107: 14096.899 | L107: 14749.607 | M107: 16689.926 | N107: 17875.364 | O107: 18343.569
A108: ED_EXP214_00004 | C108: Metering | D108: 26207.817 | E108: 23722.935 | F108: 27420.514 | G108: 32519.37 | H108: 35814.619 | I108: 33754.668 | J108: 37997.81591 | K108: 39508.69463 | L108: 39888.90967 | M108: 40230.38652 | N108: 40573.99121 | O108: 40938.17064
A109: ED_EXP214_00005 | C109: Public lighting | D109: 6649.162 | E109: 4811.708 | F109: 5738.436 | G109: 7137.461 | H109: 5910.086 | I109: 7968.537 | J109: 7100.872 | K109: 7202.225 | L109: 7279.368 | M109: 7350.428 | N109: 7421.41 | O109: 7515.707
A110: ED_EXP214_00006 | C110: Fee and quoted | D110: 16872.975 | E110: 17705.048 | F110: 10144.74 | G110: 21950.557 | H110: 24760 | I110: 23467 | J110: 39930.169 | K110: 40637.501 | L110: 41420.977 | M110: 42164.348 | N110: 42919.955 | O110: 43695.343
A111: ED_EXP214_00007
A112: ED_EXP214_00008
A113: ED_EXP214_00009
A114: ED_EXP214_00010
A115: ED_EXP214_00011
A116: ED_EXP214_00012
A117: ED_EXP214_00013
A118: ED_EXP214_00014
A119: ED_EXP214_00015
A120: ED_EXP214_00016
A121: ED_EXP214_00017
A122: ED_EXP214_00018
A123: ED_EXP214_00019
A124: ED_EXP214_00020
A125: ED_EXP214_00021
A126: ED_EXP214_00050 | C126: balancing item | D126: -43080.792 | E126: -41427.983 | F126: -37565.254 | G126: -54469.927 | H126: -60574.619 | I126: -57221.668 | J126: -74925.32291 | K126: -76023.48163 | L126: -77137.20767 | M126: -78175.45552 | N126: -79228.03221 | O126: -80307.46664
C127: TOTAL OPEX | D127: =SUM(D105:D126) -> 39301.991 | E127: 39367.056 | F127: 34131.995 | G127: 55836.036 | H127: 54965.878 | I127: 56064.567 | J127: 96184.441 | K127: 99126.088 | L127: 101613.658 | M127: 106639.823 | N127: 110150.377 | O127: 112269.365
C129: TABLE 2.1.5 - DUAL FUNCTION ASSETS CAPEX
D131: Previous regulatory period | F131: Current regulatory period | K131: Forthcoming regulatory period
D132: Actual ($000's) | J132: =CONCATENATE("Forecast ($000's real, ", DollarReal, ")") -> Forecast ($000's real, June 2015)
D133: =PRCP_y4 -> 2008-09 | E133: =PRCP_y5 -> 2009-10 | F133: =CRCP -> 2010-11 | G133: 2011-12 | H133: 2012-13 | I133: 2013-14 | J133: 2014-15 | K133: =FRCP -> 2015-16 | L133: 2016-17 | M133: 2017-18 | N133: 2018-19 | O133: 2019-20
A134: ED_EXP215_00001 | C134: Replacement expenditure
A135: ED_EXP215_00002 | C135: Connections
A136: ED_EXP215_00003 | C136: Augmentation expenditure
A137: ED_EXP215_00004 | C137: Non-network
A138: ED_EXP215_00005 | C138: Capitalised network overheads
A139: ED_EXP215_00006
A140: ED_EXP215_00007
A141: ED_EXP215_00008
A142: ED_EXP215_00009
A143: ED_EXP215_00010
A144: ED_EXP215_00011
A145: ED_EXP215_00012
A146: ED_EXP215_00013
A147: ED_EXP215_00014
A148: ED_EXP215_00015
A149: ED_EXP215_00016
A150: ED_EXP215_00017
A151: ED_EXP215_00018
A152: ED_EXP215_00019
A153: ED_EXP215_00020
A154: ED_EXP215_00050 | C154: balancing item
C155: TOTAL GROSS CAPEX (includes capcons) | D155: =SUM(D134:D154) -> 0 | E155: 0 | F155: 0 | G155: 0 | H155: 0 | I155: 0 | J155: 0 | K155: 0 | L155: 0 | M155: 0 | N155: 0 | O155: 0
A156: ED_EXP215_00009 | C156: capcons
C158: TABLE 2.1.6 - DUAL FUNCTION ASSETS OPEX BY CATEGORY
D160: Previous regulatory period | F160: Current regulatory period
D161: Actual ($000's)
D162: =PRCP_y4 -> 2008-09 | E162: =PRCP_y5 -> 2009-10 | F162: =CRCP -> 2010-11 | G162: 2011-12 | H162: 2012-13 | I162: 2013-14
A163: ED_EXP216_00001 | C163: Vegetation management
A164: ED_EXP216_00002 | C164: Maintenance
A165: ED_EXP216_00003 | C165: Emergency response
A166: ED_EXP216_00004 | C166: Non-network
A167: ED_EXP216_00005 | C167: Network overheads
A168: ED_EXP216_00006 | C168: Corporate overheads
A169: ED_EXP216_00007
A170: ED_EXP216_00008
A171: ED_EXP216_00009
A172: ED_EXP216_00010
A173: ED_EXP216_00011
A174: ED_EXP216_00012
A175: ED_EXP216_00013
A176: ED_EXP216_00014
A177: ED_EXP216_00015
A178: ED_EXP216_00016
A179: ED_EXP216_00017
A180: ED_EXP216_00018
A181: ED_EXP216_00019
A182: ED_EXP216_00020
A183: ED_EXP216_00021
A184: ED_EXP216_00050 | C184: balancing item
C185: TOTAL OPEX | D185: =SUM(D163:D184) -> 0 | E185: 0 | F185: 0 | G185: 0 | H185: 0 | I185: 0

Sheet 2.2 Repex
C1: REGULATORY REPORTING STATEMENT
C2: =TradingName -> Ergon Energy
C3: =RCP_1to5 -> 2015-16 to 2019-20
C4: 2.2 REPEX
C6: TABLE 2.2.1 - REPLACEMENT EXPENDITURE, VOLUMES AND ASSET FAILURES BY ASSET CATEGORY | AF6: TABLE 2.2.2 - SELECTED ASSET CHARACTERISTICS
E9: EXPENDITURE Actual ($000's) | K9: =CONCATENATE("EXPENDITURE Forecast ($000's real, ", DollarReal, ")") -> EXPENDITURE Forecast ($000's real, June 2015) | Q9: ASSET REPLACEMENTS | S9: ASSET REPLACEMENTS Forthcoming Period | X9: ASSET FAILURES | Z9: ASSET FAILURES Forthcoming Period | AH9: ASSET VOLUMES CURRENTLY IN COMMISSION | AI9: ASSET REPLACEMENTS
C10: ASSET GROUP | D10: ASSET CATEGORY | E10: =PRCP_y4 -> 2008-09 | F10: =PRCP_y5 -> 2009-10 | G10: =CRCP -> 2010-11 | H10: 2011-12 | I10: 2012-13 | J10: 2013-14 | K10: 2014-15 | L10: =FRCP -> 2015-16 | M10: 2016-17 | N10: 2017-18 | O10: 2018-19 | P10: 2019-20 | Q10: =CRCP_y4 -> 2013-14 | R10: =CRCP_y5 -> 2014-15 | S10: =FRCP -> 2015-16 | T10: 2016-17 | U10: 2017-18 | V10: 2018-19 | W10: 2019-20 | X10: =CRCP_y4 -> 2013-14 | Y10: =CRCP_y5 -> 2014-15 | Z10: =FRCP -> 2015-16 | AA10: 2016-17 | AB10: 2017-18 | AC10: 2018-19 | AD10: 2019-20 | AF10: ASSET GROUP | AG10: METRIC | AH10: =CRCP_y4 -> 2013-14 | AI10: =CRCP_y4 -> 2013-14
A11: ED_REP221_00001 | C11: POLES BY: Highest operating voltage; Material type; Staking (if wood) | D11: Staking of a wooden pole | E11: 2874.388522 | F11: 2814.378008 | G11: 4646.341427 | H11: 3604.769385 | I11: 6764.679046 | J11: 3825 | K11: 4075.802069 | L11: 3444.152616 | M11: 4882.304888 | N11: 2150.176845 | O11: 3038.22893 | P11: 3378.776948 | Q11: 2271 | R11: 3413.764684 | S11: 2541.332925 | T11: 3441.972727 | U11: 1740.014841 | V11: 2108.867576 | W11: 2409.257505 | X11: 137 | Y11: 159.03 | Z11: 174.933 | AA11: 166.18635 | AB11: 182.804985 | AC11: 201.0854835 | AD11: 221.1940319 | AE11: ED_REP222_00001 | AF11: TOTAL POLES by FEEDER TYPE | AG11: Total CBD poles | AH11: 0 | AI11: 0
A12: ED_REP221_00002 | D12: ˂ = 1 kV; Wood | E12: 816.7946301 | F12: 1128.184583 | G12: 2472.283201 | H12: 2721.425141 | I12: 3529.755586 | J12: 3488 | K12: 1846.421651 | L12: 1560.271537 | M12: 2211.783914 | N12: 974.0740629 | O12: 1376.37981 | P12: 1530.655023 | Q12: 808 | R12: 687.9256573 | S12: 512.1173498 | T12: 693.6100083 | U12: 350.6395327 | V12: 424.9689852 | W12: 485.5021381 | X12: 73 | Y12: 101.86 | Z12: 112.046 | AA12: 112.046 | AB12: 123.2506 | AC12: 135.57566 | AD12: 135.57566 | AE12: ED_REP222_00002 | AG12: Total urban poles | AH12: 116931.9586 | AI12: 545
A13: ED_REP221_00003 | D13: > 1 kV & < = 11 kV; Wood | E13: 765.7820278 | F13: 1057.723856 | G13: 2317.884571 | H13: 2551.463575 | I13: 3309.307417 | J13: 3270 | K13: 1731.108878 | L13: 1462.829419 | M13: 2073.653527 | N13: 913.2411642 | O13: 1290.422102 | P13: 1435.062516 | Q13: 568 | R13: 483.5570079 | S13: 359.9777545 | T13: 487.5526544 | U13: 246.4716957 | V13: 298.7193874 | W13: 341.269378 | X13: 0 | Y13: 44.66 | Z13: 49.126 | AA13: 49.126 | AB13: 54.0386 | AC13: 59.44246 | AD13: 59.44246 | AE13: ED_REP222_00003 | AG13: Total rural long poles | AH13: 436825.7687 | AI13: 1493
A14: ED_REP221_00004 | D14: ˃ 11 kV & < = 22 kV; Wood | E14: 2425.184222 | F14: 3349.749571 | G14: 7340.588111 | H14: 8080.319152 | I14: 10480.36567 | J14: 10357 | K14: 5482.303411 | L14: 4632.680713 | M14: 6567.118885 | N14: 2892.172302 | O14: 4086.678535 | P14: 4544.744831 | Q14: 1800 | R14: 1531.494783 | S14: 1140.101465 | T14: 1544.149572 | U14: 780.6114068 | V14: 946.0873817 | W14: 1080.849339 | X14: 0 | Y14: 210.1 | Z14: 231.11 | AA14: 254.221 | AB14: 279.6431 | AC14: 307.60741 | AD14: 338.368151 | AE14: ED_REP222_00004 | AG14: Total rural short poles | AH14: 405803.2727 | AI14: 1392
A15: ED_REP221_00005 | D15: > 22 kV & < = 66 kV; Wood | E15: 1435.065658 | F15: 1433.420766 | G15: 2669.083299 | H15: 3412.789055 | I15: 5614.111309 | J15: 4814 | K15: 3346.457009 | L15: 4188.664594 | M15: 5229.142122 | N15: 3395.388366 | O15: 4262.500652 | P15: 4390.183607 | Q15: 248 | R15: 267.0476913 | S15: 285.8879563 | T15: 343.8813618 | U15: 250.518056 | V15: 271.402162 | W15: 288.4099663 | X15: 0 | Y15: 15.6 | Z15: 15.6 | AA15: 15.6 | AB15: 15.6 | AC15: 15.6 | AD15: 15.6 | AE15: ED_REP222_00005 | AF15: OVERHEAD CONDUCTORS LENGTH by FEEDER TYPE | AG15: Conductors CBD (KM) | AH15: 0 | AI15: 0
A16: ED_REP221_00006 | D16: > 66 kV & < = 132 kV; Wood | E16: 0 | F16: 0 | G16: 0 | H16: 0 | I16: 0 | J16: 0 | K16: 17.67128887 | L16: 156.2592068 | M16: 49.06406392 | N16: 0 | O16: 0 | P16: 0 | Q16: 0 | R16: 1.283701153 | S16: 10 | T16: 3 | U16: 0 | V16: 0 | W16: 0 | X16: 0 | Y16: 0 | Z16: 0 | AA16: 0 | AB16: 0 | AC16: 0 | AD16: 0 | AE16: ED_REP222_00006 | AG16: Conductors urban (KM) | AH16: 6791.438024 | AI16: 13.295
A17: ED_REP221_00007 | D17: > 132 kV; Wood | E17: 0 | F17: 0 | G17: 0 | H17: 0 | I17: 0 | J17: 0 | K17: 0 | L17: 0 | M17: 0 | N17: 0 | O17: 0 | P17: 0 | Q17: 0 | R17: 0 | S17: 0 | T17: 0 | U17: 0 | V17: 0 | W17: 0 | X17: 0 | Y17: 0 | Z17: 0 | AA17: 0 | AB17: 0 | AC17: 0 | AD17: 0 | AE17: ED_REP222_00007 | AG17: Conductors rural long (KM) | AH17: 100446.0815 | AI17: 43.38
A18: ED_REP221_00008 | D18: ˂ = 1 kV; Concrete | E18: 0 | F18: 0 | G18: 0 | H18: 0 | I18: 0 | J18: 0 | K18: 0 | L18: 0 | M18: 0 | N18: 0 | O18: 0 | P18: 0 | Q18: 0 | R18: 0 | S18: 0 | T18: 0 | U18: 0 | V18: 0 | W18: 0 | X18: 0 | Y18: 0 | Z18: 0 | AA18: 0 | AB18: 0 | AC18: 0 | AD18: 0 | AE18: ED_REP222_00008 | AG18: Conductors rural short (KM) | AH18: 47374.5415 | AI18: 111.238
A19: ED_REP221_00009 | D19: > 1 kV & < = 11 kV; Concrete | E19: 0 | F19: 0 | G19: 0 | H19: 0 | I19: 0 | J19: 0 | K19: 0 | L19: 0 | M19: 0 | N19: 0 | O19: 0 | P19: 0 | Q19: 0 | R19: 0 | S19: 0 | T19: 0 | U19: 0 | V19: 0 | W19: 0 | X19: 0 | Y19: 1 | Z19: 1 | AA19: 1 | AB19: 1 | AC19: 1 | AD19: 1 | AE19: ED_REP222_00009 | AF19: OVERHEAD CONDUCTORS LENGTH by MATERIAL TYPE | AG19: OH conductor LV ABC | AH19: 132.2256151 | AI19: 13.068
A20: ED_REP221_00010 | D20: ˃ 11 kV & < = 22 kV; Concrete | E20: 0 | F20: 6.410902987 | G20: 0 | H20: 0 | I20: 18.03962092 | J20: 0 | K20: 3.363481715 | L20: 2.842224464 | M20: 4.029033536 | N20: 1.774394434 | O20: 2.507243306 | P20: 2.788274379 | Q20: 0 | R20: 0.4618500553 | S20: 0.3438182946 | T20: 0.4656663365 | U20: 0.2354075413 | V20: 0.2853098256 | W20: 0.3259497402 | X20: 0 | Y20: 0 | Z20: 0 | AA20: 0 | AB20: 0 | AC20: 0 | AD20: 0 | AE20: ED_REP222_00010 | AG20: OH conductor steel | AH20: 64506.16569 | AI20: 38.75333333
A21: ED_REP221_00011 | D21: > 22 kV & < = 66 kV; Concrete | E21: 0 | F21: 0 | G21: 0 | H21: 25.40953373 | I21: 2486.442147 | J21: 196 | K21: 14.22293558 | L21: 12.01872907 | M21: 17.03731112 | N21: 7.503265921 | O21: 10.60221611 | P21: 11.79059387 | Q21: 4 | R21: 0.6927750829 | S21: 0.5157274419 | T21: 0.6984995048 | U21: 0.3531113119 | V21: 0.4279647384 | W21: 0.4889246104 | X21: 0 | Y21: 0 | Z21: 0 | AA21: 0 | AB21: 0 | AC21: 0 | AD21: 0 | AE21: ED_REP222_00011 | AG21: OH conductor ACSR | AH21: 53640.30994 | AI21: 41.828
A22: ED_REP221_00012 | D22: > 66 kV & < = 132 kV; Concrete | E22: 0 | F22: 0 | G22: 0 | H22: 0 | I22: 0 | J22: 0 | K22: 0 | L22: 0 | M22: 0 | N22: 0 | O22: 0 | P22: 0 | Q22: 0 | R22: 0 | S22: 0 | T22: 0 | U22: 0 | V22: 0 | W22: 0 | X22: 0 | Y22: 0 | Z22: 0 | AA22: 0 | AB22: 0 | AC22: 0 | AD22: 0 | AE22: ED_REP222_00012 | AG22: OH conductor AAAC | AH22: 7575.659916 | AI22: 44.204
A23: ED_REP221_00013 | D23: > 132 kV; Concrete | E23: 0 | F23: 0 | G23: 0 | H23: 0 | I23: 0 | J23: 0 | K23: 0 | L23: 0 | M23: 0 | N23: 0 | O23: 0 | P23: 0 | Q23: 0 | R23: 0 | S23: 0 | T23: 0 | U23: 0 | V23: 0 | W23: 0 | X23: 0 | Y23: 0 | Z23: 0 | AA23: 0 | AB23: 0 | AC23: 0 | AD23: 0 | AE23: ED_REP222_00013 | AG23: OH conductor AAC | AH23: 17813.02612 | AI23: 26.05833333
A24: ED_REP221_00014 | D24: ˂ = 1 kV; Steel | E24: 0 | F24: 0 | G24: 0 | H24: 0 | I24: 0 | J24: 0 | K24: 0 | L24: 0 | M24: 0 | N24: 0 | O24: 0 | P24: 0 | Q24: 0 | R24: 0 | S24: 0 | T24: 0 | U24: 0 | V24: 0 | W24: 0 | X24: 1 | Y24: 1 | Z24: 1 | AA24: 1 | AB24: 1 | AC24: 1 | AD24: 1 | AE24: ED_REP222_00014 | AG24: OH conductor HDBC | AH24: 10944.67378 | AI24: 4.001
A25: ED_REP221_00015 | D25: > 1 kV & < = 11 kV; Steel | E25: 0 | F25: 0 | G25: 0 | H25: 0 | I25: 0 | J25: 0 | K25: 0 | L25: 0 | M25: 0 | N25: 0 | O25: 0 | P25: 0 | Q25: 0 | R25: 0 | S25: 0 | T25: 0 | U25: 0 | V25: 0 | W25: 0 | X25: 0 | Y25: 0 | Z25: 0 | AA25: 0 | AB25: 0 | AC25: 0 | AD25: 0 | AE25: ED_REP222_00015 | AF25: UNDERGROUND CABLES LENGTH by FEEDER TYPE | AG25: Cable CBD (km) | AH25: 0 | AI25: 0
A26: ED_REP221_00016 | D26: ˃ 11 kV & < = 22 kV; Steel | E26: 0 | F26: 0 | G26: 7.245804303 | H26: 0 | I26: 23.52171383 | J26: 15 | K26: 2.756791187 | L26: 2.329556102 | M26: 3.3022936 | N26: 1.454336712 | O26: 2.054997421 | P26: 2.285337304 | Q26: 2 | R26: 0.4618500553 | S26: 0.3438182946 | T26: 0.4656663365 | U26: 0.2354075413 | V26: 0.2853098256 | W26: 0.3259497402 | X26: 0 | Y26: 0 | Z26: 0 | AA26: 0 | AB26: 0 | AC26: 0 | AD26: 0 | AE26: ED_REP222_00016 | AG26: Cable urban (km) | AH26: 2902.326693 | AI26: 2.132
A27: ED_REP221_00017 | D27: > 22 kV & < = 66 kV; Steel | E27: 0 | F27: 0 | G27: 0 | H27: 0 | I27: 0 | J27: 0 | K27: 0 | L27: 0 | M27: 0 | N27: 0 | O27: 0 | P27: 0 | Q27: 0 | R27: 0 | S27: 0 | T27: 0 | U27: 0 | V27: 0 | W27: 0 | X27: 0 | Y27: 0 | Z27: 0 | AA27: 0 | AB27: 0 | AC27: 0 | AD27: 0 | AE27: ED_REP222_00017 | AG27: Cable rural long (km) | AH27: 481.1767374 | AI27: 0.073
A28: ED_REP221_00018 | D28: > 66 kV & < = 132 kV; Steel | E28: 0 | F28: 0 | G28: 0 | H28: 0 | I28: 0 | J28: 0 | K28: 0 | L28: 0 | M28: 0 | N28: 0 | O28: 0 | P28: 0 | Q28: 0 | R28: 0 | S28: 0 | T28: 0 | U28: 0 | V28: 0 | W28: 0 | X28: 0 | Y28: 0 | Z28: 0 | AA28: 0 | AB28: 0 | AC28: 0 | AD28: 0 | AE28: ED_REP222_00018 | AG28: Cable rural short (km) | AH28: 5120.049574 | AI28: 1.691
A29: ED_REP221_00019 | D29: > 132 kV; Steel | E29: 0 | F29: 0 | G29: 0 | H29: 0 | I29: 0 | J29: 0 | K29: 0 | L29: 0 | M29: 0 | N29: 0 | O29: 0 | P29: 0 | Q29: 0 | R29: 0 | S29: 0 | T29: 0 | U29: 0 | V29: 0 | W29: 0 | X29: 0 | Y29: 0 | Z29: 0 | AA29: 0 | AB29: 0 | AC29: 0 | AD29: 0 | AE29: ED_REP222_00019 | AF29: TRANSFORMERS by TOTAL MVA | AG29: Total MVA replaced | AH29: 22895.661 | AI29: 81.832
A30: ED_REP221_00020 | D30: Other | E30: 0 | F30: 0 | G30: 0 | H30: 0 | I30: 0 | J30: 0 | K30: 0 | L30: 0 | M30: 0 | N30: 0 | O30: 0 | P30: 0 | Q30: 0 | R30: 0 | S30: 0 | T30: 0 | U30: 0 | V30: 0 | W30: 0 | X30: 0 | Y30: 0 | Z30: 0 | AA30: 0 | AB30: 0 | AC30: 0 | AD30: 0 | AE30: ED_REP222_00020 | AG30: Total MVA disposed of | AH30: 126.5175 | AI30: 126.5175
A31: ED_REP221_00033 | C31: POLE TOP STRUCTURES BY: Highest operating voltage | D31: ˂ = 1 kV | E31: 404.7585456 | F31: 566.3179177 | G31: 1241.139461 | H31: 1313.271865 | I31: 1428.983496 | J31: 1196 | K31: 854.7908018 | L31: 1544.440209 | M31: 1424.748707 | N31: 1544.673415 | O31: 1474.739318 | P31: 1682.178255 | Q31: 1532 | R31: 1813.223317 | S31: 2886.165524 | T31: 2543.851521 | U31: 3165.821347 | V31: 2592.477723 | W31: 3037.852421 | X31: 84 | Y31: 66.8 | Z31: 63.46 | AA31: 60.287 | AB31: 57.27265 | AC31: 54.4090175 | AD31: 51.68856662
A32: ED_REP221_00034 | D32: > 1 kV & < = 11 kV | E32: 2081.356974 | F32: 2912.131462 | G32: 6382.211425 | H32: 6753.112941 | I32: 7348.122927 | J32: 6149 | K32: 4395.513208 | L32: 7941.834803 | M32: 7326.356048 | N32: 7943.033997 | O32: 7583.418235 | P32: 8650.112663 | Q32: 3730 | R32: 4109.772717 | S32: 6541.656627 | T32: 5765.78267 | U32: 7175.512291 | V32: 5875.996694 | W32: 6885.463518 | X32: 0 | Y32: 83.4 | Z32: 79.23 | AA32: 75.2685 | AB32: 71.505075 | AC32: 67.92982125 | AD32: 64.53333019
A33: ED_REP221_00035 | D33: ˃ 11 kV & < = 22 kV | E33: 507.5378031 | F33: 710.1222018 | G33: 1556.298337 | H33: 1646.744427 | I33: 1791.836396 | J33: 1499 | K33: 1071.843991 | L33: 1936.612974 | M33: 1786.528746 | N33: 1936.905397 | O33: 1849.213249 | P33: 2109.326223 | Q33: 645 | R33: 1082.11468 | S33: 1722.436532 | T33: 1518.146743 | U33: 1889.332505 | V33: 1547.166405 | W33: 1812.96185 | X33: 0 | Y33: 51.4 | Z33: 48.83 | AA33: 46.3885 | AB33: 44.069075 | AC33: 41.86562125 | AD33: 39.77234019
A34: ED_REP221_00036 | D34: > 22 kV & < = 66 kV | E34: 535.0317289 | F34: 748.5854847 | G34: 1640.597807 | H34: 1735.937752 | I34: 1888.881798 | J34: 1581 | K34: 4037.258735 | L34: 8382.940745 | M34: 8847.897915 | N34: 8249.761132 | O34: 9187.029072 | P34: 9268.932025 | Q34: 611 | R34: 2202.052136 | S34: 3992.172153 | T34: 3995.281429 | U34: 4313.005989 | V34: 4083.726955 | W34: 4261.831457 | X34: 0 | Y34: 38 | Z34: 36.1 | AA34: 34.295 | AB34: 32.58025 | AC34: 30.9512375 | AD34: 29.40367562
A35: ED_REP221_00037 | D35: > 66 kV & < = 132 kV | E35: 123.3729524 | F35: 172.6117831 | G35: 378.2613823 | H35: 400.2791368 | I35: 435.53103 | J35: 364 | K35: 260.5232289 | L35: 470.7146466 | M35: 434.2350582 | N35: 470.7857231 | O35: 449.4712019 | P35: 512.6944625 | Q35: 66 | R35: 70.66305846 | S35: 321.4766493 | T35: 168.136343 | U35: 123.375106 | V35: 101.031353 | W35: 118.3880337 | X35: 0 | Y35: 2.8 | Z35: 2.66 | AA35: 2.66 | AB35: 2.66 | AC35: 2.66 | AD35: 2.66
A36: ED_REP221_00038 | D36: > 132 kV | E36: 0 | F36: 0 | G36: 0 | H36: 0 | I36: 0 | J36: 0 | K36: 0 | L36: 0 | M36: 0 | N36: 0 | O36: 0 | P36: 0 | Q36: 0 | R36: 0 | S36: 0 | T36: 0 | U36: 0 | V36: 0 | W36: 0 | X36: 0 | Y36: 0 | Z36: 0 | AA36: 0 | AB36: 0 | AC36: 0 | AD36: 0
A37: ED_REP221_00039 | D37: Other | E37: 0 | F37: 0 | G37: 0 | H37: 0 | I37: 0 | J37: 0 | K37: 0 | L37: 0 | M37: 0 | N37: 0 | O37: 0 | P37: 0 | Q37: 0 | R37: 0 | S37: 0 | T37: 0 | U37: 0 | V37: 0 | W37: 0 | X37: 0 | Y37: 0 | Z37: 0 | AA37: 0 | AB37: 0 | AC37: 0 | AD37: 0
A38: ED_REP221_00040 | C38: OVERHEAD CONDUCTORS BY: Highest operating voltage; Number of phases (at HV) | D38: ˂ = 1 kV | E38: 947.9659776 | F38: 569.8710535 | G38: 1700.287501 | H38: 3081.235127 | I38: 1560.373335 | J38: 1058 | K38: 8923.922848 | L38: 25320.99898 | M38: 26607.35093 | N38: 23329.41581 | O38: 27056.91609 | P38: 677.4618794 | Q38: 13.068 | R38: 129.3561911 | S38: 317.7987978 | T38: 320.8059951 | U38: 325.7124537 | V38: 321.7204536 | W38: 19.54592474 | X38: 95 | Y38: 57.76 | Z38: 54.872 | AA38: 52.1284 | AB38: 49.52198 | AC38: 47.045881 | AD38: 51.7504691
A39: ED_REP221_00041 | D39: > 1 kV & < = 11 kV | E39: 6769.001612 | F39: 10114.59284 | G39: 16686.2744 | H39: 21144.82251 | I39: 17562.69687 | J39: 10984 | K39: 3348.679322 | L39: 4888.213494 | M39: 5825.96502 | N39: 6084.272793 | O39: 6136.49033 | P39: 15109.49672 | Q39: 81.9264101 | R39: 35.51254652 | S39: 47.00143306 | T39: 53.87224134 | U39: 65.08245869 | V39: 55.96158512 | W39: 127.6582933 | X39: 0 | Y39: 233.86 | Z39: 233.86 | AA39: 233.86 | AB39: 233.86 | AC39: 233.86 | AD39: 233.86
A40: ED_REP221_00042 | D40: ˃ 11 kV & < = 22 kV ; SWER | E40: 1096.290321 | F40: 1638.133784 | G40: 2702.466649 | H40: 3424.561786 | I40: 2844.409809 | J40: 1779 | K40: 327.2045206 | L40: 586.1442766 | M40: 728.4341611 | N40: 797.9831374 | O40: 775.354506 | P40: 738.7095672 | Q40: 26.53718688 | R40: 7.526194685 | S40: 11.87734473 | T40: 14.10290207 | U40: 17.73405877 | V40: 14.7796717 | W40: 14.46548766 | X40: 0 | Y40: 80.52 | Z40: 80.52 | AA40: 80.52 | AB40: 80.52 | AC40: 80.52 | AD40: 80.52
A41: ED_REP221_00043 | D41: ˃ 11 kV & < = 22 kV ; Single-Phase | E41: 690.7726813 | F41: 1032.188322 | G41: 1702.824606 | H41: 2157.816851 | I41: 1792.263011 | J41: 1121 | K41: 1534.539448 | L41: 1638.418223 | M41: 1787.263309 | N41: 1659.966474 | O41: 1837.645305 | P41: 11013.82445 | Q41: 11.94363221 | R41: 15.66477542 | S41: 15.67898801 | T41: 16.68064799 | U41: 18.31492823 | V41: 16.98524274 | W41: 89.51050411 | X41: 0 | Y41: 0 | Z41: 0 | AA41: 0 | AB41: 0 | AC41: 0 | AD41: 0
A42: ED_REP221_00044 | D42: ˃ 11 kV & < = 22 kV ; Multiple-Phase | E42: 2308.334754 | F42: 3449.233359 | G42: 5690.278908 | H42: 7210.71311 | I42: 5989.152594 | J42: 3746 | K42: 2017.325452 | L42: 2503.26646 | M42: 2862.058416 | N42: 2837.380188 | O42: 2981.670768 | P42: 12103.78078 | Q42: 27.93817915 | R42: 20.2009787 | S42: 22.83772524 | T42: 25.18077765 | U42: 29.00363599 | V42: 25.89327635 | W42: 98.22917208 | X42: 0 | Y42: 55.22 | Z42: 55.22 | AA42: 55.22 | AB42: 55.22 | AC42: 55.22 | AD42: 55.22
A43: ED_REP221_00045 | D43: > 22 kV & < = 66 kV | E43: 2129.577021 | F43: 3182.124295 | G43: 5249.622995 | H43: 6652.314582 | I43: 5525.351865 | J43: 3456 | K43: 635.6046526 | L43: 1138.60294 | M43: 1415.005334 | N43: 1550.106318 | O43: 1506.149519 | P43: 1434.96562 | Q43: 5.369717302 | R43: 1.522902107 | S43: 2.403343797 | T43: 2.853678409 | U43: 3.588431684 | V43: 2.990620641 | W43: 2.927046477 | X43: 0 | Y43: 28.38 | Z43: 28.38 | AA43: 28.38 | AB43: 28.38 | AC43: 28.38 | AD43: 28.38
A44: ED_REP221_00046 | D44: > 66 kV & < = 132 kV | E44: 537.5578224 | F44: 803.2467431 | G44: 1325.134465 | H44: 1679.208456 | I44: 1394.735239 | J44: 872 | K44: 160.4423083 | L44: 287.4114959 | M44: 357.1822847 | N44: 391.285109 | O44: 380.1893276 | P44: 362.2207538 | Q44: 1.129541027 | R44: 0.320348412 | S44: 0.5055527636 | T44: 0.6002824098 | U44: 0.7548406336 | V44: 0.6290887437 | W44: 0.6157156696 | X44: 0 | Y44: 0.88 | Z44: 0.88 | AA44: 0.88 | AB44: 0.88 | AC44: 0.88 | AD44: 0.88
A45: ED_REP221_00047 | D45: > 132 kV | E45: 0 | F45: 0 | G45: 0 | H45: 0 | I45: 0 | J45: 0 | K45: 0 | L45: 0 | M45: 0 | N45: 0 | O45: 0 | P45: 0 | Q45: 0 | R45: 0 | S45: 0 | T45: 0 | U45: 0 | V45: 0 | W45: 0 | X45: 0 | Y45: 0 | Z45: 0 | AA45: 0 | AB45: 0 | AC45: 0 | AD45: 0
A46: ED_REP221_00048 | D46: Other | E46: 0 | F46: 0 | G46: 0 | H46: 0 | I46: 0 | J46: 0 | K46: 0 | L46: 0 | M46: 0 | N46: 0 | O46: 0 | P46: 0 | Q46: 0 | R46: 0 | S46: 0 | T46: 0 | U46: 0 | V46: 0 | W46: 0 | X46: 0 | Y46: 0 | Z46: 0 | AA46: 0 | AB46: 0 | AC46: 0 | AD46: 0
A47: ED_REP221_00049 | C47: UNDERGROUND CABLES BY: Highest operating voltage | D47: ˂ = 1 kV | E47: 68.05839144 | F47: 104.6710416 | G47: 115.2068897 | H47: 133.5366536 | I47: 217.8824808 | J47: 120 | K47: 86.96134045 | L47: 355.6964266 | M47: 414.5158923 | N47: 224.3577934 | O47: 306.045252 | P47: 260.0120135 | Q47: 1.62225 | R47: 3.251886239 | S47: 11.71783291 | T47: 13.04705031 | U47: 8.106036498 | V47: 9.484251983 | W47: 8.277624767 | X47: 0 | Y47: 0 | Z47: 0 | AA47: 0 | AB47: 0 | AC47: 0 | AD47: 0
A48: ED_REP221_00050 | D48: > 1 kV & < = 11 kV | E48: 1485.606676 | F48: 284.0661525 | G48: 1111.71224 | H48: 987.7925276 | I48: 1003.460783 | J48: 678 | K48: 618.7969432 | L48: 2531.054148 | M48: 2949.599969 | N48: 1596.478574 | O48: 2177.747784 | P48: 1850.185822 | Q48: 2.107333333 | R48: 4.271651161 | S48: 15.39244945 | T48: 17.13849855 | U48: 10.64802323 | V48: 12.45843582 | W48: 10.87342018 | X48: 51 | Y48: 42.75 | Z48: 42.75 | AA48: 42.75 | AB48: 42.75 | AC48: 42.75 | AD48: 42.75
A49: ED_REP221_00051 | D49: > 11 kV & < = 22 kV | E49: 45.52589664 | F49: 173.405711 | G49: 109.2609151 | H49: 354.1055798 | I49: 159.3025316 | J49: 0 | K49: 97.55881723 | L49: 399.0430977 | M49: 465.0305522 | N49: 251.6989831 | O49: 343.341221 | P49: 291.6981773 | Q49: 0 | R49: 1.800753366 | S49: 6.488826943 | T49: 7.22488981 | U49: 4.488770957 | V49: 5.251966835 | W49: 4.583789088 | X49: 17 | Y49: 11.78 | Z49: 11.78 | AA49: 11.78 | AB49: 11.78 | AC49: 11.78 | AD49: 11.78
A50: ED_REP221_00052 | D50: > 22 kV & < = 33 kV | E50: 0 | F50: 0 | G50: 0 | H50: 13.88477197 | I50: 14.63779011 | J50: 242 | K50: 49.15057017 | L50: 201.0397044 | M50: 234.2844802 | N50: 126.8070779 | O50: 172.9768488 | P50: 146.9588515 | Q50: 0.1666666667 | R50: 0.06650640796 | S50: 0.2396489048 | T50: 0.2668335811 | U50: 0.1657817435 | V50: 0.1939685109 | W50: 0.169291005 | X50: 6 | Y50: 1.9 | Z50: 1.9 | AA50: 1.9 | AB50: 1.9 | AC50: 1.9 | AD50: 1.9
A51: ED_REP221_00053 | D51: > 33 kV & < = 66 kV | E51: 0 | F51: 0 | G51: 0 | H51: 0 | I51: 0 | J51: 0 | K51: 0 | L51: 0 | M51: 0 | N51: 0 | O51: 0 | P51: 0 | Q51: 0 | R51: 0 | S51: 0 | T51: 0 | U51: 0 | V51: 0 | W51: 0 | X51: 4 | Y51: 4 | Z51: 4 | AA51: 4 | AB51: 4 | AC51: 4 | AD51: 4
A52: ED_REP221_00054 | D52: > 66 kV & < = 132 kV | E52: 0 | F52: 0 | G52: 0 | H52: 0 | I52: 0 | J52: 0 | K52: 0 | L52: 0 | M52: 0 | N52: 0 | O52: 0 | P52: 0 | Q52: 0 | R52: 0 | S52: 0 | T52: 0 | U52: 0 | V52: 0 | W52: 0 | X52: 2 | Y52: 2 | Z52: 2 | AA52: 2 | AB52: 2 | AC52: 2 | AD52: 2
A53: ED_REP221_00055 | D53: > 132 kV | E53: 0 | F53: 0 | G53: 0 | H53: 0 | I53: 0 | J53: 0 | K53: 0 | L53: 0 | M53: 0 | N53: 0 | O53: 0 | P53: 0 | Q53: 0 | R53: 0 | S53: 0 | T53: 0 | U53: 0 | V53: 0 | W53: 0 | X53: 0 | Y53: 0 | Z53: 0 | AA53: 0 | AB53: 0 | AC53: 0 | AD53: 0
A54: ED_REP221_00056 | D54: Other | E54: 0 | F54: 0 | G54: 0 | H54: 0 | I54: 0 | J54: 0 | K54: 0 | L54: 0 | M54: 0 | N54: 0 | O54: 0 | P54: 0 | Q54: 0 | R54: 0 | S54: 0 | T54: 0 | U54: 0 | V54: 0 | W54: 0 | X54: 0 | Y54: 0 | Z54: 0 | AA54: 0 | AB54: 0 | AC54: 0 | AD54: 0
A55: ED_REP221_00057 | C55: SERVICE LINES BY: Connection voltage; Customer type; Connection complexity | D55: ˂ = 11 kV ; Residential ; Simple Type | E55: 2074.592855 | F55: 2313.003751 | G55: 5150.898388 | H55: 11238.0198 | I55: 6968.360277 | J55: 6353 | K55: 3284.09265 | L55: 8840.624055 | M55: 9300.434681 | N55: 9176.217196 | O55: 9760.615249 | P55: 10441.64129 | Q55: 4412.878788 | R55: 7666.286015 | S55: 18180.72592 | T55: 18274.05369 | U55: 20696.24599 | V55: 18882.31029 | W55: 20751.12224 | X55: 6365 | Y55: 9644.2936 | Z55: 9162.07892 | AA55: 8703.974974 | AB55: 8268.776225 | AC55: 7855.337414 | AD55: 7462.570543
A56: ED_REP221_00058 | D56: ˂ = 11 kV ; Commercial & Industrial ; Simple Type | E56: 560.7944305 | F56: 559.8950257 | G56: 717.731227 | H56: 645.4975626 | I56: 924.3206085 | J56: 781 | K56: 595.7906272 | L56: 1603.840546 | M56: 1687.258066 | N56: 1664.722887 | O56: 1770.742699 | P56: 1894.29248 | Q56: 345.6818182 | R56: 506.6448921 | S56: 1201.516863 | T56: 1207.684652 | U56: 1367.761038 | V56: 1247.882748 | W56: 1371.387666 | X56: 468.3409091 | Y56: 619.792 | Z56: 588.8024 | AA56: 559.36228 | AB56: 531.394166 | AC56: 504.8244577 | AD56: 479.5832348
A57: ED_REP221_00059 | D57: ˂ = 11 kV ; Residential ; Complex Type | E57: 0 | F57: 0 | G57: 0 | H57: 0 | I57: 0 | J57: 0 | K57: 0 | L57: 0 | M57: 0 | N57: 0 | O57: 0 | P57: 0 | Q57: 0 | R57: 0 | S57: 0 | T57: 0 | U57: 0 | V57: 0 | W57: 0 | X57: 0 | Y57: 0 | Z57: 0 | AA57: 0 | AB57: 0 | AC57: 0 | AD57: 0
A58: ED_REP221_00060 | D58: ˂ = 11 kV ; Commercial & Industrial ; Complex Type | E58: 0 | F58: 0 | G58: 0 | H58: 0 | I58: 0 | J58: 0 | K58: 0 | L58: 0 | M58: 0 | N58: 0 | O58: 0 | P58: 0 | Q58: 0 | R58: 0 | S58: 0 | T58: 0 | U58: 0 | V58: 0 | W58: 0 | X58: 0 | Y58: 0 | Z58: 0 | AA58: 0 | AB58: 0 | AC58: 0 | AD58: 0
A59: ED_REP221_00061 | D59: ˂ = 11 kV ; Subdivision ; Complex Type | E59: 0 | F59: 0 | G59: 0 | H59: 0 | I59: 0 | J59: 0 | K59: 0 | L59: 0 | M59: 0 | N59: 0 | O59: 0 | P59: 0 | Q59: 0 | R59: 0 | S59: 0 | T59: 0 | U59: 0 | V59: 0 | W59: 0 | X59: 0 | Y59: 0 | Z59: 0 | AA59: 0 | AB59: 0 | AC59: 0 | AD59: 0
A60: ED_REP221_00062 | D60: > 11 kV & < = 22 kV ; Commercial & Industrial | E60: 0 | F60: 0 | G60: 0 | H60: 0 | I60: 0 | J60: 0 | K60: 0 | L60: 0 | M60: 0 | N60: 0 | O60: 0 | P60: 0 | Q60: 0 | R60: 0 | S60: 0 | T60: 0 | U60: 0 | V60: 0 | W60: 0 | X60: 0 | Y60: 0 | Z60: 0 | AA60: 0 | AB60: 0 | AC60: 0 | AD60: 0
A61: ED_REP221_00063 | D61: > 11 kV & < = 22 kV ; Subdivision | E61: 0 | F61: 0 | G61: 0 | H61: 0 | I61: 0 | J61: 0 | K61: 0 | L61: 0 | M61: 0 | N61: 0 | O61: 0 | P61: 0 | Q61: 0 | R61: 0 | S61: 0 | T61: 0 | U61: 0 | V61: 0 | W61: 0 | X61: 0 | Y61: 0 | Z61: 0 | AA61: 0 | AB61: 0 | AC61: 0 | AD61: 0
A62: ED_REP221_00064 | D62: > 22 kV & < = 33 kV ; Commercial & Industrial | E62: 0 | F62: 0 | G62: 0 | H62: 0 | I62: 0 | J62: 0 | K62: 0 | L62: 0 | M62: 0 | N62: 0 | O62: 0 | P62: 0 | Q62: 0 | R62: 0 | S62: 0 | T62: 0 | U62: 0 | V62: 0 | W62: 0 | X62: 0 | Y62: 0 | Z62: 0 | AA62: 0 | AB62: 0 | AC62: 0 | AD62: 0
A63: ED_REP221_00065 | D63: > 22 kV & < = 33 kV ; Subdivision | E63: 0 | F63: 0 | G63: 0 | H63: 0 | I63: 0 | J63: 0 | K63: 0 | L63: 0 | M63: 0 | N63: 0 | O63: 0 | P63: 0 | Q63: 0 | R63: 0 | S63: 0 | T63: 0 | U63: 0 | V63: 0 | W63: 0 | X63: 0 | Y63: 0 | Z63: 0 | AA63: 0 | AB63: 0 | AC63: 0 | AD63: 0
A64: ED_REP221_00066 | D64: > 33 kV & < = 66 kV ; Commercial & Industrial | E64: 0 | F64: 0 | G64: 0 | H64: 0 | I64: 0 | J64: 0 | K64: 0 | L64: 0 | M64: 0 | N64: 0 | O64: 0 | P64: 0 | Q64: 0 | R64: 0 | S64: 0 | T64: 0 | U64: 0 | V64: 0 | W64: 0 | X64: 0 | Y64: 0 | Z64: 0 | AA64: 0 | AB64: 0 | AC64: 0 | AD64: 0
A65: ED_REP221_00067 | D65: > 33 kV & < = 66 kV ; Subdivision | E65: 0 | F65: 0 | G65: 0 | H65: 0 | I65: 0 | J65: 0 | K65: 0 | L65: 0 | M65: 0 | N65: 0 | O65: 0 | P65: 0 | Q65: 0 | R65: 0 | S65: 0 | T65: 0 | U65: 0 | V65: 0 | W65: 0 | X65: 0 | Y65: 0 | Z65: 0 | AA65: 0 | AB65: 0 | AC65: 0 | AD65: 0
A66: ED_REP221_00068 | D66: > 66 kV & < = 132 kV ; Commercial & Industrial | E66: 0 | F66: 0 | G66: 0 | H66: 0 | I66: 0 | J66: 0 | K66: 0 | L66: 0 | M66: 0 | N66: 0 | O66: 0 | P66: 0 | Q66: 0 | R66: 0 | S66: 0 | T66: 0 | U66: 0 | V66: 0 | W66: 0 | X66: 0 | Y66: 0 | Z66: 0 | AA66: 0 | AB66: 0 | AC66: 0 | AD66: 0
A67: ED_REP221_00069 | D67: > 66 kV & < = 132 kV ; Subdivision | E67: 0 | F67: 0 | G67: 0 | H67: 0 | I67: 0 | J67: 0 | K67: 0 | L67: 0 | M67: 0 | N67: 0 | O67: 0 | P67: 0 | Q67: 0 | R67: 0 | S67: 0 | T67: 0 | U67: 0 | V67: 0 | W67: 0 | X67: 0 | Y67: 0 | Z67: 0 | AA67: 0 | AB67: 0 | AC67: 0 | AD67: 0
A68: ED_REP221_00070 | D68: > 132 kV ; Commercial & Industrial | E68: 0 | F68: 0 | G68: 0 | H68: 0 | I68: 0 | J68: 0 | K68: 0 | L68: 0 | M68: 0 | N68: 0 | O68: 0 | P68: 0 | Q68: 0 | R68: 0 | S68: 0 | T68: 0 | U68: 0 | V68: 0 | W68: 0 | X68: 0 | Y68: 0 | Z68: 0 | AA68: 0 | AB68: 0 | AC68: 0 | AD68: 0
A69: ED_REP221_00071 | D69: > 132 kV ; Subdivision | E69: 0 | F69: 0 | G69: 0 | H69: 0 | I69: 0 | J69: 0 | K69: 0 | L69: 0 | M69: 0 | N69: 0 | O69: 0 | P69: 0 | Q69: 0 | R69: 0 | S69: 0 | T69: 0 | U69: 0 | V69: 0 | W69: 0 | X69: 0 | Y69: 0 | Z69: 0 | AA69: 0 | AB69: 0 | AC69: 0 | AD69: 0
A70: ED_REP221_00072 | D70: Other | E70: 0 | F70: 0 | G70: 0 | H70: 0 | I70: 0 | J70: 0 | K70: 0 | L70: 0 | M70: 0 | N70: 0 | O70: 0 | P70: 0 | Q70: 0 | R70: 0 | S70: 0 | T70: 0 | U70: 0 | V70: 0 | W70: 0 | X70: 0 | Y70: 0 | Z70: 0 | AA70: 0 | AB70: 0 | AC70: 0 | AD70: 0
A71: ED_REP221_00073 | C71: TRANSFORMERS BY: Mounting type; Highest operating voltage; Ampere rating; Number of phases (at LV) | D71: Pole Mounted ; < = 22kV ; < = 60 kVA ; Single Phase | E71: 3167.64994 | F71: 3286.178813 | G71: 5667.940844 | H71: 4769.691364 | I71: 5765.285903 | J71: 5177.110133 | K71: 4528.42168 | L71: 3843.123333 | M71: 4107.84708 | N71: 3847.838278 | O71: 4101.335764 | P71: 4055.066813 | Q71: 596 | R71: 740.5765636 | S71: 553.6892672 | T71: 565.4567644 | U71: 607.9924552 | V71: 555.848896 | W71: 564.5784796 | X71: 596 | Y71: 658.82 | Z71: 724.36 | AA71: 724.36 | AB71: 724.36 | AC71: 724.36 | AD71: 724.36
A72: ED_REP221_00074 | D72: Pole Mounted ; < = 22kV ; > 60 kVA and < = 600 kVA ; Single Phase | E72: 735.1333004 | F72: 779.4800793 | G72: 672.9829554 | H72: 936.4398367 | I72: 1090.741577 | J72: 1065.571419 | K72: 760.7499282 | L72: 645.6235763 | M72: 690.0957093 | N72: 646.4156611 | O72: 689.0018441 | P72: 681.2289149 | Q72: 19 | R72: 20.78325249 | S72: 15.53852013 | T72: 15.86875859 | U72: 17.06246366 | V72: 15.59912711 | W72: 15.84411075 | X72: 19 | Y72: 20.2 | Z72: 20.2 | AA72: 20.2 | AB72: 20.2 | AC72: 20.2 | AD72: 20.2
A73: ED_REP221_00075 | D73: Pole Mounted ; < = 22kV ; > 600 kVA ; Single Phase | E73: 0 | F73: 0 | G73: 0 | H73: 0 | I73: 0 | J73: 0 | K73: 0 | L73: 0 | M73: 0 | N73: 0 | O73: 0 | P73: 0 | Q73: 0 | R73: 0 | S73: 0 | T73: 0 | U73: 0 | V73: 0 | W73: 0 | X73: 0 | Y73: 0 | Z73: 0 | AA73: 0 | AB73: 0 | AC73: 0 | AD73: 0
A74: ED_REP221_00076 | D74: Pole Mounted ; < = 22kV ; < = 60 kVA ; Multiple Phase | E74: 1539.01189 | F74: 1382.866698 | G74: 2626.309837 | H74: 1797.550225 | I74: 2144.856699 | J74: 1808.91257 | K74: 1763.779049 | L74: 1496.861577 | M74: 1599.969068 | N74: 1498.698005 | O74: 1597.43297 | P74: 1579.411634 | Q74: 155 | R74: 196.0553485 | S74: 146.5800399 | T74: 149.6952894 | U74: 160.9559072 | V74: 147.1517657 | W74: 149.462778 | X74: 155 | Y74: 177.4 | Z74: 177.4 | AA74: 177.4 | AB74: 177.4 | AC74: 177.4 | AD74: 177.4
A75: ED_REP221_00077 | D75: Pole Mounted ; < = 22kV ; > 60 kVA and < = 600 kVA ; Multiple Phase | E75: 9617.134676 | F75: 8130.170429 | G75: 13905.76027 | H75: 10011.92104 | I75: 11786.11632 | J75: 11048.88757 | K75: 9784.124619 | L75: 8303.466479 | M75: 8875.429584 | N75: 8313.653606 | O75: 8861.361212 | P75: 8761.392345 | Q75: 422 | R75: 495.1032593 | S75: 370.1620795 | T75: 378.0290935 | U75: 406.4658011 | V75: 371.6058725 | W75: 377.4419271 | X75: 422 | Y75: 455.2 | Z75: 455.2 | AA75: 455.2 | AB75: 455.2 | AC75: 455.2 | AD75: 455.2
A76: ED_REP221_00078 | D76: Pole Mounted ; < = 22kV ; > 600 kVA ; Multiple Phase | E76: 1987.090798 | F76: 2695.469147 | G76: 3361.401036 | H76: 3776.296255 | I76: 3457.845519 | J76: 2685.778822 | K76: 3022.972531 | L76: 2565.497891 | M76: 2742.215669 | N76: 2568.645378 | O76: 2737.869005 | P76: 2706.981914 | Q76: 39 | R76: 65.81363288 | S76: 49.20531373 | T76: 50.25106886 | U76: 54.03113494 | V76: 49.39723585 | W76: 50.17301736 | X76: 39 | Y76: 57.4 | Z76: 57.4 | AA76: 57.4 | AB76: 57.4 | AC76: 57.4 | AD76: 57.4
A77: ED_REP221_00079 | D77: Kiosk Mounted ; < = 22kV ; < = 60 kVA ; Single Phase | E77: 0 | F77: 0 | G77: 0 | H77: 0 | I77: 0 | J77: 0 | K77: 0 | L77: 0 | M77: 0 | N77: 0 | O77: 0 | P77: 0 | Q77: 0 | R77: 0 | S77: 0 | T77: 0 | U77: 0 | V77: 0 | W77: 0 | X77: 0 | Y77: 0 | Z77: 0 | AA77: 0 | AB77: 0 | AC77: 0 | AD77: 0
A78: ED_REP221_00080 | D78: Kiosk Mounted ; < = 22kV ; > 60 kVA and < = 600 kVA ; Single Phase | E78: 0 | F78: 0 | G78: 0 | H78: 0 | I78: 0 | J78: 0 | K78: 0 | L78: 0 | M78: 0 | N78: 0 | O78: 0 | P78: 0 | Q78: 0 | R78: 0 | S78: 0 | T78: 0 | U78: 0 | V78: 0 | W78: 0 | X78: 0 | Y78: 0 | Z78: 0 | AA78: 0 | AB78: 0 | AC78: 0 | AD78: 0
A79: ED_REP221_00081 | D79: Kiosk Mounted ; < = 22kV ; > 600 kVA ; Single Phase | E79: 0 | F79: 0 | G79: 0 | H79: 0 | I79: 0 | J79: 0 | K79: 0 | L79: 0 | M79: 0 | N79: 0 | O79: 0 | P79: 0 | Q79: 0 | R79: 0 | S79: 0 | T79: 0 | U79: 0 | V79: 0 | W79: 0 | X79: 0 | Y79: 0 | Z79: 0 | AA79: 0 | AB79: 0 | AC79: 0 | AD79: 0
A80: ED_REP221_00082 | D80: Kiosk Mounted ; < = 22kV ; < = 60 kVA ; Multiple Phase | E80: 0 | F80: 0 | G80: 0 | H80: 0 | I80: 0 | J80: 0 | K80: 0 | L80: 0 | M80: 0 | N80: 0 | O80: 0 | P80: 0 | Q80: 0 | R80: 0 | S80: 0 | T80: 0 | U80: 0 | V80: 0 | W80: 0 | X80: 0 | Y80: 0 | Z80: 0 | AA80: 0 | AB80: 0 | AC80: 0 | AD80: 0
A81: ED_REP221_00083 | D81: Kiosk Mounted ; < = 22kV ; > 60 kVA and < = 600 kVA ; Multiple Phase | E81: 2925.961708 | F81: 1479.07434 | G81: 2640.515479 | H81: 2876.70564 | I81: 3783.899321 | J81: 2501 | K81: 2423.630677 | L81: 2056.856067 | M81: 2198.537349 | N81: 2059.379525 | O81: 2195.052466 | P81: 2170.289125 | Q81: 16 | R81: 21.24510254 | S81: 15.88382057 | T81: 16.22139767 | U81: 17.44162952 | V81: 15.94577438 | W81: 16.1962021 | X81: 16 | Y81: 19 | Z81: 19 | AA81: 19 | AB81: 19 | AC81: 19 | AD81: 19
A82: ED_REP221_00084 | D82: Kiosk Mounted ; < = 22kV ; > 600 kVA ; Multiple Phase | E82: 552.2771252 | F82: 1186.49122 | G82: 1373.907197 | H82: 930.8545742 | I82: 1209.974224 | J82: 1240 | K82: 1001.169065 | L82: 849.6594325 | M82: 908.1860549 | N82: 850.7018391 | O82: 906.7464965 | P82: 896.5170952 | Q82: 6 | R82: 7.389600884 | S82: 5.524807156 | T82: 5.642225276 | U82: 6.066653747 | V82: 5.546356306 | W82: 5.633461598 | X82: 6 | Y82: 7.2 | Z82: 7.2 | AA82: 7.2 | AB82: 7.2 | AC82: 7.2 | AD82: 7.2
A83: ED_REP221_00085 | D83: Ground Outdoor / Indoor Chamber Mounted; ˂ 22 kV ; < = 60 kVA ; Single Phase | E83: 0 | F83: 0 | G83: 0 | H83: 0 | I83: 0 | J83: 0 | K83: 0 | L83: 0 | M83: 0 | N83: 0 | O83: 0 | P83: 0 | Q83: 0 | R83: 0 | S83: 0 | T83: 0 | U83: 0 | V83: 0 | W83: 0 | X83: 0 | Y83: 0 | Z83: 0 | AA83: 0 | AB83: 0 | AC83: 0 | AD83: 0
A84: ED_REP221_00086 | D84: Ground Outdoor / Indoor Chamber Mounted; ˂ 22 kV ; > 60 kVA and < = 600 kVA ; Single Phase | E84: 0 | F84: 0 | G84: 0 | H84: 0 | I84: 0 | J84: 0 | K84: 0 | L84: 0 | M84: 0 | N84: 0 | O84: 0 | P84: 0 | Q84: 0 | R84: 0 | S84: 0 | T84: 0 | U84: 0 | V84: 0 | W84: 0 | X84: 0 | Y84: 0 | Z84: 0 | AA84: 0 | AB84: 0 | AC84: 0 | AD84: 0
A85: ED_REP221_00087 | D85: Ground Outdoor / Indoor Chamber Mounted; ˂ 22 kV ; > 600 kVA ; Single Phase | E85: 0 | F85: 0 | G85: 0 | H85: 0 | I85: 0 | J85: 0 | K85: 0 | L85: 0 | M85: 0 | N85: 0 | O85: 0 | P85: 0 | Q85: 0 | R85: 0 | S85: 0 | T85: 0 | U85: 0 | V85: 0 | W85: 0 | X85: 0 | Y85: 0 | Z85: 0 | AA85: 0 | AB85: 0 | AC85: 0 | AD85: 0
A86: ED_REP221_00088 | D86: Ground Outdoor / Indoor Chamber Mounted; ˂ 22 kV ; < = 60 kVA ; Multiple Phase | E86: 0 | F86: 0 | G86: 0 | H86: 0 | I86: 0 | J86: 0 | K86: 0 | L86: 0 | M86: 0 | N86: 0 | O86: 0 | P86: 0 | Q86: 0 | R86: 0 | S86: 0 | T86: 0 | U86: 0 | V86: 0 | W86: 0 | X86: 0 | Y86: 0 | Z86: 0 | AA86: 0 | AB86: 0 | AC86: 0 | AD86: 0
A87: ED_REP221_00089 | D87: Ground Outdoor / Indoor Chamber Mounted; ˂ 22 kV ; > 60 kVA and < = 600 kVA ; Multiple Phase | E87: 115.84456 | F87: 0 | G87: 190.9446332 | H87: 0 | I87: 182.2077306 | J87: 0 | K87: 70.47364932 | L87: 59.80868065 | M87: 63.92844903 | N87: 59.88205707 | O87: 63.82711656 | P87: 63.10705512 | Q87: 0 | R87: 0.9237001105 | S87: 0.6906008945 | T87: 0.7052781595 | U87: 0.7583317184 | V87: 0.6932945382 | W87: 0.7041826998 | X87: 0 | Y87: 0.76 | Z87: 0.76 | AA87: 0.76 | AB87: 0.76 | AC87: 0.76 | AD87: 0.76
A88: ED_REP221_00090 | D88: Ground Outdoor / Indoor Chamber Mounted; ˂ 22 kV ; > 600 kVA ; Multiple Phase | E88: 786.3295447 | F88: 0 | G88: 224.9097824 | H88: 60.72481176 | I88: 1908.528921 | J88: 0 | K88: 555.5226058 | L88: 2232.530094 | M88: 684.6410072 | N88: 2042.910576 | O88: 845.5982314 | P88: 972.1593795 | Q88: 0 | R88: 1.787473636 | S88: 3.206575369 | T88: 1.22492195 | U88: 3.291238899 | V88: 1.295773486 | W88: 1.395214751 | X88: 0 | Y88: 0.95 | Z88: 0.95 | AA88: 0.95 | AB88: 0.95 | AC88: 0.95 | AD88: 0.95
A89: ED_REP221_00091 | D89: Ground Outdoor / Indoor Chamber Mounted; > = 22 kV & < = 33 kV ; < = 15 MVA | E89: 1433.61928 | F89: 197.2579829 | G89: 733.879767 | H89: 1876.235469 | I89: 3073.772496 | J89: 2611 | K89: 2195.72099 | L89: 2677.25918 | M89: 3751.449489 | N89: 4611.918145 | O89: 3110.519727 | P89: 3286.654143 | Q89: 2 | R89: 5.995269408 | S89: 3.728717932 | T89: 5.783757676 | U89: 6.982708522 | V89: 4.02356024 | W89: 4.349131991 | X89: 22 | Y89: 11.97 | Z89: 11.97 | AA89: 11.97 | AB89: 11.97 | AC89: 11.97 | AD89: 11.97
A90: ED_REP221_00092 | D90: Ground Outdoor / Indoor Chamber Mounted; > = 22 kV & < = 33 kV ; > 15 MVA and < = 40 MVA | E90: 0 | F90: 0 | G90: 0 | H90: 0 | I90: 0 | J90: 0 | K90: 0 | L90: 199.3716383 | M90: 208.6700043 | N90: 181.7874013 | O90: 264.9254931 | P90: 542.4297123 | Q90: 0 | R90: 0 | S90: 0.1198910082 | T90: 0.1198910082 | U90: 0.1198910082 | V90: 0.1498637602 | W90: 0.1798365123 | X90: 3 | Y90: 3 | Z90: 3 | AA90: 3 | AB90: 3 | AC90: 3 | AD90: 3
A91: ED_REP221_00093 | D91: Ground Outdoor / Indoor Chamber Mounted; > = 22 kV & < = 33 kV ; > 40 MVA | E91: 0 | F91: 0 | G91: 0 | H91: 0 | I91: 0 | J91: 0 | K91: 0 | L91: 99.68581913 | M91: 104.3350021 | N91: 90.89370065 | O91: 132.4627466 | P91: 154.7319927 | Q91: 0 | R91: 0 | S91: 0.05994550409 | T91: 0.05994550409 | U91: 0.05994550409 | V91: 0.07493188011 | W91: 0.08991825613 | X91: 0 | Y91: 0 | Z91: 0 | AA91: 0 | AB91: 0 | AC91: 0 | AD91: 0
A92: ED_REP221_00094 | D92: Ground Outdoor / Indoor Chamber Mounted; > 33 kV & < = 66 kV ; < = 15 MVA | E92: 0 | F92: 2570.787206 | G92: 729.4634048 | H92: 0 | I92: 877.5102559 | J92: 3211 | K92: 3907.877176 | L92: 4005.770398 | M92: 5490.767267 | N92: 2932.086444 | O92: 5653.624951 | P92: 6595.732819 | Q92: 2 | R92: 3.79709099 | S92: 2.798365123 | T92: 3.798365123 | U92: 1.798365123 | V92: 4.247956403 | W92: 3.697547684 | X92: 50 | Y92: 23.75 | Z92: 23.75 | AA92: 23.75 | AB92: 23.75 | AC92: 23.75 | AD92: 23.75
A93: ED_REP221_00095 | D93: Ground Outdoor / Indoor Chamber Mounted; > 33 kV & < = 66 kV ; > 15 MVA and < = 40 MVA | E93: 2064.204792 | F93: 3643.319681 | G93: 0 | H93: 0 | I93: 0 | J93: 0 | K93: 992.5187194 | L93: 3407.442545 | M93: 85.36500174 | N93: 74.36757326 | O93: 2354.802906 | P93: 5521.986567 | Q93: 0 | R93: 0.6328484983 | S93: 2.049046322 | T93: 0.04904632153 | U93: 0.04904632153 | V93: 1.061307902 | W93: 3.073569482 | X93: 19 | Y93: 10.26 | Z93: 10.26 | AA93: 10.26 | AB93: 10.26 | AC93: 10.26 | AD93: 10.26
A94: ED_REP221_00096 | D94: Ground Outdoor / Indoor Chamber Mounted; > 33 kV & < = 66 kV ; > 40 MVA | E94: 0 | F94: 0 | G94: 0 | H94: 0 | I94: 0 | J94: 0 | K94: 0 | L94: 661.5513452 | M94: 692.4050141 | N94: 603.2036497 | O94: 879.0709544 | P94: 1026.857769 | Q94: 0 | R94: 0 | S94: 0.3978201635 | T94: 0.3978201635 | U94: 0.3978201635 | V94: 0.4972752044 | W94: 0.5967302452 | X94: 0 | Y94: 0 | Z94: 0 | AA94: 0 | AB94: 0 | AC94: 0 | AD94: 0
A95: ED_REP221_00097 | D95: Ground Outdoor / Indoor Chamber Mounted; > 66 kV & < = 132 kV ; < = 100 MVA | E95: 4519.98097 | F95: 0 | G95: 2263.697982 | H95: 0 | I95: 8169.367439 | J95: 0 | K95: 2842.191637 | L95: 154.0599023 | M95: 2137.373961 | N95: 140.4720828 | O95: 3740.26628 | P95: 1959.938574 | Q95: 0 | R95: 1.265696997 | S95: 0.09264305177 | T95: 1.092643052 | U95: 0.09264305177 | V95: 2.115803815 | W95: 1.138964578 | X95: 33 | Y95: 7.6 | Z95: 7.6 | AA95: 7.6 | AB95: 7.6 | AC95: 7.6 | AD95: 7.6
A96: ED_REP221_00098 | D96: Ground Outdoor / Indoor Chamber Mounted; > 66 kV & < = 132 kV ; > 100 MVA | E96: 0 | F96: 0 | G96: 0 | H96: 0 | I96: 0 | J96: 0 | K96: 0 | L96: 0 | M96: 0 | N96: 0 | O96: 0 | P96: 0 | Q96: 0 | R96: 0 | S96: 0 | T96: 0 | U96: 0 | V96: 0 | W96: 0 | X96: 0 | Y96: 0 | Z96: 0 | AA96: 0 | AB96: 0 | AC96: 0 | AD96: 0
A97: ED_REP221_00099 | D97: Ground Outdoor / Indoor Chamber Mounted; > 132 kV ; < = 100 MVA | E97: 0 | F97: 0 | G97: 0 | H97: 0 | I97: 0 | J97: 0 | K97: 0 | L97: 0 | M97: 0 | N97: 0 | O97: 0 | P97: 0 | Q97: 0 | R97: 0 | S97: 0 | T97: 0 | U97: 0 | V97: 0 | W97: 0 | X97: 0 | Y97: 0 | Z97: 0 | AA97: 0 | AB97: 0 | AC97: 0 | AD97: 0
A98: ED_REP221_00100 | D98: Ground Outdoor / Indoor Chamber Mounted; > 132 kV ; > 100 MVA | E98: 0 | F98: 0 | G98: 0 | H98: 0 | I98: 0 | J98: 0 | K98: 0 | L98: 0 | M98: 0 | N98: 0 | O98: 0 | P98: 0 | Q98: 0 | R98: 0 | S98: 0 | T98: 0 | U98: 0 | V98: 0 | W98: 0 | X98: 0 | Y98: 0 | Z98: 0 | AA98: 0 | AB98: 0 | AC98: 0 | AD98: 0
A99: ED_REP221_00101 | D99: Other | E99: 0 | F99: 0 | G99: 0 | H99: 0 | I99: 0 | J99: 0 | K99: 0 | L99: 0 | M99: 0 | N99: 0 | O99: 0 | P99: 0 | Q99: 0 | R99: 0 | S99: 0 | T99: 0 | U99: 0 | V99: 0 | W99: 0 | X99: 0 | Y99: 0 | Z99: 0 | AA99: 0 | AB99: 0 | AC99: 0 | AD99: 0
A100: ED_REP221_00102 | C100: SWITCHGEAR BY: Highest operating voltage; Switch function | D100: ˂ = 11 kV ; Fuse | E100: 885.4531947 | F100: 1215.318344 | G100: 2203.044203 | H100: 2834.740734 | I100: 2933.531019 | J100: 2599 | K100: 1845.743095 | L100: 804.0942162 | M100: 1077.322616 | N100: 849.1360633 | O100: 1001.549698 | P100: 438.7805884 | Q100: 14135 | R100: 24698.58633 | S100: 9479.085971 | T100: 12134.13028 | U100: 10978.33316 | V100: 11106.61372 | W100: 4998.635308 | X100: 17519 | Y100: 17128.12 | Z100: 18840.932 | AA100: 20725.0252 | AB100: 22797.52772 | AC100: 25077.28049 | AD100: 27585.00854
A101: ED_REP221_00103 | D101: ˂ = 11 kV ; Switch | E101: 4328.771396 | F101: 3690.478852 | G101: 7625.323888 | H101: 12148.40448 | I101: 19099.18938 | J101: 1825 | K101: 7865.789326 | L101: 3471.544973 | M101: 3849.191927 | N101: 3167.416669 | O101: 3834.121443 | P101: 3613.999276 | Q101: 98 | R101: 2527.760117 | S101: 984.9612492 | T101: 1048.542446 | U101: 985.6567876 | V101: 1026.664855 | W101: 991.4154776 | X101: 14 | Y101: 19.55416667 | Z101: 19.55416667 | AA101: 19.55416667 | AB101: 21.50958333 | AC101: 23.66054167 | AD101: 26.02659583
A102: ED_REP221_00104 | D102: ˂ = 11 kV ; Circuit Breaker | E102: 668.7383043 | F102: 1425.946223 | G102: 1248.871191 | H102: 1443.289693 | I102: 1769.200412 | J102: 1208 | K102: 1328.374253 | L102: 1202.101206 | M102: 683.4313246 | N102: 2068.588018 | O102: 764.4704208 | P102: 1356.015261 | Q102: 14 | R102: 519.3179714 | S102: 212.0436144 | T102: 216.0578466 | U102: 217.1859819 | V102: 212.0420621 | W102: 212.8269796 | X102: 21 | Y102: 22.8 | Z102: 22.8 | AA102: 22.8 | AB102: 22.8 | AC102: 22.8 | AD102: 22.8
A103: ED_REP221_00107 | D103: > 11 kV & < = 22 kV ; Switch | E103: 418.9405953 | F103: 2355.025014 | G103: 4491.622239 | H103: 3537.815743 | I103: 5920.009828 | J103: 1901 | K103: 3461.795247 | L103: 1238.525131 | M103: 1372.763058 | N103: 1130.018149 | O103: 1367.551081 | P103: 1289.298314 | Q103: 562 | R103: 2865.152045 | S103: 1114.399292 | T103: 1186.433983 | U103: 1115.187307 | V103: 1161.647638 | W103: 1121.711648 | X103: 211 | Y103: 182.2575 | Z103: 182.2575 | AA103: 182.2575 | AB103: 200.48325 | AC103: 220.531575 | AD103: 242.5847325
A104: ED_REP221_00108 | D104: > 11 kV & < = 22 kV ; Circuit Breaker | E104: 1918.553338 | F104: 805.9860495 | G104: 1157.84375 | H104: 1374.440855 | I104: 2246.622583 | J104: 1113 | K104: 985.0448471 | L104: 614.5426472 | M104: 670.5388059 | N104: 560.6015419 | O104: 727.5136991 | P104: 693.201287 | Q104: 29 | R104: 96.09038413 | S104: 38.45416207 | T104: 40.85598236 | U104: 38.48043648 | V104: 40.36030098 | W104: 39.02873324 | X104: 36 | Y104: 47.5 | Z104: 47.5 | AA104: 47.5 | AB104: 47.5 | AC104: 47.5 | AD104: 47.5
A105: ED_REP221_00111 | D105: > 22 kV & < = 33 kV ; Switch | E105: 95.21715397 | F105: 252.0872922 | G105: 476.866785 | H105: 3574.38742 | I105: 1032.567069 | J105: 735 | K105: 1640.279896 | L105: 146.6832834 | M105: 448.3706623 | N105: 390.6078299 | O105: 305.6641203 | P105: 151.7875322 | Q105: 7 | R105: 20.25115194 | S105: 1.041385597 | T105: 3.041385597 | U105: 3.041385597 | V105: 2.041385597 | W105: 1.041385597 | X105: 0 | Y105: 0.38 | Z105: 0.38 | AA105: 0.38 | AB105: 0.38 | AC105: 0.38 | AD105: 0.38
A106: ED_REP221_00112 | D106: > 22 kV & < = 33 kV ; Circuit Breaker | E106: 204.0367585 | F106: 1620.561164 | G106: 0 | H106: 294.5923698 | I106: 1229.246511 | J106: 1349 | K106: 1199.45364 | L106: 45.1867071 | M106: 881.0515351 | N106: 1058.085496 | O106: 1076.233595 | P106: 2861.154249 | Q106: 6 | R106: 8.227030477 | S106: 0.2836205189 | T106: 5.283620519 | U106: 7.283620519 | V106: 6.354525649 | W106: 17.35452565 | X106: 25 | Y106: 11.21 | Z106: 11.21 | AA106: 11.21 | AB106: 11.21 | AC106: 11.21 | AD106: 11.21
A107: ED_REP221_00115 | D107: > 33 kV & < = 66 kV ; Switch | E107: 680.2585529 | F107: 1200.65576 | G107: 340.687256 | H107: 327.3903203 | I107: 68.30513114 | J107: 125 | K107: 559.4428281 | L107: 378.2127797 | M107: 395.8520031 | N107: 1372.302104 | O107: 1749.658878 | P107: 1848.927332 | Q107: 1 | R107: 6.961333481 | S107: 2.685141294 | T107: 2.685141294 | U107: 10.68514129 | V107: 11.68514129 | W107: 12.68514129 | X107: 4 | Y107: 1.52 | Z107: 1.52 | AA107: 1.52 | AB107: 1.52 | AC107: 1.52 | AD107: 1.52
A108: ED_REP221_00116 | D108: > 33 kV & < = 66 kV ; Circuit Breaker | E108: 1197.01565 | F108: 528.1828979 | G108: 699.404618 | H108: 576.0917453 | I108: 0 | J108: 440 | K108: 603.1052133 | L108: 3419.201132 | M108: 3745.41854 | N108: 3262.902618 | O108: 3146.181939 | P108: 1908.535484 | Q108: 2 | R108: 4.429939488 | S108: 21.4610814 | T108: 22.4610814 | U108: 22.4610814 | V108: 18.57635175 | W108: 11.57635175 | X108: 44 | Y108: 26.79 | Z108: 26.79 | AA108: 26.79 | AB108: 26.79 | AC108: 26.79 | AD108: 26.79
A109: ED_REP221_00118 | D109: > 66 kV & < = 132 kV ; Switch | E109: 0 | F109: 0 | G109: 121.7713397 | H109: 0 | I109: 3076.189394 | J109: 1608 | K109: 1279.757904 | L109: 1475.769421 | M109: 1249.750573 | N109: 61.30028166 | O109: 71.46813137 | P109: 69.56928561 | Q109: 6 | R109: 8.859878976 | S109: 10.47730173 | T109: 8.477301732 | U109: 0.477301732 | V109: 0.477301732 | W109: 0.477301732 | X109: 3 | Y109: 0.95 | Z109: 0.95 | AA109: 0.95 | AB109: 0.95 | AC109: 0.95 | AD109: 0.95
A110: ED_REP221_00119 | D110: > 66 kV & < = 132 kV ; Circuit Breaker | E110: 0 | F110: 0 | G110: 147.6016239 | H110: 0 | I110: 1065.346976 | J110: 0 | K110: 330.4333127 | L110: 13.25308448 | M110: 13.87118659 | N110: 12.08418514 | O110: 864.4352245 | P110: 17.14282758 | Q110: 0 | R110: 2.214969744 | S110: 0.08318478907 | T110: 0.08318478907 | U110: 0.08318478907 | V110: 5.103980986 | W110: 0.1039809863 | X110: 20 | Y110: 6.27 | Z110: 6.27 | AA110: 6.27 | AB110: 6.27 | AC110: 6.27 | AD110: 6.27
A111: ED_REP221_00120 | D111: > 132 kV ; Switch | E111: 0 | F111: 0 | G111: 0 | H111: 0 | I111: 0 | J111: 0 | K111: 0 | L111: 0 | M111: 0 | N111: 0 | O111: 0 | P111: 0 | Q111: 0 | R111: 0 | S111: 0 | T111: 0 | U111: 0 | V111: 0 | W111: 0 | X111: 1 | Y111: 1 | Z111: 1 | AA111: 1 | AB111: 1 | AC111: 1 | AD111: 1
A112: ED_REP221_00121 | D112: > 132 kV ; Circuit Breaker | E112: 0 | F112: 0 | G112: 0 | H112: 0 | I112: 0 | J112: 0 | K112: 0 | L112: 0 | M112: 0 | N112: 0 | O112: 0 | P112: 0 | Q112: 0 | R112: 0 | S112: 0 | T112: 0 | U112: 0 | V112: 0 | W112: 0 | X112: 2 | Y112: 2 | Z112: 2 | AA112: 2 | AB112: 2 | AC112: 2 | AD112: 2
A113: ED_REP221_00122 | D113: Other | E113: 0 | F113: 0 | G113: 0 | H113: 0 | I113: 0 | J113: 0 | K113: 0 | L113: 0 | M113: 0 | N113: 0 | O113: 0 | P113: 0 | Q113: 0 | R113: 0 | S113: 0 | T113: 0 | U113: 0 | V113: 0 | W113: 0 | X113: 0 | Y113: 0 | Z113: 0 | AA113: 0 | AB113: 0 | AC113: 0 | AD113: 0
A114: ED_REP221_00123 | C114: PUBLIC LIGHTING BY: Asset type ; Lighting obligation | D114: Luminaires ; Major Road | E114: 0 | F114: 0 | G114: 0 | H114: 0 | I114: 0 | J114: 0 | K114: 0 | L114: 0 | M114: 0 | N114: 0 | O114: 0 | P114: 0 | Q114: 0 | R114: 0 | S114: 0 | T114: 0 | U114: 0 | V114: 0 | W114: 0 | X114: 0 | Y114: 0 | Z114: 0 | AA114: 0 | AB114: 0 | AC114: 0 | AD114: 0
A115: ED_REP221_00124 | D115: Luminaires ; Minor Road | E115: 0 | F115: 0 | G115: 0 | H115: 0 | I115: 0 | J115: 0 | K115: 0 | L115: 0 | M115: 0 | N115: 0 | O115: 0 | P115: 0 | Q115: 0 | R115: 0 | S115: 0 | T115: 0 | U115: 0 | V115: 0 | W115: 0 | X115: 0 | Y115: 0 | Z115: 0 | AA115: 0 | AB115: 0 | AC115: 0 | AD115: 0
A116: ED_REP221_00125 | D116: Brackets ; Major Road | E116: 0 | F116: 0 | G116: 0 | H116: 0 | I116: 0 | J116: 0 | K116: 0 | L116: 0 | M116: 0 | N116: 0 | O116: 0 | P116: 0 | Q116: 0 | R116: 0 | S116: 0 | T116: 0 | U116: 0 | V116: 0 | W116: 0 | X116: 0 | Y116: 0 | Z116: 0 | AA116: 0 | AB116: 0 | AC116: 0 | AD116: 0
A117: ED_REP221_00126 | D117: Brackets ; Minor Road | E117: 0 | F117: 0 | G117: 0 | H117: 0 | I117: 0 | J117: 0 | K117: 0 | L117: 0 | M117: 0 | N117: 0 | O117: 0 | P117: 0 | Q117: 0 | R117: 0 | S117: 0 | T117: 0 | U117: 0 | V117: 0 | W117: 0 | X117: 0 | Y117: 0 | Z117: 0 | AA117: 0 | AB117: 0 | AC117: 0 | AD117: 0
A118: ED_REP221_00127 | D118: Lamps ; Major Road | E118: 0 | F118: 0 | G118: 0 | H118: 0 | I118: 0 | J118: 0 | K118: 0 | L118: 0 | M118: 0 | N118: 0 | O118: 0 | P118: 0 | Q118: 0 | R118: 0 | S118: 0 | T118: 0 | U118: 0 | V118: 0 | W118: 0 | X118: 0 | Y118: 0 | Z118: 0 | AA118: 0 | AB118: 0 | AC118: 0 | AD118: 0
A119: ED_REP221_00128 | D119: Lamps ; Minor Road | E119: 0 | F119: 0 | G119: 0 | H119: 0 | I119: 0 | J119: 0 | K119: 0 | L119: 0 | M119: 0 | N119: 0 | O119: 0 | P119: 0 | Q119: 0 | R119: 0 | S119: 0 | T119: 0 | U119: 0 | V119: 0 | W119: 0 | X119: 0 | Y119: 0 | Z119: 0 | AA119: 0 | AB119: 0 | AC119: 0 | AD119: 0
A120: ED_REP221_00129 | D120: Poles / Columns ; Major Road | E120: 0 | F120: 0 | G120: 0 | H120: 0 | I120: 0 | J120: 0 | K120: 0 | L120: 0 | M120: 0 | N120: 0 | O120: 0 | P120: 0 | Q120: 0 | R120: 0 | S120: 0 | T120: 0 | U120: 0 | V120: 0 | W120: 0 | X120: 0 | Y120: 0 | Z120: 0 | AA120: 0 | AB120: 0 | AC120: 0 | AD120: 0
A121: ED_REP221_00130 | D121: Poles / Columns ; Minor Road | E121: 0 | F121: 0 | G121: 0 | H121: 0 | I121: 0 | J121: 0 | K121: 0 | L121: 0 | M121: 0 | N121: 0 | O121: 0 | P121: 0 | Q121: 0 | R121: 0 | S121: 0 | T121: 0 | U121: 0 | V121: 0 | W121: 0 | X121: 0 | Y121: 0 | Z121: 0 | AA121: 0 | AB121: 0 | AC121: 0 | AD121: 0
A122: ED_REP221_00131 | D122: Other | E122: 0 | F122: 0 | G122: 0 | H122: 0 | I122: 0 | J122: 0 | K122: 0 | L122: 0 | M122: 0 | N122: 0 | O122: 0 | P122: 0 | Q122: 0 | R122: 0 | S122: 0 | T122: 0 | U122: 0 | V122: 0 | W122: 0 | X122: 0 | Y122: 0 | Z122: 0 | AA122: 0 | AB122: 0 | AC122: 0 | AD122: 0
A123: ED_REP221_00132 | C123: SCADA, NETWORK CONTROL AND PROTECTION SYSTEMS BY: Function | D123: Field Devices | E123: 6277.530937 | F123: 6032.088777 | G123: 13613.69516 | H123: 11417.90926 | I123: 6341.887625 | J123: 13860 | K123: 8210.903528 | L123: 17684.50147 | M123: 18679.37617 | N123: 16863.76423 | O123: 17644.07077 | P123: 15017.12322 | Q123: 129 | R123: 116.1496974 | S123: 217 | T123: 217 | U123: 229 | V123: 201 | W123: 176 | X123: 31 | Y123: 40.04 | Z123: 40.04 | AA123: 40.04 | AB123: 40.04 | AC123: 40.04 | AD123: 40.04
A124: ED_REP221_00133 | D124: Local Network Wiring Assets | E124: 0 | F124: 0 | G124: 0 | H124: 0 | I124: 0 | J124: 0 | K124: 0 | L124: 0 | M124: 0 | N124: 0 | O124: 0 | P124: 0 | Q124: 0 | R124: 0 | S124: 0 | T124: 0 | U124: 0 | V124: 0 | W124: 0 | X124: 0 | Y124: 0 | Z124: 0 | AA124: 0 | AB124: 0 | AC124: 0 | AD124: 0
A125: ED_REP221_00134 | D125: Communications Network Assets | E125: 619.9547494 | F125: 1969.883734 | G125: 4481.35259 | H125: 7814.79099 | I125: 8732.539355 | J125: 880 | K125: 10422.642 | L125: 6522.619803 | M125: 11430.92922 | N125: 3926.067722 | O125: 4392.130301 | P125: 2397.37059 | Q125: 35 | R125: 194 | S125: 66 | T125: 99 | U125: 98 | V125: 94 | W125: 53 | X125: 27 | Y125: 234 | Z125: 238 | AA125: 239 | AB125: 232 | AC125: 233 | AD125: 233
A126: ED_REP221_00135 | D126: Master Station Assets | E126: 56.67687736 | F126: 275.0952593 | G126: 824.582149 | H126: 40.91560691 | I126: 87.07162787 | J126: 640 | K126: 497.1379534 | L126: 2524.618331 | M126: 2808.693942 | N126: 1616.523807 | O126: 4554.999438 | P126: 1638.419615 | Q126: 19 | R126: 29.74387942 | S126: 1 | T126: 1 | U126: 1 | V126: 1 | W126: 1 | X126: 29 | Y126: 11.78 | Z126: 11.78 | AA126: 11.78 | AB126: 11.78 | AC126: 11.78 | AD126: 11.78
A127: ED_REP221_00136 | D127: Communications Site Infrastructure | E127: 286.6739565 | F127: 2351.291723 | G127: 5703.177414 | H127: 4871.394134 | I127: 3894.051863 | J127: 645 | K127: 5734.967582 | L127: 6184.818234 | M127: 7746.877096 | N127: 3859.497424 | O127: 4406.347307 | P127: 1993.267872 | Q127: 21 | R127: 17 | S127: 31 | T127: 41 | U127: 565 | V127: 523 | W127: 513 | X127: 11 | Y127: 49 | Z127: 49 | AA127: 49 | AB127: 49 | AC127: 49 | AD127: 49
A128: ED_REP221_00137 | D128: Communications Linear Assets | E128: 355.6224016 | F128: 333.661006 | G128: 508.0761848 | H128: 595.6599196 | I128: 1377.400571 | J128: 60 | K128: 1316.830934 | L128: 1421.02516 | M128: 675.4714035 | N128: 0 | O128: 0 | P128: 0 | Q128: 10 | R128: 12 | S128: 18 | T128: 0 | U128: 0 | V128: 0 | W128: 0 | X128: 1 | Y128: 0 | Z128: 0 | AA128: 0 | AB128: 0 | AC128: 0 | AD128: 0
A129: ED_REP221_00138 | D129: AFLC | E129: 212.5382901 | F129: 917.8178197 | G129: 0 | H129: 613.7341037 | I129: 0 | J129: 4426 | K129: 949.0393724 | L129: 1964.602659 | M129: 2056.228503 | N129: 1362.507507 | O129: 1588.506004 | P129: 2277.106937 | Q129: 17 | R129: 4 | S129: 2 | T129: 2 | U129: 3 | V129: 3 | W129: 3 | X129: 0 | Y129: 2.2 | Z129: 2.2 | AA129: 2.2 | AB129: 2.2 | AC129: 2.2 | AD129: 2.2
A130: ED_REP221_00139 | D130: Other | E130: 0 | F130: 0 | G130: 0 | H130: 0 | I130: 0 | J130: 0 | K130: 0 | L130: 0 | M130: 0 | N130: 0 | O130: 0 | P130: 0 | Q130: 0 | R130: 0 | S130: 0 | T130: 0 | U130: 0 | V130: 0 | W130: 0 | X130: 0 | Y130: 0 | Z130: 0 | AA130: 0 | AB130: 0 | AC130: 0 | AD130: 0
A131: ED_REP221_00140 | C131: OTHER BY: DNSP defined | D131: CURRENT TRANSFORMERS | E131: 7611.024508 | F131: 1859.093762 | G131: 1361.341131 | H131: 1177.387504 | I131: 2743.029444 | J131: 4719 | K131: 3144.301595 | L131: 1094.583493 | M131: 1145.633071 | N131: 1164.383621 | O131: 1357.519401 | P131: 1321.451297 | Q131: 63 | R131: 67.39836506 | S131: 18 | T131: 18 | U131: 21 | V131: 21 | W131: 21 | X131: 7 | Y131: 7.41 | Z131: 7.41 | AA131: 7.41 | AB131: 7.41 | AC131: 7.41 | AD131: 7.41
A132: ED_REP221_00141 | D132: VOLTAGE TRANSFORMERS | E132: 408.073517 | F132: 936.3242281 | G132: 817.4859171 | H132: 1296.206427 | I132: 1720.945116 | J132: 1799 | K132: 1756.847841 | L132: 2964.972269 | M132: 3103.253709 | N132: 2703.466794 | O132: 3151.889596 | P132: 3272.689755 | Q132: 20 | R132: 31.32600066 | S132: 45 | T132: 45 | U132: 45 | V132: 45 | W132: 48 | X132: 16 | Y132: 9.5 | Z132: 9.5 | AA132: 9.5 | AB132: 9.5 | AC132: 9.5 | AD132: 9.5
A133: ED_REP221_00142 | D133: CAPACITOR BANKS | E133: 0 | F133: 0 | G133: 419.8130804 | H133: 3630.850957 | I133: 1515.046325 | J133: 0 | K133: 1516.219329 | L133: 1656.171228 | M133: 1733.412336 | N133: 1510.099763 | O133: 1760.57932 | P133: 1713.802267 | Q133: 0 | R133: 2.214969744 | S133: 2 | T133: 2 | U133: 2 | V133: 2 | W133: 2 | X133: 25 | Y133: 13.3 | Z133: 13.3 | AA133: 13.3 | AB133: 13.3 | AC133: 13.3 | AD133: 13.3
A134: ED_REP221_00143 | D134: SVC | E134: 0 | F134: 0 | G134: 0 | H134: 8153.6292 | I134: 0 | J134: 0 | K134: 0 | L134: 0 | M134: 0 | N134: 8557.532504 | O134: 0 | P134: 0 | Q134: 0 | R134: 0 | S134: 0 | T134: 0 | U134: 1 | V134: 0 | W134: 0 | X134: 12 | Y134: 69.74 | Z134: 69.74 | AA134: 69.74 | AB134: 69.74 | AC134: 69.74 | AD134: 69.74
A135: ED_REP221_00144 | E135: 0 | F135: 0 | G135: 0 | H135: 0 | I135: 0 | J135: 0 | K135: 0 | L135: 0 | M135: 0 | N135: 0 | O135: 0 | P135: 0 | Q135: 0 | R135: 0 | S135: 0 | T135: 0 | U135: 0 | V135: 0 | W135: 0 | X135: 0 | Y135: 0 | Z135: 0 | AA135: 0 | AB135: 0 | AC135: 0 | AD135: 0
A136: ED_REP221_00145 | E136: 0 | F136: 0 | G136: 0 | H136: 0 | I136: 0 | J136: 0 | K136: 0 | L136: 0 | M136: 0 | N136: 0 | O136: 0 | P136: 0 | Q136: 0 | R136: 0 | S136: 0 | T136: 0 | U136: 0 | V136: 0 | W136: 0 | X136: 0 | Y136: 0 | Z136: 0 | AA136: 0 | AB136: 0 | AC136: 0 | AD136: 0
A137: ED_REP221_00146 | E137: 0 | F137: 0 | G137: 0 | H137: 0 | I137: 0 | J137: 0 | K137: 0 | L137: 0 | M137: 0 | N137: 0 | O137: 0 | P137: 0 | Q137: 0 | R137: 0 | S137: 0 | T137: 0 | U137: 0 | V137: 0 | W137: 0 | X137: 0 | Y137: 0 | Z137: 0 | AA137: 0 | AB137: 0 | AC137: 0 | AD137: 0
A138: ED_REP221_00147 | E138: 0 | F138: 0 | G138: 0 | H138: 0 | I138: 0 | J138: 0 | K138: 0 | L138: 0 | M138: 0 | N138: 0 | O138: 0 | P138: 0 | Q138: 0 | R138: 0 | S138: 0 | T138: 0 | U138: 0 | V138: 0 | W138: 0 | X138: 0 | Y138: 0 | Z138: 0 | AA138: 0 | AB138: 0 | AC138: 0 | AD138: 0
A139: ED_REP221_00148 | E139: 0 | F139: 0 | G139: 0 | H139: 0 | I139: 0 | J139: 0 | K139: 0 | L139: 0 | M139: 0 | N139: 0 | O139: 0 | P139: 0 | Q139: 0 | R139: 0 | S139: 0 | T139: 0 | U139: 0 | V139: 0 | W139: 0 | X139: 0 | Y139: 0 | Z139: 0 | AA139: 0 | AB139: 0 | AC139: 0 | AD139: 0
A140: ED_REP221_00149 | E140: 0 | F140: 0 | G140: 0 | H140: 0 | I140: 0 | J140: 0 | K140: 0 | L140: 0 | M140: 0 | N140: 0 | O140: 0 | P140: 0 | Q140: 0 | R140: 0 | S140: 0 | T140: 0 | U140: 0 | V140: 0 | W140: 0 | X140: 0 | Y140: 0 | Z140: 0 | AA140: 0 | AB140: 0 | AC140: 0 | AD140: 0
A141: ED_REP221_00150 | E141: 0 | F141: 0 | G141: 0 | H141: 0 | I141: 0 | J141: 0 | K141: 0 | L141: 0 | M141: 0 | N141: 0 | O141: 0 | P141: 0 | Q141: 0 | R141: 0 | S141: 0 | T141: 0 | U141: 0 | V141: 0 | W141: 0 | X141: 0 | Y141: 0 | Z141: 0 | AA141: 0 | AB141: 0 | AC141: 0 | AD141: 0
A142: ED_REP221_00151 | E142: 0 | F142: 0 | G142: 0 | H142: 0 | I142: 0 | J142: 0 | K142: 0 | L142: 0 | M142: 0 | N142: 0 | O142: 0 | P142: 0 | Q142: 0 | R142: 0 | S142: 0 | T142: 0 | U142: 0 | V142: 0 | W142: 0 | X142: 0 | Y142: 0 | Z142: 0 | AA142: 0 | AB142: 0 | AC142: 0 | AD142: 0
A143: ED_REP221_00152 | E143: 0 | F143: 0 | G143: 0 | H143: 0 | I143: 0 | J143: 0 | K143: 0 | L143: 0 | M143: 0 | N143: 0 | O143: 0 | P143: 0 | Q143: 0 | R143: 0 | S143: 0 | T143: 0 | U143: 0 | V143: 0 | W143: 0 | X143: 0 | Y143: 0 | Z143: 0 | AA143: 0 | AB143: 0 | AC143: 0 | AD143: 0
A144: ED_REP221_00153 | E144: 0 | F144: 0 | G144: 0 | H144: 0 | I144: 0 | J144: 0 | K144: 0 | L144: 0 | M144: 0 | N144: 0 | O144: 0 | P144: 0 | Q144: 0 | R144: 0 | S144: 0 | T144: 0 | U144: 0 | V144: 0 | W144: 0 | X144: 0 | Y144: 0 | Z144: 0 | AA144: 0 | AB144: 0 | AC144: 0 | AD144: 0
A145: ED_REP221_00154 | E145: 0 | F145: 0 | G145: 0 | H145: 0 | I145: 0 | J145: 0 | K145: 0 | L145: 0 | M145: 0 | N145: 0 | O145: 0 | P145: 0 | Q145: 0 | R145: 0 | S145: 0 | T145: 0 | U145: 0 | V145: 0 | W145: 0 | X145: 0 | Y145: 0 | Z145: 0 | AA145: 0 | AB145: 0 | AC145: 0 | AD145: 0
A146: ED_REP221_00155 | E146: 0 | F146: 0 | G146: 0 | H146: 0 | I146: 0 | J146: 0 | K146: 0 | L146: 0 | M146: 0 | N146: 0 | O146: 0 | P146: 0 | Q146: 0 | R146: 0 | S146: 0 | T146: 0 | U146: 0 | V146: 0 | W146: 0 | X146: 0 | Y146: 0 | Z146: 0 | AA146: 0 | AB146: 0 | AC146: 0 | AD146: 0
A147: ED_REP221_00156 | E147: 0 | F147: 0 | G147: 0 | H147: 0 | I147: 0 | J147: 0 | K147: 0 | L147: 0 | M147: 0 | N147: 0 | O147: 0 | P147: 0 | Q147: 0 | R147: 0 | S147: 0 | T147: 0 | U147: 0 | V147: 0 | W147: 0 | X147: 0 | Y147: 0 | Z147: 0 | AA147: 0 | AB147: 0 | AC147: 0 | AD147: 0
A148: ED_REP221_00157 | E148: 0 | F148: 0 | G148: 0 | H148: 0 | I148: 0 | J148: 0 | K148: 0 | L148: 0 | M148: 0 | N148: 0 | O148: 0 | P148: 0 | Q148: 0 | R148: 0 | S148: 0 | T148: 0 | U148: 0 | V148: 0 | W148: 0 | X148: 0 | Y148: 0 | Z148: 0 | AA148: 0 | AB148: 0 | AC148: 0 | AD148: 0
A149: ED_REP221_00158 | E149: 0 | F149: 0 | G149: 0 | H149: 0 | I149: 0 | J149: 0 | K149: 0 | L149: 0 | M149: 0 | N149: 0 | O149: 0 | P149: 0 | Q149: 0 | R149: 0 | S149: 0 | T149: 0 | U149: 0 | V149: 0 | W149: 0 | X149: 0 | Y149: 0 | Z149: 0 | AA149: 0 | AB149: 0 | AC149: 0 | AD149: 0
A150: ED_REP221_00159 | E150: 0 | F150: 0 | G150: 0 | H150: 0 | I150: 0 | J150: 0 | K150: 0 | L150: 0 | M150: 0 | N150: 0 | O150: 0 | P150: 0 | Q150: 0 | R150: 0 | S150: 0 | T150: 0 | U150: 0 | V150: 0 | W150: 0 | X150: 0 | Y150: 0 | Z150: 0 | AA150: 0 | AB150: 0 | AC150: 0 | AD150: 0
A151: ED_REP221_00160 | E151: 0 | F151: 0 | G151: 0 | H151: 0 | I151: 0 | J151: 0 | K151: 0 | L151: 0 | M151: 0 | N151: 0 | O151: 0 | P151: 0 | Q151: 0 | R151: 0 | S151: 0 | T151: 0 | U151: 0 | V151: 0 | W151: 0 | X151: 0 | Y151: 0 | Z151: 0 | AA151: 0 | AB151: 0 | AC151: 0 | AD151: 0
A152: ED_REP221_00161 | E152: 0 | F152: 0 | G152: 0 | H152: 0 | I152: 0 | J152: 0 | K152: 0 | L152: 0 | M152: 0 | N152: 0 | O152: 0 | P152: 0 | Q152: 0 | R152: 0 | S152: 0 | T152: 0 | U152: 0 | V152: 0 | W152: 0 | X152: 0 | Y152: 0 | Z152: 0 | AA152: 0 | AB152: 0 | AC152: 0 | AD152: 0
A153: ED_REP221_00162 | E153: 0 | F153: 0 | G153: 0 | H153: 0 | I153: 0 | J153: 0 | K153: 0 | L153: 0 | M153: 0 | N153: 0 | O153: 0 | P153: 0 | Q153: 0 | R153: 0 | S153: 0 | T153: 0 | U153: 0 | V153: 0 | W153: 0 | X153: 0 | Y153: 0 | Z153: 0 | AA153: 0 | AB153: 0 | AC153: 0 | AD153: 0
A154: ED_REP221_00163 | E154: 0 | F154: 0 | G154: 0 | H154: 0 | I154: 0 | J154: 0 | K154: 0 | L154: 0 | M154: 0 | N154: 0 | O154: 0 | P154: 0 | Q154: 0 | R154: 0 | S154: 0 | T154: 0 | U154: 0 | V154: 0 | W154: 0 | X154: 0 | Y154: 0 | Z154: 0 | AA154: 0 | AB154: 0 | AC154: 0 | AD154: 0
A155: ED_REP221_00164 | E155: 0 | F155: 0 | G155: 0 | H155: 0 | I155: 0 | J155: 0 | K155: 0 | L155: 0 | M155: 0 | N155: 0 | O155: 0 | P155: 0 | Q155: 0 | R155: 0 | S155: 0 | T155: 0 | U155: 0 | V155: 0 | W155: 0 | X155: 0 | Y155: 0 | Z155: 0 | AA155: 0 | AB155: 0 | AC155: 0 | AD155: 0
A156: ED_REP221_00165 | E156: 0 | F156: 0 | G156: 0 | H156: 0 | I156: 0 | J156: 0 | K156: 0 | L156: 0 | M156: 0 | N156: 0 | O156: 0 | P156: 0 | Q156: 0 | R156: 0 | S156: 0 | T156: 0 | U156: 0 | V156: 0 | W156: 0 | X156: 0 | Y156: 0 | Z156: 0 | AA156: 0 | AB156: 0 | AC156: 0 | AD156: 0
A157: ED_REP221_00166 | E157: 0 | F157: 0 | G157: 0 | H157: 0 | I157: 0 | J157: 0 | K157: 0 | L157: 0 | M157: 0 | N157: 0 | O157: 0 | P157: 0 | Q157: 0 | R157: 0 | S157: 0 | T157: 0 | U157: 0 | V157: 0 | W157: 0 | X157: 0 | Y157: 0 | Z157: 0 | AA157: 0 | AB157: 0 | AC157: 0 | AD157: 0
A158: ED_REP221_00167 | E158: 0 | F158: 0 | G158: 0 | H158: 0 | I158: 0 | J158: 0 | K158: 0 | L158: 0 | M158: 0 | N158: 0 | O158: 0 | P158: 0 | Q158: 0 | R158: 0 | S158: 0 | T158: 0 | U158: 0 | V158: 0 | W158: 0 | X158: 0 | Y158: 0 | Z158: 0 | AA158: 0 | AB158: 0 | AC158: 0 | AD158: 0
A159: ED_REP221_00168 | E159: 0 | F159: 0 | G159: 0 | H159: 0 | I159: 0 | J159: 0 | K159: 0 | L159: 0 | M159: 0 | N159: 0 | O159: 0 | P159: 0 | Q159: 0 | R159: 0 | S159: 0 | T159: 0 | U159: 0 | V159: 0 | W159: 0 | X159: 0 | Y159: 0 | Z159: 0 | AA159: 0 | AB159: 0 | AC159: 0 | AD159: 0
A160: ED_REP221_00169 | E160: 0 | F160: 0 | G160: 0 | H160: 0 | I160: 0 | J160: 0 | K160: 0 | L160: 0 | M160: 0 | N160: 0 | O160: 0 | P160: 0 | Q160: 0 | R160: 0 | S160: 0 | T160: 0 | U160: 0 | V160: 0 | W160: 0 | X160: 0 | Y160: 0 | Z160: 0 | AA160: 0 | AB160: 0 | AC160: 0 | AD160: 0
A161: ED_REP221_00170 | E161: 0 | F161: 0 | G161: 0 | H161: 0 | I161: 0 | J161: 0 | K161: 0 | L161: 0 | M161: 0 | N161: 0 | O161: 0 | P161: 0 | Q161: 0 | R161: 0 | S161: 0 | T161: 0 | U161: 0 | V161: 0 | W161: 0 | X161: 0 | Y161: 0 | Z161: 0 | AA161: 0 | AB161: 0 | AC161: 0 | AD161: 0
A162: ED_REP221_00171 | E162: 0 | F162: 0 | G162: 0 | H162: 0 | I162: 0 | J162: 0 | K162: 0 | L162: 0 | M162: 0 | N162: 0 | O162: 0 | P162: 0 | Q162: 0 | R162: 0 | S162: 0 | T162: 0 | U162: 0 | V162: 0 | W162: 0 | X162: 0 | Y162: 0 | Z162: 0 | AA162: 0 | AB162: 0 | AC162: 0 | AD162: 0
A163: ED_REP221_00172 | E163: 0 | F163: 0 | G163: 0 | H163: 0 | I163: 0 | J163: 0 | K163: 0 | L163: 0 | M163: 0 | N163: 0 | O163: 0 | P163: 0 | Q163: 0 | R163: 0 | S163: 0 | T163: 0 | U163: 0 | V163: 0 | W163: 0 | X163: 0 | Y163: 0 | Z163: 0 | AA163: 0 | AB163: 0 | AC163: 0 | AD163: 0
A164: ED_REP221_00173 | E164: 0 | F164: 0 | G164: 0 | H164: 0 | I164: 0 | J164: 0 | K164: 0 | L164: 0 | M164: 0 | N164: 0 | O164: 0 | P164: 0 | Q164: 0 | R164: 0 | S164: 0 | T164: 0 | U164: 0 | V164: 0 | W164: 0 | X164: 0 | Y164: 0 | Z164: 0 | AA164: 0 | AB164: 0 | AC164: 0 | AD164: 0
A165: ED_REP221_00174 | E165: 0 | F165: 0 | G165: 0 | H165: 0 | I165: 0 | J165: 0 | K165: 0 | L165: 0 | M165: 0 | N165: 0 | O165: 0 | P165: 0 | Q165: 0 | R165: 0 | S165: 0 | T165: 0 | U165: 0 | V165: 0 | W165: 0 | X165: 0 | Y165: 0 | Z165: 0 | AA165: 0 | AB165: 0 | AC165: 0 | AD165: 0
A166: ED_REP221_00175 | E166: 0 | F166: 0 | G166: 0 | H166: 0 | I166: 0 | J166: 0 | K166: 0 | L166: 0 | M166: 0 | N166: 0 | O166: 0 | P166: 0 | Q166: 0 | R166: 0 | S166: 0 | T166: 0 | U166: 0 | V166: 0 | W166: 0 | X166: 0 | Y166: 0 | Z166: 0 | AA166: 0 | AB166: 0 | AC166: 0 | AD166: 0
A167: ED_REP221_00176 | E167: 0 | F167: 0 | G167: 0 | H167: 0 | I167: 0 | J167: 0 | K167: 0 | L167: 0 | M167: 0 | N167: 0 | O167: 0 | P167: 0 | Q167: 0 | R167: 0 | S167: 0 | T167: 0 | U167: 0 | V167: 0 | W167: 0 | X167: 0 | Y167: 0 | Z167: 0 | AA167: 0 | AB167: 0 | AC167: 0 | AD167: 0
A168: ED_REP221_00177 | E168: 0 | F168: 0 | G168: 0 | H168: 0 | I168: 0 | J168: 0 | K168: 0 | L168: 0 | M168: 0 | N168: 0 | O168: 0 | P168: 0 | Q168: 0 | R168: 0 | S168: 0 | T168: 0 | U168: 0 | V168: 0 | W168: 0 | X168: 0 | Y168: 0 | Z168: 0 | AA168: 0 | AB168: 0 | AC168: 0 | AD168: 0
A169: ED_REP221_00178 | E169: 0 | F169: 0 | G169: 0 | H169: 0 | I169: 0 | J169: 0 | K169: 0 | L169: 0 | M169: 0 | N169: 0 | O169: 0 | P169: 0 | Q169: 0 | R169: 0 | S169: 0 | T169: 0 | U169: 0 | V169: 0 | W169: 0 | X169: 0 | Y169: 0 | Z169: 0 | AA169: 0 | AB169: 0 | AC169: 0 | AD169: 0
A170: ED_REP221_00179 | E170: 0 | F170: 0 | G170: 0 | H170: 0 | I170: 0 | J170: 0 | K170: 0 | L170: 0 | M170: 0 | N170: 0 | O170: 0 | P170: 0 | Q170: 0 | R170: 0 | S170: 0 | T170: 0 | U170: 0 | V170: 0 | W170: 0 | X170: 0 | Y170: 0 | Z170: 0 | AA170: 0 | AB170: 0 | AC170: 0 | AD170: 0
A171: ED_REP221_00180 | E171: 0 | F171: 0 | G171: 0 | H171: 0 | I171: 0 | J171: 0 | K171: 0 | L171: 0 | M171: 0 | N171: 0 | O171: 0 | P171: 0 | Q171: 0 | R171: 0 | S171: 0 | T171: 0 | U171: 0 | V171: 0 | W171: 0 | X171: 0 | Y171: 0 | Z171: 0 | AA171: 0 | AB171: 0 | AC171: 0 | AD171: 0

Sheet 2.3 Augex
C1: REGULATORY REPORTING STATEMENT | G1: Worksheet navigation
C2: =TradingName -> Ergon Energy
C3: =RCP_1to5 -> 2015-16 to 2019-20
C4: 2.3 AUGEX PROJECT DATA
C7: TABLE 2.3.1 - AUGEX ASSET DATA - SUBTRANSMISSION SUBSTATIONS, SWITCHING STATIONS AND ZONE SUBSTATIONS
C8: NOTE: DNSP MUST PROVIDE EXPENDITURE INFORMATION ON A PROJECT CLOSE BASIS.
A9: AUG231 | C9: AUG231_1 | D9: AUG231_2 | E9: AUG231_3 | F9: AUG231_4 | G9: AUG231_5 | H9: AUG231_6 | I9: ED_AUG231_00001 | J9: ED_AUG231_00002 | K9: ED_AUG231_00003 | L9: ED_AUG231_00004 | M9: ED_AUG231_00005 | N9: ED_AUG231_00006 | O9: ED_AUG231_00007 | P9: ED_AUG231_00008 | Q9: ED_AUG231_00009 | R9: ED_AUG231_00010 | S9: ED_AUG231_00011 | T9: ED_AUG231_00012 | U9: ED_AUG231_00013 | V9: ED_AUG231_00014 | W9: ED_AUG231_00015 | X9: ED_AUG231_00016 | Y9: ED_AUG231_00017 | Z9: ED_AUG231_00018 | AA9: ED_AUG231_00019 | AB9: ED_AUG231_00020 | AC9: ED_AUG231_00021 | AD9: ED_AUG231_00022 | AE9: ED_AUG231_00023
C10: PROJECT DESCRIPTION AND CHANGES | M10: PLANT AND EQUIPMENT EXPENDITURE AND VOLUME | W10: OTHER EXPENDITURE | Y10: TOTAL DIRECT EXPENDITURE ($000'S) | Z10: YEARS INCURRED | AA10: ALL RELATED PARTY CONTRACTS | AC10: ALL NON RELATED PARTYCONTRACTS | AD10: LAND AND EASEMENTS
C11: SUBSTATION ID | D11: SUBSTATION TYPE | E11: PROJECT ID | F11: PROJECT TYPE | G11: PROJECT TRIGGER | H11: VOLTAGE (KV) | I11: SUBSTATION RATING NORMAL CYCLIC (MVA) | K11: SUBSTATION RATING N-1 EMERGENCY (MVA) | M11: TRANSFORMERS | P11: SWITCHGEAR | R11: CAPACITORS | T11: OTHER PLANT ITEM | U11: INSTALLATION (LABOUR) | W11: CIVIL WORKS | X11: OTHER DIRECT | AA11: RELATED PARTY MARGINS | AB11: TOTAL | AD11: LAND PURCHASE | AE11: EASEMENTS
I12: PRE | J12: POST | K12: PRE | L12: POST | M12: UNITS ADDED | N12: MVA ADDED | O12: EXPENDITURE ($000's) | P12: UNITS ADDED | Q12: EXPENDITURE ($000's) | R12: MVAR ADDED | S12: EXPENDITURE ($000's) | T12: EXPENDITURE ($000's) | U12: VOLUME | V12: EXPENDITURE ($000's) | W12: EXPENDITURE ($000's) | AA12: EXPENDITURE ($000's) | AD12: EXPENDITURE ($000's)
A13: AUG231_1 | C13: 82566965 | D13: Zone substation | E13: CPMNN00080 | F13: New substation establishment | G13: Demand growth | H13: 66/11 | I13: 0 | J13: 0 | K13: 0 | L13: 0 | M13: 0 | N13: 0 | O13: 1783.84437 | P13: 0 | Q13: 93.05147278 | R13: 0 | S13: 0 | T13: 5777.561846 | U13: 0 | V13: 0 | W13: 0 | X13: 0 | Y13: =SUM(O13,Q13,S13,T13,V13,W13,X13) -> 7654.457689 | Z13: 2007-2013 | AA13: 0 | AB13: 0 | AC13: 0 | AD13: 0 | AE13: 0
A14: AUG231_2 | C14: 81642836 | D14: Zone substation | E14: CPMNN00113 | F14: New substation establishment | G14: Demand growth | H14: 132/22 | I14: 0 | J14: 0 | K14: 0 | L14: 0 | M14: 0 | N14: 0 | O14: 3310.668232 | P14: 0 | Q14: 129.002607 | R14: 12 | S14: 471.1220534 | T14: 873.1643313 | U14: 0 | V14: 0 | W14: 0 | X14: 0 | Y14: 4783.957224 | Z14: 2007-2011 | AA14: 0 | AB14: 0 | AC14: 0 | AD14: 0 | AE14: 0
A15: AUG231_3 | C15: 82647119 | D15: Zone substation | E15: CPMNN00140 | F15: Other - specify | G15: Demand growth | H15: 66/33/11 | I15: 0 | J15: 0 | K15: 0 | L15: 0 | M15: 0 | N15: 0 | O15: 0 | P15: 0 | Q15: 0 | R15: 0 | S15: 0 | T15: 5.411701543 | U15: 0 | V15: 0 | W15: 0 | X15: 0 | Y15: 5.411701543 | Z15: 2007-2011 | AA15: 0 | AB15: 0 | AC15: 0 | AD15: 0 | AE15: 0
A16: AUG231_4 | C16: 82750215 | D16: Zone substation | E16: CPMNN00404 | F16: New substation establishment | G16: Demand growth | H16: 66/11 | I16: 0 | J16: 0 | K16: 0 | L16: 0 | M16: 0 | N16: 0 | O16: 1494.405128 | P16: 0 | Q16: 122.6741715 | R16: 6 | S16: 237.5812645 | T16: 1614.465337 | U16: 0 | V16: 0 | W16: 0 | X16: 0 | Y16: 3469.125901 | Z16: 2007-2011 | AA16: 0 | AB16: 0 | AC16: 0 | AD16: 0 | AE16: 0
A17: AUG231_5 | C17: 50086704 | D17: Zone substation | E17: CPMNN00435 | F17: New substation establishment | G17: Demand growth | H17: 66/11 | I17: 0 | J17: 0 | K17: 0 | L17: 0 | M17: 0 | N17: 0 | O17: 1625.596719 | P17: 0 | Q17: 194.0997142 | R17: 0 | S17: 0 | T17: 1887.743562 | U17: 0 | V17: 0 | W17: 0 | X17: 0 | Y17: 3707.439995 | Z17: 2007-2011 | AA17: 0 | AB17: 0 | AC17: 0 | AD17: 0 | AE17: 0
A18: AUG231_6 | C18: 81518239 | D18: Zone substation | E18: CPMNN00436 | F18: New substation establishment | G18: Demand growth | H18: 66/11 | I18: 0 | J18: 0 | K18: 0 | L18: 0 | M18: 0 | N18: 0 | O18: 1270.340812 | P18: 0 | Q18: 165.8383323 | R18: 0 | S18: 0 | T18: 5377.326077 | U18: 0 | V18: 0 | W18: 0 | X18: 0 | Y18: 6813.505221 | Z18: 2007-2012 | AA18: 0 | AB18: 0 | AC18: 0 | AD18: 0 | AE18: 0
A19: AUG231_7 | C19: 60331401 | D19: Zone substation | E19: CPMNN00523 | F19: New substation establishment | G19: Demand growth | H19: 110/11 | I19: 0 | J19: 0 | K19: 0 | L19: 0 | M19: 0 | N19: 0 | O19: 1945.244926 | P19: 0 | Q19: 15.48442612 | R19: 0 | S19: 0 | T19: 4529.435126 | U19: 0 | V19: 0 | W19: 0 | X19: 0 | Y19: 6490.164479 | Z19: 2007-2010 | AA19: 0 | AB19: 0 | AC19: 0 | AD19: 0 | AE19: 0
A20: AUG231_8 | C20: 60330485 | D20: Subtransmission substation | E20: CPMNN00528 | F20: New substation establishment | G20: Demand growth | H20: 110/33 | I20: 0 | J20: 0 | K20: 0 | L20: 0 | M20: 0 | N20: 0 | O20: 2960.896023 | P20: 0 | Q20: 52.37589603 | R20: 0 | S20: 0 | T20: 1552.152601 | U20: 0 | V20: 0 | W20: 0 | X20: 0 | Y20: 4565.42452 | Z20: 2007-2012 | AA20: 0 | AB20: 0 | AC20: 0 | AD20: 0 | AE20: 0
A21: AUG231_9 | C21: 50000098 | D21: Subtransmission substation | E21: CPMNN00723 | F21: Substation upgrade - capacity | G21: Demand growth | H21: 132/66 | I21: 0 | J21: 0 | K21: 0 | L21: 0 | M21: 0 | N21: 0 | O21: 3250.00403 | P21: 0 | Q21: 0 | R21: 0 | S21: 0 | T21: 1371.398831 | U21: 0 | V21: 0 | W21: 0 | X21: 0 | Y21: 4621.402861 | Z21: 2007-2010 | AA21: 0 | AB21: 0 | AC21: 0 | AD21: 0 | AE21: 0
A22: AUG231_10 | C22: 50000188 | D22: Subtransmission substation | E22: CPMNN00724 | F22: Substation upgrade - capacity | G22: Demand growth | H22: 132/66 | I22: 0 | J22: 0 | K22: 0 | L22: 0 | M22: 0 | N22: 0 | O22: 2383.046397 | P22: 0 | Q22: 0 | R22: 0 | S22: 0 | T22: 906.2567206 | U22: 0 | V22: 0 | W22: 0 | X22: 0 | Y22: 3289.303118 | Z22: 2007-2011 | AA22: 0 | AB22: 0 | AC22: 0 | AD22: 0 | AE22: 0
A23: AUG231_11 | C23: 20006664 | D23: Zone substation | E23: CPMNN00734 | F23: Other - specify | G23: Demand growth | H23: 66/11 | I23: 0 | J23: 0 | K23: 0 | L23: 0 | M23: 0 | N23: 0 | O23: 0 | P23: 0 | Q23: 15.6873932 | R23: 0 | S23: 0 | T23: 2521.325897 | U23: 0 | V23: 0 | W23: 0 | X23: 0 | Y23: 2537.01329 | Z23: 2007-2011 | AA23: 0 | AB23: 0 | AC23: 0 | AD23: 0 | AE23: 0
A24: AUG231_12 | C24: 82709921 | D24: Switching station | E24: CPMNN00745 | F24: New substation establishment | G24: Demand growth | H24: 132 | I24: 0 | J24: 0 | K24: 0 | L24: 0 | M24: 0 | N24: 0 | O24: 0 | P24: 0 | Q24: 136.9437575 | R24: 0 | S24: 0 | T24: 6369.508118 | U24: 0 | V24: 0 | W24: 0 | X24: 0 | Y24: 6506.451876 | Z24: 2007-2012 | AA24: 0 | AB24: 0 | AC24: 0 | AD24: 0 | AE24: 0
A25: AUG231_13 | C25: 82613011 | D25: Zone substation | E25: CPMNN00758 | F25: New substation establishment | G25: Demand growth | H25: 66/22 | I25: 0 | J25: 0 | K25: 0 | L25: 0 | M25: 0 | N25: 0 | O25: 1090.586135 | P25: 0 | Q25: 165.7323943 | R25: 0 | S25: 0 | T25: 1437.482756 | U25: 0 | V25: 0 | W25: 0 | X25: 0 | Y25: 2693.801286 | Z25: 2007-2012 | AA25: 0 | AB25: 0 | AC25: 0 | AD25: 0 | AE25: 0
A26: AUG231_14 | C26: 82550255 | D26: Zone substation | E26: CPMNN00781 | F26: New substation establishment | G26: Demand growth | H26: 33/11 | I26: 0 | J26: 0 | K26: 0 | L26: 0 | M26: 0 | N26: 0 | O26: 2260.818274 | P26: 0 | Q26: 100.2028665 | R26: 0 | S26: 0 | T26: 3031.586637 | U26: 0 | V26: 0 | W26: 0 | X26: 0 | Y26: 5392.607778 | Z26: 2007-2009 | AA26: 0 | AB26: 0 | AC26: 0 | AD26: 0 | AE26: 0
A27: AUG231_15 | C27: 82618594 | D27: Zone substation | E27: CPMNN00782 | F27: New substation establishment | G27: Demand growth | H27: 132/22 | I27: 0 | J27: 0 | K27: 0 | L27: 0 | M27: 0 | N27: 0 | O27: 3366.369729 | P27: 0 | Q27: 185.0658627 | R27: 19.2 | S27: 772.4194664 | T27: 2730.400707 | U27: 0 | V27: 0 | W27: 0 | X27: 0 | Y27: 7054.255765 | Z27: 2007-2011 | AA27: 0 | AB27: 0 | AC27: 0 | AD27: 0 | AE27: 0
A28: AUG231_16 | C28: 82772842 | D28: Zone substation | E28: CPMNN01126 | F28: New substation establishment | G28: Demand growth | H28: 66/11 | I28: 0 | J28: 0 | K28: 0 | L28: 0 | M28: 0 | N28: 0 | O28: 822.885568 | P28: 0 | Q28: 208.4181937 | R28: 4.8 | S28: 190.2876416 | T28: 1796.493955 | U28: 0 | V28: 0 | W28: 0 | X28: 0 | Y28: 3018.085359 | Z28: 2007-2012 | AA28: 0 | AB28: 0 | AC28: 0 | AD28: 0 | AE28: 0
A29: AUG231_17 | C29: 20020706 | D29: Zone substation | E29: CPMNN01162 | F29: Substation upgrade - capacity | G29: Demand growth | H29: 66/11 | I29: 0 | J29: 0 | K29: 0 | L29: 0 | M29: 0 | N29: 0 | O29: 746.0642646 | P29: 0 | Q29: 144.7577039 | R29: 0 | S29: 0 | T29: 2346.636651 | U29: 0 | V29: 0 | W29: 0 | X29: 0 | Y29: 3237.458619 | Z29: 2007-2011 | AA29: 0 | AB29: 0 | AC29: 0 | AD29: 0 | AE29: 0
A30: AUG231_18 | C30: 82866131 | D30: Zone substation | E30: CPMNN01171 | F30: New substation establishment | G30: Demand growth | H30: 66/11 | I30: 0 | J30: 0 | K30: 0 | L30: 0 | M30: 0 | N30: 0 | O30: 1657.091586 | P30: 0 | Q30: 156.6849272 | R30: 0 | S30: 0 | T30: 3130.941314 | U30: 0 | V30: 0 | W30: 0 | X30: 0 | Y30: 4944.717828 | Z30: 2007-2012 | AA30: 0 | AB30: 0 | AC30: 0 | AD30: 0 | AE30: 0
A31: AUG231_19 | C31: 30064304 | D31: Zone substation | E31: CPMNN01197 | F31: New substation establishment | G31: Demand growth | H31: 132/33 | I31: 0 | J31: 0 | K31: 0 | L31: 0 | M31: 0 | N31: 0 | O31: 4061.096079 | P31: 0 | Q31: 194.6961146 | R31: 0 | S31: 0 | T31: 2386.078291 | U31: 0 | V31: 0 | W31: 0 | X31: 0 | Y31: 6641.870484 | Z31: 2007-2012 | AA31: 0 | AB31: 0 | AC31: 0 | AD31: 0 | AE31: 0
A32: AUG231_20 | C32: 82647119 | D32: Zone substation | E32: CPMNN01306 | F32: New substation establishment | G32: Demand growth | H32: 66/33/11 | I32: 0 | J32: 0 | K32: 0 | L32: 0 | M32: 0 | N32: 0 | O32: 4859.34945 | P32: 0 | Q32: 148.0611518 | R32: 4.8 | S32: 189.253585 | T32: 3613.443425 | U32: 0 | V32: 0 | W32: 0 | X32: 0 | Y32: 8810.107612 | Z32: 2007-2013 | AA32: 0 | AB32: 0 | AC32: 0 | AD32: 0 | AE32: 0
A33: AUG231_21 | C33: 20011587 | D33: Zone substation | E33: CPMNN01346 | F33: Substation upgrade - capacity | G33: Demand growth | H33: 66/11 | I33: 0 | J33: 0 | K33: 0 | L33: 0 | M33: 0 | N33: 0 | O33: 1088.575362 | P33: 0 | Q33: 0 | R33: 0 | S33: 0 | T33: 1692.214164 | U33: 0 | V33: 0 | W33: 0 | X33: 0 | Y33: 2780.789525 | Z33: 2009-2012 | AA33: 0 | AB33: 0 | AC33: 0 | AD33: 0 | AE33: 0
A34: AUG231_22 | C34: 81622293 | D34: Zone substation | E34: CPMNN01450 | F34: New substation establishment | G34: Demand growth | H34: 66/11 | I34: 0 | J34: 0 | K34: 0 | L34: 0 | M34: 0 | N34: 0 | O34: 1696.89919 | P34: 0 | Q34: 128.6434167 | R34: 0 | S34: 0 | T34: 1972.698388 | U34: 0 | V34: 0 | W34: 0 | X34: 0 | Y34: 3798.240995 | Z34: 2007-2012 | AA34: 0 | AB34: 0 | AC34: 0 | AD34: 0 | AE34: 0
A35: AUG231_23 | C35: 82613244 | D35: Subtransmission substation | E35: CPMNS00367 | F35: New substation establishment | G35: Demand growth | H35: 132/66/22 | I35: 0 | J35: 0 | K35: 0 | L35: 0 | M35: 0 | N35: 0 | O35: 1080.68535 | P35: 0 | Q35: 89.9342759 | R35: 0 | S35: 0 | T35: 1703.294401 | U35: 0 | V35: 0 | W35: 0 | X35: 0 | Y35: 2873.914027 | Z35: 2007-2011 | AA35: 0 | AB35: 0 | AC35: 0 | AD35: 0 | AE35: 0
A36: AUG231_24 | C36: 40222461 | D36: Other - specify | E36: CPMNS00567 | F36: Other - specify | G36: Other - specify | H36: 66/11kV and 33/11kV | I36: 0 | J36: 0 | K36: 0 | L36: 0 | M36: 0 | N36: 0 | O36: 948.0504139 | P36: 0 | Q36: 113.1992408 | R36: 0 | S36: 0 | T36: 2360.68086 | U36: 0 | V36: 0 | W36: 0 | X36: 0 | Y36: 3421.930515 | Z36: 2007-2011 | AA36: 0 | AB36: 0 | AC36: 0 | AD36: 0 | AE36: 0
A37: AUG231_25 | Y37: 0
A38: AUG231_26 | C38: 60025695 | D38: Subtransmission substation | E38: CPMNS00417 | F38: Substation upgrade - capacity | G38: Demand growth | H38: 132/110/33 | I38: 0 | J38: 0 | K38: 0 | L38: 0 | M38: 0 | N38: 0 | O38: 0 | P38: 0 | Q38: 0 | R38: 0 | S38: 0 | T38: 0 | U38: 0 | V38: 0 | W38: 0 | X38: 0 | Y38: 0 | Z38: 2007-2013 | AA38: 0 | AB38: 0 | AC38: 0 | AD38: 0 | AE38: 0
A39: AUG231_27 | C39: 40018029 | D39: Zone substation | E39: CPMNN00486 | F39: Substation upgrade - capacity | G39: Demand growth | H39: 66/22 | I39: 0 | J39: 0 | K39: 0 | L39: 0 | M39: 0 | N39: 0 | O39: 0 | P39: 0 | Q39: 0 | R39: 0 | S39: 0 | T39: 0 | U39: 0 | V39: 0 | W39: 0 | X39: 0 | Y39: 0 | Z39: 2007-2013 | AA39: 0 | AB39: 0 | AC39: 0 | AD39: 0 | AE39: 0
A40: AUG231_28 | C40: 50086704 | D40: Zone substation | E40: 000000118032 | F40: Substation upgrade - capacity | G40: Demand growth | H40: 66/11 | I40: 0 | J40: 0 | K40: 0 | L40: 0 | M40: 0 | N40: 0 | O40: 0 | P40: 0 | Q40: 0 | R40: 0 | S40: 0 | T40: 0 | U40: 0 | V40: 0 | W40: 0 | X40: 0 | Y40: 0 | Z40: 2009-2014 | AA40: 0 | AB40: 0 | AC40: 0 | AD40: 0 | AE40: 0
A41: AUG231_29 | Y41: 0
A42: AUG231_30 | C42: Emerald Zone Substation - Install 3x3MVAr Cap banks and +/-2MVAr STATCOM, all connected at 22kV side | D42: Zone substation | E42: CPMNN01145 | F42: Substation upgrade - voltage | G42: Voltage issues | H42: 66/22 | I42: 69.8 | J42: 69.8 | K42: 46.6 | L42: 46.6 | M42: 0 | N42: 0 | O42: 0 | P42: 4 | Q42: 32 | R42: 11 | S42: 0 | T42: 608.9412584 | U42: 12219.92653 | V42: 3272.406029 | W42: 157.1476652 | X42: 0 | Y42: 4070.494953 | Z42: ,2017,2018 | AA42: 0 | AB42: 0 | AC42: 3301.905047 | AD42: 0 | AE42: 0
A43: AUG231_31 | C43: Malchi Zone Substation - Gracemere, Modular, 66/11kV, Network, Central | D43: Zone substation | E43: 317031 | F43: New substation establishment | G43: Demand growth | H43: 66/11 | I43: 0 | J43: 12 | K43: 0 | L43: 0 | M43: 1 | N43: 10 | O43: 0 | P43: 6 | Q43: 0 | R43: 0 | S43: 0 | T43: 933.2986247 | U43: 13600.44031 | V43: 3683.989235 | W43: 313.498717 | X43: 0 | Y43: 4930.786576 | Z43: ,2016,2017,2018 | AA43: 0 | AB43: 0 | AC43: 6513.986757 | AD43: 0 | AE43: 0
A44: AUG231_32 | C44: Gladstone South Zone Substation - Briffney Establish new 66/11kV Sub | D44: Zone substation | E44: 693294 | F44: New substation establishment | G44: Demand growth | H44: 66/11 | I44: 0 | J44: 12 | K44: 0 | L44: 0 | M44: 1 | N44: 20 | O44: 630 | P44: 6 | Q44: 439.203 | R44: 4.8 | S44: 0 | T44: 950.1574474 | U44: 13672.194 | V44: 3705.381714 | W44: 313.498717 | X44: 0 | Y44: 6038.240878 | Z44: ,2010,2011,2012,2013,2014,2015,2016,2017,2018,2019,2020 | AA44: 0 | AB44: 0 | AC44: 5878.885399 | AD44: 0 | AE44: 0
A45: AUG231_33 | C45: Moranbah Zone Substation - Modular, 66/11kV, 32MVA, Network, Central | D45: Zone substation | E45: 48821; 48824 | F45: Substation upgrade - capacity | G45: Demand growth | H45: Currently 11 from Powerlink Convert to 66/11 | I45: 40 | J45: 76.8 | K45: 20 | L45: 40 | M45: 2 | N45: 64 | O45: 1604.428 | P45: 87 | Q45: 501.89 | R45: 6 | S45: 0 | T45: 1950.468918 | U45: 17929.67019 | V45: 4974.695885 | W45: 6645.716314 | X45: 0 | Y45: =SUM(O45,Q45,S45,T45,V45,W45,X45) -> 15677.19912 | Z45: ,2012,2013,2014,2015,2016,2017 | AA45: 0 | AB45: 0 | AC45: 8837.697556 | AD45: 0 | AE45: 0
A46: AUG231_34 | C46: Planella Zone Substation - Convert to 66/11kV | D46: Zone substation | E46: 48598; DCP18260; DCP16183 | F46: Substation upgrade - capacity | G46: Demand growth | H46: Currently 33/11 Convert to 66/11 | I46: 28.6 | J46: 76.8 | K46: 16.9 | L46: 40 | M46: 2 | N46: 64 | O46: 1602.214 | P46: 25 | Q46: 159.952 | R46: 0 | S46: 0 | T46: 673.8526332 | U46: 12496.19911 | V46: 3354.773302 | W46: 1798.833709 | X46: 0 | Y46: 7589.625644 | Z46: ,2019,2020 | AA46: 0 | AB46: 0 | AC46: 597.7499946 | AD46: 0 | AE46: 0
A47: AUG231_35 | C47: Dysart 66/22kV TFs - Install 20MVA 66/22kV TFs; Dysart 66kV TF Bay - Install 66kV TF bay for Powerlink 3rd TF | D47: Zone substation | E47: 552296; 760213 | F47: Substation upgrade - capacity | G47: Demand growth | H47: Currently 22 from Powerlink Convert to 66/22 | I47: 20 | J47: 48 | K47: 10 | L47: 26 | M47: 2 | N47: 40 | O47: 1313.628 | P47: 8 | Q47: 129.106 | R47: 0 | S47: 0 | T47: 902.7293081 | U47: 13470.3327 | V47: 3645.19925 | W47: 469.8497688 | X47: 650.23 | Y47: 7110.742327 | Z47: ,2017,2018 | AA47: 0 | AB47: 0 | AC47: 3948.822229 | AD47: 0 | AE47: 0
A48: AUG231_36 | C48: Boyne Residential Zone Substation | D48: Zone substation | E48: 311743 | F48: Substation upgrade - capacity | G48: Demand growth | H48: 66/11 | I48: 20 | J48: 48 | K48: 10 | L48: 26 | M48: 2 | N48: 40 | O48: 1313.628 | P48: 9 | Q48: 0 | R48: 0 | S48: 0 | T48: 538.1111572 | U48: 11918.46296 | V48: 3182.528372 | W48: 548.0252947 | X48: 0 | Y48: 5582.292824 | Z48: ,2012.2013.2014.2015,2016,2017 | AA48: 0 | AB48: 0 | AC48: 900.8207125 | AD48: 0 | AE48: 0
A49: AUG231_37 | C49: Cannonvale - Switching Station | D49: Zone substation | E49: 154826 | F49: Substation upgrade - capacity | G49: Demand growth | H49: 66/11 | I49: 32.4 | J49: 32.4 | K49: 18.9 | L49: 18.9 | M49: 0 | N49: 0 | O49: 0 | P49: 18 | Q49: 0 | R49: 0 | S49: 0 | T49: 1052.00437 | U49: 0 | V49: 0 | W49: 1251.605028 | X49: 0 | Y49: 2303.609398 | Z49: ,2012,2013,2014,2015,2016,2017 | AA49: 0 | AB49: 0 | AC49: 2962.390602 | AD49: 0 | AE49: 0
A50: AUG231_38 | C50: Gladstone South - Redevelop existing as 2x20MVA 66/11kV substation | D50: Zone substation | E50: CPMNN01466 | F50: Substation upgrade - capacity | G50: Demand growth | H50: Currently 11 from Powerlink Convert to 66/11 | I50: 20 | J50: 48 | K50: 10 | L50: 26 | M50: 2 | N50: 40 | O50: 1343.688 | P50: 31 | Q50: 0 | R50: 0 | S50: 0 | T50: 536.8734741 | U50: 0 | V50: 0 | W50: 571.4779525 | X50: 0 | Y50: 2452.039427 | Z50: ,2015,2016 | AA50: 0 | AB50: 0 | AC50: 180.9605734 | AD50: 0 | AE50: 0
A51: AUG231_39 | C51: South Mackay Zone Substation - Ooralea, Modular, Network, Mackay | D51: Zone substation | E51: 48638; 48647; 653444 | F51: New substation establishment | G51: Demand growth | H51: 66/11 | I51: 0 | J51: 24 | K51: 0 | L51: 0 | M51: 1 | N51: 20 | O51: 652.066 | P51: 22 | Q51: 21.793 | R51: 0 | S51: 0 | T51: 742.3028685 | U51: 12787.53362 | V51: 3441.631102 | W51: 1564.307131 | X51: 0 | Y51: 6422.100102 | Z51: ,2017,2018,2019,2020 | AA51: 0 | AB51: 0 | AC51: 2624.682296 | AD51: 0 | AE51: 0
A52: AUG231_40 | C52: Central Toowoomba Zone Substation - Greenfield, 110/11kV, Network, South West | D52: Zone substation | E52: 140507 | F52: Substation upgrade - capacity | G52: Demand growth | H52: 110/11kV | I52: 37.5 | J52: 80 | K52: 25 | L52: 40 | M52: 2 | N52: 80 | O52: 1534 | P52: 26 | Q52: 670 | R52: 0 | S52: 0 | T52: 1180.556776 | U52: 14652.80822 | V52: 3997.739786 | W52: 1877.009235 | X52: 0 | Y52: 9259.305797 | Z52: ,2013,2014,2015,2016 | AA52: 0 | AB52: 0 | AC52: 5289.844398 | AD52: 0 | AE52: 0
A53: AUG231_41 | C53: Charlton Zone Substation - 11kV fdrs out of Torrington sub | D53: Zone substation | E53: DCP17784 | F53: New substation establishment | G53: Demand growth | H53: 33/11kV | I53: 0 | J53: 20 | K53: 0 | L53: 0 | M53: 2 | N53: 64 | O53: 1590 | P53: 11 | Q53: 853.679 | R53: 0 | S53: 0 | T53: 823.009151 | U53: 13131.03171 | V53: 3544.040833 | W53: 704.3763465 | X53: 0 | Y53: 7515.10533 | Z53: ,2015,2016,2017,2018 | AA53: 0 | AB53: 0 | AC53: 2544.961016 | AD53: 0 | AE53: 0
A54: AUG231_42 | C54: Kumbia 66/11kV Zone Substation Establishment | D54: Zone substation | E54: 141629; 432340; 431150 | F54: New substation establishment | G54: Voltage issues | H54: 66/11kV | I54: 0 | J54: 6 | K54: 0 | L54: 0 | M54: 1 | N54: 10 | O54: 500 | P54: 8 | Q54: 120 | R54: 0 | S54: 0 | T54: 795.5706989 | U54: 13014.24952 | V54: 3509.223661 | W54: 469.8497688 | X54: 0 | Y54: 5394.644129 | Z54: ,2018,2019,2020 | AA54: 0 | AB54: 0 | AC54: 4320.926817 | AD54: 0 | AE54: 0
A55: AUG231_43 | C55: Broxburn Zone Substation - Rebuild as 110/11kV | D55: Zone substation | E55: 316573 | F55: Substation upgrade - capacity | G55: Demand growth | H55: 110/11kV | I55: 10 | J55: 20 | K55: 5 | L55: 0 | M55: 2 | N55: 40 | O55: 1313.628 | P55: 13 | Q55: 164.097 | R55: 4.8 | S55: 214.872 | T55: 609.0251439 | U55: 12220.28356 | V55: 3272.512473 | W55: 860.7273983 | X55: 0 | Y55: 6434.862015 | Z55: ,2012.2013.2014.2015,2016,2017 | AA55: 0 | AB55: 0 | AC55: 938.5911848 | AD55: 0 | AE55: 0
A56: AUG231_44 | C56: Toogoom Zone Substation - Construct 66/11kV ZS; Modular 3 11kV feeders | D56: Zone substation | E56: 196710; 196687 | F56: New substation establishment | G56: Demand growth | H56: 66/11kV | I56: 0 | J56: 10 | K56: 0 | L56: 0 | M56: 1 | N56: 20 | O56: 630 | P56: 9 | Q56: 270 | R56: 0 | S56: 0 | T56: 1480.697995 | U56: 15930.25443 | V56: 4378.594664 | W56: 548.0252947 | X56: 0 | Y56: 7307.317954 | Z56: ,2011,2012,2013,2014,2015,2016,2017 | AA56: 0 | AB56: 0 | AC56: 149.8733005 | AD56: 0 | AE56: 0
A57: AUG231_45 | C57: Roma West Zone Substation - Roma West 33/11kV TF & 11kV Switchgr AugReplace existing TFs & 11kV swyd | D57: Zone substation | E57: 419495 | F57: Substation upgrade - capacity | G57: Demand growth | H57: 33/11kV | I57: 5 | J57: 10 | K57: 2.5 | L57: 0 | M57: 1 | N57: 10 | O57: 693.518 | P57: 9 | Q57: 0 | R57: 0 | S57: 0 | T57: 505.2873092 | U57: 11778.75972 | V57: 3140.87757 | W57: 548.0252947 | X57: 0 | Y57: 4887.708174 | Z57: ,2012,2013,2014,2015,2016 | AA57: 0 | AB57: 0 | AC57: 1183.295212 | AD57: 0 | AE57: 0
A58: AUG231_46 | C58: Augment 110/33kV TX at T013 Chinchilla | D58: Subtransmission substation | E58: CPMNS00402 | F58: Substation upgrade - capacity | G58: Demand growth | H58: 132/33kV | I58: 1x30MVA (132/110kV) + 2x20MVA (110/33kV) | J58: 1x30MVA (132/110kV) + 1x20MVA (110/33kV) + 1x63MVA (132/33kV) | K58: 20MVA (on 110/33kV) | L58: 20MVA (110/33kV) | M58: 1 | N58: 40 | O58: 1785 | P58: 4 | Q58: 0 | R58: 0 | S58: 0 | T58: 412.1284406 | U58: 0 | V58: 0 | W58: 157.1476652 | X58: 0 | Y58: 2354.276106 | Z58: ,2010,2011,2012,2013,2014,2015,2016 | AA58: 0 | AB58: 0 | AC58: 290.1217098 | AD58: 0 | AE58: 0
A59: AUG231_47 | C59: Establish Avoca 66/11kV Zone Substation Establish a new ZS at Avoca | D59: Zone substation | E59: 50685 | F59: New substation establishment | G59: Demand growth | H59: 66/11kV | I59: 0 | J59: 40 | K59: 0 | L59: 20 | M59: 2 | N59: 40 | O59: 1420 | P59: 13 | Q59: 562.069 | R59: 4.8 | S59: 179 | T59: 860.5978357 | U59: 13291.01481 | V59: 3174.147826 | W59: 860.7273983 | X59: 0 | Y59: 7056.54206 | Z59: ,2012,2013,2014,2015,2016 | AA59: 0 | AB59: 0 | AC59: 3475.45794 | AD59: 0 | AE59: 0
A60: AUG231_48 | Y60: 0
A61: AUG231_49 | Y61: 0
A62: AUG231_50 | Y62: 0
A63: AUG231_51 | Y63: 0
A64: AUG231_52 | Y64: 0
A65: AUG231_53 | E65: Non material projects - [actual]
A66: AUG231_54 | E66: Non material projects - [forecast] | Y66: 61743.36294 | Z66: 2015-2020 | AD66: 0 | AE66: 0
A68: AUG232 | C68: AUG232_1 | D68: AUG232_2 | E68: AUG232_3 | F68: AUG232_4 | G68: AUG232_5 | H68: AUG232_6 | I68: ED_AUG232_00001 | J68: ED_AUG232_00002 | K68: ED_AUG232_00003 | L68: ED_AUG232_00004 | M68: ED_AUG232_00005 | N68: ED_AUG232_00006 | O68: ED_AUG232_00007 | P68: ED_AUG232_00008 | Q68: ED_AUG232_00009 | R68: ED_AUG232_00010 | S68: ED_AUG232_00011 | T68: ED_AUG232_00012 | U68: ED_AUG232_00013 | V68: ED_AUG232_00014 | W68: ED_AUG232_00015 | X68: ED_AUG232_00016 | Y68: ED_AUG232_00017 | Z68: ED_AUG232_00018 | AA68: ED_AUG232_00019 | AB68: ED_AUG232_00020 | AC68: ED_AUG232_00021
C69: TABLE 2.3.2 - AUGEX ASSET DATA - SUBTRANSMISSION LINES
C70: NOTE: DNSP MUST PROVIDE EXPENDITURE INFORMATION ON A PROJECT CLOSE BASIS.
C71: PROJECT DESCRIPTION AND CHANGES | I71: PLANT AND EQUIPMENT EXPENDITURE AND VOLUME | U71: OTHER EXPENDITURE | W71: TOTAL DIRECT EXPENDITURE ($000'S) | X71: YEARS INCURRED | Y71: ALL RELATED PARTY CONTRACTS | AA71: ALL NON RELATED PARTY CONTRACTS | AB71: LAND AND EASEMENTS
C72: LINE ID | D72: PROJECT ID | E72: PROJECT TYPE | F72: PROJECT TRIGGER | G72: VOLTAGE (KV) | H72: ROUTE LINE LENGTH ADDED | I72: POLES/TOWERS (INCLUDING STRUCTURES, AND CIVIL WORKS) | L72: OVERHEAD LINES | O72: UNDERGROUND CABLES | R72: OTHER PLANT ITEM | S72: INSTALLATION (LABOUR) | U72: CIVIL WORKS | V72: OTHER DIRECT | Y72: RELATED PARTY MARGINS | Z72: TOTAL | AB72: LAND PURCHASE | AC72: EASEMENTS
H73: KM ADDED | I73: POLES/TOWERS ADDED | J73: POLES/TOWERS UPGRADED | K73: EXPENDITURE ($000's) | L73: CIRCUIT KM ADDED | M73: CIRCUIT KM UPGRADED | N73: EXPENDITURE ($000's) | O73: CIRCUIT KM ADDED | P73: CIRCUIT KM UPGRADED | Q73: EXPENDITURE ($000's) | R73: EXPENDITURE ($000's) | S73: VOLUME | T73: EXPENDITURE ($000's) | U73: EXPENDITURE ($000's) | Y73: EXPENDITURE ($000's) | AB73: EXPENDITURE ($000's)
A74: AUG232_1 | C74: 82860724 | D74: CPMNN00011 | E74: New line on new route - single circuit | F74: Demand growth | G74: 66 | H74: 0 | I74: 0 | J74: 0 | K74: 0 | L74: 0 | M74: 0 | N74: 0 | O74: 0 | P74: 0 | Q74: 0 | R74: 0 | S74: 0 | T74: 0 | U74: 0 | V74: 0 | W74: =SUM(K74,N74,Q74,R74,T74,U74,V74) -> 0 | X74: 2007-2010 | Y74: 0 | Z74: 0 | AA74: 0 | AB74: 0 | AC74: 0
A75: AUG232_2 | C75: 83842089; 83842085 | D75: CPMNN00320 | E75: New line on new route - dual circuit | F75: Demand growth | G75: 132 | H75: 0 | I75: 0 | J75: 0 | K75: 0 | L75: 0 | M75: 0 | N75: 0 | O75: 0 | P75: 0 | Q75: 0 | R75: 0 | S75: 0 | T75: 0 | U75: 0 | V75: 0 | W75: 0 | X75: 2007-2011 | Y75: 0 | Z75: 0 | AA75: 0 | AB75: 0 | AC75: 0
A76: AUG232_3 | C76: 83009518 | D76: CPMNN00767 | E76: New line on new route - single circuit | F76: Demand growth | G76: 66 | H76: 0 | I76: 0 | J76: 0 | K76: 0 | L76: 0 | M76: 0 | N76: 0 | O76: 0 | P76: 0 | Q76: 0 | R76: 0 | S76: 0 | T76: 0 | U76: 0 | V76: 0 | W76: 0 | X76: 2007-2013 | Y76: 0 | Z76: 0 | AA76: 0 | AB76: 0 | AC76: 0
A77: AUG232_4 | C77: 83860139; 83860136 | D77: CPMNN00955 | E77: New line on new route - dual circuit | F77: Demand growth | G77: 132 | H77: 0 | I77: 0 | J77: 0 | K77: 0 | L77: 0 | M77: 0 | N77: 0 | O77: 0 | P77: 0 | Q77: 0 | R77: 0 | S77: 0 | T77: 0 | U77: 0 | V77: 0 | W77: 0 | X77: 2007-2013 | Y77: 0 | Z77: 0 | AA77: 0 | AB77: 0 | AC77: 0
A78: AUG232_5 | C78: 82913608; 82913611 | D78: CPMNN00980 | E78: New line on new route - dual circuit | F78: Demand growth | G78: 132 | H78: 0 | I78: 0 | J78: 0 | K78: 0 | L78: 0 | M78: 0 | N78: 0 | O78: 0 | P78: 0 | Q78: 0 | R78: 0 | S78: 0 | T78: 0 | U78: 0 | V78: 0 | W78: 0 | X78: 2007-2013 | Y78: 0 | Z78: 0 | AA78: 0 | AB78: 0 | AC78: 0
A79: AUG232_6 | C79: 84186116; 84186121 | D79: CPMNN01307 | E79: New line on new route - dual circuit | F79: Demand growth | G79: 66 | H79: 0 | I79: 0 | J79: 0 | K79: 0 | L79: 0 | M79: 0 | N79: 0 | O79: 0 | P79: 0 | Q79: 0 | R79: 0 | S79: 0 | T79: 0 | U79: 0 | V79: 0 | W79: 0 | X79: 2007-2012 | Y79: 0 | Z79: 0 | AA79: 0 | AB79: 0 | AC79: 0
A80: AUG232_7 | C80: 83860011; 83860008 | D80: CPMNN01470 | E80: New line on new route - single circuit | F80: Demand growth | G80: 132 | H80: 0 | I80: 0 | J80: 0 | K80: 0 | L80: 0 | M80: 0 | N80: 0 | O80: 0 | P80: 0 | Q80: 0 | R80: 0 | S80: 0 | T80: 0 | U80: 0 | V80: 0 | W80: 0 | X80: 2007-2013 | Y80: 0 | Z80: 0 | AA80: 0 | AB80: 0 | AC80: 0
A81: AUG232_8 | W81: 0
A82: AUG232_9 | C82: 82912904 | D82: CPMNN01428 | E82: Line rebuild over existing route - single circuit | F82: Demand growth | G82: Other - specify | H82: 0 | I82: 0 | J82: 0 | K82: 0 | L82: 0 | M82: 0 | N82: 0 | O82: 0 | P82: 0 | Q82: 0 | R82: 0 | S82: 0 | T82: 0 | U82: 0 | V82: 0 | W82: 0 | X82: 2007-2014 | Y82: 0 | Z82: 0 | AA82: 0 | AB82: 0 | AC82: 0
A83: AUG232_10 | W83: 0
A84: AUG232_11 | C84: Line, South Toowoomba Sub to Central Toowoomba Sub, 110kV, South West | D84: 140221 | E84: New line on new route - dual circuit | F84: Demand growth | G84: Other | H84: 12.5 | I84: 12 | J84: 0 | K84: 354.585 | L84: 12.5 | M84: 0 | N84: 1500 | O84: 0 | P84: 0 | Q84: 0 | R84: 3881.300008 | S84: 26147.57796 | T84: 7424.764025 | U84: 821.6396353 | V84: 0 | W84: 13982.28867 | X84: ,2013,2014,2015,2016 | Y84: 0 | Z84: 0 | AA84: 5745.153014 | AB84: 0 | AC84: 0
A85: AUG232_12 | C85: SPD WB AT ISIS T131 OH New to Dallarnil New 37km 132kV SCCP (Energised at 66kV) | D85: 183596; 306794 | E85: New line on new route - dual circuit | F85: Demand growth | G85: 132 | H85: 101 | I85: 655 | J85: 0 | K85: 3399.45 | L85: 101 | M85: 0 | N85: 1658.63 | O85: 2 | P85: 0 | Q85: 900 | R85: 9062.616984 | S85: 48200.04296 | T85: 13999.43527 | U85: 7740.173677 | V85: 0 | W85: 36760.30593 | X85: ,2016,2017,2018,2019 | Y85: 0 | Z85: 0 | AA85: 9450.516379 | AB85: 0 | AC85: 0
A86: AUG232_13 | W86: 0
A87: AUG232_14 | W87: 0
A88: AUG232_15 | W88: 0
A89: AUG232_16 | W89: 0
A90: AUG232_17 | W90: 0
A91: AUG232_18 | W91: 0
A92: AUG232_19 | W92: 0
A93: AUG232_20 | W93: 0
A94: AUG232_21 | W94: 0
A95: AUG232_22 | W95: 0
A96: AUG232_23 | W96: 0
A97: AUG232_24 | W97: 0
A98: AUG232_25 | W98: 0
A99: AUG232_26 | W99: 0
A100: AUG232_27 | W100: 0
A101: AUG232_28 | W101: 0
A102: AUG232_29 | W102: 0
A103: AUG232_30 | W103: 0
A104: AUG232_31 | W104: 0
A105: AUG232_32 | W105: 0
A106: AUG232_33 | W106: =SUM(K106,N106,Q106,R106,T106,U106,V106) -> 0
A107: AUG232_34 | W107: 0
A108: AUG232_35 | W108: 0
A109: AUG232_36 | W109: 0
A110: AUG232_37 | W110: 0
A111: AUG232_38 | W111: 0
A112: AUG232_39 | W112: 0
A113: AUG232_40 | W113: 0
A114: AUG232_41 | W114: 0
A115: AUG232_42 | W115: 0
A116: AUG232_43 | W116: 0
A117: AUG232_44 | W117: 0
A118: AUG232_45 | W118: 0
A119: AUG232_46 | W119: 0
A120: AUG232_47 | W120: 0
A121: AUG232_48 | W121: 0
A122: AUG232_49 | W122: 0
A123: AUG232_50 | W123: 0
A124: AUG232_51 | W124: 0
A125: AUG232_52 | W125: 0
A126: AUG232_53 | W126: 0
A127: AUG232_54 | W127: 0
A128: AUG232_55 | D128: Non material projects - [actual]
A129: AUG232_56 | D129: Non material projects - [forecast] | W129: 23436.79078 | X129: 2015-2020 | AB129: 0 | AC129: 0
C132: TABLE 2.3.3 - AUGEX DATA - HV/LV FEEDERS AND DISTRIBUTION SUBSTATIONS
C133: NOTE: DNSP MUST PROVIDE EXPENDITURE INFORMATION ON AN AS INCURRED BASIS.
C134: Table 2.3.3.1 Descriptor metrics
D137: UNITS ADDED | L137: UNITS UPGRADED
A138: AUG2331 | C138: PROJECT TYPE | D138: =CRCP_y4 -> 2013-14 | E138: =CRCP_y5 -> 2014-15 | F138: =FRCP -> 2015-16 | G138: 2016-17 | H138: 2017-18 | I138: 2018-19 | J138: 2019-20 | L138: =CRCP_y4 -> 2013-14 | M138: =CRCP_y5 -> 2014-15 | N138: =FRCP -> 2015-16 | O138: 2016-17 | P138: 2017-18 | Q138: 2018-19 | R138: 2019-20
A139: ED_AUG2331_00001 | C139: HV Feeder Augmentations - Overhead Lines (Circuit Line Length in KM) | D139: 75 | E139: 11.6 | F139: 8.1 | G139: 2.1 | H139: 2.1 | I139: 2.1 | J139: 2.1 | K139: ED_AUG2333_00001 | L139: 180 | M139: 63 | N139: 44 | O139: 44 | P139: 44 | Q139: 44 | R139: 44
A140: ED_AUG2331_00002 | C140: HV Feeder Augmentations - Underground Cables (Circuit Line Length in KM) | D140: 11 | E140: 2.5 | F140: 2.5 | G140: 2 | H140: 2 | I140: 2 | J140: 2 | K140: ED_AUG2333_00002 | L140: 16 | M140: 0 | N140: 5 | O140: 5 | P140: 4 | Q140: 4 | R140: 4
A141: ED_AUG2331_00003 | C141: LV Feeder Augmentations - Overhead Lines (Circuit Line Length in KM) | D141: 7 | E141: 23.18329169 | F141: 25.33522896 | G141: 24.62987781 | H141: 23.78345643 | I141: 23.17215211 | J141: 21.3427141 | K141: ED_AUG2333_00003 | L141: 22 | M141: 52.60733535 | N141: 57.49049375 | O141: 55.88991671 | P141: 53.96922426 | Q141: 52.5820575 | R141: 48.43071179
A142: ED_AUG2331_00004 | C142: LV Feeder Augmentations - Underground Cables (Circuit Line Length in KM) | D142: 1 | E142: 3.775690965 | F142: 4.502774648 | G142: 4.438853566 | H142: 4.362148268 | I142: 4.306749997 | J142: 4.251351726 | K142: ED_AUG2333_00004 | L142: 1 | M142: 8.487010095 | N142: 10.1213511 | O142: 9.977669089 | P142: 9.805250677 | Q142: 9.680726268 | R142: 9.556201859
A143: ED_AUG2331_00005 | C143: Distribution Substation Augmentations - Pole Mounted | D143: 95 | E143: 67.84128656 | F143: 142.3223057 | G143: 123.9264286 | H143: 125.7902134 | I143: 121.623709 | J143: 120.6241881 | K143: ED_AUG2333_00005 | L143: 171 | M143: 131.0150305 | N143: 274.8527064 | O143: 239.3266054 | P143: 242.9259449 | Q143: 234.8795953 | R143: 232.9493215
A144: ED_AUG2331_00006 | C144: Distribution Substation Augmentations - Ground Mounted | D144: 5 | E144: 3.080168113 | F144: 14.80804335 | G144: 7.849307791 | H144: 10.70632184 | I144: 7.570768364 | J144: 7.131344189 | K144: ED_AUG2333_00006 | L144: 8 | M144: 9.65913954 | N144: 46.43673714 | O144: 24.61474714 | P144: 33.57409491 | Q144: 23.7412717 | R144: 22.36327567
A145: ED_AUG2331_00007 | C145: Distribution Substation Augmentations - Indoor | D145: 0 | E145: 0 | F145: 0 | G145: 0 | H145: 0 | I145: 0 | J145: 0 | K145: ED_AUG2333_00007 | L145: 1 | M145: 2.477676374 | N145: 3.902835502 | O145: 8.82857734 | P145: 6.138887804 | Q145: 7.124262541 | R145: 6.999792028
C147: Table 2.3.3.2 Cost metrics
D150: =CONCATENATE("TOTAL DIRECT EXPENDITURE ($000's, real ", DollarReal,")") -> TOTAL DIRECT EXPENDITURE ($000's, real June 2015)
A151: AUG2332 | C151: PROJECT TYPE | D151: =CRCP_y4 -> 2013-14 | E151: =CRCP_y5 -> 2014-15 | F151: =FRCP -> 2015-16 | G151: 2016-17 | H151: 2017-18 | I151: 2018-19 | J151: 2019-20
A152: ED_AUG2332_00001 | C152: HV Feeder Augmentations - Overhead Lines | E152: 8434.101862 | F152: 29018.50535 | G152: 5566.379692 | H152: 580.2012358 | I152: 0 | J152: 0
A153: ED_AUG2332_00002 | C153: HV Feeder Augmentations - Underground Cables | E153: 743.070546 | F153: 7879.416882 | G153: 10817.89178 | H153: 5509.912171 | I153: 5980.940803 | J153: 5066.518826
A154: ED_AUG2332_00003 | C154: HV Feeder Non-Material Projects | E154: 51755.2523 | F154: 20408.98446 | G154: 30804.1034 | H154: 29115.11537 | I154: 34570.38937 | J154: 33928.30986
A155: ED_AUG2332_00004 | C155: LV Feeder Augmentations - Overhead Lines | E155: 4060.614045 | F155: 4437.531474 | G155: 4313.98738 | H155: 4165.734467 | I155: 4058.662919 | J155: 3738.232078
A156: ED_AUG2332_00005 | C156: LV Feeder Augmentations - Underground Cables | E156: 986.1491253 | F156: 1176.051568 | G156: 1159.35642 | H156: 1139.322243 | I156: 1124.853115 | J156: 1110.383987
A157: ED_AUG2332_00006 | C157: LV Feeder Non-Material Projects | E157: 4318.323095 | F157: 1357.333175 | G157: 1546.851874 | H157: 1781.194663 | I157: 2791.912489 | J157: 2911.117095
A158: ED_AUG2332_00007 | C158: Distribution Substation Augmentations - Pole Mounted | E158: 8020.277479 | F158: 16825.51203 | G158: 14650.72959 | H158: 14871.06844 | I158: 14378.49934 | J158: 14260.33479
A159: ED_AUG2332_00008 | C159: Distribution Substation Augmentations - Ground Mounted | E159: 1284.494563 | F159: 6175.263972 | G159: 3273.325615 | H159: 4464.760262 | I159: 3157.168845 | J159: 2973.919768
A160: ED_AUG2332_00009 | C160: Distribution Substation Augmentations - Indoor | E160: 6880.407323 | F160: 5084.421434 | G160: 6777.625148 | H160: 7279.90918 | I160: 11007.54938 | J160: 10799.19392
C168: TABLE 2.3.4 - AUGEX DATA - TOTAL EXPENDITURE
C169: AUGMENTATION CAPEX | D169: =CONCATENATE("TOTAL DIRECT EXPENDITURE ($000's, real ", DollarReal,")") -> TOTAL DIRECT EXPENDITURE ($000's, real June 2015)
A170: AUG234 | D170: =CRCP_y4 -> 2013-14 | E170: =CRCP_y5 -> 2014-15 | F170: =FRCP -> 2015-16 | G170: 2016-17 | H170: 2017-18 | I170: 2018-19 | J170: 2019-20
A171: ED_AUG234_00001 | C171: Subtransmission Substations, Switching Stations, Zone Substations | E171: 82412.75914 | F171: 46866.95383 | G171: 32039.01705 | H171: 20091.65322 | I171: 23637.61455 | J171: 23023.2307
A172: ED_AUG234_00002 | C172: Subtransmission Lines | E172: 12801.69832 | F172: 3919.037317 | G172: 24670.32375 | H172: 36657.43552 | I172: 4218.945834 | J172: 7107.614028
A173: ED_AUG234_00003 | C173: HV Feeders | E173: 60932.4247 | F173: 57306.90668 | G173: 47188.37487 | H173: 35205.22877 | I173: 40551.33017 | J173: 38994.82869
A174: ED_AUG234_00004 | C174: HV Feeders - Land Purchases and Easements | E174: 0 | F174: 1765.831824 | G174: 727.5184299 | H174: 508.7773175 | I174: 0 | J174: 0
A175: ED_AUG234_00005 | C175: Distribution Substations | E175: 16185.17937 | F175: 28085.19744 | G175: 24701.68036 | H175: 26615.73788 | I175: 28543.21756 | J175: 28033.44848
A176: ED_AUG234_00006 | C176: Distribution Substations - Land Purchases and Easements | E176: 0 | F176: 0 | G176: 0 | H176: 0 | I176: 0 | J176: 0
A177: ED_AUG234_00007 | C177: LV Feeders | E177: 9365.086266 | F177: 6970.916218 | G177: 7020.195675 | H177: 7086.251373 | I177: 7975.428522 | J177: 7759.733159
A178: ED_AUG234_00008 | C178: LV Feeders - Land Purchases and Easements | E178: 0 | F178: 0 | G178: 0 | H178: 0 | I178: 0 | J178: 0
A179: ED_AUG234_00009 | C179: Other Assets | E179: 5522.9712 | F179: 9380.965692 | G179: 10734.46586 | H179: 11536.04491 | I179: 5976.471354 | J179: 5247.857953
A184: PROJECT TYPE FOR TBL 2.3.2
A185: New line on new route - single circuit
A186: New line on new route - dual circuit
A187: New line on new route - other
A188: Line rebuild over existing route - single circuit
A189: Line rebuild over existing route - dual circuit
A190: Reconductor - Single circuit
A191: Reconductor - Dual circuit
A192: Reconductor - Other
A193: Line upgrade - raising/retensoring
A194: Line upgrade - voltage upgrade
A195: Line upgrade - capacity
A196: String spare circuit
A197: Other

Sheet 2.4 Augex model
C1: REGULATORY REPORTING STATEMENT | J1: Worksheet navigation
C2: =TradingName -> Ergon Energy
C3: =RCP_1to5 -> 2015-16 to 2019-20
C4: 2.4 AUGEX MODEL
A6: ED_AUG241 | H6: ED_AUG241_00001 | I6: ED_AUG241_00002 | J6: ED_AUG241_00003 | K6: ED_AUG241_00004 | L6: ED_AUG241_00005 | M6: ED_AUG241_00006 | N6: ED_AUG241_00007 | O6: ED_AUG241_00008 | P6: ED_AUG241_00009 | Q6: ED_AUG241_00010 | R6: ED_AUG241_00011 | S6: ED_AUG241_00012
C7: TABLE 2.4.1 - AUGEX MODEL INPUTS - ASSET STATUS - SUBTRANSMISSION LINES
C9: Line ID | D9: Primary type of area supplied by line | E9: Line voltage | F9: Originating substation | G9: Terminating substation | H9: =CRCP_y4 -> 2013-14 | M9: =PRCP_y5 -> 2009-10 | R9: =CONCATENATE("Average per annum growth rate in annual line maximum demand (50% PoE) from ", CRCP_y4, " to ", FRCP_y5) -> Average per annum growth rate in annual line maximum demand (50% PoE) from 2013-14 to 2019-20 | S9: Network Segment ID
H10: Route line length as at 30 June of year | I10: Maximum demand (weather corrected at 50% PoE) | K10: Line rating | M10: Route line length as at 30 June of year | N10: Maximum demand (weather corrected at 50% PoE) | P10: Line rating
K11: Thermal | L11: N-1 emergency | P11: Thermal | Q11: N-1 emergency
D12: CBD, urban, long rural, or short rural | E12: kV | F12: name | G12: name | H12: km | I12: MVA | J12: MW | K12: MVA | L12: MVA | M12: km | N12: MVA | O12: MW | P12: MVA | Q12: MVA | R12: %
A13: AUG241_1 | D13: Urban | I13: 18.86972392 | J13: 17.03934263 | M13: 81.536 | N13: 18.92259654 | O13: 18.55006575 | S13: 2
A14: AUG241_2 | D14: Urban | I14: 18.01884655 | J14: 16.06631003 | M14: 81.595 | N14: 17.78689398 | O14: 17.33208667 | S14: 2
A15: AUG241_3 | D15: Short rural | I15: 28.56067081 | J15: 18.26073859 | M15: 26.717 | N15: 23.88710271 | O15: 22.28666683 | S15: 2
A16: AUG241_4 | D16: Short rural | I16: 28.66603584 | J16: 18.29438939 | M16: 26.724 | N16: 23.8780174 | O16: 22.27819024 | S16: 2
A17: AUG241_5 | D17: Long rural | I17: 7.157391452 | J17: 6.727947965 | M17: 138.527 | N17: 3.534406666 | O17: 3.297601419 | S17: 1
A18: AUG241_6 | D18: Short rural | I18: 5.228428283 | J18: 4.914722586 | M18: 42.255 | N18: 5.221492143 | O18: 4.871652169 | S18: 1
A19: AUG241_7 | D19: Short rural | I19: 9.041906897 | J19: 8.499392484 | M19: 30.598 | N19: 9.015206891 | O19: 8.411188029 | S19: 1
A20: AUG241_8 | D20: Short rural | I20: 4.011696654 | J20: 4.011307349 | M20: 81.314 | N20: 4.619162107 | O20: 4.541139754 | S20: 1
A21: AUG241_9 | D21: Short rural | I21: 15.3347199 | J21: 14.4146367 | M21: 6.929 | N21: 16.40224811 | O21: 15.30329748 | S21: 2
A22: AUG241_10 | D22: Short rural | I22: 15.33505411 | J22: 14.41495086 | M22: 83.439 | N22: 16.40219627 | O22: 15.30324912 | S22: 2
A23: AUG241_11 | D23: Long rural | I23: 6.746663752 | J23: 6.341863927 | M23: 102.175 | N23: 7.478302484 | O23: 6.977256218 | S23: 2
A24: AUG241_12 | D24: Long rural | I24: 5.869011097 | J24: 5.516870431 | M24: 152.403 | N24: 4.281432183 | O24: 3.994576226 | S24: 1
A25: AUG241_13 | D25: Short rural | I25: 0.167894732 | J25: 0.1578210481 | M25: 14.448 | N25: 0.167391551 | O25: 0.1561763171 | R25: 0.01583657469 | S25: 1
A26: AUG241_14 | D26: Short rural | I26: 53.4141694 | J26: 52.19050164 | M26: 141.644 | N26: 51.43224967 | O26: 48.81922838 | R26: 0.01583657469 | S26: 1
A27: AUG241_15 | D27: Short rural | I27: 68.38315077 | J27: 66.89575862 | M27: 127.929 | N27: 58.2859445 | O27: 57.49648752 | R27: 0.01583657469 | S27: 1
A28: AUG241_16 | D28: Short rural | I28: 18.91055768 | J28: 17.77592422 | M28: 294.266 | N28: 20.04865242 | O28: 18.70539271 | S28: 1
A29: AUG241_17 | D29: Short rural | I29: 0 | J29: 0 | M29: 0.267 | N29: 0 | O29: 0 | R29: 0.01583657469 | S29: 1
A30: AUG241_18 | D30: Short rural | I30: 0 | J30: 0 | M30: 0.262 | N30: 0 | O30: 0 | R30: 0.01583657469 | S30: 1
A31: AUG241_19 | D31: Short rural | I31: 12.22458933 | J31: 9.311082054 | M31: 23.408 | N31: 12.19660965 | O31: 12.19249778 | R31: 0.01583657469 | S31: 1
A32: AUG241_20 | D32: Short rural | I32: 14.40680971 | J32: 13.54240113 | M32: 23.248 | N32: 16.94301917 | O32: 15.80783689 | S32: 2
A33: AUG241_21 | D33: Short rural | I33: 20.12922826 | J33: 18.92147456 | M33: 6.308 | N33: 20.0689009 | O33: 18.72428454 | S33: 2
A34: AUG241_22 | D34: Urban | I34: 11.221645 | J34: 10.50130233 | K34: 38.06701265 | M34: 4.17 | N34: 11.30998899 | O34: 10.55221973 | P34: 38.06701265 | S34: 2
A35: AUG241_23 | D35: Short rural | I35: 22.97948583 | J35: 22.61484616 | M35: 7.581 | N35: 21.51069903 | O35: 21.48399863 | S35: 2
A36: AUG241_24 | D36: Short rural | I36: 19.6496124 | J36: 18.69000141 | M36: 19.554 | N36: 18.16371305 | O36: 16.30041294 | S36: 2
A37: AUG241_25 | D37: Short rural | I37: 48.22339788 | J37: 45.32999401 | M37: 6.05 | N37: 52.27867452 | O37: 48.77600333 | R37: 0.01583657469 | S37: 1
A38: AUG241_26 | D38: Short rural | I38: 6.229193185 | J38: 6.08009404 | M38: 38.268 | N38: 7.75069947 | O38: 7.310769082 | S38: 1
A39: AUG241_27 | D39: Urban | I39: 6.308053705 | J39: 6.294540205 | M39: 3.402 | N39: 5.698631794 | O39: 5.316823463 | S39: 2
A40: AUG241_28 | D40: Urban | I40: 4.627121522 | J40: 4.618156512 | M40: 1.304 | N40: 5.698631794 | O40: 5.316823463 | S40: 1
A41: AUG241_29 | D41: Urban | I41: 37.16263723 | J41: 34.932879 | M41: 9.148 | N41: 37.16634257 | O41: 34.77370384 | S41: 2
A42: AUG241_30 | D42: Long rural | I42: 3.432000594 | J42: 3.261258 | M42: 12.373 | N42: 3.74363274 | O42: 3.516752449 | S42: 1
A43: AUG241_31 | D43: Long rural | I43: 9.136390936 | J43: 8.588207479 | M43: 127.299 | N43: 13.73843096 | O43: 12.81795609 | S43: 1
A44: AUG241_32 | D44: Short rural | I44: 12.54256324 | J44: 11.49812629 | M44: 33.983 | N44: 12.59323181 | O44: 11.02861829 | S44: 1
A45: AUG241_33 | D45: Short rural | I45: 8.28128473 | J45: 5.734789119 | M45: 146.513 | N45: 7.236756271 | O45: 5.091516774 | S45: 2
A46: AUG241_34 | D46: Short rural | I46: 7.956058951 | J46: 5.984516624 | M46: 150.996 | N46: 7.777036826 | O46: 7.032506897 | S46: 2
A47: AUG241_35 | D47: Long rural | I47: 8.66053274 | J47: 8.140900776 | M47: 101.633 | N47: 7.831544779 | O47: 7.306831279 | S47: 2
A48: AUG241_36 | D48: Long rural | I48: 14.91540637 | J48: 14.02048198 | M48: 6.348 | N48: 18.03524589 | O48: 16.33973258 | S48: 1
A49: AUG241_37 | D49: Urban | I49: 28.92276692 | J49: 26.70027907 | M49: 5.834 | N49: 29.62752074 | O49: 26.9901498 | S49: 2
A50: AUG241_38 | D50: Urban | I50: 26.29294246 | J50: 24.78549902 | M50: 5.894 | N50: 32.64535774 | O50: 29.52772074 | S50: 2
A51: AUG241_39 | D51: Long rural | I51: 2.209533254 | J51: 2.076961258 | K51: 8.573651497 | M51: 109.979 | N51: 2.334956714 | O51: 1.651891622 | P51: 8.573651497 | S51: 2
A52: AUG241_40 | D52: Short rural | I52: 14.65642401 | J52: 13.0988856 | M52: 41.202 | N52: 15.00571748 | O52: 12.71322279 | S52: 1
A53: AUG241_41 | D53: Short rural | I53: 32.14337103 | J53: 31.76920426 | M53: 8.401 | N53: 34.71427996 | O53: 34.25521555 | S53: 1
A54: AUG241_42 | D54: Urban | I54: 26.21160534 | J54: 24.63890902 | K54: 29.3790458 | M54: 3.18 | N54: 27.08176309 | O54: 25.26728496 | P54: 29.3790458 | S54: 2
A55: AUG241_43 | D55: Urban | I55: 9.326770578 | J55: 8.640589966 | K55: 29.3790458 | M55: 6.9 | N55: 13.95280617 | O55: 13.01796816 | P55: 29.3790458 | S55: 2
A56: AUG241_44 | D56: Urban | I56: 18.7598935 | J56: 17.63429989 | K56: 35.43775952 | M56: 8.166 | N56: 22.22834289 | O56: 20.73904392 | P56: 35.43775952 | S56: 2
A57: AUG241_45 | D57: Short rural | I57: 5.893870893 | J57: 4.793493783 | K57: 20.46244824 | M57: 40.044 | N57: 4.613221863 | O57: 3.384460434 | P57: 20.46244824 | S57: 2
A58: AUG241_46 | D58: Short rural | I58: 12.44021001 | J58: 10.95412287 | M58: 5.449 | N58: 18.31434158 | O58: 17.08728069 | S58: 2
A59: AUG241_47 | D59: Short rural | I59: 6.13635239 | J59: 5.768171247 | M59: 112.363 | N59: 4.846787 | O59: 4.82927327 | S59: 2
A60: AUG241_48 | D60: Short rural | I60: 4.133787861 | J60: 3.559901316 | M60: 214.211 | N60: 3.401428627 | O60: 3.173532909 | S60: 1
A61: AUG241_49 | D61: Long rural | I61: 1.218675971 | J61: 1.145555413 | K61: 20.46244824 | M61: 187.437 | N61: 1.483127394 | O61: 1.383757858 | P61: 20.46244824 | S61: 1
A62: AUG241_50 | D62: Short rural | I62: 3.397508128 | J62: 2.953270388 | K62: 21.26265571 | M62: 21.673 | N62: 2.947660979 | O62: 1.883838786 | P62: 21.26265571 | S62: 2
A63: AUG241_51 | D63: Short rural | I63: 12.15682828 | J63: 11.42741858 | M63: 7.398 | N63: 9.803015811 | O63: 8.505622633 | S63: 2
A64: AUG241_52 | D64: Short rural | I64: 4.026087006 | J64: 3.276558197 | K64: 19.31929471 | M64: 5.395 | N64: 4.112970465 | O64: 2.630612265 | P64: 19.31929471 | S64: 2
A65: AUG241_53 | D65: Short rural | I65: 5.241652432 | J65: 3.988827861 | M65: 12.87 | N65: 5.244269251 | O65: 4.269653541 | S65: 2
A66: AUG241_54 | D66: Short rural | I66: 10.58917137 | J66: 9.953821084 | K66: 21.26265571 | M66: 9.018 | N66: 13.62537728 | O66: 12.712477 | P66: 21.26265571 | S66: 2
A67: AUG241_55 | D67: Urban | I67: 14.80375381 | J67: 14.36959841 | K67: 29.3790458 | M67: 1.742 | N67: 16.23898526 | O67: 15.47065196 | P67: 29.3790458 | S67: 2
A68: AUG241_56 | D68: Urban | I68: 13.41793285 | J68: 12.21612384 | K68: 29.3790458 | M68: 1.621 | N68: 13.41189881 | O68: 12.87591434 | P68: 29.3790458 | S68: 2
A69: AUG241_57 | D69: Long rural | I69: 10.86419416 | J69: 10.21234251 | M69: 97.525 | N69: 10.82516955 | O69: 10.09988319 | S69: 2
A70: AUG241_58 | D70: Urban | I70: 14.45978616 | J70: 14.4143521 | K70: 16.34709552 | M70: 59.865 | N70: 14.2682715 | O70: 13.93693161 | P70: 16.34709552 | S70: 2
A71: AUG241_59 | D71: Urban | I71: 15.45812334 | J71: 14.53063594 | M71: 3.329 | N71: 16.62784953 | O71: 15.85586242 | S71: 2
A72: AUG241_60 | D72: Urban | I72: 3.00725425 | J72: 2.529790202 | M72: 147.443 | N72: 2.824563673 | O72: 2.766862168 | S72: 1
A73: AUG241_61 | D73: Short rural | I73: 4.792536772 | J73: 4.477262829 | K73: 8.573651497 | M73: 60.311 | N73: 4.77138196 | O73: 4.309847894 | P73: 8.573651497 | S73: 2
A74: AUG241_62 | D74: Short rural | I74: 9.337003457 | J74: 8.77678325 | M74: 23.697 | N74: 9.224894098 | O74: 8.606826193 | R74: -0.01871803548 | S74: 2
A75: AUG241_63 | D75: Urban | I75: 21.12293386 | J75: 19.85555783 | K75: 77.62012489 | M75: 8.76 | N75: 21.17673743 | O75: 19.75789602 | P75: 77.62012489 | S75: 2
A76: AUG241_64 | D76: Urban | I76: 6.239355192 | J76: 3.846951018 | K76: 29.83630721 | M76: 14.191 | N76: 6.917662827 | O76: 5.060897959 | P76: 29.83630721 | S76: 1
A77: AUG241_65 | D77: Short rural | I77: 48.17764905 | J77: 45.28699011 | M77: 1.029 | N77: 48.70047027 | O77: 45.43753877 | S77: 2
A78: AUG241_66 | D78: Short rural | I78: 47.80478828 | J78: 44.93650098 | M78: 1.028 | N78: 47.43160294 | O78: 44.25368554 | S78: 2
A79: AUG241_67 | D79: Short rural | I79: 8.284073649 | J79: 7.789302517 | K79: 8.573651497 | M79: 34.98 | N79: 8.41906465 | O79: 6.843953607 | P79: 8.573651497 | S79: 2
A80: AUG241_68 | D80: Urban | I80: 8.335678914 | J80: 7.835538179 | M80: 3.2 | N80: 12.39062124 | O80: 11.26316486 | S80: 2
A81: AUG241_69 | D81: Long rural | I81: 6.729052408 | J81: 6.325309264 | K81: 8.573651497 | M81: 90.258 | N81: 6.55425828 | O81: 6.115122975 | P81: 8.573651497 | S81: 1
A82: AUG241_70 | D82: Short rural | I82: 7.337430198 | J82: 6.897184386 | K82: 33.83734458 | M82: 27.819 | N82: 7.608153103 | O82: 7.098406845 | P82: 33.83734458 | S82: 1
A83: AUG241_71 | D83: Short rural | I83: 7.290142723 | J83: 6.85273416 | M83: 32.028 | N83: 7.264941 | O83: 6.778189953 | S83: 1
A84: AUG241_72 | D84: Short rural | I84: 7.939712542 | J84: 7.066094191 | M84: 39.774 | N84: 6.194320419 | O84: 4.572213225 | S84: 1
A85: AUG241_73 | D85: Short rural | I85: 0.2884561673 | J85: 0.2756844056 | M85: 47.902 | N85: 0.4213046888 | O85: 0.3347631225 | S85: 1
A86: AUG241_74 | D86: Short rural | I86: 2.770920252 | J86: 2.604665037 | M86: 34.541 | N86: 2.745261414 | O86: 2.561328899 | S86: 2
A87: AUG241_75 | D87: Short rural | I87: 11.90510317 | J87: 11.19550463 | M87: 6.711 | N87: 12.11829167 | O87: 11.30636613 | S87: 1
A88: AUG241_76 | D88: Short rural | I88: 32.01386665 | J88: 30.09303465 | M88: 0.12 | N88: 37.73584581 | O88: 35.20754414 | R88: 0.01583657469 | S88: 1
A89: AUG241_77 | D89: Urban | I89: 4.210906896 | J89: 4.210806698 | M89: 38.473 | N89: 4.228142979 | O89: 4.227927103 | R89: 0.01583657469 | S89: 1
A90: AUG241_78 | D90: Short rural | I90: 11.40443797 | J90: 10.72017169 | M90: 61.953 | N90: 13.40221022 | O90: 12.50426214 | S90: 2
A91: AUG241_79 | D91: Short rural | I91: 1.168207079 | J91: 1.098114654 | M91: 98.438 | N91: 0.01506980038 | O91: 0.01406012376 | S91: 2
A92: AUG241_80 | D92: Short rural | I92: 9.694993902 | J92: 9.113294268 | M92: 67.556 | N92: 11.60239151 | O92: 10.82503128 | S92: 2
A93: AUG241_81 | D93: Short rural | I93: 2.465823468 | J93: 2.317874059 | M93: 0.178 | N93: 3.231144877 | O93: 3.01465817 | S93: 1
A94: AUG241_82 | D94: Short rural | I94: 3.437033698 | J94: 3.230811676 | M94: 0.158 | N94: 3.43238149 | O94: 3.20241193 | S94: 1
A95: AUG241_83 | D95: Short rural | I95: 5.928601133 | J95: 5.572885065 | K95: 18.80487562 | M95: 42.541 | N95: 6.172091692 | O95: 5.758561549 | P95: 18.80487562 | S95: 1
A96: AUG241_84 | D96: Short rural | I96: 5.455434453 | J96: 5.128108386 | K96: 19.89087147 | M96: 12.577 | N96: 4.241744346 | O96: 3.957547475 | P96: 19.89087147 | S96: 1
A97: AUG241_85 | D97: Short rural | I97: 24.9814956 | J97: 24.19035955 | K97: 19.89087147 | M97: 13.854 | N97: 24.77804967 | O97: 24.04162118 | P97: 19.89087147 | S97: 2
A98: AUG241_86 | D98: Short rural | I98: 0.5961525638 | J98: 0.5643637878 | K98: 4.972717869 | M98: 77.908 | N98: 0.59381 | O98: 0.544235885 | P98: 4.972717869 | S98: 1
A99: AUG241_87 | D99: Short rural | I99: 14.08026444 | J99: 12.89832587 | K99: 19.89087147 | M99: 4.917 | N99: 0 | O99: 0 | P99: 19.89087147 | R99: 0.01583657469 | S99: 1
A100: AUG241_88 | D100: Short rural | I100: 26.37808611 | J100: 25.46125613 | K100: 56.75757291 | M100: 2.33 | N100: 25.5016367 | O100: 24.56351475 | P100: 56.75757291 | R100: 0.01583657469 | S100: 1
A101: AUG241_89 | D101: Short rural | I101: 15.74200362 | J101: 14.7974834 | M101: 9.718 | N101: 21.64842498 | O101: 20.1979805 | S101: 2
A102: AUG241_90 | D102: Short rural | I102: 10.64383437 | J102: 10.00520431 | M102: 4.116 | N102: 10.67273675 | O102: 9.957663388 | S102: 2
A103: AUG241_91 | D103: Short rural | I103: 22.68715277 | J103: 20.35210326 | M103: 5.236 | N103: 21.34549299 | O103: 19.91534496 | S103: 1
A104: AUG241_92 | D104: Short rural | I104: 8.306630363 | J104: 8.034265008 | M104: 15.984 | N104: 8.281755834 | O104: 7.726878193 | S104: 1
A105: AUG241_93 | D105: Urban | I105: 26.65664564 | J105: 25.10007696 | K105: 29.89346489 | M105: 0.298 | N105: 42.26036068 | O105: 39.01244765 | P105: 29.89346489 | S105: 2
A106: AUG241_94 | D106: Short rural | I106: 6.997111215 | J106: 6.577284542 | M106: 20.224 | N106: 6.974692582 | O106: 6.507388179 | S106: 2
A107: AUG241_95 | D107: Urban | I107: 9.342660476 | J107: 8.361869141 | K107: 20.11950218 | M107: 4.798 | N107: 9.340279979 | O107: 8.71448122 | P107: 20.11950218 | S107: 1
A108: AUG241_96 | D108: Short rural | I108: 4.904438602 | J108: 4.610172285 | K108: 16.06130714 | M108: 10.909 | N108: 5.074006987 | O108: 4.734048519 | P108: 16.06130714 | S108: 1
A109: AUG241_97 | D109: Short rural | I109: 0 | J109: 0 | M109: 6.55 | N109: 0 | O109: 0 | S109: 2
A110: AUG241_98 | D110: Urban | I110: 12.4279546 | J110: 11.68227733 | M110: 0.343 | N110: 12.48187587 | O110: 11.64559019 | S110: 2
A111: AUG241_99 | D111: Short rural | I111: 22.20529639 | J111: 20.87297861 | K111: 30.86514539 | M111: 3.961 | N111: 22.68284418 | O111: 21.16309362 | P111: 30.86514539 | S111: 2
A112: AUG241_100 | D112: Short rural | I112: 2.318309157 | J112: 2.179210608 | M112: 11.44 | N112: 2.422143807 | O112: 2.259860172 | S112: 2
A113: AUG241_101 | D113: Urban | I113: 28.58524223 | J113: 26.8701277 | M113: 4.394 | N113: 28.56438955 | O113: 26.65057545 | S113: 2
A114: AUG241_102 | D114: Short rural | I114: 22.78334457 | J114: 22.74765853 | M114: 19.068 | N114: 13.85583246 | O114: 12.92749168 | S114: 1
A115: AUG241_103 | D115: Short rural | I115: 12.4806205 | J115: 12.45054846 | M115: 3.34 | N115: 13.85583246 | O115: 12.92749168 | S115: 2
A116: AUG241_104 | D116: Long rural | I116: 38.34503329 | J116: 38.2661889 | M116: 91.622 | N116: 39.13402758 | O116: 36.51204774 | S116: 1
A117: AUG241_105 | D117: Long rural | I117: 21.79316788 | J117: 18.65219606 | M117: 260.141 | N117: 22.69413086 | O117: 21.17362409 | R117: 0.01583657469 | S117: 1
A118: AUG241_106 | D118: Long rural | I118: 21.14574571 | J118: 19.87700097 | M118: 103.983 | N118: 20.86160723 | O118: 19.46387955 | R118: 0.01583657469 | S118: 1
A119: AUG241_107 | D119: Short rural | I119: 0 | J119: 0 | M119: 5.054 | N119: 0 | O119: 0 | R119: 0.01583657469 | S119: 1
A120: AUG241_108 | D120: Short rural | I120: 20.7716552 | J120: 20.4204 | M120: 9.584 | N120: 24.53862908 | O120: 24.0204819 | S120: 2
A121: AUG241_109 | D121: Short rural | I121: 21.07966212 | J121: 19.81488239 | M121: 0.09 | N121: 6.425364216 | O121: 5.994864814 | S121: 1
A122: AUG241_110 | D122: Urban | I122: 12.90164364 | J122: 9.6096 | M122: 3.008 | N122: 12.84749668 | O122: 8.096681412 | S122: 2
A123: AUG241_111 | D123: Urban | I123: 12.43816206 | J123: 11.69187234 | M123: 3.122 | N123: 12.83880121 | O123: 11.97860153 | S123: 1
A124: AUG241_112 | D124: Urban | I124: 25.9484049 | J124: 24.73650672 | M124: 5.663 | N124: 30.21214213 | O124: 28.71697049 | S124: 2
A125: AUG241_113 | D125: Short rural | I125: 5.416585002 | J125: 5.38538 | M125: 72.195 | N125: 5.307851792 | O125: 5.217544 | R125: 0.01583657469 | S125: 1
A126: AUG241_114 | D126: Short rural | I126: 4.963959026 | J126: 4.666121485 | M126: 24.851 | N126: 6.061622479 | O126: 5.24948 | R126: 0.01583657469 | S126: 1
A127: AUG241_115 | D127: Short rural | I127: 13.8150939 | J127: 12.98618826 | M127: 16.67 | N127: 13.77348864 | O127: 11.93608 | R127: 0.01583657469 | S127: 1
A128: AUG241_116 | D128: Short rural | I128: 14.21916199 | J128: 14.09408 | M128: 71.109 | N128: 16.0542836 | O128: 14.9786466 | S128: 1
A129: AUG241_117 | D129: Short rural | I129: 9.6607859 | J129: 8.6086 | M129: 18.637 | N129: 9.631832496 | O129: 8.986499719 | S129: 1
A130: AUG241_118 | D130: Short rural | I130: 17.90643347 | J130: 17.6176 | M130: 16.222 | N130: 17.67800868 | O130: 16.93127272 | R130: 0.01583657469 | S130: 1
A131: AUG241_119 | D131: Short rural | I131: 13.93846751 | J131: 13.59533273 | M131: 45.231 | N131: 13.91563152 | O131: 13.89187541 | R131: 0.01583657469 | S131: 1
A132: AUG241_120 | D132: Short rural | I132: 42.60686899 | J132: 40.4404 | M132: 6.355 | N132: 38.5003411 | O132: 38.45129876 | R132: 0.01583657469 | S132: 1
A133: AUG241_121 | D133: Short rural | I133: 33.46134198 | J133: 32.65160531 | M133: 0.662 | N133: 31.79027056 | O133: 31.78069989 | R133: 0.01583657469 | S133: 1
A134: AUG241_122 | D134: Urban | I134: 32.63112783 | J134: 30.67326016 | M134: 4.239 | N134: 31.83560744 | O134: 29.70262174 | S134: 2
A135: AUG241_123 | D135: Short rural | I135: 21.46235889 | J135: 20.20374411 | M135: 24.122 | N135: 21.13890504 | O135: 19.95810536 | S135: 2
A136: AUG241_124 | D136: Short rural | I136: 11.46465046 | J136: 10.82179438 | M136: 17.067 | N136: 7.754474535 | O136: 7.234924741 | R136: 0.01583657469 | S136: 1
A137: AUG241_125 | D137: Short rural | I137: 25.96824113 | J137: 15.96521294 | M137: 5.253 | N137: 20.67405925 | O137: 15.49857745 | S137: 2
A138: AUG241_126 | D138: Short rural | I138: 4.249813439 | J138: 4.142925896 | M138: 13.098 | N138: 4.167639229 | O138: 3.8884074 | S138: 1
A139: AUG241_127 | D139: Short rural | I139: 11.76319383 | J139: 9.92992 | M139: 60.551 | N139: 9.842583977 | O139: 8.615250594 | S139: 1
A140: AUG241_128 | D140: Short rural | I140: 21.59080556 | J140: 21.50148 | M140: 0.122 | N140: 19.90813309 | O140: 18.57428818 | R140: 0.01583657469 | S140: 1
A141: AUG241_129 | D141: Long rural | I141: 4.932232481 | J141: 4.636298532 | M141: 22.504 | N141: 4.995804286 | O141: 4.661085399 | S141: 2
A142: AUG241_130 | D142: Short rural | I142: 3.503196719 | J142: 3.293004915 | M142: 63.523 | N142: 3.510938173 | O142: 3.275705315 | R142: 0.01583657469 | S142: 1
A143: AUG241_131 | D143: Short rural | I143: 5.753776837 | J143: 5.200161764 | M143: 66.001 | N143: 5.669443565 | O143: 5.541926162 | S143: 2
A144: AUG241_132 | D144: Short rural | I144: 6.812530823 | J144: 6.430505136 | M144: 9.613 | N144: 7.911066082 | O144: 7.365739975 | R144: 0.01583657469 | S144: 1
A145: AUG241_133 | D145: Short rural | I145: 10.51590677 | J145: 10.16310803 | M145: 5.67 | N145: 10.42449107 | O145: 9.876876582 | R145: 0.01583657469 | S145: 1
A146: AUG241_134 | D146: Short rural | I146: 5.194022818 | J146: 4.882381449 | M146: 6.348 | N146: 11.6167736 | O146: 10.83844977 | S146: 2
A147: AUG241_135 | D147: Short rural | I147: 1.866427551 | J147: 1.438336924 | M147: 61.63 | N147: 1.896937536 | O147: 1.496970031 | R147: 0.01583657469 | S147: 1
A148: AUG241_136 | D148: Short rural | I148: 7.831281466 | J148: 7.826320455 | M148: 5.888 | N148: 7.849166514 | O148: 7.323272358 | S148: 2
A149: AUG241_137 | D149: Short rural | I149: 17.77779332 | J149: 16.71112572 | M149: 27.849 | N149: 17.84886775 | O149: 16.65299361 | S149: 1
A150: AUG241_138 | D150: Short rural | I150: 3.789677004 | J150: 3.675033423 | M150: 57.935 | N150: 4.070614262 | O150: 3.797883107 | R150: 0.01583657469 | S150: 1
A151: AUG241_139 | D151: Short rural | I151: 30.26452335 | J151: 30.07639791 | M151: 6.056 | N151: 30.32767347 | O151: 28.29571934 | S151: 1
A152: AUG241_140 | D152: Short rural | I152: 15.29357713 | J152: 14.3759625 | M152: 3.739 | N152: 15.25239696 | O152: 14.23048637 | R152: 0.01583657469 | S152: 1
A153: AUG241_141 | D153: Long rural | I153: 3.426620219 | J153: 3.221023005 | M153: 57.169 | N153: 6.375166058 | O153: 5.948029933 | S153: 1
A154: AUG241_142 | D154: Short rural | I154: 5.966779667 | J154: 4.295110644 | M154: 13.581 | N154: 5.68471472 | O154: 4.000483 | R154: 0.01583657469 | S154: 1
A155: AUG241_143 | D155: Long rural | I155: 10.42309725 | J155: 10.17016 | M155: 8.281 | N155: 9.49053168 | O155: 8.97032223 | S155: 2
A156: AUG241_144 | D156: Short rural | I156: 8.801459659 | J156: 7.73137844 | M156: 45.407 | N156: 8.836934268 | O156: 7.705654974 | R156: 0.01583657469 | S156: 1
A157: AUG241_145 | D157: Long rural | I157: 21.58643596 | J157: 20.29124981 | M157: 68.726 | N157: 21.50439136 | O157: 20.06359713 | S157: 1
A158: AUG241_146 | D158: Short rural | I158: 16.70554432 | J158: 13.25859105 | M158: 0.136 | N158: 16.60729892 | O158: 14.28447341 | R158: 0.01583657469 | S158: 1
A159: AUG241_147 | D159: Short rural | I159: 16.322567 | J159: 15.34321298 | K159: 33.60871387 | M159: 32.006 | N159: 16.52940814 | O159: 15.93876562 | P159: 33.60871387 | S159: 2
A160: AUG241_148 | D160: Long rural | I160: 9.411201604 | J160: 9.151681602 | K160: 38.29564336 | M160: 111.494 | N160: 9.390625447 | O160: 9.010862082 | P160: 38.29564336 | S160: 1
A161: AUG241_149 | D161: Short rural | I161: 4.330664229 | J161: 4.24424 | M161: 108.482 | N161: 3.917564209 | O161: 3.730480143 | R161: 0.01583657469 | S161: 1
A162: AUG241_150 | D162: Short rural | I162: 15.25860273 | J162: 14.4144 | M162: 1.829 | N162: 25.66339847 | O162: 24.35327397 | S162: 2
A163: AUG241_151 | D163: Short rural | I163: 20.29834447 | J163: 18.8188 | M163: 0.082 | N163: 33.68845681 | O163: 31.23410192 | R163: 0.01583657469 | S163: 1
A164: AUG241_152 | D164: Long rural | I164: 4.992371173 | J164: 4.56456 | M164: 49.281 | N164: 5.295887975 | O164: 4.781283504 | S164: 2
A165: AUG241_153 | D165: Urban | I165: 17.25740227 | J165: 16.15614 | M165: 7.689 | N165: 18.87239246 | O165: 16.87990496 | S165: 2
A166: AUG241_154 | D166: Short rural | I166: 20.18979071 | J166: 20.08006 | M166: 13.143 | N166: 20.73795075 | O166: 18.28801279 | S166: 2
A167: AUG241_155 | D167: Urban | I167: 13.30566346 | J167: 12.50732366 | M167: 7.54 | N167: 19.07708382 | O167: 17.79891921 | S167: 2
A168: AUG241_156 | D168: Urban | I168: 14.77680208 | J168: 13.56202699 | M168: 0.342 | N168: 14.79639868 | O168: 13.43171945 | R168: 0.01583657469 | S168: 1
A169: AUG241_157 | D169: Short rural | I169: 17.19040761 | J169: 15.4154 | K169: 26.97842338 | M169: 5.933 | N169: 26.33964483 | O169: 21.093728 | P169: 26.97842338 | R169: 0.01583657469 | S169: 1
A170: AUG241_158 | D170: Short rural | I170: 28.20708516 | J170: 28.19467628 | M170: 2.171 | N170: 27.45267407 | O170: 23.99907948 | R170: 0.01583657469 | S170: 1
A171: AUG241_159 | D171: Short rural | I171: 11.42791357 | J171: 9.400981434 | M171: 3.374 | N171: 11.35961497 | O171: 10.59852077 | R171: 0.01583657469 | S171: 1
A172: AUG241_160 | D172: Short rural | I172: 36.78190532 | J172: 34.574991 | M172: 3.207 | N172: 36.55840573 | O172: 34.10899255 | R172: 0.01583657469 | S172: 1
A173: AUG241_161 | D173: Urban | I173: 8.793011767 | J173: 8.786818079 | K173: 38.63858942 | M173: 16.498 | N173: 8.38692983 | O173: 8.279587328 | P173: 38.63858942 | R173: 0.01583657469 | S173: 1
A174: AUG241_162 | D174: Short rural | I174: 10.3964036 | J174: 8.558699563 | M174: 11.353 | N174: 5.30666423 | O174: 4.204234836 | R174: 0.01583657469 | S174: 1
A175: AUG241_163 | D175: Urban | I175: 99.77603573 | J175: 93.78947359 | M175: 51.761 | N175: 99.17830838 | O175: 92.53336171 | R175: 0.01583657469 | S175: 1
A176: AUG241_164 | D176: Short rural | I176: 9.627210366 | J176: 9.049577744 | M176: 57.633 | N176: 9.345394801 | O176: 8.719253349 | R176: 0.01583657469 | S176: 1
A177: AUG241_165 | D177: Short rural | I177: 1.311364003 | J177: 1.232682163 | M177: 61.538 | N177: 1.307659469 | O177: 1.220046285 | R177: 0.01583657469 | S177: 1
A178: AUG241_166 | D178: Short rural | I178: 13.00973404 | J178: 12.22915 | M178: 8.841 | N178: 13.22629615 | O178: 12.34013431 | R178: 0.01583657469 | S178: 1
A179: AUG241_167 | D179: Short rural | I179: 22.13415306 | J179: 19.34366614 | M179: 39.962 | N179: 29.18877694 | O179: 27.88845311 | R179: 0.01583657469 | S179: 1
A180: AUG241_168 | D180: Short rural | I180: 22.28149361 | J180: 19.41215644 | M180: 40.069 | N180: 32.74932322 | O180: 31.73650721 | R180: 0.01583657469 | S180: 1
A181: AUG241_169 | D181: Short rural | I181: 31.65163955 | J181: 29.75254118 | M181: 19.802 | N181: 22.88731138 | O181: 19.1886649 | R181: 0.01583657469 | S181: 1
A182: AUG241_170 | D182: Short rural | I182: 19.29656635 | J182: 18.13877237 | M182: 19.804 | N182: 48.69199507 | O182: 45.4296314 | R182: 0.01583657469 | S182: 1
A183: AUG241_171 | D183: Short rural | I183: 1.548690087 | J183: 1.383439064 | K183: 56.70041524 | M183: 29.468 | N183: 5.784911873 | O183: 5.397322778 | P183: 56.70041524 | R183: 0.01583657469 | S183: 1
A184: AUG241_172 | D184: Urban | I184: 127.9727042 | J184: 120.294342 | M184: 51.683 | N184: 94.81430387 | O184: 88.46174552 | R184: 0.01583657469 | S184: 1
A185: AUG241_173 | D185: Short rural | I185: 19.541522 | J185: 19.5384799 | M185: 1.515 | N185: 19.42681655 | O185: 17.64547816 | R185: 0.01583657469 | S185: 1
A186: AUG241_174 | D186: Short rural | I186: 2.949247326 | J186: 2.760878237 | M186: 57.486 | N186: 2.939056153 | O186: 2.684480387 | R186: 0.01583657469 | S186: 1
A187: AUG241_175 | D187: Urban | I187: 29.91855859 | J187: 28.12344508 | M187: 2.713 | N187: 29.74909936 | O187: 27.75590971 | R187: 0.01583657469 | S187: 1
A188: AUG241_176 | D188: Long rural | I188: 21.98460131 | J188: 20.66552523 | M188: 30.193 | N188: 22.91377592 | O188: 21.37855294 | R188: 0.01583657469 | S188: 1
A189: AUG241_177 | D189: Long rural | I189: 21.80182106 | J189: 20.49371179 | M189: 29.891 | N189: 20.7207177 | O189: 19.33242962 | R189: 0.01583657469 | S189: 1
A190: AUG241_178 | D190: Short rural | I190: 11.20458108 | J190: 10.98989982 | M190: 43.095 | N190: 11.46899066 | O190: 10.25389252 | R190: 0.01583657469 | S190: 1
A191: AUG241_179 | D191: Short rural | I191: 2.083014039 | J191: 2.045772733 | M191: 72.304 | N191: 1.930347346 | O191: 1.801014074 | R191: 0.01583657469 | S191: 1
A192: AUG241_180 | D192: Short rural | I192: 6.954618569 | J192: 6.254842833 | M192: 71.287 | N192: 6.923584066 | O192: 6.197642862 | R192: 0.01583657469 | S192: 1
A193: AUG241_181 | D193: Short rural | I193: 8.651778878 | J193: 8.022947061 | M193: 1.416 | N193: 9.107330867 | O193: 8.309923994 | R193: 0.01583657469 | S193: 1
A194: AUG241_182 | D194: Short rural | I194: 8.561164917 | J194: 8.186734708 | M194: 40.899 | N194: 6.808814066 | O194: 5.988646653 | R194: 0.01583657469 | S194: 1
A195: AUG241_183 | D195: Long rural | I195: 8.937108845 | J195: 8.20325463 | M195: 17.959 | N195: 9.038946426 | O195: 8.045676205 | S195: 1
A196: AUG241_184 | D196: Long rural | I196: 7.301282758 | J196: 6.722904176 | M196: 15.033 | N196: 3.077568612 | O196: 2.365653255 | R196: 0.01583657469 | S196: 1
A197: AUG241_185 | D197: Short rural | I197: 27.02515636 | J197: 24.7297441 | M197: 4.768 | N197: 27.04907469 | O197: 24.30233698 | R197: 0.01583657469 | S197: 1
A198: AUG241_186 | D198: Short rural | I198: 23.37116227 | J198: 21.84124716 | M198: 5.307 | N198: 24.44764378 | O198: 22.80965165 | S198: 1
A199: AUG241_187 | D199: Short rural | I199: 9.773912586 | J199: 8.866017316 | M199: 23.144 | N199: 20.57441129 | O199: 20.3805381 | R199: 0.01583657469 | S199: 1
A200: AUG241_188 | D200: Short rural | I200: 2.346669276 | J200: 2.267538222 | M200: 23.15 | N200: 2.400384643 | O200: 2.239558872 | R200: 0.01583657469 | S200: 1
A201: AUG241_189 | D201: Short rural | I201: 9.300643892 | J201: 8.220119134 | M201: 3.101 | N201: 9.563262879 | O201: 9.507579547 | S201: 2
A202: AUG241_190 | D202: Short rural | I202: 20.24684576 | J202: 17.90058192 | M202: 26.354 | N202: 20.25830064 | O202: 18.99179966 | S202: 2
... 7642 more rows

Sheet 2.5 Connections
C1: REGULATORY REPORTING STATEMENT
C2: =TradingName -> Ergon Energy
C3: =RCP_1to5 -> 2015-16 to 2019-20
C4: 2.5 CONNECTIONS
C9: 2.5.1 DESCRIPTOR METRICS | R9: 2.5.2 COST METRICS BY CONNECTION CLASSIFICATION
C10: <<<GROUP-ROW>>>
E12: VOLUMES & EXPENDITURE | G12: VOLUMES & EXPENDITURE Current Period | L12: VOLUMES & EXPENDITURE Forthcoming Period | T12: EXPENDITURE | V12: EXPENDITURE Current Period | AA12: EXPENDITURE Forthcoming Period | AI12: VOLUMES | AK12: VOLUMES Current Period | AP12: VOLUMES Forthcoming Period
C13: CONNECTION SUBCATEGORY | D13: DESCRIPTOR METRIC | E13: =PRCP_y4 -> 2008-09 | F13: =PRCP_y5 -> 2009-10 | G13: =+CRCP -> 2010-11 | H13: 2011-12 | I13: 2012-13 | J13: 2013-14 | K13: =CRCP_y5 -> 2014-15 | L13: =FRCP -> 2015-16 | M13: 2016-17 | N13: 2017-18 | O13: 2018-19 | P13: 2019-20 | R13: CONNECTION SUBCATEGORY | S13: CONNECTION CLASSICIATION | T13: =PRCP_y4 -> 2008-09 | U13: =PRCP_y5 -> 2009-10 | V13: =CRCP -> 2010-11 | W13: 2011-12 | X13: 2012-13 | Y13: 2013-14 | Z13: 2014-15 | AA13: =FRCP -> 2015-16 | AB13: 2016-17 | AC13: 2017-18 | AD13: 2018-19 | AE13: 2019-20 | AG13: CONNECTION SUBCATEGORY | AH13: CONNECTION CLASSICIATION | AI13: =PRCP_y4 -> 2008-09 | AJ13: =PRCP_y5 -> 2009-10 | AK13: =CRCP -> 2010-11 | AL13: 2011-12 | AM13: 2012-13 | AN13: 2013-14 | AO13: 2014-15 | AP13: =FRCP -> 2015-16 | AQ13: 2016-17 | AR13: 2017-18 | AS13: 2018-19 | AT13: 2019-20
A14: ED_CON251_00001 | C14: RESIDENTIAL | D14: Underground connections (000's) | E14: 0.023 | F14: 0.021 | G14: 0.036 | H14: 0.028 | I14: 0.016 | J14: 0.202 | K14: 0.0283913975 | L14: 0.02326506769 | M14: 0.2079760671 | N14: 0.03578317199 | O14: 0.02891647918 | P14: 0.2119035935 | Q14: ED_CON252_00001 | R14: RESIDENTIAL | S14: Simple connection LV | T14: 5177 | U14: 4377 | V14: 4414 | W14: 4353 | X14: 3705 | Y14: 4598 | Z14: 4598.137984 | AA14: 4600.69524 | AB14: 4602.739665 | AC14: 4605.211299 | AD14: 4607.049672 | AE14: 4608.301296 | AF14: ED_CON252_00001 | AG14: RESIDENTIAL | AH14: Simple connection LV | AI14: 10.354 | AJ14: 9.5 | AK14: 9.126 | AL14: 9.091 | AM14: 9.091 | AN14: 10.702 | AO14: 10.77247792 | AP14: 10.81459053 | AQ14: 10.88611203 | AR14: 10.95739309 | AS14: 11.04285033 | AT14: 11.15103223
A15: ED_CON251_00002 | D15: Overhead connections (000's) | E15: 9.962 | F15: 12.84 | G15: 12.158 | H15: 12.043 | I15: 12.049 | J15: 13.96 | K15: 13.96254971 | L15: 14.00981055 | M15: 14.04770053 | N15: 14.0936116 | O15: 14.12785297 | P15: 14.15121289 | Q15: ED_CON252_00002 | S15: Complex connection LV | T15: 11732 | U15: 8711 | V15: 7768 | W15: 7072 | X15: 8708 | Y15: 7378 | Z15: 6126.592972 | AA15: 5024.776759 | AB15: 4132.419216 | AC15: 3383.757799 | AD15: 2780.511505 | AE15: 2297.66543 | AF15: ED_CON252_00002 | AH15: Complex connection LV | AI15: 0.783 | AJ15: 0.586 | AK15: 0.447 | AL15: 0.395 | AM15: 0.45 | AN15: 0.467 | AO15: 0.4668821669 | AP15: 0.4646989897 | AQ15: 0.4629627534 | AR15: 0.4608724793 | AS15: 0.459325607 | AT15: 0.4582764007
A16: ED_CON251_00003 | D16: Distribution substation installed (MVA added) | E16: 37.911 | F16: 29.152 | G16: 22.248 | H16: 20.826 | I16: 24.299 | J16: 15.15 | K16: 12.89983896 | L16: 11.44726678 | M16: 10.18064703 | N16: 9.163559292 | O16: 8.162550005 | P16: 7.242352655 | Q16: ED_CON252_00003 | S16: Complex connection HV | T16: 15732 | U16: 12825 | V16: 9839 | W16: 10925 | X16: 11573 | Y16: 9561 | Z16: 8712.518631 | AA16: 8115.000699 | AB16: 7567.369327 | AC16: 7102.33012 | AD16: 6628.659296 | AE16: 6173.571394 | AF16: ED_CON252_00003 | AH16: Complex connection HV | AI16: 0.426 | AJ16: 0.352 | AK16: 0.263 | AL16: 0.235 | AM16: 0.253 | AN16: 0.23 | AO16: 0.1911117063 | AP16: 0.1626675638 | AQ16: 0.1386361961 | AR16: 0.1189945128 | AS16: 0.1015096656 | AT16: 0.0863940119
A17: ED_CON251_00004 | D17: Distribution substations installed (000's) | E17: 0.995 | F17: 0.78 | G17: 0.589 | H17: 0.508 | I17: 0.597 | J17: 0.398 | K17: 0.444009296 | L17: 0.3836207175 | M17: 0.3319934522 | N17: 0.2899196669 | O17: 0.2512012281 | P17: 0.217012104 | Q17: ED_CON252_00004 | R17: COMMERCIAL/INDUSTRIAL | S17: Simple connection LV | T17: 1337 | U17: 1130 | V17: 1140 | W17: 1124 | X17: 957 | Y17: 1188 | Z17: 1188.036232 | AA17: 1188.707718 | AB17: 1189.24455 | AC17: 1189.893564 | AD17: 1190.376298 | AE17: 1190.70496 | AF17: ED_CON252_00004 | AG17: COMMERCIAL/INDUSTRIAL | AH17: Simple connection LV | AI17: 2.674 | AJ17: 2.454 | AK17: 2.357 | AL17: 2.348 | AM17: 2.348 | AN17: 2.764 | AO17: 2.782250445 | AP17: 2.793199092 | AQ17: 2.811720122 | AR17: 2.830180269 | AS17: 2.852291405 | AT17: 2.880254712
A18: ED_CON251_00005 | D18: Distribution substation installed (total spend $000's) | E18: 9890 | F18: 9189 | G18: 5544 | H18: 4719 | I18: 5468 | J18: 3660 | K18: 4847.75 | L18: 4673.6875 | M18: 4662.359375 | N18: 4460.949219 | O18: 4661.186523 | P18: 4614.545654 | Q18: ED_CON252_00005 | S18: Complex connection HV (customer connected at LV, minor HV works) | T18: 24080 | U18: 17840 | V18: 20581 | W18: 18110 | X18: 19469 | Y18: 12413 | Z18: 12787 | AA18: 11897.30768 | AB18: 11190.99227 | AC18: 10523.83988 | AD18: 9946.175276 | AE18: 9475.234384 | AF18: ED_CON252_00005 | AH18: Complex connection HV (customer connected at LV, minor HV works) | AI18: 0.606 | AJ18: 0.412 | AK18: 0.484 | AL18: 0.444 | AM18: 0.436 | AN18: 0.66 | AO18: 0.3546666667 | AP18: 0.356762839 | AQ18: 0.358447613 | AR18: 0.3604931521 | AS18: 0.3620224625 | AT18: 0.3630676655
A19: ED_CON251_00006 | D19: Augmentation HV (net circuit KM added) | E19: 384 | F19: 259 | G19: 181 | H19: 191 | I19: 182 | J19: 178.4 | K19: 162.9268673 | L19: 161.572152 | M19: 160.4987133 | N19: 159.2101601 | O19: 158.2599533 | P19: 157.61714 | Q19: ED_CON252_00006 | S19: Complex connection HV (customer connected at LV, upstream asset works) | T19: 4587 | U19: 3398 | V19: 3920 | W19: 3450 | X19: 3708 | Y19: 8988 | Z19: 9259 | AA19: 8614.55429 | AB19: 8102.899094 | AC19: 7619.628646 | AD19: 7201.168506 | AE19: 6859.988864 | AF19: ED_CON252_00006 | AH19: Complex connection HV (customer connected at LV, upstream asset works) | AI19: 0.115 | AJ19: 0.078 | AK19: 0.092 | AL19: 0.085 | AM19: 0.083 | AN19: 0.126 | AO19: 0.2566666667 | AP19: 0.2582138184 | AQ19: 0.2594574689 | AR19: 0.2609675668 | AS19: 0.2620966917 | AT19: 0.2628684539
A20: ED_CON251_00007 | D20: Augmentation HV (total spend $000's) | E20: 15732 | F20: 12825 | G20: 9839 | H20: 10925 | I20: 11573 | J20: 9561 | K20: 10686.33333 | L20: 9953.376543 | M20: 9281.733272 | N20: 8711.977835 | O20: 8131.071423 | P20: 7572.775266 | Q20: ED_CON252_00007 | S20: Complex connection HV (customer connected at HV) | T20: 54753.18914 | U20: 51184.27476 | V20: 35744.30087 | W20: 32240.76238 | X20: 32965.14319 | Y20: 29623 | Z20: 31609.63519 | AA20: 20848.48684 | AB20: 13854.86655 | AC20: 9097.389506 | AD20: 6031.843746 | AE20: 4061.127929 | AF20: ED_CON252_00007 | AH20: Complex connection HV (customer connected at HV) | AI20: 0.421 | AJ20: 0.363 | AK20: 0.298 | AL20: 0.271 | AM20: 0.259 | AN20: 0.456 | AO20: 0.229 | AP20: 0.2208600375 | AQ20: 0.1929096006 | AR20: 0.1690079537 | AS20: 0.1476783653 | AT20: 0.1289132372
A21: ED_CON251_00008 | D21: Augmentation LV (net circuit KM added) | E21: 26.63 | F21: 11.37 | G21: 10.12 | H21: 10.74 | I21: 10 | J21: 10.58 | K21: 10.44 | L21: 10.43909665 | M21: 10.43837492 | N21: 10.43750283 | O21: 10.43685458 | P21: 10.43641343 | Q21: ED_CON252_00008 | S21: Complex connection sub-transmission | T21: 0 | U21: 0 | V21: 0 | W21: 0 | X21: 0 | Y21: 0 | Z21: 0 | AA21: 0 | AB21: 0 | AC21: 0 | AD21: 0 | AE21: 0 | AF21: ED_CON252_00008 | AH21: Complex connection sub-transmission | AI21: 0 | AJ21: 0 | AK21: 0 | AL21: 0 | AM21: 0 | AN21: 0 | AO21: 0 | AP21: 0 | AQ21: 0 | AR21: 0 | AS21: 0 | AT21: 0
A22: ED_CON251_00009 | D22: Augmentation LV (total spend $000's) | E22: 16271 | F22: 14207 | G22: 13322 | H22: 12549 | I22: 13324 | J22: 11976 | K22: 12616.33333 | L22: 12591.92422 | M22: 12572.45869 | N22: 12548.9724 | O22: 12531.54555 | P22: 12519.702 | Q22: ED_CON252_00009 | R22: SUBDIVISION | S22: Complex connection LV | T22: 17127 | U22: 9640 | V22: 8691 | W22: 8045 | X22: 8076 | Y22: 7280 | Z22: 7277.379131 | AA22: 7228.825688 | AB22: 7190.289549 | AC22: 7143.969725 | AD22: 7109.757868 | AE22: 7086.586143 | AF22: ED_CON252_00009 | AG22: SUBDIVISION | AH22: Complex connection LV | AI22: 2.619 | AJ22: 1.365 | AK22: 1.261 | AL22: 1.115 | AM22: 1.076 | AN22: 1.504 | AO22: 1.50392042 | AP22: 1.50244569 | AQ22: 1.501268514 | AR22: 1.499847097 | AS22: 1.498791431 | AT22: 1.498073493
A23: ED_CON251_00010 | D23: Mean days to connect residential customer with LV single phase connection (0's) | K23: 137.9952896 | L23: 137.9079974 | M23: 137.8382937 | N23: 137.7541046 | O23: 137.6915574 | P23: 137.6490096 | Q23: ED_CON252_00010 | S23: Complex connection HV (no upstream asset works) | T23: 5980 | U23: 4410 | V23: 3890 | W23: 3091 | X23: 3129 | Y23: 4190 | Z23: 4041 | AA23: 4021.59586 | AB23: 4006.166092 | AC23: 3987.591897 | AD23: 3973.848051 | AE23: 3964.526776 | AF23: ED_CON252_00010 | AH23: Complex connection HV (no upstream asset works) | AI23: 0.6 | AJ23: 0.414 | AK23: 0.324 | AL23: 0.189 | AM23: 0.214 | AN23: 0.272 | AO23: 0.27 | AP23: 0.2678422655 | AQ23: 0.2661319794 | AR23: 0.2640784222 | AS23: 0.2625636087 | AT23: 0.2615386006
A24: ED_CON251_00011 | D24: Volume of GSL breaches for residential customers (0's) | K24: 99.05382589 | L24: 147.5900585 | M24: 218.8269842 | N24: 326.9974467 | O24: 485.5588664 | P24: 713.6927838 | Q24: ED_CON252_00011 | S24: Complex connection HV (with upstream asset works) | T24: 2686 | U24: 1981 | V24: 1748 | W24: 1389 | X24: 1406 | Y24: 545 | Z24: 542.3333333 | AA24: 539.731616 | AB24: 537.6627751 | AC24: 535.1723169 | AD24: 533.3295115 | AE24: 532.0796901 | AF24: ED_CON252_00011 | AH24: Complex connection HV (with upstream asset works) | AI24: 0.269 | AJ24: 0.186 | AK24: 0.146 | AL24: 0.085 | AM24: 0.096 | AN24: 0.035 | AO24: 0.037 | AP24: 0.03670418086 | AQ24: 0.03646970644 | AR24: 0.03618817151 | AS24: 0.035980497 | AT24: 0.03583997309
A25: ED_CON251_00012 | D25: Volume of customer complaints relating to connection services (0's) | K25: 70.08352788 | L25: 60.65797213 | M25: 53.14572896 | N25: 46.55013608 | O25: 41.0023396 | P25: 36.4381177 | Q25: ED_CON252_00012 | R25: EMBEDDED GENERATION | S25: Simple connection LV | T25: 45 | U25: 5 | V25: 54 | W25: 0 | X25: 0 | Y25: 0 | Z25: 0 | AA25: 0 | AB25: 0 | AC25: 0 | AD25: 0 | AE25: 0 | AF25: ED_CON252_00012 | AG25: EMBEDDED GENERATION | AH25: Simple connection LV | AI25: 0 | AJ25: 0 | AK25: 0.001 | AL25: 0 | AM25: 0 | AN25: 0 | AO25: 0 | AP25: 0 | AQ25: 0 | AR25: 0 | AS25: 0 | AT25: 0
A26: ED_CON251_00013 | D26: GSL payments ($000's) | K26: 8.591030051 | L26: 8.795705916 | M26: 8.963141401 | N26: 9.169326426 | O26: 9.326128153 | P26: 9.434666023 | Q26: ED_CON252_00013 | S26: Complex connection HV (small capacity) | T26: 20011 | U26: 7034 | V26: 6499 | W26: 10703 | X26: 2894 | Y26: 340 | Z26: 3400.047051 | AA26: 3382.39159 | AB26: 3368.35785 | AC26: 3351.469476 | AD26: 3338.97778 | AE26: 3330.508116 | AF26: ED_CON252_00013 | AH26: Complex connection HV (small capacity) | AI26: 0.001 | AJ26: 0.001 | AK26: 0.001 | AL26: 0.002 | AM26: 0 | AN26: 0 | AO26: 0.0006436895302 | AP26: 0 | AQ26: 0 | AR26: 0.0002072018016 | AS26: 0 | AT26: 0
A27: ED_CON251_00014 | C27: COMMERCIAL/INDUSTRIAL | D27: Underground connections (000's) | E27: 0.354 | F27: 0.153 | G27: 0.123 | H27: 0.107 | I27: 0.128 | J27: 0.483 | K27: 0.483758031 | L27: 0.4978281962 | M27: 0.5093974648 | N27: 0.5237029721 | O27: 0.5346361913 | P27: 0.5422322425 | Q27: ED_CON252_00014 | S27: Complex connection HV (large capacity) | T27: 0 | U27: 0 | V27: 0 | W27: 0 | X27: 0 | Y27: 0 | Z27: 0 | AA27: 0 | AB27: 0 | AC27: 0 | AD27: 0 | AE27: 0 | AF27: ED_CON252_00014 | AH27: Complex connection HV (large capacity) | AI27: 0 | AJ27: 0 | AK27: 0 | AL27: 0 | AM27: 0 | AN27: 0 | AO27: 0 | AP27: 0 | AQ27: 0 | AR27: 0 | AS27: 0 | AT27: 0
A28: ED_CON251_00015 | D28: Overhead connections (000's) | E28: 0.788 | F28: 0.7 | G28: 0.751 | H28: 0.692 | I28: 0.651 | J28: 0.585 | K28: 0.5490670158 | L28: 0.5130411913 | M28: 0.4815506322 | N28: 0.4519435705 | O28: 0.4250418994 | P28: 0.4010704555
A29: ED_CON251_00016 | D29: Distribution substation installed (MVA added) | E29: 243.0159737 | F29: 204.2970955 | G29: 217.3482248 | H29: 179.1998286 | I29: 170.0503388 | J29: 134 | K29: 118.6678767 | L29: 104.4397813 | M29: 92.49587772 | N29: 81.9054863 | O29: 72.73747497 | P29: 64.89316941
A30: ED_CON251_00017 | D30: Distribution substations installed (000's) | E30: 0.869 | F30: 0.753 | G30: 0.749 | H30: 0.637 | I30: 0.629 | J30: 0.523 | K30: 0.523 | L30: 0.521757084 | M30: 0.5207657558 | N30: 0.5195695259 | O30: 0.518681801 | P30: 0.5180784286
A31: ED_CON251_00018 | D31: Distribution substation installed total spend ($000's) | E31: 18227 | F31: 25194 | G31: 19469 | H31: 14831 | I31: 11956 | J31: 10637 | K31: 10637 | L31: 10405.48344 | M31: 10221.45387 | N31: 9999.985909 | O31: 9836.170307 | P31: 9725.097427
A32: ED_CON251_00019 | D32: Augmentation HV (net circuit KM added) | E32: 435 | F32: 351 | G32: 241 | H32: 245 | I32: 208 | J32: 278 | K32: 243.6666667 | L32: 242.1454048 | M32: 240.9374811 | N32: 239.4850763 | O32: 238.4118821 | P32: 237.6847819
A33: ED_CON251_00020 | D33: Augmentation HV (total spend $000's) | E33: 54753 | F33: 51184 | G33: 35744 | H33: 32241 | I33: 32965 | J33: 29623 | K33: 31609.66667 | L33: 25923.13747 | M33: 21301.86765 | N33: 17695.21256 | O33: 14561.52119 | P33: 11940.3466
A34: ED_CON251_00021 | D34: Augmentation LV (net circuit KM added) | E34: 75 | F34: 47 | G34: 41 | H34: 40 | I34: 43 | J34: 35.98 | K34: 39.66 | L34: 39.66885334 | M34: 39.77406113 | N34: 39.87720653 | O34: 40.02543408 | P34: 40.24602628
A35: ED_CON251_00022 | D35: Augmentation LV (total spend $000's) | E35: 28667 | F35: 21237 | G35: 24501 | H35: 21561 | I35: 23177 | J35: 22589 | K35: 22442.33333 | L35: 21369.8988 | M35: 20600.38011 | N35: 19852.69155 | O35: 19240.31543 | P35: 18814.20575
A36: ED_CON251_00023 | C36: SUBDIVISION | D36: Underground connections (000's) | E36: 0.717 | F36: 0.451 | G36: 0.606 | H36: 0.616 | I36: 0.709 | J36: 1.351 | K36: 1.352126909 | L36: 1.373028641 | M36: 1.389987624 | N36: 1.410734429 | O36: 1.426387591 | P36: 1.437158712
A37: ED_CON251_00024 | D37: Overhead connections (000's) | E37: 7.023 | F37: 1.546 | G37: 1.125 | H37: 0.773 | I37: 0.722 | J37: 0.455 | K37: 0.454557862 | L37: 0.4463719547 | M37: 0.4399490726 | N37: 0.4322991766 | O37: 0.4267112067 | P37: 0.4229574146
A38: ED_CON251_00025 | D38: Distribution substation installed (MVA added) | E38: 37.304 | F38: 29.194 | G38: 18.57 | H38: 14.964 | I38: 16.385 | J38: 8.72 | K38: 6.305008186 | L38: 4.842630553 | M38: 3.731302032 | N38: 2.92524306 | O38: 2.259101876 | P38: 1.734759507
A39: ED_CON251_00026 | D39: Distribution substations installed (000's) | E39: 0.295 | F39: 0.191 | G39: 0.155 | H39: 0.135 | I39: 0.143 | J39: 0.11 | K39: 0.09396325105 | L39: 0.08006581515 | M39: 0.06828112546 | N39: 0.05849934308 | O39: 0.04991914437 | P39: 0.04253358236
A40: ED_CON251_00027 | D40: Distribution substation installed (total spend $000's) | E40: 6076 | F40: 5450 | G40: 2675 | H40: 2168 | I40: 2161 | J40: 1714 | K40: 1714 | L40: 999.6480224 | M40: 999.6480224 | N40: 358.8857564 | O40: 358.8857564 | P40: 358.8857564
A41: ED_CON251_00028 | D41: Augmentation HV (net circuit KM added) | E41: 126 | F41: 74 | G41: 76 | H41: 51 | I41: 53 | J41: 44 | K41: 48.5 | L41: 48.00416336 | M41: 47.61203235 | N41: 47.14204186 | O41: 46.79610466 | P41: 46.56240122
A42: ED_CON251_00029 | D42: Augmentation HV (total spend $000's) | E42: 8666 | F42: 6391 | G42: 5638 | H42: 4480 | I42: 4535 | J42: 4735 | K42: 4635 | L42: 4594.241594 | M42: 4561.961358 | N42: 4523.227163 | O42: 4494.677048 | P42: 4475.369617
A43: ED_CON251_00030 | D43: Augmentation LV (net circuit KM added) | E43: 121.7614174 | F43: 63.46099075 | G43: 58.62586765 | H43: 51.83809867 | I43: 50.02492751 | J43: 50.59 | K43: 50.30746376 | L43: 50.30746376 | M43: 50.4016425 | N43: 50.33885667 | O43: 50.34932098 | P43: 50.36327338
A44: ED_CON251_00031 | D44: Augmentation LV (total spend $000's) | E44: 19103 | F44: 9652 | G44: 8691 | H44: 8044 | I44: 8122 | J44: 7280 | K44: 7701 | L44: 7641.020242 | M44: 7593.468729 | N44: 7536.363844 | O44: 7494.231904 | P44: 7465.718884
A45: ED_CON251_00032 | D45: Cost per lot ($) | E45: 8007 | F45: 8204 | G45: 8286 | H45: 9020 | I45: 9142 | J45: 5650 | K45: 5648.868562 | L45: 5627.904515 | M45: 5611.216073 | N45: 5591.109127 | O45: 5576.215391 | P45: 5566.106309
A46: ED_CON251_00033 | C46: EMBEDDED GENERATION | D46: Underground connections (000's) | E46: 0 | F46: 0 | G46: 0 | H46: 0 | I46: 0 | J46: 0.001 | K46: 0.001 | L46: 0.001 | M46: 0.001 | N46: 0.001 | O46: 0.001 | P46: 0.001
A47: ED_CON251_00034 | D47: Overhead connections (000's) | E47: 0.002 | F47: 0.001 | G47: 0.001 | H47: 0.002 | I47: 0 | J47: 0 | K47: 0.001279983989 | L47: 0.001508230003 | M47: 0.001768828792 | N47: 0.002020668483 | O47: 0.002361744078 | P47: 0.002783758897
A48: ED_CON251_00035 | D48: Distribution substation installed (MVA added) | E48: 0 | F48: 0 | G48: 0 | H48: 0 | I48: 0 | J48: 0 | K48: 0 | L48: 0 | M48: 0 | N48: 0 | O48: 0 | P48: 0
A49: ED_CON251_00036 | D49: Distribution substations installed (000's) | E49: 0 | F49: 0.001 | G49: 0 | H49: 0 | I49: 0 | J49: 0 | K49: 1.78452354e-05 | L49: 5.689641142e-07 | M49: 2.755141593e-08 | N49: 6.098242455e-10 | O49: 2.645681653e-11 | P49: 2.046979323e-12
A50: ED_CON251_00037 | D50: Distribution substation installed (total spend $000's) | E50: 142 | F50: 1687 | G50: 97 | H50: 41 | I50: 10 | J50: 0 | K50: 66.30951054 | L50: 14.45362898 | M50: 3.011422844 | N50: 0.4682500398 | O50: 0.09431155885 | P50: 0.02061768708
A51: ED_CON251_00038 | D51: Augmentation HV (net circuit KM added) | E51: 3 | F51: 12 | G51: 3 | H51: 8 | I51: 3 | J51: 0 | K51: 4.357415484 | L51: 4.734536853 | M51: 5.191986212 | N51: 5.980945972 | O51: 6.602263113 | P51: 7.169243553
A52: ED_CON251_00039 | D52: Augmentation HV (total spend $000's) | E52: 20011 | F52: 7034 | G52: 6499 | H52: 10703 | I52: 2894 | J52: 340 | K52: 134.821717 | L52: 146.7238076 | M52: 158.2838175 | N52: 173.1427594 | O52: 187.2850127 | P52: 198.9294493
A53: ED_CON251_00040 | D53: Augmentation LV (net circuit KM added) | E53: 0 | F53: 0 | G53: 1 | H53: 0 | I53: 0 | J53: 0 | K53: 0 | L53: 0 | M53: 0 | N53: 0 | O53: 0 | P53: 0
A54: ED_CON251_00041 | D54: Augmentation LV (total spend $000's) | E54: 45 | F54: 5 | G54: 54 | H54: 0 | I54: 0 | J54: 0 | K54: 0 | L54: 0 | M54: 22.13736739 | N54: 0 | O54: 0 | P54: 17.45243439

Sheet 2.6 Non-network
C1: REGULATORY REPORTING STATEMENT
C2: =TradingName -> Ergon Energy
C3: =RCP_1to5 -> 2015-16 to 2019-20
C4: 2.6 NON NETWORK EXPENDITURE
C9: TABLE 2.6.1 NON-NETWORK EXPENDITURE | S9: TABLE 2.6.2 ANNUAL DESCRIPTOR METRICS - IT & COMMUNICATIONS EXPENDITURE | AH9: TABLE 2.6.3 ANNUAL DESCRIPTOR METRICS - MOTOR VEHICLES
F11: EXPENDITURE ($000's) | H11: EXPENDITURE ($000's) Current Period | M11: EXPENDITURE ($000's) Forthcoming Period | U11: VOLUMES | W11: VOLUMES Current Period | AB11: VOLUMES Forthcoming Period | AI11: ASSET REPORTING CATEGORY | AK11: VOLUMES / % | AM11: VOLUMES / % Current Period | AR11: VOLUMES / % Forthcoming Period
C12: SERVICE SUBCATEGORY | D12: ASSET CATEGORY | E12: ASSET REPORTING CATEGORY | F12: =PRCP_y4 -> 2008-09 | G12: =PRCP_y5 -> 2009-10 | H12: =CRCP -> 2010-11 | I12: 2011-12 | J12: 2012-13 | K12: 2013-14 | L12: 2014-15 | M12: =FRCP -> 2015-16 | N12: 2016-17 | O12: 2017-18 | P12: 2018-19 | Q12: 2019-20 | S12: NON-NETWORK CATEGORY | T12: DESCRIPTOR METRIC | U12: =PRCP_y4 -> 2008-09 | V12: =PRCP_y5 -> 2009-10 | W12: =CRCP -> 2010-11 | X12: 2011-12 | Y12: 2012-13 | Z12: 2013-14 | AA12: 2014-15 | AB12: =FRCP -> 2015-16 | AC12: 2016-17 | AD12: 2017-18 | AE12: 2018-19 | AF12: 2019-20 | AH12: NON-NETWORK CATEGORY | AI12: ASSET CATEGORY | AJ12: DESCRIPTOR METRIC | AK12: =PRCP_y4 -> 2008-09 | AL12: =PRCP_y5 -> 2009-10 | AM12: =CRCP -> 2010-11 | AN12: 2011-12 | AO12: 2012-13 | AP12: 2013-14 | AQ12: 2014-15 | AR12: =FRCP -> 2015-16 | AS12: 2016-17 | AT12: 2017-18 | AU12: 2018-19 | AV12: 2019-20
A13: ED_NON261_00001 | C13: IT & COMMUNICATIONS | D13: Client device expenditure | E13: Opex | L13: 0 | M13: 0 | N13: 0 | O13: 0 | P13: 0 | Q13: 0 | R13: ED_NON262_00001 | S13: IT & COMMUNICATIONS | T13: Employee numbers | AA13: 3441.61458 | AB13: 3295.785536 | AC13: 3288.75256 | AD13: 3276.818671 | AE13: 3276.818671 | AF13: 3276.818671 | AG13: ED_NON263_00001 | AH13: MOTOR VEHICLES | AI13: CAR | AJ13: Average kilometres travelled (000's) | AQ13: 17.507 | AR13: 17.507 | AS13: 17.507 | AT13: 17.507 | AU13: 17.507 | AV13: 17.507
A14: ED_NON261_00002 | E14: Capex | L14: 8124.29 | M14: 2680.3 | N14: 6051.11 | O14: 8168.53 | P14: 2524.78 | Q14: 6417.08 | R14: ED_NON262_00002 | T14: User numbers | AA14: 3812.132724 | AB14: 3650.603982 | AC14: 3642.813848 | AD14: 3629.595178 | AE14: 3629.595178 | AF14: 3629.595178 | AG14: ED_NON263_00002 | AJ14: Number purchased | AQ14: 17.516 | AR14: 30.653 | AS14: 30.653 | AT14: 29.7772 | AU14: 30.653 | AV14: 30.653
A15: ED_NON261_00003 | D15: Recurrent expenditure | E15: Opex | L15: 75890.59962 | M15: 79964.66408 | N15: 86588.77932 | O15: 88047.6802 | P15: 93193.46371 | Q15: 91831.64437 | R15: ED_NON262_00003 | T15: Number of devices | AA15: 4008.493027 | AB15: 3838.644052 | AC15: 3830.452654 | AD15: 3816.553099 | AE15: 3816.553099 | AF15: 3816.553099 | AG15: ED_NON263_00003 | AJ15: Number leased | AQ15: 0 | AR15: 0 | AS15: 0 | AT15: 0 | AU15: 0 | AV15: 0
A16: ED_NON261_00004 | E16: Capex | L16: 0 | M16: 0 | N16: 0 | O16: 0 | P16: 0 | Q16: 0 | AG16: ED_NON263_00004 | AJ16: Number in fleet | AQ16: 128 | AR16: 123 | AS16: 123 | AT16: 123 | AU16: 123 | AV16: 123
A17: ED_NON261_00005 | D17: Non-recurrent expenditure | E17: Opex | L17: 0 | M17: 0 | N17: 0 | O17: 0 | P17: 0 | Q17: 0 | AG17: ED_NON263_00005 | AJ17: Proportion of total fleet expenditure allocated as regulatory expenditure (%) | AQ17: 0.8758 | AR17: 0.8758 | AS17: 0.8758 | AT17: 0.8758 | AU17: 0.8758 | AV17: 0.8758
A18: ED_NON261_00006 | E18: Capex | L18: 0 | M18: 0 | N18: 0 | O18: 0 | P18: 0 | Q18: 0 | AG18: ED_NON263_00006 | AI18: LIGHT COMMERCIAL VEHICLE | AJ18: Average kilometres travelled (000's) | AQ18: 27.494 | AR18: 27.494 | AS18: 27.494 | AT18: 27.494 | AU18: 27.494 | AV18: 27.494
A19: ED_NON261_00007 | C19: MOTOR VEHICLES | D19: Car | E19: Opex | L19: 2341.818867 | M19: 2356.736253 | N19: 2375.495874 | O19: 2390.984107 | P19: 2406.382045 | Q19: 2422.095719 | AG19: ED_NON263_00007 | AJ19: Number purchased | AQ19: 175.16 | AR19: 218.95 | AS19: 217.1984 | AT19: 217.1984 | AU19: 217.1984 | AV19: 217.1984
A20: ED_NON261_00008 | E20: Capex | L20: 772.157291 | M20: 939.792333 | N20: 965.6711243 | O20: 979.7433397 | P20: 994.3403374 | Q20: 981.3413436 | AG20: ED_NON263_00008 | AJ20: Number leased | AQ20: 0 | AR20: 0 | AS20: 0 | AT20: 0 | AU20: 0 | AV20: 0
A21: ED_NON261_00009 | D21: Light commercial vehicle | E21: Opex | L21: 9555.112975 | M21: 9615.979045 | N21: 9692.522238 | O21: 9755.717483 | P21: 9818.544303 | Q21: 9882.659398 | AG21: ED_NON263_00009 | AJ21: Number in fleet | AQ21: 920 | AR21: 897 | AS21: 897 | AT21: 897 | AU21: 897 | AV21: 897
A22: ED_NON261_00010 | E22: Capex | L22: 8365.575549 | M22: 10181.73869 | N22: 10462.1103 | O22: 10614.56911 | P22: 10772.71342 | Q22: 10631.88193 | AG22: ED_NON263_00010 | AJ22: Proportion of total fleet expenditure allocated as regulatory expenditure (%) | AQ22: 0.8758 | AR22: 0.8758 | AS22: 0.8758 | AT22: 0.8758 | AU22: 0.8758 | AV22: 0.8758
A23: ED_NON261_00011 | D23: Elevated work platform (LCV) | E23: Opex | L23: 0 | M23: 0 | N23: 0 | O23: 0 | P23: 0 | Q23: 0 | AG23: ED_NON263_00011 | AI23: ELEVATED WORK PLATFORM (LCV) | AJ23: Average kilometres travelled (000's) | AQ23: 0 | AR23: 0 | AS23: 0 | AT23: 0 | AU23: 0 | AV23: 0
A24: ED_NON261_00012 | E24: Capex | L24: 0 | M24: 0 | N24: 0 | O24: 0 | P24: 0 | Q24: 0 | AG24: ED_NON263_00012 | AJ24: Number purchased | AQ24: 0 | AR24: 0 | AS24: 0 | AT24: 0 | AU24: 0 | AV24: 0
A25: ED_NON261_00013 | D25: Elevated work platform (HCV) | E25: Opex | L25: 7477.271032 | M25: 7524.901249 | N25: 7584.799463 | O25: 7634.252355 | P25: 7683.41694 | Q25: 7733.589653 | AG25: ED_NON263_00013 | AJ25: Number leased | AQ25: 0 | AR25: 0 | AS25: 0 | AT25: 0 | AU25: 0 | AV25: 0
A26: ED_NON261_00014 | E26: Capex | L26: 12032.17683 | M26: 14644.35765 | N26: 15047.61511 | O26: 15266.89606 | P26: 15494.35446 | Q26: 15291.79703 | AG26: ED_NON263_00014 | AJ26: Number in fleet | AQ26: 0 | AR26: 0 | AS26: 0 | AT26: 0 | AU26: 0 | AV26: 0
A27: ED_NON261_00015 | D27: Heavy commercial vehicle | E27: Opex | L27: 3566.47367 | M27: 3589.192108 | N27: 3617.762077 | O27: 3641.349886 | P27: 3664.800179 | Q27: 3688.731324 | AG27: ED_NON263_00015 | AJ27: Proportion of total fleet expenditure allocated as regulatory expenditure (%) | AQ27: 0.8758 | AR27: 0.8758 | AS27: 0.8758 | AT27: 0.8758 | AU27: 0.8758 | AV27: 0.8758
A28: ED_NON261_00016 | E28: Capex | L28: 6451.079359 | M28: 7851.606132 | N28: 8067.813553 | O28: 8185.38154 | P28: 8307.333882 | Q28: 8198.732252 | AG28: ED_NON263_00016 | AI28: ELEVATED WORK PLATFORM (HCV) | AJ28: Average kilometres travelled (000's) | AQ28: 17.045 | AR28: 17.045 | AS28: 17.045 | AT28: 17.045 | AU28: 17.045 | AV28: 17.045
A29: ED_NON261_00017 | C29: BUILDINGS AND PROPERTY | D29: Total buildings and property expenditure | E29: Opex | L29: 24314.32913 | M29: 24469.2114 | N29: 24663.98633 | O29: 24824.79552 | P29: 24984.6672 | Q29: 25147.81708 | AG29: ED_NON263_00017 | AJ29: Number purchased | AQ29: 15.7644 | AR29: 16.6402 | AS29: 16.6402 | AT29: 16.6402 | AU29: 17.516 | AV29: 16.6402
A30: ED_NON261_00018 | E30: Capex | L30: 51163.11 | M30: 74366.0599 | N30: 52569.55333 | O30: 31317.35 | P30: 29224.43 | Q30: 18794.98 | AG30: ED_NON263_00018 | AJ30: Number leased | AQ30: 0 | AR30: 0 | AS30: 0 | AT30: 0 | AU30: 0 | AV30: 0
A31: ED_NON261_00019 | C31: OTHER | D31: Other expenditure | E31: Opex | L31: 0 | M31: 0 | N31: 0 | O31: 0 | P31: 0 | Q31: 0 | AG31: ED_NON263_00019 | AJ31: Number in fleet | AQ31: 205 | AR31: 199 | AS31: 199 | AT31: 199 | AU31: 199 | AV31: 199
A32: ED_NON261_00020 | E32: Capex | L32: 0 | M32: 0 | N32: 0 | O32: 0 | P32: 0 | Q32: 0 | AG32: ED_NON263_00020 | AJ32: Proportion of total fleet expenditure allocated as regulatory expenditure (%) | AQ32: 0.8758 | AR32: 0.8758 | AS32: 0.8758 | AT32: 0.8758 | AU32: 0.8758 | AV32: 0.8758
A33: ED_NON261_00021 | C33: OTHER - DNSP nominated | D33: Office furniture and equipment | E33: Opex | L33: 0 | M33: 0 | N33: 0 | O33: 0 | P33: 0 | Q33: 0 | AG33: ED_NON263_00021 | AI33: HEAVY COMMERCIAL VEHICLE | AJ33: Average kilometres travelled (000's) | AQ33: 15.789 | AR33: 15.789 | AS33: 15.789 | AT33: 15.789 | AU33: 15.789 | AV33: 15.789
A34: ED_NON261_00022 | E34: Capex | L34: 2204.35 | M34: 3254.699 | N34: 2226.799 | O34: 1198.683 | P34: 1123.716 | Q34: 589.288 | AG34: ED_NON263_00022 | AJ34: Number purchased | AQ34: 8.758 | AR34: 17.516 | AS34: 23.6466 | AT34: 24.5224 | AU34: 24.5224 | AV34: 24.5224
A35: ED_NON261_00023 | D35: Plant and equipment | E35: Opex | L35: 0 | M35: 0 | N35: 0 | O35: 0 | P35: 0 | Q35: 0 | AG35: ED_NON263_00023 | AJ35: Number leased | AQ35: 0 | AR35: 0 | AS35: 0 | AT35: 0 | AU35: 0 | AV35: 0
A36: ED_NON261_00024 | E36: Capex | L36: 6950.66 | M36: 6547.68 | N36: 6997.2 | O36: 7316.25 | P36: 6785.09 | Q36: 7618.46 | AG36: ED_NON263_00024 | AJ36: Number in fleet | AQ36: 241 | AR36: 228 | AS36: 228 | AT36: 228 | AU36: 228 | AV36: 228
A37: ED_NON261_00025 | D37: Crane borer plant HCV | E37: Opex | L37: 2671.794257 | M37: 2688.813586 | N37: 2710.216542 | O37: 2727.887154 | P37: 2745.454747 | Q37: 2763.382567 | AG37: ED_NON263_00025 | AJ37: Proportion of total fleet expenditure allocated as regulatory expenditure (%) | AQ37: 0.8758 | AR37: 0.8758 | AS37: 0.8758 | AT37: 0.8758 | AU37: 0.8758 | AV37: 0.8758
A38: ED_NON261_00026 | E38: Capex | L38: 2911.405192 | M38: 3543.470105 | N38: 3641.045623 | O38: 3694.104658 | P38: 3749.142376 | Q38: 3700.129903
A39: ED_NON261_00027 | D39: Other fleet assets | E39: Opex | L39: 2067.579516 | M39: 2080.749998 | N39: 2097.312768 | O39: 2110.987247 | P39: 2124.582005 | Q39: 2138.455525
A40: ED_NON261_00028 | E40: Capex | L40: 3412.485784 | M40: 4153.335096 | N40: 4267.70429 | O40: 4329.895292 | P40: 4394.405525 | Q40: 4336.957539
A41: ED_NON261_00029 | D41: EWP Hired | E41: Opex | L41: 121.1122606 | M41: 121.8837457 | N41: 122.8539403 | O41: 123.654948 | P41: 124.4512858 | Q41: 125.2639527
A42: ED_NON261_00030 | E42: Capex | L42: 0 | M42: 0 | N42: 0 | O42: 0 | P42: 0 | Q42: 0
A43: ED_NON261_00031 | D43: Car Hired | E43: Opex | L43: 6.396173204 | M43: 6.436916827 | N43: 6.488154685 | O43: 6.530457453 | P43: 6.572513599 | Q43: 6.615432113
A44: ED_NON261_00032 | E44: Capex | L44: 0 | M44: 0 | N44: 0 | O44: 0 | P44: 0 | Q44: 0
A45: ED_NON261_00033 | D45: LCV Hired | E45: Opex | L45: 58.90162966 | M45: 59.27683304 | N45: 59.74867663 | O45: 60.138238 | P45: 60.52552826 | Q45: 60.92075996
A46: ED_NON261_00034 | E46: Capex | L46: 0 | M46: 0 | N46: 0 | O46: 0 | P46: 0 | Q46: 0
A47: ED_NON261_00035 | D47: Other Hire | E47: Opex | L47: 463.1341606 | M47: 466.0843252 | N47: 469.7943564 | O47: 472.8574156 | P47: 475.9026174 | Q47: 479.0102615
A48: ED_NON261_00036 | E48: Capex | L48: 0 | M48: 0 | N48: 0 | O48: 0 | P48: 0 | Q48: 0
A49: ED_NON261_00037 | D49: Mobile Radios | E49: Opex | L49: 0 | M49: 0 | N49: 0 | O49: 0 | P49: 0 | Q49: 0
A50: ED_NON261_00038 | E50: Capex | L50: 3246.4 | M50: 5620 | N50: 5620 | O50: 0 | P50: 0 | Q50: 0
A51: ED_NON261_00039 | D51: Relocation of Operations Control Centre | E51: Opex | L51: 0 | M51: 0 | N51: 0 | O51: 0 | P51: 0 | Q51: 0
A52: ED_NON261_00040 | E52: Capex | L52: 0 | M52: 13712.3001 | N52: 3093.45667 | O52: 0 | P52: 0 | Q52: 0
A53: ED_NON261_00041 | E53: Opex
A54: ED_NON261_00042 | E54: Capex

Sheet 2.7 Vegetation management
C1: REGULATORY REPORTING STATEMENT
C2: =TradingName -> Ergon Energy
C3: =RCP_1to5 -> 2015-16 to 2019-20
C4: 2.7 VEGETATION MANAGEMENT
C6: TABLE 2.7.3 - DESCRIPTOR METRICS ACROSS ALL ZONES - UNPLANNED VEGETATION EVENTS | J6: TABLE 2.7.1 - DESCRIPTOR METRICS BY ZONE | S6: TABLE 2.7.2 - EXPENDITURE METRICS BY ZONE
D8: VOLUMES | M8: VOLUMES | U8: EXPENDITURE ($000's)
C9: DESCRIPTOR METRIC | D9: =PRCP_y5 -> 2009-10 | E9: =CRCP -> 2010-11 | F9: 2011-12 | G9: 2012-13 | H9: 2013-14 | J9: ZONES | K9: ASSET | L9: ASSET SUBCATEGORY | M9: =PRCP_y5 -> 2009-10 | N9: =CRCP -> 2010-11 | O9: 2011-12 | P9: 2012-13 | Q9: 2013-14 | S9: ZONES | T9: SERVICE SUBCATEGORY | U9: =PRCP_y5 -> 2009-10 | V9: =CRCP -> 2010-11 | W9: 2011-12 | X9: 2012-13 | Y9: 2013-14
A10: ED_VEG273_00001 | C10: Number of fire starts caused by vegetation grow-ins (NSP responsibility) (0's) | D10: 0 | E10: 0 | F10: 0 | G10: 0 | H10: 0 | I10: ED_VEG271_00001 | J10: ZONE 1 (DNSP to nominate) | K10: Route line length within zone (KM) | L10: Urban and CBD | M10: 5468.013333 | N10: 5563.24 | O10: 5278 | P10: 5102 | Q10: 5034 | R10: ED_VEG272_00001 | S10: ZONE 1 (DNSP to nominate) | T10: Tree trimming (excluding hazard trees) | U10: 7578.030778 | V10: 7179.871137 | W10: 9132.154906 | X10: 1045.137497 | Y10: 3295.867783
A11: ED_VEG273_00002 | C11: Number of fire starts caused by vegetation blow-ins and fall-ins (NSP responsibility) (0's) | D11: 0 | E11: 0 | F11: 0 | G11: 0 | H11: 0 | I11: ED_VEG271_00002 | L11: Rural | M11: 37143.56333 | N11: 36914.87 | O11: 32775 | P11: 32927 | Q11: 33264 | R11: ED_VEG272_00002 | T11: Hazard tree cutting | U11: 1785.03375 | V11: 1691.245744 | W11: 2151.110998 | X11: 1752.368235 | Y11: 1308.654295
A12: ED_VEG273_00003 | C12: Number of fire starts caused by vegetation grow-ins (other party responsibility) (0's) | D12: 0 | E12: 0 | F12: 0 | G12: 0 | H12: 0 | I12: ED_VEG271_00003 | K12: Number of maintenance spans (0's) | L12: Urban and CBD | M12: 116552 | N12: 93616 | O12: 108778 | P12: 91310 | Q12: 52484.1827 | R12: ED_VEG272_00003 | T12: Ground clearance | U12: 0 | V12: 0 | W12: 0 | X12: 0 | Y12: 0
A13: ED_VEG273_00004 | C13: Number of fire starts caused by vegetation blow-ins and fall-ins (other party responsibility) (0's) | D13: 0 | E13: 0 | F13: 0 | G13: 0 | H13: 0 | I13: ED_VEG271_00004 | L13: Rural | M13: 63127 | N13: 59943 | O13: 62456 | P13: 57671 | Q13: 47928.50071 | R13: ED_VEG272_00004 | T13: Vegetation corridor clearance | U13: 8835.545779 | V13: 8371.314656 | W13: 10647.56708 | X13: 10235.6782 | Y13: 6843.822084
I14: ED_VEG271_00005 | K14: Total length of maintenance spans (KM) | L14: Urban and CBD | M14: 4662.08 | N14: 3744.64 | O14: 4351.12 | P14: 3652.4 | Q14: 2099.367308 | R14: ED_VEG272_00005 | T14: Inspection | U14: 3502.741215 | V14: 3318.702613 | W14: 3255.4855 | X14: 2122.593555 | Y14: 1397.137694
I15: ED_VEG271_00006 | L15: Rural | M15: 15781.75 | N15: 14985.75 | O15: 15614 | P15: 14417.75 | Q15: 11982.12518 | R15: ED_VEG272_00006 | T15: Audit | U15: 0 | V15: 0 | W15: 0 | X15: 0 | Y15: 0
I16: ED_VEG271_00007 | K16: Length of vegetation corridors (KM) | L16: Urban and CBD | M16: 4662.08 | N16: 3744.64 | O16: 4351.12 | P16: 3652.4 | Q16: 3711.8 | R16: ED_VEG272_00007 | T16: Contractor liaison expenditure | U16: 0 | V16: 0 | W16: 0 | X16: 0 | Y16: 0
I17: ED_VEG271_00008 | L17: Rural | M17: 15781.75 | N17: 14985.75 | O17: 15614 | P17: 14417.75 | Q17: 14963.25 | R17: ED_VEG272_00008 | T17: Tree replacement program costs | U17: 306.1782729 | V17: 290.0912662 | W17: 284.5672791 | X17: 247.469776 | Y17: 190.6509248
I18: ED_VEG271_00009 | K18: Average number of trees per maintenance span (0's) | L18: Urban and CBD | M18: 3.76673 | N18: 3.4243 | O18: 3.113 | P18: 2.83 | Q18: 2.50164925 | R18: ED_VEG272_00009 | T18: Other vegetation management expenditure | U18: 0 | V18: 0 | W18: 0 | X18: 0 | Y18: 41.06249249
I19: ED_VEG271_00010 | L19: Rural | M19: 11.20702 | N19: 10.1882 | O19: 9.262 | P19: 8.42 | Q19: 7.4430695 | R19: ED_VEG272_00010 | S19: ZONE 2 (DNSP to nominate) | T19: Tree trimming (excluding hazard trees) | U19: 2370.393997 | V19: 2245.850398 | W19: 2856.523899 | X19: 1332.899087 | Y19: 999.8825501
I20: ED_VEG271_00011 | K20: Average frequency of cutting cycle (years) | L20: Urban and CBD | M20: 1.412554569 | N20: 1.504931507 | O20: 1.414481409 | P20: 1.3 | Q20: 1.452564125 | R20: ED_VEG272_00011 | T20: Hazard tree cutting | U20: 1388.378987 | V20: 1315.43174 | W20: 1673.112395 | X20: 545.1504799 | Y20: 1135.80785
I21: ED_VEG271_00012 | L21: Rural | M21: 1.934417808 | N21: 2.438062622 | O21: 2.907794048 | P21: 2.65 | Q21: 2.536915657 | R21: ED_VEG272_00012 | T21: Ground clearance | U21: 0 | V21: 0 | W21: 0 | X21: 0 | Y21: 0
I22: ED_VEG271_00013 | J22: ZONE 2 (DNSP to nominate) | K22: Route line length within zone (KM) | L22: Urban and CBD | M22: 3555.131667 | N22: 3538.605 | O22: 5521 | P22: 5677 | Q22: 5606 | R22: ED_VEG272_00013 | T22: Vegetation corridor clearance | U22: 8170.196732 | V22: 7740.923918 | W22: 9845.764939 | X22: 11312.23638 | Y22: 11010.51489
I23: ED_VEG271_00014 | L23: Rural | M23: 41824.305 | N23: 41406.895 | O23: 37367 | P23: 37220 | Q23: 37475 | R23: ED_VEG272_00014 | T23: Inspection | U23: 2604.90966 | V23: 2468.044302 | W23: 2421.031506 | X23: 543.2875794 | Y23: 279.7132192
I24: ED_VEG271_00015 | K24: Number of maintenance spans (0's) | L24: Urban and CBD | M24: 51621 | N24: 68003 | O24: 65820 | P24: 54848 | Q24: 31857.01374 | R24: ED_VEG272_00015 | T24: Audit | U24: 0 | V24: 0 | W24: 0 | X24: 0 | Y24: 0
I25: ED_VEG271_00016 | L25: Rural | M25: 51143 | N25: 57311 | O25: 82307 | P25: 43482 | Q25: 54461.98503 | R25: ED_VEG272_00016 | T25: Contractor liaison expenditure | U25: 0 | V25: 0 | W25: 0 | X25: 0 | Y25: 0
I26: ED_VEG271_00017 | K26: Total length of maintenance spans (KM) | L26: Urban and CBD | M26: 2064.84 | N26: 2720.12 | O26: 2632.8 | P26: 2193.92 | Q26: 1274.28055 | R26: ED_VEG272_00017 | T26: Tree replacement program costs | U26: 306.2021181 | V26: 290.1138586 | W26: 284.5869853 | X26: 264.3218866 | Y26: 126.2453866
I27: ED_VEG271_00018 | L27: Rural | M27: 12785.75 | N27: 14327.75 | O27: 20576.75 | P27: 10870.5 | Q27: 13615.49626 | R27: ED_VEG272_00018 | T27: Other vegetation management expenditure | U27: 0 | V27: 0 | W27: 0 | X27: 0 | Y27: 1.595744352
I28: ED_VEG271_00019 | K28: Length of vegetation corridors (KM) | L28: Urban and CBD | M28: 2064.84 | N28: 2720.12 | O28: 2632.8 | P28: 2193.92 | Q28: 2253 | R28: ED_VEG272_00019 | S28: ZONE 3 (DNSP to nominate) | T28: Tree trimming (excluding hazard trees) | U28: 2140.665613 | V28: 2028.192244 | W28: 2579.680167 | X28: 1588.739543 | Y28: 2537.247187
I29: ED_VEG271_00020 | L29: Rural | M29: 12785.75 | N29: 14327.75 | O29: 20576.75 | P29: 10870.5 | Q29: 17003 | R29: ED_VEG272_00020 | T29: Hazard tree cutting | U29: 2143.915576 | V29: 2031.27145 | W29: 2583.59661 | X29: 1249.107149 | Y29: 2976.776128
I30: ED_VEG271_00021 | K30: Average number of trees per maintenance span (0's) | L30: Urban and CBD | M30: 4.75167 | N30: 4.3197 | O30: 3.927 | P30: 3.57 | Q30: 3.15579075 | R30: ED_VEG272_00021 | T30: Ground clearance | U30: 0 | V30: 0 | W30: 0 | X30: 0 | Y30: 0
I31: ED_VEG271_00022 | L31: Rural | M31: 14.53452 | N31: 13.2132 | O31: 12.012 | P31: 10.92 | Q31: 9.653007 | R31: ED_VEG272_00022 | T31: Vegetation corridor clearance | U31: 9893.74838 | V31: 9373.91791 | W31: 11922.78645 | X31: 9946.686586 | Y31: 8783.136732
I32: ED_VEG271_00023 | K32: Average frequency of cutting cycle (years) | L32: Urban and CBD | M32: 1.93109589 | N32: 2.693748443 | O32: 1.7 | P32: 1.42 | Q32: 1.620405007 | R32: ED_VEG272_00023 | T32: Inspection | U32: 3425.888762 | V32: 3245.88809 | W32: 3184.058259 | X32: 1213.028812 | Y32: 1246.281482
I33: ED_VEG271_00024 | L33: Rural | M33: 1.623287671 | N33: 3.161643836 | O33: 2.557534247 | P33: 3.07 | Q33: 2.517304175 | R33: ED_VEG272_00024 | T33: Audit | U33: 0 | V33: 0 | W33: 0 | X33: 0 | Y33: 0
I34: ED_VEG271_00025 | J34: ZONE 3 (DNSP to nominate) | K34: Route line length within zone (KM) | L34: Urban and CBD | M34: 5782.9 | N34: 5688.075 | O34: 9853 | P34: 9940 | Q34: 9714 | R34: ED_VEG272_00025 | T34: Contractor liaison expenditure | U34: 0 | V34: 0 | W34: 0 | X34: 0 | Y34: 0
I35: ED_VEG271_00026 | L35: Rural | M35: 58883.94333 | N35: 58909.565 | O35: 50159 | P35: 50183 | Q35: 50596 | R35: ED_VEG272_00026 | T35: Tree replacement program costs | U35: 306.1782729 | V35: 290.0912662 | W35: 284.5672791 | X35: 254.0435251 | Y35: 159.402688
I36: ED_VEG271_00027 | K36: Number of maintenance spans (0's) | L36: Urban and CBD | M36: 71920 | N36: 77837 | O36: 71346 | P36: 81040 | Q36: 42103.29268 | R36: ED_VEG272_00027 | T36: Other vegetation management expenditure | U36: 0 | V36: 0 | W36: 0 | X36: 0 | Y36: 65.19695898
I37: ED_VEG271_00028 | L37: Rural | M37: 102232 | N37: 131918 | O37: 126682 | P37: 103641 | Q37: 80262.00114 | R37: ED_VEG272_00028 | S37: ZONE 4 (DNSP to nominate) | T37: Tree trimming (excluding hazard trees)
I38: ED_VEG271_00029 | K38: Total length of maintenance spans (KM) | L38: Urban and CBD | M38: 2876.8 | N38: 3113.48 | O38: 2853.84 | P38: 3241.6 | Q38: 1684.131707 | R38: ED_VEG272_00029 | T38: Hazard tree cutting
I39: ED_VEG271_00030 | L39: Rural | M39: 25558 | N39: 32979.5 | O39: 31670.5 | P39: 25910.25 | Q39: 20065.50028 | R39: ED_VEG272_00030 | T39: Ground clearance
I40: ED_VEG271_00031 | K40: Length of vegetation corridors (KM) | L40: Urban and CBD | M40: 2876.8 | N40: 3113.48 | O40: 2853.84 | P40: 3241.6 | Q40: 2977.64 | R40: ED_VEG272_00031 | T40: Vegetation corridor clearance
I41: ED_VEG271_00032 | L41: Rural | M41: 25558 | N41: 32979.5 | O41: 31670.5 | P41: 25910.25 | Q41: 25057.75 | R41: ED_VEG272_00032 | T41: Inspection
I42: ED_VEG271_00033 | K42: Average number of trees per maintenance span (0's) | L42: Urban and CBD | M42: 3.14116 | N42: 2.8556 | O42: 2.596 | P42: 2.36 | Q42: 2.086181 | R42: ED_VEG272_00033 | T42: Audit
I43: ED_VEG271_00034 | L43: Rural | M43: 4.76498 | N43: 4.3318 | O43: 3.938 | P43: 3.58 | Q43: 3.1646305 | R43: ED_VEG272_00034 | T43: Contractor liaison expenditure
I44: ED_VEG271_00035 | K44: Average frequency of cutting cycle (years) | L44: Urban and CBD | M44: 1.72867265 | N44: 1.460808553 | O44: 1.982559305 | P44: 1.56 | Q44: 1.972987762 | R44: ED_VEG272_00035 | T44: Tree replacement program costs
I45: ED_VEG271_00036 | L45: Rural | M45: 2.610958904 | N45: 3.031506849 | O45: 2.928571429 | P45: 3.13 | Q45: 2.387070363 | R45: ED_VEG272_00036 | T45: Other vegetation management expenditure
I46: ED_VEG271_00037 | J46: ZONE 4 (DNSP to nominate) | K46: Route line length within zone (KM) | L46: Urban and CBD | R46: ED_VEG272_00037 | S46: ZONE 5 (DNSP to nominate) | T46: Tree trimming (excluding hazard trees)
I47: ED_VEG271_00038 | L47: Rural | R47: ED_VEG272_00038 | T47: Hazard tree cutting
I48: ED_VEG271_00039 | K48: Number of maintenance spans (0's) | L48: Urban and CBD | R48: ED_VEG272_00039 | T48: Ground clearance
I49: ED_VEG271_00040 | L49: Rural | R49: ED_VEG272_00040 | T49: Vegetation corridor clearance
I50: ED_VEG271_00041 | K50: Total length of maintenance spans (KM) | L50: Urban and CBD | R50: ED_VEG272_00041 | T50: Inspection
I51: ED_VEG271_00042 | L51: Rural | R51: ED_VEG272_00042 | T51: Audit
I52: ED_VEG271_00043 | K52: Length of vegetation corridors (KM) | L52: Urban and CBD | R52: ED_VEG272_00043 | T52: Contractor liaison expenditure
I53: ED_VEG271_00044 | L53: Rural | R53: ED_VEG272_00044 | T53: Tree replacement program costs
I54: ED_VEG271_00045 | K54: Average number of trees per maintenance span (0's) | L54: Urban and CBD | R54: ED_VEG272_00045 | T54: Other vegetation management expenditure
I55: ED_VEG271_00046 | L55: Rural | R55: ED_VEG272_00046 | S55: ZONE 6 (DNSP to nominate) | T55: Tree trimming (excluding hazard trees)
I56: ED_VEG271_00047 | K56: Average frequency of cutting cycle (years) | L56: Urban and CBD | R56: ED_VEG272_00047 | T56: Hazard tree cutting
I57: ED_VEG271_00048 | L57: Rural | R57: ED_VEG272_00048 | T57: Ground clearance
I58: ED_VEG271_00049 | J58: ZONE 5 (DNSP to nominate) | K58: Route line length within zone (KM) | L58: Urban and CBD | R58: ED_VEG272_00049 | T58: Vegetation corridor clearance
I59: ED_VEG271_00050 | L59: Rural | R59: ED_VEG272_00050 | T59: Inspection
I60: ED_VEG271_00051 | K60: Number of maintenance spans (0's) | L60: Urban and CBD | R60: ED_VEG272_00051 | T60: Audit
I61: ED_VEG271_00052 | L61: Rural | R61: ED_VEG272_00052 | T61: Contractor liaison expenditure
I62: ED_VEG271_00053 | K62: Total length of maintenance spans (KM) | L62: Urban and CBD | R62: ED_VEG272_00053 | T62: Tree replacement program costs
I63: ED_VEG271_00054 | L63: Rural | R63: ED_VEG272_00054 | T63: Other vegetation management expenditure
I64: ED_VEG271_00055 | K64: Length of vegetation corridors (KM) | L64: Urban and CBD | R64: ED_VEG272_00055 | S64: ZONE 7 (DNSP to nominate) | T64: Tree trimming (excluding hazard trees)
I65: ED_VEG271_00056 | L65: Rural | R65: ED_VEG272_00056 | T65: Hazard tree cutting
I66: ED_VEG271_00057 | K66: Average number of trees per maintenance span (0's) | L66: Urban and CBD | R66: ED_VEG272_00057 | T66: Ground clearance
I67: ED_VEG271_00058 | L67: Rural | R67: ED_VEG272_00058 | T67: Vegetation corridor clearance
I68: ED_VEG271_00059 | K68: Average frequency of cutting cycle (years) | L68: Urban and CBD | R68: ED_VEG272_00059 | T68: Inspection
I69: ED_VEG271_00060 | L69: Rural | R69: ED_VEG272_00060 | T69: Audit
I70: ED_VEG271_00061 | J70: ZONE 6 (DNSP to nominate) | K70: Route line length within zone (KM) | L70: Urban and CBD | R70: ED_VEG272_00061 | T70: Contractor liaison expenditure
I71: ED_VEG271_00062 | L71: Rural | R71: ED_VEG272_00062 | T71: Tree replacement program costs
I72: ED_VEG271_00063 | K72: Number of maintenance spans (0's) | L72: Urban and CBD | R72: ED_VEG272_00063 | T72: Other vegetation management expenditure
I73: ED_VEG271_00064 | L73: Rural | R73: ED_VEG272_00064 | S73: ZONE 8 (DNSP to nominate) | T73: Tree trimming (excluding hazard trees)
I74: ED_VEG271_00065 | K74: Total length of maintenance spans (KM) | L74: Urban and CBD | R74: ED_VEG272_00065 | T74: Hazard tree cutting
I75: ED_VEG271_00066 | L75: Rural | R75: ED_VEG272_00066 | T75: Ground clearance
I76: ED_VEG271_00067 | K76: Length of vegetation corridors (KM) | L76: Urban and CBD | R76: ED_VEG272_00067 | T76: Vegetation corridor clearance
I77: ED_VEG271_00068 | L77: Rural | R77: ED_VEG272_00068 | T77: Inspection
I78: ED_VEG271_00069 | K78: Average number of trees per maintenance span (0's) | L78: Urban and CBD | R78: ED_VEG272_00069 | T78: Audit
I79: ED_VEG271_00070 | L79: Rural | R79: ED_VEG272_00070 | T79: Contractor liaison expenditure
I80: ED_VEG271_00071 | K80: Average frequency of cutting cycle (years) | L80: Urban and CBD | R80: ED_VEG272_00071 | T80: Tree replacement program costs
I81: ED_VEG271_00072 | L81: Rural | R81: ED_VEG272_00072 | T81: Other vegetation management expenditure
I82: ED_VEG271_00073 | J82: ZONE 7 (DNSP to nominate) | K82: Route line length within zone (KM) | L82: Urban and CBD | R82: ED_VEG272_00073 | S82: ZONE 9 (DNSP to nominate) | T82: Tree trimming (excluding hazard trees)
I83: ED_VEG271_00074 | L83: Rural | R83: ED_VEG272_00074 | T83: Hazard tree cutting
I84: ED_VEG271_00075 | K84: Number of maintenance spans (0's) | L84: Urban and CBD | R84: ED_VEG272_00075 | T84: Ground clearance
I85: ED_VEG271_00076 | L85: Rural | R85: ED_VEG272_00076 | T85: Vegetation corridor clearance
I86: ED_VEG271_00077 | K86: Total length of maintenance spans (KM) | L86: Urban and CBD | R86: ED_VEG272_00077 | T86: Inspection
I87: ED_VEG271_00078 | L87: Rural | R87: ED_VEG272_00078 | T87: Audit
I88: ED_VEG271_00079 | K88: Length of vegetation corridors (KM) | L88: Urban and CBD | R88: ED_VEG272_00079 | T88: Contractor liaison expenditure
I89: ED_VEG271_00080 | L89: Rural | R89: ED_VEG272_00080 | T89: Tree replacement program costs
I90: ED_VEG271_00081 | K90: Average number of trees per maintenance span (0's) | L90: Urban and CBD | R90: ED_VEG272_00081 | T90: Other vegetation management expenditure
I91: ED_VEG271_00082 | L91: Rural | R91: ED_VEG272_00082 | S91: ZONE 10 (DNSP to nominate) | T91: Tree trimming (excluding hazard trees)
I92: ED_VEG271_00083 | K92: Average frequency of cutting cycle (years) | L92: Urban and CBD | R92: ED_VEG272_00083 | T92: Hazard tree cutting
I93: ED_VEG271_00084 | L93: Rural | R93: ED_VEG272_00084 | T93: Ground clearance
I94: ED_VEG271_00085 | J94: ZONE 8 (DNSP to nominate) | K94: Route line length within zone (KM) | L94: Urban and CBD | R94: ED_VEG272_00085 | T94: Vegetation corridor clearance
I95: ED_VEG271_00086 | L95: Rural | R95: ED_VEG272_00086 | T95: Inspection
I96: ED_VEG271_00087 | K96: Number of maintenance spans (0's) | L96: Urban and CBD | R96: ED_VEG272_00087 | T96: Audit
I97: ED_VEG271_00088 | L97: Rural | R97: ED_VEG272_00088 | T97: Contractor liaison expenditure
I98: ED_VEG271_00089 | K98: Total length of maintenance spans (KM) | L98: Urban and CBD | R98: ED_VEG272_00089 | T98: Tree replacement program costs
I99: ED_VEG271_00090 | L99: Rural | R99: ED_VEG272_00090 | T99: Other vegetation management expenditure
I100: ED_VEG271_00091 | K100: Length of vegetation corridors (KM) | L100: Urban and CBD | R100: ED_VEG272_00091 | S100: ZONE 11 (DNSP to nominate) | T100: Tree trimming (excluding hazard trees)
I101: ED_VEG271_00092 | L101: Rural | R101: ED_VEG272_00092 | T101: Hazard tree cutting
I102: ED_VEG271_00093 | K102: Average number of trees per maintenance span (0's) | L102: Urban and CBD | R102: ED_VEG272_00093 | T102: Ground clearance
I103: ED_VEG271_00094 | L103: Rural | R103: ED_VEG272_00094 | T103: Vegetation corridor clearance
I104: ED_VEG271_00095 | K104: Average frequency of cutting cycle (years) | L104: Urban and CBD | R104: ED_VEG272_00095 | T104: Inspection
I105: ED_VEG271_00096 | L105: Rural | R105: ED_VEG272_00096 | T105: Audit
I106: ED_VEG271_00097 | J106: ZONE 9 (DNSP to nominate) | K106: Route line length within zone (KM) | L106: Urban and CBD | R106: ED_VEG272_00097 | T106: Contractor liaison expenditure
I107: ED_VEG271_00098 | L107: Rural | R107: ED_VEG272_00098 | T107: Tree replacement program costs
I108: ED_VEG271_00099 | K108: Number of maintenance spans (0's) | L108: Urban and CBD | R108: ED_VEG272_00099 | T108: Other vegetation management expenditure
I109: ED_VEG271_00100 | L109: Rural | R109: ED_VEG272_00100 | S109: ZONE 12 (DNSP to nominate) | T109: Tree trimming (excluding hazard trees)
I110: ED_VEG271_00101 | K110: Total length of maintenance spans (KM) | L110: Urban and CBD | R110: ED_VEG272_00101 | T110: Hazard tree cutting
I111: ED_VEG271_00102 | L111: Rural | R111: ED_VEG272_00102 | T111: Ground clearance
I112: ED_VEG271_00103 | K112: Length of vegetation corridors (KM) | L112: Urban and CBD | R112: ED_VEG272_00103 | T112: Vegetation corridor clearance
I113: ED_VEG271_00104 | L113: Rural | R113: ED_VEG272_00104 | T113: Inspection
I114: ED_VEG271_00105 | K114: Average number of trees per maintenance span (0's) | L114: Urban and CBD | R114: ED_VEG272_00105 | T114: Audit
I115: ED_VEG271_00106 | L115: Rural | R115: ED_VEG272_00106 | T115: Contractor liaison expenditure
I116: ED_VEG271_00107 | K116: Average frequency of cutting cycle (years) | L116: Urban and CBD | R116: ED_VEG272_00107 | T116: Tree replacement program costs
I117: ED_VEG271_00108 | L117: Rural | R117: ED_VEG272_00108 | T117: Other vegetation management expenditure
I118: ED_VEG271_00109 | J118: ZONE 10 (DNSP to nominate) | K118: Route line length within zone (KM) | L118: Urban and CBD | R118: ED_VEG272_00109 | S118: ZONE 13 (DNSP to nominate) | T118: Tree trimming (excluding hazard trees)
I119: ED_VEG271_00110 | L119: Rural | R119: ED_VEG272_00110 | T119: Hazard tree cutting
I120: ED_VEG271_00111 | K120: Number of maintenance spans (0's) | L120: Urban and CBD | R120: ED_VEG272_00111 | T120: Ground clearance
I121: ED_VEG271_00112 | L121: Rural | R121: ED_VEG272_00112 | T121: Vegetation corridor clearance
I122: ED_VEG271_00113 | K122: Total length of maintenance spans (KM) | L122: Urban and CBD | R122: ED_VEG272_00113 | T122: Inspection
I123: ED_VEG271_00114 | L123: Rural | R123: ED_VEG272_00114 | T123: Audit
I124: ED_VEG271_00115 | K124: Length of vegetation corridors (KM) | L124: Urban and CBD | R124: ED_VEG272_00115 | T124: Contractor liaison expenditure
I125: ED_VEG271_00116 | L125: Rural | R125: ED_VEG272_00116 | T125: Tree replacement program costs
I126: ED_VEG271_00117 | K126: Average number of trees per maintenance span (0's) | L126: Urban and CBD | R126: ED_VEG272_00117 | T126: Other vegetation management expenditure
I127: ED_VEG271_00118 | L127: Rural | R127: ED_VEG272_00118 | S127: ZONE 14 (DNSP to nominate) | T127: Tree trimming (excluding hazard trees)
I128: ED_VEG271_00119 | K128: Average frequency of cutting cycle (years) | L128: Urban and CBD | R128: ED_VEG272_00119 | T128: Hazard tree cutting
I129: ED_VEG271_00120 | L129: Rural | R129: ED_VEG272_00120 | T129: Ground clearance
I130: ED_VEG271_00121 | J130: ZONE 11 (DNSP to nominate) | K130: Route line length within zone (KM) | L130: Urban and CBD | R130: ED_VEG272_00121 | T130: Vegetation corridor clearance
I131: ED_VEG271_00122 | L131: Rural | R131: ED_VEG272_00122 | T131: Inspection
I132: ED_VEG271_00123 | K132: Number of maintenance spans (0's) | L132: Urban and CBD | R132: ED_VEG272_00123 | T132: Audit
I133: ED_VEG271_00124 | L133: Rural | R133: ED_VEG272_00124 | T133: Contractor liaison expenditure
I134: ED_VEG271_00125 | K134: Total length of maintenance spans (KM) | L134: Urban and CBD | R134: ED_VEG272_00125 | T134: Tree replacement program costs
I135: ED_VEG271_00126 | L135: Rural | R135: ED_VEG272_00126 | T135: Other vegetation management expenditure
I136: ED_VEG271_00127 | K136: Length of vegetation corridors (KM) | L136: Urban and CBD | R136: ED_VEG272_00127 | S136: ZONE 15 (DNSP to nominate) | T136: Tree trimming (excluding hazard trees)
I137: ED_VEG271_00128 | L137: Rural | R137: ED_VEG272_00128 | T137: Hazard tree cutting
I138: ED_VEG271_00129 | K138: Average number of trees per maintenance span (0's) | L138: Urban and CBD | R138: ED_VEG272_00129 | T138: Ground clearance
I139: ED_VEG271_00130 | L139: Rural | R139: ED_VEG272_00130 | T139: Vegetation corridor clearance
I140: ED_VEG271_00131 | K140: Average frequency of cutting cycle (years) | L140: Urban and CBD | R140: ED_VEG272_00131 | T140: Inspection
I141: ED_VEG271_00132 | L141: Rural | R141: ED_VEG272_00132 | T141: Audit
I142: ED_VEG271_00133 | J142: ZONE 12 (DNSP to nominate) | K142: Route line length within zone (KM) | L142: Urban and CBD | R142: ED_VEG272_00133 | T142: Contractor liaison expenditure
I143: ED_VEG271_00134 | L143: Rural | R143: ED_VEG272_00134 | T143: Tree replacement program costs
I144: ED_VEG271_00135 | K144: Number of maintenance spans (0's) | L144: Urban and CBD | R144: ED_VEG272_00135 | T144: Other vegetation management expenditure
I145: ED_VEG271_00136 | L145: Rural | R145: ED_VEG272_00136 | S145: ZONE 16 (DNSP to nominate) | T145: Tree trimming (excluding hazard trees)
I146: ED_VEG271_00137 | K146: Total length of maintenance spans (KM) | L146: Urban and CBD | R146: ED_VEG272_00137 | T146: Hazard tree cutting
I147: ED_VEG271_00138 | L147: Rural | R147: ED_VEG272_00138 | T147: Ground clearance
I148: ED_VEG271_00139 | K148: Length of vegetation corridors (KM) | L148: Urban and CBD | R148: ED_VEG272_00139 | T148: Vegetation corridor clearance
I149: ED_VEG271_00140 | L149: Rural | R149: ED_VEG272_00140 | T149: Inspection
I150: ED_VEG271_00141 | K150: Average number of trees per maintenance span (0's) | L150: Urban and CBD | R150: ED_VEG272_00141 | T150: Audit
I151: ED_VEG271_00142 | L151: Rural | R151: ED_VEG272_00142 | T151: Contractor liaison expenditure
I152: ED_VEG271_00143 | K152: Average frequency of cutting cycle (years) | L152: Urban and CBD | R152: ED_VEG272_00143 | T152: Tree replacement program costs
I153: ED_VEG271_00144 | L153: Rural | R153: ED_VEG272_00144 | T153: Other vegetation management expenditure
I154: ED_VEG271_00145 | J154: ZONE 13 (DNSP to nominate) | K154: Route line length within zone (KM) | L154: Urban and CBD | R154: ED_VEG272_00145 | S154: ZONE 17 (DNSP to nominate) | T154: Tree trimming (excluding hazard trees)
I155: ED_VEG271_00146 | L155: Rural | R155: ED_VEG272_00146 | T155: Hazard tree cutting
I156: ED_VEG271_00147 | K156: Number of maintenance spans (0's) | L156: Urban and CBD | R156: ED_VEG272_00147 | T156: Ground clearance
I157: ED_VEG271_00148 | L157: Rural | R157: ED_VEG272_00148 | T157: Vegetation corridor clearance
I158: ED_VEG271_00149 | K158: Total length of maintenance spans (KM) | L158: Urban and CBD | R158: ED_VEG272_00149 | T158: Inspection
I159: ED_VEG271_00150 | L159: Rural | R159: ED_VEG272_00150 | T159: Audit
I160: ED_VEG271_00151 | K160: Length of vegetation corridors (KM) | L160: Urban and CBD | R160: ED_VEG272_00151 | T160: Contractor liaison expenditure
I161: ED_VEG271_00152 | L161: Rural | R161: ED_VEG272_00152 | T161: Tree replacement program costs
I162: ED_VEG271_00153 | K162: Average number of trees per maintenance span (0's) | L162: Urban and CBD | R162: ED_VEG272_00153 | T162: Other vegetation management expenditure
I163: ED_VEG271_00154 | L163: Rural | R163: ED_VEG272_00154 | S163: ZONE 18 (DNSP to nominate) | T163: Tree trimming (excluding hazard trees)
I164: ED_VEG271_00155 | K164: Average frequency of cutting cycle (years) | L164: Urban and CBD | R164: ED_VEG272_00155 | T164: Hazard tree cutting
I165: ED_VEG271_00156 | L165: Rural | R165: ED_VEG272_00156 | T165: Ground clearance
I166: ED_VEG271_00157 | J166: ZONE 14 (DNSP to nominate) | K166: Route line length within zone (KM) | L166: Urban and CBD | R166: ED_VEG272_00157 | T166: Vegetation corridor clearance
I167: ED_VEG271_00158 | L167: Rural | R167: ED_VEG272_00158 | T167: Inspection
I168: ED_VEG271_00159 | K168: Number of maintenance spans (0's) | L168: Urban and CBD | R168: ED_VEG272_00159 | T168: Audit
I169: ED_VEG271_00160 | L169: Rural | R169: ED_VEG272_00160 | T169: Contractor liaison expenditure
I170: ED_VEG271_00161 | K170: Total length of maintenance spans (KM) | L170: Urban and CBD | R170: ED_VEG272_00161 | T170: Tree replacement program costs
I171: ED_VEG271_00162 | L171: Rural | R171: ED_VEG272_00162 | T171: Other vegetation management expenditure
I172: ED_VEG271_00163 | K172: Length of vegetation corridors (KM) | L172: Urban and CBD
I173: ED_VEG271_00164 | L173: Rural
I174: ED_VEG271_00165 | K174: Average number of trees per maintenance span (0's) | L174: Urban and CBD
I175: ED_VEG271_00166 | L175: Rural
I176: ED_VEG271_00167 | K176: Average frequency of cutting cycle (years) | L176: Urban and CBD
I177: ED_VEG271_00168 | L177: Rural
I178: ED_VEG271_00169 | J178: ZONE 15 (DNSP to nominate) | K178: Route line length within zone (KM) | L178: Urban and CBD
I179: ED_VEG271_00170 | L179: Rural
I180: ED_VEG271_00171 | K180: Number of maintenance spans (0's) | L180: Urban and CBD
I181: ED_VEG271_00172 | L181: Rural
I182: ED_VEG271_00173 | K182: Total length of maintenance spans (KM) | L182: Urban and CBD
I183: ED_VEG271_00174 | L183: Rural
I184: ED_VEG271_00175 | K184: Length of vegetation corridors (KM) | L184: Urban and CBD
I185: ED_VEG271_00176 | L185: Rural
I186: ED_VEG271_00177 | K186: Average number of trees per maintenance span (0's) | L186: Urban and CBD
I187: ED_VEG271_00178 | L187: Rural
I188: ED_VEG271_00179 | K188: Average frequency of cutting cycle (years) | L188: Urban and CBD
I189: ED_VEG271_00180 | L189: Rural
I190: ED_VEG271_00181 | J190: ZONE 16 (DNSP to nominate) | K190: Route line length within zone (KM) | L190: Urban and CBD
I191: ED_VEG271_00182 | L191: Rural
I192: ED_VEG271_00183 | K192: Number of maintenance spans (0's) | L192: Urban and CBD
I193: ED_VEG271_00184 | L193: Rural
I194: ED_VEG271_00185 | K194: Total length of maintenance spans (KM) | L194: Urban and CBD
I195: ED_VEG271_00186 | L195: Rural
I196: ED_VEG271_00187 | K196: Length of vegetation corridors (KM) | L196: Urban and CBD
I197: ED_VEG271_00188 | L197: Rural
I198: ED_VEG271_00189 | K198: Average number of trees per maintenance span (0's) | L198: Urban and CBD
I199: ED_VEG271_00190 | L199: Rural
I200: ED_VEG271_00191 | K200: Average frequency of cutting cycle (years) | L200: Urban and CBD
I201: ED_VEG271_00192 | L201: Rural
I202: ED_VEG271_00193 | J202: ZONE 17 (DNSP to nominate) | K202: Route line length within zone (KM) | L202: Urban and CBD
... 23 more rows

Sheet 2.8 Maintenance
C1: REGULATORY REPORTING STATEMENT
C2: =TradingName -> Ergon Energy
C3: =RCP_1to5 -> 2015-16 to 2019-20
C4: 2.8 MAINTENANCE
C8: TABLE 2.8.1 - DESCRIPTOR METRICS FOR ROUTINE AND NON-ROUTINE MAINTENANCE | X8: TABLE 2.8.2 - COST METRICS FOR ROUTINE AND NON-ROUTINE MAINTENANCE
F10: ASSET QUANTITY - AT YEAR END | K10: ASSET QUANTITY - INSPECTED/ MAINTAINED | P10: AVERAGE AGE OF ASSET GROUP | U10: INSPECTION CYCLE (YEARS) | V10: MAINTENANCE CYCLE (YEARS) | Z10: ROUTINE MAINTENANCE EXPENDITURE ($000'S) | AE10: NON-ROUTINE MAINTENANCE EXPENDITURE ($000'S)
C11: MAINTENANCE ACTIVITY | D11: MAINTENANCE ASSET CATEGORY | E11: UNIT OF MEASURE - ASSET QUANTITY | F11: =PRCP_y5 -> 2009-10 | G11: =CRCP -> 2010-11 | H11: 2011-12 | I11: 2012-13 | J11: 2013-14 | K11: =PRCP_y5 -> 2009-10 | L11: =CRCP -> 2010-11 | M11: 2011-12 | N11: 2012-13 | O11: 2013-14 | P11: =PRCP_y5 -> 2009-10 | Q11: =CRCP -> 2010-11 | R11: 2011-12 | S11: 2012-13 | T11: 2013-14 | X11: MAINTENANCE ACTIVITY | Y11: MAINTENANCE ASSET CATEGORY | Z11: =CRCP -> 2010-11 | AA11: 2011-12 | AB11: 2012-13 | AC11: 2013-14 | AD11: 2014-15 | AE11: =CRCP -> 2010-11 | AF11: 2011-12 | AG11: 2012-13 | AH11: 2013-14 | AI11: 2014-15
A12: ED_MAI281_00001 | C12: Pole top, overhead line & service line maintenance | D12: Pole tops and overhead lines | E12: Number of poles | F12: 957.86496 | G12: 973.44 | H12: 968.811 | I12: 961.363 | J12: 959.561 | K12: 5.274194291 | L12: 7.332648338 | M12: 13.39975123 | N12: 15.7208 | O12: 8.0514 | P12: 18.43919636 | Q12: 19.43919636 | R12: 24.42146691 | S12: 28.60107974 | T12: 31.58320107 | U12: 4.5 | V12: 0 | W12: ED_MAI282_00001 | X12: Pole top, overhead line & service line maintenance | Y12: Pole tops and overhead lines | Z12: 1810.812972 | AA12: 2501.338095 | AB12: 3174.137802 | AC12: 496.62561 | AD12: 1459.139985 | AE12: 10417.88464 | AF12: 12502.58142 | AG12: 13129.78367 | AH12: 12793.91397 | AI12: 10734.14922
A13: ED_MAI281_00002 | D13: Service lines | E13: Number of customers | F13: 312.274368 | G13: 317.352 | H13: 317.352 | I13: 462.529 | J13: 461.6620254 | K13: 0.2637097145 | L13: 0.2666324169 | M13: 0.3199875614 | N13: 0.33604 | O13: 0.28992 | P13: 8.272607772 | Q13: 9.272607772 | R13: 10.27260777 | S13: 11.27260777 | T13: 12.09224605 | U13: 4.5 | V13: 0 | W13: ED_MAI282_00002 | Y13: Service lines | Z13: 0 | AA13: 0 | AB13: 0 | AC13: 0 | AD13: 0 | AE13: 520.8942319 | AF13: 625.1290708 | AG13: 656.4891837 | AH13: 639.6956984 | AI13: 536.7074611
A14: ED_MAI281_00003 | C14: Pole inspection and treatment | D14: All poles | E14: Number of poles | F14: 957.86496 | G14: 973.44 | H14: 968.811 | I14: 961.363 | J14: 959.561 | K14: 247.1398549 | L14: 243.6663162 | M14: 300.1599938 | N14: 259.69802 | O14: 273.30096 | P14: 18.99866042 | Q14: 19.99866042 | R14: 25.53004061 | S14: 27.28911556 | T14: 27.64269494 | U14: 4.5 | V14: 0 | W14: ED_MAI282_00003 | X14: Pole inspection and treatment | Y14: All poles | Z14: 20132.43869 | AA14: 27809.63335 | AB14: 26835.63112 | AC14: 21624.17185 | AD14: 21473.13688 | AE14: 260.447116 | AF14: 312.5645354 | AG14: 328.2445918 | AH14: 319.8478492 | AI14: 268.3537306
A15: ED_MAI281_00004 | C15: Overhead asset inspection | D15: All overhead assets | E15: Line patrolled (route KM) | F15: 161.575752 | G15: 164.203 | H15: 155.573 | I15: 154.471 | J15: 154.712942 | K15: 27.13185486 | L15: 33.38331621 | M15: 29.40999378 | N15: 38.17502 | O15: 19.93171 | P15: 20.30470817 | Q15: 21.30470817 | R15: 26.6004687 | S15: 27.6004687 | T15: 31.4226983 | U15: 1 | V15: 0 | W15: ED_MAI282_00004 | X15: Overhead asset inspection | Y15: All overhead assets | Z15: 1195.540474 | AA15: 1651.437445 | AB15: 691.4144681 | AC15: 510.420656 | AD15: 848.2893235 | AE15: 260.447116 | AF15: 312.5645354 | AG15: 328.2445918 | AH15: 319.8478492 | AI15: 268.3537306
A16: ED_MAI281_00005 | C16: Network underground cable maintenance: by voltage | D16: LV - 11 to 22 KV | E16: Length (KM) | F16: 5.298296832 | G16: 5.384448 | H16: 5.472 | I16: 5.804 | J16: 6.101488166 | K16: 0.0001318548573 | L16: 0.0001333162084 | M16: 0.0001599937807 | N16: 0.00016802 | O16: 0.0001812 | P16: 8.251177552 | Q16: 9.251177552 | R16: 10.25117755 | S16: 11.25117755 | T16: 5.3511384 | U16: 0 | V16: 0 | W16: ED_MAI282_00005 | X16: Network underground cable maintenance: by voltage | Y16: LV - 11 to 22 KV | Z16: 0 | AA16: 0 | AB16: 0 | AC16: 0 | AD16: 0 | AE16: 260.447116 | AF16: 312.5645354 | AG16: 328.2445918 | AH16: 319.8478492 | AI16: 268.3537306
A17: ED_MAI281_00006 | D17: 33 KV and above | E17: Length (KM) | F17: 2.024088 | G17: 2.057 | H17: 2.095 | I17: 2.291 | J17: 2.402064839 | K17: 0 | L17: 0 | M17: 0 | N17: 0 | O17: 0 | P17: 9.788303715 | Q17: 10.78830371 | R17: 11.78830371 | S17: 11.27270031 | T17: 11.70598535 | U17: 0 | V17: 0 | W17: ED_MAI282_00006 | Y17: 33 KV and above | Z17: 0 | AA17: 0 | AB17: 0 | AC17: 0 | AD17: 0 | AE17: 0 | AF17: 0 | AG17: 0 | AH17: 0 | AI17: 0
A18: ED_MAI281_00007 | C18: Network underground cable maintenance: by location | D18: Cbd | E18: Length (KM) | F18: 0 | G18: 0 | H18: 0 | I18: 0 | J18: 0 | K18: 0 | L18: 0 | M18: 0 | N18: 0 | O18: 0 | P18: 0 | Q18: 0 | R18: 0 | S18: 0 | T18: 0 | U18: 0 | V18: 0 | W18: ED_MAI282_00007 | X18: Network underground cable maintenance: by location | Y18: CBD | Z18: 0 | AA18: 0 | AB18: 0 | AC18: 0 | AD18: 0 | AE18: 0 | AF18: 0 | AG18: 0 | AH18: 0 | AI18: 0
A19: ED_MAI281_00008 | D19: Non-CBD | E19: Length (KM) | F19: 7.322384832 | G19: 7.441448 | H19: 7.567 | I19: 8.095 | J19: 8.503553004 | K19: 0.0001318548573 | L19: 0.0001333162084 | M19: 0.0001599937807 | N19: 0.00016802 | O19: 0.0001812 | P19: 8.676077184 | Q19: 9.676077184 | R19: 10.67607718 | S19: 11.25713634 | T19: 5.982762167 | U19: 0 | V19: 0 | W19: ED_MAI282_00008 | Y19: Non-CBD | Z19: 0 | AA19: 0 | AB19: 0 | AC19: 0 | AD19: 0 | AE19: 260.447116 | AF19: 312.5645354 | AG19: 328.2445918 | AH19: 319.8478492 | AI19: 268.3537306
A20: ED_MAI281_00009 | C20: Distribution substation equipment & property maintenance | D20: Distribution substation transformers | E20: Number of installed transformers | F20: 90.551616 | G20: 92.024 | H20: 93.662 | I20: 96.059 | J20: 97.351 | K20: 4.092854857 | L20: 3.505316208 | M20: 4.386993781 | N20: 1.62602 | O20: 3.71796 | P20: 18.01494693 | Q20: 19.01494693 | R20: 20.01494693 | S20: 19.79000406 | T20: 19.98092547 | U20: 1 | V20: 0 | W20: ED_MAI282_00009 | X20: Distribution substation equipment & property maintenance | Y20: Distribution substation transformers | Z20: 482.0523735 | AA20: 665.8746608 | AB20: 591.959003 | AC20: 693.3208363 | AD20: 921.4623076 | AE20: 260.447116 | AF20: 312.5645354 | AG20: 328.2445918 | AH20: 319.8478492 | AI20: 268.3537306
A21: ED_MAI281_00010 | D21: Distribution substation switchgear (within-substations and stand-alone switchgear) | E21: Number of switches | F21: 17.49348115 | G21: 17.777928 | H21: 18.067 | I21: 17.784 | J21: 18.02319599 | K21: 0.1420430649 | L21: 0.3331221355 | M21: 0.4359937807 | N21: 0.46402 | O21: 0.30296 | P21: 9.521608229 | Q21: 10.52160823 | R21: 11.52160823 | S21: 8.960363216 | T21: 14.45922468 | U21: 12 | V21: 0 | W21: ED_MAI282_00010 | Y21: Distribution substation switchgear (within-substations and stand-alone switchgear) | Z21: 1480.953993 | AA21: 2045.701587 | AB21: 420.7181113 | AC21: 420.3544857 | AD21: 4078.302052 | AE21: 260.447116 | AF21: 312.5645354 | AG21: 328.2445918 | AH21: 319.8478492 | AI21: 268.3537306
A22: ED_MAI281_00011 | D22: Distribution substation - other equipment | E22: Earth mat | F22: 90.551616 | G22: 92.024 | H22: 93.662 | I22: 96.059 | J22: 97.351 | K22: 15.81663714 | L22: 16.33129052 | M22: 17.56798445 | N22: 17.47505 | O22: 13.7214 | P22: 18.33006261 | Q22: 19.33006261 | R22: 20.33006261 | S22: 21.33006261 | T22: 21.98878161 | U22: 4.5 | V22: 0 | W22: ED_MAI282_00011 | Y22: Distribution substation - other equipment | Z22: 2755.362496 | AA22: 3806.072074 | AB22: 5514.449611 | AC22: 3156.838081 | AD22: 5450.218318 | AE22: 651.1177899 | AF22: 781.4113385 | AG22: 820.6114796 | AH22: 799.619623 | AI22: 670.8843264
A23: ED_MAI281_00012 | D23: Distribution substation - property | E23: Number of distribution substation properties maintained | F23: 90.551616 | G23: 92.024 | H23: 93.662 | I23: 96.059 | J23: 97.351 | K23: 0.06592742863 | L23: 0.09647493496 | M23: 0.1211864895 | N23: 0.11001 | O23: 0.08848 | P23: 0 | Q23: 0 | R23: 0 | S23: 0 | U23: 0 | V23: 0 | W23: ED_MAI282_00012 | Y23: Distribution substation - property | Z23: 67.96279972 | AA23: 93.88524563 | AB23: 59.26293134 | AC23: 14.62144392 | AD23: 0 | AE23: 130.223558 | AF23: 156.2822677 | AG23: 164.1222959 | AH23: 159.9239246 | AI23: 134.1768653
A24: ED_MAI281_00013 | C24: Zone substation equipment maintenance | D24: Transformers - zone substation | E24: Number of zone substation transformers | F24: 0.633696 | G24: 0.644 | H24: 0.626 | I24: 0.627 | J24: 0.597 | K24: 0.3418056105 | L24: 0.4004620549 | M24: 0.388981836 | N24: 0.3622 | O24: 0.5486 | P24: 26.55900621 | Q24: 27.55900621 | R24: 28.58009331 | S24: 30.55980861 | T24: 27.58 | U24: 1.5 | V24: 12 | W24: ED_MAI282_00013 | X24: Zone substation equipment maintenance | Y24: Transformers - zone substation | Z24: 1392.592274 | AA24: 1506.859582 | AB24: 1481.207356 | AC24: 525.07404 | AD24: 616.1454714 | AE24: 547.0859194 | AF24: 577.3311449 | AG24: 481.226381 | AH24: 385.323475 | AI24: 451.3652888
A25: ED_MAI281_00014 | D25: Transformers - distribution | E25: Number of distribution transformers within zone substations | F25: 0.391632 | G25: 0.398 | H25: 0.396 | I25: 0.38 | J25: 0.387 | K25: 0.8347611221 | L25: 0.842292411 | M25: 0.7957963672 | N25: 0.84584 | O25: 1.04132 | P25: 26.55900621 | Q25: 27.55900621 | R25: 28.58009331 | S25: 30.55980861 | T25: 15.94146341 | U25: 0.5 | V25: 0 | W25: ED_MAI282_00014 | Y25: Transformers - distribution | Z25: 249.0004841 | AA25: 269.4348951 | AB25: 196.6651896 | AC25: 120.5745351 | AD25: 110.0873043 | AE25: 109.4171839 | AF25: 115.466229 | AG25: 96.24527621 | AH25: 77.064695 | AI25: 90.27305775
A26: ED_MAI281_00015 | D26: Transformers - HV | E26: Number of HV transformers | F26: 0 | G26: 0 | H26: 0 | I26: 0 | J26: 0 | K26: 0 | L26: 0 | M26: 0 | N26: 0 | O26: 0 | P26: 0 | Q26: 0 | R26: 0 | S26: 0 | T26: 0 | U26: 0 | V26: 0 | W26: ED_MAI282_00015 | Y26: Transformers - HV | Z26: 0 | AA26: 0 | AB26: 0 | AC26: 0 | AD26: 0 | AE26: 0 | AF26: 0 | AG26: 0 | AH26: 0 | AI26: 0
A27: ED_MAI281_00016 | D27: Zone substation - other equipment | E27: DNSP to nominate | F27: 13.750416 | G27: 13.974 | H27: 14.826 | I27: 15.445 | J27: 15.947 | K27: 5.386500989 | L27: 7.833316989 | M27: 8.701673048 | N27: 8.1236 | O27: 6.21488 | P27: 21.87755832 | Q27: 22.87755832 | R27: 24.24480649 | S27: 27.38225963 | T27: 20.84123725 | U27: 1.5 | V27: 12 | W27: ED_MAI282_00016 | Y27: Zone substation - other equipment | Z27: 5166.747059 | AA27: 4696.71687 | AB27: 8359.393904 | AC27: 6501.306284 | AD27: 5329.259637 | AE27: 9847.546549 | AF27: 10391.96061 | AG27: 8662.074859 | AH27: 6935.82255 | AI27: 8124.575198
A28: ED_MAI281_00017 | C28: Zone substation property maintenance | D28: All zone substation properties | E28: Number of zone substation properties maintained | F28: 0.391632 | G28: 0.398 | H28: 0.396 | I28: 0.38 | J28: 0.387 | K28: 0.9280444884 | L28: 0.962169644 | M28: 0.9321854688 | N28: 1.04336 | O28: 1.13228 | P28: 0 | Q28: 0 | R28: 0 | S28: 0 | U28: 1.5 | V28: 0 | W28: ED_MAI282_00017 | X28: Zone substation property maintenance | Y28: All zone substation properties | Z28: 254.1466661 | AA28: 274.9996331 | AB28: 1191.517533 | AC28: 1064.143824 | AD28: 866.6463604 | AE28: 437.6687355 | AF28: 461.8649159 | AG28: 384.9811048 | AH28: 308.25878 | AI28: 361.092231
A29: ED_MAI281_00018 | C29: Public lighting maintenance | D29: Minor roads | E29: Number of public lights maintained | F29: 0 | G29: 0 | H29: 0 | I29: 0 | J29: 0 | K29: 0 | L29: 0 | M29: 0 | N29: 0 | O29: 0 | P29: 0 | Q29: 0 | R29: 0 | S29: 0 | T29: 0 | U29: 0 | V29: 0 | W29: ED_MAI282_00018 | X29: Public lighting maintenance | Y29: Minor roads | Z29: 0 | AA29: 0 | AB29: 0 | AC29: 0 | AD29: 0 | AE29: 0 | AF29: 0 | AG29: 0 | AH29: 0 | AI29: 0
A30: ED_MAI281_00019 | D30: Major roads | E30: Number of public lights maintained | F30: 0 | G30: 0 | H30: 0 | I30: 0 | J30: 0 | K30: 0 | L30: 0 | M30: 0 | N30: 0 | O30: 0 | P30: 0 | Q30: 0 | R30: 0 | S30: 0 | T30: 0 | U30: 0 | V30: 0 | W30: ED_MAI282_00019 | Y30: Major roads | Z30: 0 | AA30: 0 | AB30: 0 | AC30: 0 | AD30: 0 | AE30: 0 | AF30: 0 | AG30: 0 | AH30: 0 | AI30: 0
A31: ED_MAI281_00020 | C31: SCADA & network control maintenance | D31: SCADA & network control maintenance | E31: Number of systems | F31: 0.912097152 | G31: 0.926928 | H31: 0.942 | I31: 0.766 | J31: 0.7801105263 | K31: 0.8316732517 | L31: 1.001899204 | M31: 1.215426507 | N31: 1.03 | O31: 1.944 | P31: 5.267875126 | Q31: 6.267875126 | R31: 7.267875126 | S31: 1.087467363 | T31: 2.070067885 | U31: 4 | V31: 0 | W31: ED_MAI282_00020 | X31: SCADA & network control maintenance | Y31: SCADA & network control maintenance | Z31: 70.49019469 | AA31: 50.00187177 | AB31: 36.23221683 | AC31: 341.8615403 | AD31: 1.467357455 | AE31: 1355.67331 | AF31: 1464.335737 | AG31: 1177.105746 | AH31: 945.47439 | AI31: 1806.089637
A32: ED_MAI281_00021 | C32: Protection systems maintenance | D32: Protection systems maintenance | E32: Number of systems | F32: 9.886862016 | G32: 10.047624 | H32: 10.211 | I32: 9.327 | J32: 9.498813158 | K32: 1.11368381 | L32: 1.214230327 | M32: 0.9833732668 | N32: 1.463 | O32: 1.115 | P32: 21.28895706 | Q32: 22.28895706 | R32: 23.28895706 | S32: 0.5477645545 | T32: 1.539000322 | U32: 6 | V32: 0 | W32: ED_MAI282_00021 | X32: Protection systems maintenance | Y32: Protection systems maintenance | Z32: 1049.46943 | AA32: 744.3822518 | AB32: 1238.580006 | AC32: 1114.219052 | AD32: 709.3598393 | AE32: 901.3260704 | AF32: 929.2571732 | AG32: 1541.386438 | AH32: 1416.40529 | AI32: 1330.523385
A33: ED_MAI281_00022 | C33: Subtransmission asset maintenance - for DNSPs with dual function assets | D33: Subtransmission asset maintenance - for DNSPs with dual function assets | E33: DNSP to nominate | F33: 0 | G33: 0 | H33: 0 | I33: 0 | J33: 0 | K33: 0 | L33: 0 | M33: 0 | N33: 0 | O33: 0 | P33: 0 | Q33: 0 | R33: 0 | S33: 0 | T33: 0 | U33: 0 | V33: 0 | W33: ED_MAI282_00022 | X33: Subtransmission asset maintenance - for DNSPs with dual function assets | Y33: Subtransmission asset maintenance - for DNSPs with dual function assets | Z33: 0 | AA33: 0 | AB33: 0 | AC33: 0 | AD33: 0 | AE33: 0 | AF33: 0 | AG33: 0 | AH33: 0 | AI33: 0
A34: ED_MAI281_00023 | C34: Various assets | D34: includes rates, electricity, communications equip, metering | E34: Units not quoted as various UOM | F34: 0 | G34: 0 | H34: 0 | I34: 0 | J34: 0 | K34: 0 | L34: 0 | M34: 0 | N34: 0 | O34: 0 | P34: 0 | Q34: 0 | R34: 0 | S34: 0 | T34: 0 | U34: 0 | V34: 0 | W34: ED_MAI282_00023 | X34: Various assets | Y34: includes rates, electricity, communications equip, metering | Z34: 4616.917767 | AA34: 5609.50802 | AB34: 4416.299834 | AC34: 5745.585487 | AD34: 10657.68098 | AE34: 1244.295852 | AF34: 1422.518088 | AG34: 1561.104207 | AH34: 1599.18461 | AI34: 1176.508174
A35: ED_MAI281_00024 | C35: Ground clearance - access tracks | D35: Ground clearance - access tracks | E35: Units not quoted | F35: 0 | G35: 0 | H35: 0 | I35: 0 | J35: 0 | K35: 0.2052727294 | L35: 0.1966883195 | M35: 0.2290051919 | N35: 0.285 | O35: 0.214 | P35: 0 | Q35: 0 | R35: 0 | S35: 0 | T35: 0 | U35: 4 | V35: 0 | W35: ED_MAI282_00024 | X35: Ground clearance - access tracks | Y35: Ground clearance - access tracks | Z35: 445.2475623 | AA35: 438.9978635 | AB35: 597.593089 | AC35: 749.0578484 | AD35: 1201.122154 | AE35: 2333.851346 | AF35: 2983.615171 | AG35: 3541.259178 | AH35: 1901.421685 | AI35: 4.300806728
A36: ED_MAI281_00025 | C36: Other | F36: 0 | G36: 0 | H36: 0 | I36: 0 | J36: 0 | K36: 0 | L36: 0 | M36: 0 | N36: 0 | O36: 0 | P36: 0 | Q36: 0 | R36: 0 | S36: 0 | T36: 0 | U36: 0 | V36: 0 | W36: ED_MAI282_00025 | X36: Other | Z36: 0 | AA36: 0 | AB36: 0 | AC36: 0 | AD36: 0 | AE36: 0 | AF36: 0 | AG36: 0 | AH36: 0 | AI36: 0

Sheet 2.9 Emergency Response
C1: REGULATORY REPORTING STATEMENT
C2: =TradingName -> Ergon Energy
C3: =RCP_1to5 -> 2015-16 to 2019-20
C4: 2.9 EMERGENCY RESPONSE
C6: TABLE 2.9.1 - EMERGENCY RESPONSE EXPENDITURE (OPEX)
E8: EXPENDITURE ($000's)
E9: =PRCP_y5 -> 2009-10 | F9: =CRCP -> 2010-11 | G9: 2011-12 | H9: 2012-13 | I9: 2013-14
A10: ED_EME291_00001 | C10: (A) TOTAL EMERGENCY RESPONSE EXPENDITURE | D10: TOTAL EXPENDITURE
A11: ED_EME291_00002 | C11: (B) MAJOR EVENTS O&M EXPENDITURE | D11: Major Storm (Enter name of storm)
A12: ED_EME291_00003 | D12: Major Storm (Enter name of storm)
A13: ED_EME291_00004 | D13: Major Storm (Enter name of storm)
A14: ED_EME291_00005 | D14: Major Storm (Enter name of storm)
A15: ED_EME291_00006 | D15: Major Storm (Enter name of storm)
A16: ED_EME291_00007 | D16: Major Storm (Enter name of storm)
A17: ED_EME291_00008 | D17: Major Storm (Enter name of storm)
A18: ED_EME291_00009 | D18: Major Storm (Enter name of storm)
A19: ED_EME291_00010 | D19: Major Storm (Enter name of storm)
A20: ED_EME291_00011 | D20: Major Storm (Enter name of storm)
A21: ED_EME291_00012 | D21: Major Storm (Enter name of storm)
A22: ED_EME291_00013 | D22: Major Storm (Enter name of storm)
A23: ED_EME291_00014 | D23: Major Storm (Enter name of storm)
A24: ED_EME291_00015 | D24: Major Storm (Enter name of storm)
A25: ED_EME291_00016 | D25: Major Storm (Enter name of storm)
A26: ED_EME291_00017 | D26: Major Storm (Enter name of storm)
A27: ED_EME291_00018 | D27: Major Storm (Enter name of storm)
A28: ED_EME291_00019 | D28: Major Storm (Enter name of storm)
A29: ED_EME291_00020 | D29: Major Storm (Enter name of storm)
A30: ED_EME291_00021 | D30: Major Storm (Enter name of storm)
A31: ED_EME291_00022 | D31: Major Storm (Enter name of storm)
A32: ED_EME291_00023 | D32: Major Storm (Enter name of storm)
A33: ED_EME291_00024 | D33: Major Storm (Enter name of storm)
A34: ED_EME291_00025 | D34: Major Storm (Enter name of storm)
A35: ED_EME291_00026 | D35: Major Storm (Enter name of storm)
A36: ED_EME291_00027 | D36: Major Storm (Enter name of storm)
A37: ED_EME291_00028 | D37: Major Storm (Enter name of storm)
A38: ED_EME291_00029 | D38: Major Storm (Enter name of storm)
A39: ED_EME291_00030 | D39: Major Storm (Enter name of storm)
A40: ED_EME291_00031 | D40: Major Storm (Enter name of storm)
A41: ED_EME291_00032 | D41: Major Storm (Enter name of storm)
A42: ED_EME291_00033 | D42: Major Storm (Enter name of storm)
A43: ED_EME291_00034 | D43: Major Storm (Enter name of storm)
A44: ED_EME291_00035 | D44: Major Storm (Enter name of storm)
A45: ED_EME291_00036 | D45: Major Storm (Enter name of storm)
A46: ED_EME291_00037 | D46: Major Storm (Enter name of storm)
A47: ED_EME291_00038 | D47: Major Storm (Enter name of storm)
A48: ED_EME291_00039 | D48: Major Storm (Enter name of storm)
A49: ED_EME291_00040 | D49: Major Storm (Enter name of storm)
A50: ED_EME291_00041 | D50: Major Storm (Enter name of storm)
A51: ED_EME291_00042 | D51: Major Storm (Enter name of storm)
A52: ED_EME291_00043 | D52: Major Storm (Enter name of storm)
A53: ED_EME291_00044 | D53: Major Storm (Enter name of storm)
A54: ED_EME291_00045 | D54: Major Storm (Enter name of storm)
A55: ED_EME291_00046 | D55: Major Storm (Enter name of storm)
A56: ED_EME291_00047 | D56: Major Storm (Enter name of storm)
A57: ED_EME291_00048 | D57: Major Storm (Enter name of storm)
A58: ED_EME291_00049 | D58: Major Storm (Enter name of storm)
A59: ED_EME291_00050 | D59: Major Storm (Enter name of storm)
A60: ED_EME291_00051 | D60: Major Storm (Enter name of storm)
A61: ED_EME291_00052 | C61: (C) MAJOR EVENT DAYS O&M EXPENDITURE | D61: 2009-07-01
A62: ED_EME291_00053 | D62: 2009-07-02
A63: ED_EME291_00054 | D63: 2009-07-03
A64: ED_EME291_00055 | D64: 2009-07-04
A65: ED_EME291_00056 | D65: 2009-07-05
A66: ED_EME291_00057 | D66: 2009-07-06
A67: ED_EME291_00058 | D67: 2009-07-07
A68: ED_EME291_00059 | D68: 2009-07-08
A69: ED_EME291_00060 | D69: 2009-07-09
A70: ED_EME291_00061 | D70: 2009-07-10
A71: ED_EME291_00062 | D71: 2009-07-11
A72: ED_EME291_00063 | D72: 2009-07-12
A73: ED_EME291_00064 | D73: 2009-07-13
A74: ED_EME291_00065 | D74: 2009-07-14
A75: ED_EME291_00066 | D75: 2009-07-15
A76: ED_EME291_00067 | D76: 2009-07-16
A77: ED_EME291_00068 | D77: 2009-07-17
A78: ED_EME291_00069 | D78: 2009-07-18
A79: ED_EME291_00070 | D79: 2009-07-19
A80: ED_EME291_00071 | D80: 2009-07-20
A81: ED_EME291_00072 | D81: 2009-07-21
A82: ED_EME291_00073 | D82: 2009-07-22
A83: ED_EME291_00074 | D83: 2009-07-23
A84: ED_EME291_00075 | D84: 2009-07-24
A85: ED_EME291_00076 | D85: 2009-07-25
A86: ED_EME291_00077 | D86: 2009-07-26
A87: ED_EME291_00078 | D87: 2009-07-27
A88: ED_EME291_00079 | D88: 2009-07-28
A89: ED_EME291_00080 | D89: 2009-07-29
A90: ED_EME291_00081 | D90: 2009-07-30
A91: ED_EME291_00082 | D91: 2009-07-31
A92: ED_EME291_00083 | D92: 2009-08-01
A93: ED_EME291_00084 | D93: 2009-08-02
A94: ED_EME291_00085 | D94: 2009-08-03
A95: ED_EME291_00086 | D95: 2009-08-04
A96: ED_EME291_00087 | D96: 2009-08-05
A97: ED_EME291_00088 | D97: 2009-08-06
A98: ED_EME291_00089 | D98: 2009-08-07
A99: ED_EME291_00090 | D99: 2009-08-08
A100: ED_EME291_00091 | D100: 2009-08-09
A101: ED_EME291_00092 | D101: 2009-08-10
A102: ED_EME291_00093 | D102: 2009-08-11
A103: ED_EME291_00094 | D103: 2009-08-12
A104: ED_EME291_00095 | D104: 2009-08-13
A105: ED_EME291_00096 | D105: 2009-08-14
A106: ED_EME291_00097 | D106: 2009-08-15
A107: ED_EME291_00098 | D107: 2009-08-16
A108: ED_EME291_00099 | D108: 2009-08-17
A109: ED_EME291_00100 | D109: 2009-08-18
A110: ED_EME291_00101 | D110: 2009-08-19
A111: ED_EME291_00102 | D111: 2009-08-20
A112: ED_EME291_00103 | D112: 2009-08-21
A113: ED_EME291_00104 | D113: 2009-08-22
A114: ED_EME291_00105 | D114: 2009-08-23
A115: ED_EME291_00106 | D115: 2009-08-24
A116: ED_EME291_00107 | D116: 2009-08-25
A117: ED_EME291_00108 | D117: 2009-08-26
A118: ED_EME291_00109 | D118: 2009-08-27
A119: ED_EME291_00110 | D119: 2009-08-28
A120: ED_EME291_00111 | D120: 2009-08-29
A121: ED_EME291_00112 | D121: 2009-08-30
A122: ED_EME291_00113 | D122: 2009-08-31
A123: ED_EME291_00114 | D123: 2009-09-01
A124: ED_EME291_00115 | D124: 2009-09-02
A125: ED_EME291_00116 | D125: 2009-09-03
A126: ED_EME291_00117 | D126: 2009-09-04
A127: ED_EME291_00118 | D127: 2009-09-05
A128: ED_EME291_00119 | D128: 2009-09-06
A129: ED_EME291_00120 | D129: 2009-09-07
A130: ED_EME291_00121 | D130: 2009-09-08
A131: ED_EME291_00122 | D131: 2009-09-09
A132: ED_EME291_00123 | D132: 2009-09-10
A133: ED_EME291_00124 | D133: 2009-09-11
A134: ED_EME291_00125 | D134: 2009-09-12
A135: ED_EME291_00126 | D135: 2009-09-13
A136: ED_EME291_00127 | D136: 2009-09-14
A137: ED_EME291_00128 | D137: 2009-09-15
A138: ED_EME291_00129 | D138: 2009-09-16
A139: ED_EME291_00130 | D139: 2009-09-17
A140: ED_EME291_00131 | D140: 2009-09-18
A141: ED_EME291_00132 | D141: 2009-09-19
A142: ED_EME291_00133 | D142: 2009-09-20
A143: ED_EME291_00134 | D143: 2009-09-21
A144: ED_EME291_00135 | D144: 2009-09-22
A145: ED_EME291_00136 | D145: 2009-09-23
A146: ED_EME291_00137 | D146: 2009-09-24
A147: ED_EME291_00138 | D147: 2009-09-25
A148: ED_EME291_00139 | D148: 2009-09-26
A149: ED_EME291_00140 | D149: 2009-09-27
A150: ED_EME291_00141 | D150: 2009-09-28
A151: ED_EME291_00142 | D151: 2009-09-29
A152: ED_EME291_00143 | D152: 2009-09-30
A153: ED_EME291_00144 | D153: 2009-10-01
A154: ED_EME291_00145 | D154: 2009-10-02
A155: ED_EME291_00146 | D155: 2009-10-03
A156: ED_EME291_00147 | D156: 2009-10-04
A157: ED_EME291_00148 | D157: 2009-10-05
A158: ED_EME291_00149 | D158: 2009-10-06
A159: ED_EME291_00150 | D159: 2009-10-07
A160: ED_EME291_00151 | D160: 2009-10-08
A161: ED_EME291_00152 | D161: 2009-10-09
A162: ED_EME291_00153 | D162: 2009-10-10
A163: ED_EME291_00154 | D163: 2009-10-11
A164: ED_EME291_00155 | D164: 2009-10-12
A165: ED_EME291_00156 | D165: 2009-10-13
A166: ED_EME291_00157 | D166: 2009-10-14
A167: ED_EME291_00158 | D167: 2009-10-15
A168: ED_EME291_00159 | D168: 2009-10-16
A169: ED_EME291_00160 | D169: 2009-10-17
A170: ED_EME291_00161 | D170: 2009-10-18
A171: ED_EME291_00162 | D171: 2009-10-19
A172: ED_EME291_00163 | D172: 2009-10-20
A173: ED_EME291_00164 | D173: 2009-10-21
A174: ED_EME291_00165 | D174: 2009-10-22
A175: ED_EME291_00166 | D175: 2009-10-23
A176: ED_EME291_00167 | D176: 2009-10-24
A177: ED_EME291_00168 | D177: 2009-10-25
A178: ED_EME291_00169 | D178: 2009-10-26
A179: ED_EME291_00170 | D179: 2009-10-27
A180: ED_EME291_00171 | D180: 2009-10-28
A181: ED_EME291_00172 | D181: 2009-10-29
A182: ED_EME291_00173 | D182: 2009-10-30
A183: ED_EME291_00174 | D183: 2009-10-31
A184: ED_EME291_00175 | D184: 2009-11-01
A185: ED_EME291_00176 | D185: 2009-11-02
A186: ED_EME291_00177 | D186: 2009-11-03
A187: ED_EME291_00178 | D187: 2009-11-04
A188: ED_EME291_00179 | D188: 2009-11-05
A189: ED_EME291_00180 | D189: 2009-11-06
A190: ED_EME291_00181 | D190: 2009-11-07
A191: ED_EME291_00182 | D191: 2009-11-08
A192: ED_EME291_00183 | D192: 2009-11-09
A193: ED_EME291_00184 | D193: 2009-11-10
A194: ED_EME291_00185 | D194: 2009-11-11
A195: ED_EME291_00186 | D195: 2009-11-12
A196: ED_EME291_00187 | D196: 2009-11-13
A197: ED_EME291_00188 | D197: 2009-11-14
A198: ED_EME291_00189 | D198: 2009-11-15
A199: ED_EME291_00190 | D199: 2009-11-16
A200: ED_EME291_00191 | D200: 2009-11-17
A201: ED_EME291_00192 | D201: 2009-11-18
A202: ED_EME291_00193 | D202: 2009-11-19
... 224 more rows

Sheet 2.10 Overheads
C1: REGULATORY REPORTING STATEMENT | E1: Worksheet navigation
C2: =TradingName -> Ergon Energy
C3: =RCP_1to5 -> 2015-16 to 2019-20
C4: 2.10 OVERHEADS
C8: TABLE 2.10.1 - NETWORK OVERHEADS EXPENDITURE
C9: <<<GROUP-ROW>>>
F11: EXPENDITURE ($000's) | H11: EXPENDITURE ($000's) Current Period | M11: EXPENDITURE ($000's) Forthcoming Period
A12: OVE2102 | F12: =PRCP_y4 -> 2008-09 | G12: =PRCP_y5 -> 2009-10 | H12: =CRCP -> 2010-11 | I12: 2011-12 | J12: 2012-13 | K12: 2013-14 | L12: 2014-15 | M12: =FRCP -> 2015-16 | N12: 2016-17 | O12: 2017-18 | P12: 2018-19 | Q12: 2019-20
A13: ED_OVE2102_00001 | C13: NETWORK OVERHEADS | D13: Total Overhead Expenditure - Standard Control Services | E13: Expenditure categories currently reported under annual RIN
A14: ED_OVE2102_00002 | E14: NETWORK MANAGEMENT ($000'S) | F14: 1500.821014 | G14: 1646.426373 | H14: 2242.671044 | I14: 2960.298522 | J14: 1685.554634 | L14: 2324.243103 | M14: 2143.835614 | N14: 2234.946235 | O14: 2520.516776 | P14: 2690.292797 | Q14: 2757.772603
A15: ED_OVE2102_00003 | E15: NETWORK PLANNING ($000'S) | F15: 8561.187456 | G15: 10054.55067 | H15: 8582.849923 | I15: 10444.49879 | J15: 7724.036885 | L15: 10294.82894 | M15: 9495.745472 | N15: 9899.304059 | O15: 11164.1889 | P15: 11916.18213 | Q15: 12215.07215
A16: ED_OVE2102_00004 | E16: NETWORK CONTROL AND OPERATIONAL SWITCHING ($000'S) | F16: 20368.3624 | G16: 21350.29614 | H16: 23110.58438 | I16: 22163.37535 | J16: 22992.54399 | L16: 25340.01539 | M16: 25134.63825 | N16: 25472.47716 | O16: 25858.48258 | P16: 26204.41953 | Q16: 26594.76704
A17: ED_OVE2102_00005 | E17: QUALITY AND STANDARD FUNCTIONS ($000'S) | F17: 7546.598973 | G17: 7400.247717 | H17: 5874.426024 | I17: 6871.576204 | J17: 5308.499147 | L17: 5753.122325 | M17: 5306.565615 | N17: 5532.088732 | O17: 6238.952076 | P17: 6659.193063 | Q17: 6826.223603
A18: ED_OVE2102_00006 | E18: PROJECT GOVERNANCE AND RELATED FUNCTIONS ($000'S) | F18: 7791.54216 | G18: 10989.32335 | H18: 8866.840471 | I18: 11253.54269 | J18: 9330.512382 | L18: 10621.49691 | M18: 9797.057505 | N18: 10213.42152 | O18: 11518.44276 | P18: 12294.29769 | Q18: 12602.67187
A19: ED_OVE2102_00007 | E19: OTHER ($000'S) | F19: 41181.09715 | G19: 41916.76766 | H19: 69011.29553 | I19: 64734.07268 | J19: 60550.10385 | K19: 73454.64114 | L19: 46368.53458 | M19: 65336.69076 | N19: 66189.90191 | O19: 62089.00107 | P19: 63436.94901 | Q19: 64101.27781
A20: ED_OVE2102_00008 | E20: OTHER EXPENDITURE CATEGORIES CURRENTLY REPORTED UNDER ANNUAL RIN ($000'S): | L20: 0 | M20: 0 | N20: 0 | O20: 0 | P20: 0 | Q20: 0
A21: ED_OVE2102_00009 | E21: METER READING | F21: 0 | G21: 0 | H21: 0 | I21: 0 | J21: 0 | L21: 0 | M21: 0 | N21: 0 | O21: 0 | P21: 0 | Q21: 0
A22: ED_OVE2102_00010 | E22: FEED-IN-TARIFFS / SOLAR BONUS | F22: 0 | G22: 0 | H22: 5688 | I22: 27938 | J22: 75867 | L22: 113959.141 | M22: 0 | N22: 0 | O22: 0 | P22: 0 | Q22: 0
A23: ED_OVE2102_00011 | E23: NON-NETWORK ALTERNATIVES /DEMAND MANAGEMENT | F23: 0 | G23: 0 | H23: 1987 | I23: 9134 | J23: 7460 | L23: 8525.106274 | M23: 12937.71919 | N23: 13046.41542 | O23: 13145.71853 | P23: 13245.5573 | Q23: 13384.83425
A24: ED_OVE2102_00012 | E24: [EXPENDITURE CATEGORY CURRENTLY REPORTED UNDER ANNUAL RIN] (DNSP TO NOMINATE)
A25: ED_OVE2102_00013
A26: ED_OVE2102_00014
A27: ED_OVE2102_00015
A28: ED_OVE2102_00016
A29: ED_OVE2102_00017
A30: ED_OVE2102_00018
A31: ED_OVE2102_00019
A32: ED_OVE2102_00020
A33: ED_OVE2102_00021
A34: ED_OVE2102_00022
A35: ED_OVE2102_00023
A36: ED_OVE2102_00024
A37: ED_OVE2102_00025
A38: ED_OVE2102_00026
A39: ED_OVE2102_00027
A40: ED_OVE2102_00028
A41: ED_OVE2102_00013 | C41: NETWORK OVERHEADS | D41: Total Overhead Expenditure - Alternative Control Services | E41: Expenditure categories currently reported under annual RIN
A42: ED_OVE2102_00014 | E42: NETWORK MANAGEMENT ($000'S) | F42: 0 | G42: 0 | H42: 0 | I42: 0 | J42: 0 | L42: 74.72963047 | M42: 112.1243782 | N42: 117.3159151 | O42: 132.7488818 | P42: 142.1776635 | Q42: 145.9016854
A43: ED_OVE2102_00015 | E43: NETWORK PLANNING ($000'S) | F43: 256.7746166 | G43: 284.9013386 | H43: 190.3260114 | I43: 384.4242963 | J43: 380.5863553 | L43: 583.7306942 | M43: 875.8298507 | N43: 916.3821646 | O43: 1036.932692 | P43: 1110.583121 | Q43: 1139.67233
A44: ED_OVE2102_00016 | E44: NETWORK CONTROL AND OPERATIONAL SWITCHING ($000'S) | F44: 0 | G44: 0 | H44: 0 | I44: 0 | J44: 0 | L44: 26.08296545 | M44: 39.13489553 | N44: 40.94690339 | O44: 46.33348882 | P44: 49.62442691 | Q44: 50.92422637
A45: ED_OVE2102_00017 | E45: QUALITY AND STANDARD FUNCTIONS ($000'S) | F45: 22.6835062 | G45: 21.44856804 | H45: 0 | I45: 0 | J45: 0 | L45: 184.9757905 | M45: 277.5377766 | N45: 290.3882167 | O45: 328.5889305 | P45: 351.927683 | Q45: 361.1456316
A46: ED_OVE2102_00018 | E46: PROJECT GOVERNANCE AND RELATED FUNCTIONS ($000'S) | F46: 618.4806228 | G46: 939.2165963 | H46: 574.948439 | I46: 1146.928271 | J46: 1190.297717 | L46: 778.4658139 | M46: 1168.01053 | N46: 1222.091274 | O46: 1382.857986 | P46: 1481.078521 | Q46: 1519.872018
A47: ED_OVE2102_00019 | E47: OTHER ($000'S) | F47: 17733.8238 | G47: 18108.24088 | H47: 14211.07641 | I47: 28653.27408 | J47: 31378.28538 | K47: 30124.97226 | L47: 47932.82538 | M47: 52644.69024 | N47: 53984.11894 | O47: 56380.1771 | P47: 58145.49466 | Q47: 59319.6808
A48: ED_OVE2102_00020 | E48: OTHER EXPENDITURE CATEGORIES CURRENTLY REPORTED UNDER ANNUAL RIN ($000'S): | L48: 0 | M48: 0 | N48: 0 | O48: 0 | P48: 0 | Q48: 0
A49: ED_OVE2102_00021 | E49: METER READING | F49: 7926 | G49: 8834 | H49: 8847 | I49: 9534 | J49: 9396 | L49: 18426.53476 | M49: 18586.92359 | N49: 18840.76089 | O49: 19072.55033 | P49: 19306.80263 | Q49: 19546.84506
A50: ED_OVE2102_00022 | E50: FEED-IN-TARIFFS / SOLAR BONUS | F50: 0 | G50: 0 | H50: 0 | I50: 0 | J50: 0 | L50: 0 | M50: 0 | N50: 0 | O50: 0 | P50: 0 | Q50: 0
A51: ED_OVE2102_00023 | E51: NON-NETWORK ALTERNATIVES /DEMAND MANAGEMENT | F51: 0 | G51: 0 | H51: 0 | I51: 0 | J51: 0 | L51: 0 | M51: 0 | N51: 0 | O51: 0 | P51: 0 | Q51: 0
A52: ED_OVE2102_00024 | E52: [EXPENDITURE CATEGORY CURRENTLY REPORTED UNDER ANNUAL RIN] (DNSP TO NOMINATE) | L52: 0 | M52: 0 | N52: 0 | O52: 0 | P52: 0 | Q52: 0
A53: ED_OVE2102_00025
A54: ED_OVE2102_00026
A55: ED_OVE2102_00027
A56: ED_OVE2102_00028
A57: ED_OVE2102_00029
A58: ED_OVE2102_00030
A59: ED_OVE2102_00031
A60: ED_OVE2102_00032
A61: ED_OVE2102_00033
A62: ED_OVE2102_00034
A63: ED_OVE2102_00035
A64: ED_OVE2102_00036
A65: ED_OVE2102_00037
A66: ED_OVE2102_00038
A67: ED_OVE2102_00039
A68: ED_OVE2102_00040
A69: ED_OVE2102_00041 | C69: NETWORK OVERHEADS | D69: Total Overhead Expenditure - Negotiated Services | E69: Total | F69: 0 | G69: 0 | H69: 0 | I69: 0 | J69: 0 | L69: 0 | M69: 0 | N69: 0 | O69: 0 | P69: 0 | Q69: 0
A70: ED_OVE2102_00042 | C70: NETWORK OVERHEADS | D70: Total Overhead Expenditure - Unregulated Services | E70: Total | F70: 0 | G70: 0 | H70: 0 | I70: 0 | J70: 0 | L70: 0 | M70: 0 | N70: 0 | O70: 0 | P70: 0 | Q70: 0
A71: ED_OVE2102_00043 | C71: NETWORK OVERHEADS | D71: Capitalised Overheads - Standard Control Services | E71: Expenditure categories currently reported under annual RIN
A72: ED_OVE2102_00044 | E72: NETWORK MANAGEMENT ($000'S) | F72: 2796.01493 | G72: 2661.674942 | H72: 5322.439306 | I72: 6205.299011 | J72: 5074.731526 | L72: 4893.746695 | M72: 5128.085715 | N72: 5150.245197 | O72: 5190.977164 | P72: 5367.940375 | Q72: 5317.68534
A73: ED_OVE2102_00045 | E73: NETWORK PLANNING ($000'S) | F73: 15371.2636 | G73: 15670.46178 | H73: 19640.0109 | I73: 21055.159 | J73: 22486.07367 | L73: 20642.83351 | M73: 21631.32386 | N73: 21724.79712 | O73: 21896.61297 | P73: 22643.08032 | Q73: 22431.09421
A74: ED_OVE2102_00046 | E74: NETWORK CONTROL AND OPERATIONAL SWITCHING ($000'S) | F74: 1006.689891 | G74: 1046.443338 | H74: 1382.623633 | I74: 1795.111225 | J74: 2045.916053 | L74: 1708.069813 | M74: 1789.86142 | N74: 1797.595769 | O74: 1811.812492 | P74: 1873.578157 | Q74: 1856.037587
A75: ED_OVE2102_00047 | E75: QUALITY AND STANDARD FUNCTIONS ($000'S) | F75: 14008.16695 | G75: 11919.54565 | H75: 13941.53461 | I75: 14404.01524 | J75: 15982.39976 | L75: 12113.32985 | M75: 12693.3815 | N75: 12748.23214 | O75: 12849.05463 | P75: 13287.08583 | Q75: 13162.6912
A76: ED_OVE2102_00048 | E76: PROJECT GOVERNANCE AND RELATED FUNCTIONS ($000'S) | F76: 11830.33539 | G76: 14996.72767 | H76: 17324.42651 | I76: 19117.80118 | J76: 24975.89472 | L76: 20572.49221 | M76: 21557.61424 | N76: 21650.76899 | O76: 21821.99936 | P76: 22565.92309 | Q76: 22354.65934
A77: ED_OVE2102_00049 | E77: OTHER ($000'S) | F77: 45731.603 | G77: 38914.18079 | H77: 48229.5743 | I77: 44548.85491 | J77: 65173.58635 | L77: 60519.68778 | M77: 63417.69726 | N77: 63691.73778 | O77: 64195.45938 | P77: 66383.91722 | Q77: 65762.42633
A78: ED_OVE2102_00050 | E78: OTHER EXPENDITURE CATEGORIES CURRENTLY REPORTED UNDER ANNUAL RIN ($000'S):
A79: ED_OVE2102_00051 | E79: METER READING (DIRECT COSTS ONLY)
A80: ED_OVE2102_00052 | E80: FEED-IN-TARIFFS / SOLAR BONUS
A81: ED_OVE2102_00053 | E81: NON-NETWORK ALTERNATIVES /DEMAND MANAGEMENT
A82: ED_OVE2102_00054 | E82: [EXPENDITURE CATEGORY CURRENTLY REPORTED UNDER ANNUAL RIN] (DNSP TO NOMINATE)
A83: ED_OVE2102_00055
A84: ED_OVE2102_00056
A85: ED_OVE2102_00057
A86: ED_OVE2102_00058
A87: ED_OVE2102_00059
A88: ED_OVE2102_00060
A89: ED_OVE2102_00061
A90: ED_OVE2102_00062
A91: ED_OVE2102_00063
A92: ED_OVE2102_00064
A93: ED_OVE2102_00065
A94: ED_OVE2102_00066
A95: ED_OVE2102_00067
A96: ED_OVE2102_00068
A97: ED_OVE2102_00069
A98: ED_OVE2102_00070
C106: TABLE 2.10.2 - CORPORATE OVERHEADS EXPENDITURE
C107: <<<GROUP-ROW>>>
F109: EXPENDITURE ($000's) | H109: EXPENDITURE ($000's) Current Period | M109: EXPENDITURE ($000's) Forthcoming Period
A110: OVE2102 | F110: =PRCP_y4 -> 2008-09 | G110: =PRCP_y5 -> 2009-10 | H110: =CRCP -> 2010-11 | I110: 2011-12 | J110: 2012-13 | K110: 2013-14 | L110: 2014-15 | M110: =FRCP -> 2015-16 | N110: 2016-17 | O110: 2017-18 | P110: 2018-19 | Q110: 2019-20
A111: ED_OVE2102_00001 | C111: CORPORATE OVERHEADS | D111: Total Overhead Expenditure - Standard Control Services | E111: Expenditure categories currently reported under annual RIN
A112: ED_OVE2102_00002 | E112: ASSET MANAGEMENT | F112: 0 | G112: 0 | H112: 0 | I112: 0 | J112: 0 | L112: 0 | M112: 0 | N112: 0 | O112: 0 | P112: 0 | Q112: 0
A113: ED_OVE2102_00003 | E113: CORPORATE GOVERNANCE | F113: 5103.796594 | G113: 5203.584306 | H113: 4257.141512 | I113: 4557.313243 | J113: 1972.681262 | L113: 888.412718 | M113: 1039.847764 | N113: 972.7480376 | O113: 1337.639827 | P113: 1431.487457 | Q113: 1561.552259
A114: ED_OVE2102_00004 | E114: CORPORATE | F114: 8271.744065 | G114: 8205.693207 | H114: 5778.233963 | I114: 12461.71619 | J114: -2104.872208 | L114: -194.9630751 | M114: -228.1956501 | N114: -213.4705468 | O114: -293.5464214 | P114: -314.1413794 | Q114: -342.6842325
A115: ED_OVE2102_00005 | E115: CUSTOMER AND STAKEHOLDER ENGAGEMENT | F115: 4369.092516 | G115: 3800.041809 | H115: 3101.446988 | I115: 3173.041798 | J115: 2113.92179 | L115: 902.5769923 | M115: 1056.42642 | N115: 988.2568993 | O115: 1358.966286 | P115: 1454.310162 | Q115: 1586.448632
A116: ED_OVE2102_00006 | E116: CUSTOMER SERVICE/RETAIL | F116: -0.03813558345 | G116: 0 | H116: 0 | I116: 0 | J116: 0 | L116: 0 | M116: 0 | N116: 0 | O116: 0 | P116: 0 | Q116: 0
A117: ED_OVE2102_00007 | E117: EMPLOYEE AND SHARED SERVICES | F117: 22140.53695 | G117: 24029.49082 | H117: 24588.40924 | I117: 26179.24634 | J117: 15961.88606 | L117: 6761.865296 | M117: 7914.464041 | N117: 7403.756232 | O117: 10181.01176 | P117: 10895.30256 | Q117: 11885.24862
A118: ED_OVE2102_00008 | E118: ENERGY SOLUTIONS AND MARKET DEVELOPMENT | F118: 687.115853 | G118: 2283.012184 | H118: 1521.09406 | I118: 1572.783846 | J118: 1195.79123 | L118: 536.9045297 | M118: 628.422988 | N118: 587.8718494 | O118: 808.3910414 | P118: 865.1070436 | Q118: 943.7105799
A119: ED_OVE2102_00009 | E119: FINANCE AND STRATEGIC SERVICES | F119: 4677.16019 | G119: 5380.902438 | H119: 4193.594266 | I119: 4705.691353 | J119: 3036.905143 | L119: 1270.195183 | M119: 1486.707241 | N119: 1390.772381 | O119: 1912.471119 | P119: 2046.648405 | Q119: 2232.606667
A120: ED_OVE2102_00010 | E120: OFFICE OF THE CHIEF EXECUTIVE | F120: 363.2738263 | G120: 375.5813538 | H120: 376.7877832 | I120: 395.4649694 | J120: 263.1078525 | L120: 154.1575655 | M120: 180.4346072 | N120: 168.7914483 | O120: 232.1075499 | P120: 248.3920108 | Q120: 270.9608832
A121: ED_OVE2102_00011 | E121: OPERATIONS | F121: 2281.790694 | G121: 2286.932637 | H121: 2396.873864 | I121: 3208.09095 | J121: 1002.922233 | L121: 475.856269 | M121: 556.9687009 | N121: 521.0283941 | O121: 716.4736439 | P121: 766.7408027 | Q121: 836.4067924
A122: ED_OVE2102_00012 | E122: SPARQ SERVICES | F122: 16407.69598 | G122: 19842.48256 | H122: 17364.45581 | I122: 23698.66288 | J122: 15839.41707 | L122: 25114.85852 | M122: 28492.00889 | N122: 31055.1863 | O122: 32099.7782 | P122: 34216.40794 | Q122: 33930.5298
A123: ED_OVE2102_00013 | E123: MAJOR PROJECTS | F123: 0 | G123: 0 | H123: 0 | I123: 0 | J123: 0 | L123: 0 | M123: 0 | N123: 0 | O123: 0 | P123: 0 | Q123: 0
A124: ED_OVE2102_00014 | E124: [EXPENDITURE CATEGORY CURRENTLY REPORTED UNDER ANNUAL RIN] (DNSP TO NOMINATE) | F124: 0 | G124: 0 | H124: 0 | I124: 0 | J124: 0 | L124: 0 | M124: 0 | N124: 0 | O124: 0 | P124: 0 | Q124: 0
A125: ED_OVE2102_00015
A126: ED_OVE2102_00016
A127: ED_OVE2102_00017
A128: ED_OVE2102_00018
A129: ED_OVE2102_00019
A130: ED_OVE2102_00020
A131: ED_OVE2102_00021
A132: ED_OVE2102_00022 | C132: CORPORATE OVERHEADS | D132: Total Overhead Expenditure - Alternative Control Services | E132: Expenditure categories currently reported under annual RIN
A133: ED_OVE2102_00023 | E133: ASSET MANAGEMENT | F133: 0 | G133: 0 | H133: 0 | I133: 0 | J133: 0 | L133: 0 | M133: 0 | N133: 0 | O133: 0 | P133: 0 | Q133: 0
A134: ED_OVE2102_00024 | E134: CORPORATE GOVERNANCE | F134: 515.6132156 | G134: 500.9849234 | H134: 321.9223175 | I134: 534.861415 | J134: 358.9666151 | L134: 1311.821393 | M134: 918.0898972 | N134: 945.9146783 | O134: 1106.244476 | P134: 1186.745852 | Q134: 1231.784031
A135: ED_OVE2102_00025 | E135: CORPORATE | F135: 835.6564524 | G135: 790.0186372 | H135: 436.9463554 | I135: 1462.548391 | J135: -383.0212544 | L135: -287.8763499 | M135: -201.4728299 | N135: -207.5789176 | O135: -242.7629427 | P135: -260.4287946 | Q135: -270.3123249
A136: ED_OVE2102_00026 | E136: CUSTOMER AND STAKEHOLDER ENGAGEMENT | F136: 210.73319 | G136: 143.4076196 | H136: 97.02520357 | I136: 170.4951039 | J136: 194.6821167 | L136: 842.7868377 | M136: 589.8318819 | N136: 607.7080649 | O136: 710.7128213 | P136: 762.4313715 | Q136: 791.366396
A137: ED_OVE2102_00027 | E137: CUSTOMER SERVICE/RETAIL | F137: -0.003852663492 | G137: 0 | H137: 0 | I137: 0 | J137: 0 | L137: 0 | M137: 0 | N137: 0 | O137: 0 | P137: 0 | Q137: 0
A138: ED_OVE2102_00028 | E138: EMPLOYEE AND SHARED SERVICES | F138: 2184.604789 | G138: 2244.911324 | H138: 1843.584015 | I138: 3050.841815 | J138: 2883.423547 | L138: 9917.704046 | M138: 6940.993594 | N138: 7151.356031 | O138: 8363.490159 | P138: 8972.101081 | Q138: 9312.60119
A139: ED_OVE2102_00029 | E139: ENERGY SOLUTIONS AND MARKET DEVELOPMENT | F139: 15.7446335 | G139: 67.48737322 | H139: 60.22123418 | I139: 66.3702184 | J139: 78.29497208 | L139: 432.5603027 | M139: 302.7311842 | N139: 311.9061342 | O139: 364.7733204 | P139: 391.3178637 | Q139: 406.1687636
A140: ED_OVE2102_00030 | E140: FINANCE AND STRATEGIC SERVICES | F140: 408.1713265 | G140: 454.2740548 | H140: 287.8968121 | I140: 490.982325 | J140: 465.7688358 | L140: 1594.672031 | M140: 1116.045438 | N140: 1149.869707 | O140: 1344.769291 | P140: 1442.628111 | Q140: 1497.377274
A141: ED_OVE2102_00031 | E141: OFFICE OF THE CHIEF EXECUTIVE | F141: 36.69989237 | G141: 36.15980537 | H141: 28.4924511 | I141: 46.41308196 | J141: 47.87744327 | L141: 227.6242167 | M141: 159.3048374 | N141: 164.1329291 | O141: 191.952985 | P141: 205.9213979 | Q141: 213.7363186
A142: ED_OVE2102_00032 | E142: OPERATIONS | F142: 230.251467 | G142: 219.9247654 | H142: 181.0305191 | I142: 376.0820105 | J142: 182.3497609 | L142: 702.6438897 | M142: 491.7515903 | N142: 506.6552293 | O142: 592.5318228 | P142: 635.6503454 | Q142: 659.7739046
A143: ED_OVE2102_00033 | E143: SPARQ SERVICES | F143: 1657.594445 | G143: 1910.372547 | H143: 1313.089039 | I143: 2781.353768 | J143: 2882.281107 | L143: 3331.625633 | M143: 3779.623407 | N143: 4119.643144 | O143: 4258.214067 | P143: 4538.996772 | Q143: 4501.073447
A144: ED_OVE2102_00034 | E144: MAJOR PROJECTS | F144: 0 | G144: 0 | H144: 0 | I144: 0 | J144: 0 | L144: 0 | M144: 0 | N144: 0 | O144: 0 | P144: 0 | Q144: 0
A145: ED_OVE2102_00035 | F145: 0 | G145: 0 | H145: 0 | I145: 0 | J145: 0 | L145: 0 | M145: 0 | N145: 0 | O145: 0 | P145: 0 | Q145: 0
A146: ED_OVE2102_00036
A147: ED_OVE2102_00037
A148: ED_OVE2102_00038
A149: ED_OVE2102_00039
A150: ED_OVE2102_00040
A151: ED_OVE2102_00041
A152: ED_OVE2102_00042
A153: ED_OVE2102_00043 | C153: CORPORATE OVERHEADS | D153: Total Overhead Expenditure - Negotiated Services | E153: Total | F153: -1 | G153: 0 | H153: 0 | I153: 0 | J153: 0 | L153: 0 | M153: 0 | N153: 0 | O153: 0 | P153: 0 | Q153: 0
A154: ED_OVE2102_00044 | C154: CORPORATE OVERHEADS | D154: Total Overhead Expenditure - Unregulated Services | E154: Total | F154: 46445 | G154: 44467 | H154: 55174 | I154: 55750 | J154: 56665 | L154: 32720.25189 | M154: 34954.84817 | N154: 43022.07658 | O154: 34725.20866 | P154: 33086.58469 | Q154: 36965.52188
A155: ED_OVE2102_00045 | C155: CORPORATE OVERHEADS | D155: Capitalised Overheads - Standard Control Services | E155: Expenditure categories currently reported under annual RIN
A156: ED_OVE2102_00046 | E156: EXPENDITURE CATEGORIES CURRENTLY REPORTED UNDER ANNUAL RIN ($000'S):
A157: ED_OVE2102_00047 | E157: ASSET MANAGEMENT / NETWORK OPTIMISATION | F157: 0 | G157: 0 | H157: 0 | I157: 0 | J157: 0 | L157: 0 | M157: 0 | N157: 0 | O157: 0 | P157: 0 | Q157: 0
A158: ED_OVE2102_00048 | E158: CORPORATE GOVERNANCE | F158: 8347.385667 | G158: 7385.192748 | H158: 8869.717059 | I158: 8386.536141 | J158: 5214.032021 | L158: 4990.304163 | M158: 4859.057155 | N158: 4464.635884 | O158: 4363.919068 | P158: 4338.636272 | Q158: 4292.151124
A159: ED_OVE2102_00049 | E159: CORPORATE | F159: 13528.64217 | G159: 11645.93911 | H159: 12038.89986 | I159: 22932.51037 | J159: -5563.428468 | L159: -1095.259541 | M159: -1066.453774 | N159: -979.8871747 | O159: -957.7820986 | P159: -952.2330935 | Q159: -942.0306489
A160: ED_OVE2102_00050 | E160: CUSTOMER AND STAKEHOLDER ENGAGEMENT | F160: 7665.399217 | G160: 5849.542437 | H160: 6989.050384 | I160: 6279.700124 | J160: 5971.366061 | L160: 5520.985487 | M160: 5375.781347 | N160: 4939.416339 | O160: 4827.989048 | P160: 4800.017617 | Q160: 4748.589122
A161: ED_OVE2102_00051 | E161: CUSTOMER SERVICE/RETAIL | F161: -0.06237169073 | G161: 0 | H161: 0 | I161: 0 | J161: 0 | L161: 0 | M161: 0 | N161: 0 | O161: 0 | P161: 0 | Q161: 0
A162: ED_OVE2102_00052 | E162: EMPLOYEE AND SHARED SERVICES | F162: 36328.97176 | G162: 34244.54837 | H162: 51290.7778 | I162: 48223.79739 | J162: 42232.19927 | L162: 38045.59734 | M162: 37044.98283 | N162: 34037.95312 | O162: 33270.09783 | P162: 33077.34424 | Q162: 32722.94595
A163: ED_OVE2102_00053 | E163: ENERGY SOLUTIONS AND MARKET DEVELOPMENT | F163: 2176.039691 | G163: 4927.048093 | H163: 5119.333735 | I163: 4961.654663 | J163: 5397.18448 | L163: 4816.161636 | M163: 4689.494647 | N163: 4308.837169 | O163: 4211.634985 | P163: 4187.234462 | Q163: 4142.371468
A164: ED_OVE2102_00054 | E164: FINANCE AND STRATEGIC SERVICES | F164: 7794.478809 | G164: 7767.61841 | H164: 8849.286199 | I164: 8793.250369 | J164: 8202.357437 | L164: 7336.615205 | M164: 7143.659273 | N164: 6563.791392 | O164: 6415.720153 | P164: 6378.550045 | Q164: 6310.208791
A165: ED_OVE2102_00055 | E165: OFFICE OF THE CHIEF EXECUTIVE | F165: 594.1433352 | G165: 533.0442494 | H165: 785.0340466 | I165: 727.7492419 | J165: 695.4254569 | L165: 866.0231906 | M165: 843.2464323 | N165: 774.7981059 | O165: 757.3195925 | P165: 752.9319867 | Q165: 744.8649
A166: ED_OVE2102_00056 | E166: OPERATIONS | F166: 3731.735047 | G166: 3245.567225 | H166: 4993.600054 | I166: 5903.406477 | J166: 2650.791861 | L166: 2673.161429 | M166: 2602.856208 | N166: 2391.576155 | O166: 2337.625073 | P166: 2324.081812 | Q166: 2299.181064
A167: ED_OVE2102_00057 | E167: SPARQ SERVICES | F167: 26835.19292 | G167: 28161.46519 | H167: 36178.69161 | I167: 43611.15467 | J167: 41865.4698 | L167: 54111.19122 | M167: 61387.42688 | N167: 66909.91801 | O167: 69160.54235 | P167: 73720.92466 | Q167: 73104.98623
A168: ED_OVE2102_00058 | E168: MAJOR PROJECTS | F168: 0 | G168: 0 | H168: 0 | I168: 0 | J168: 0 | L168: 0 | M168: 0 | N168: 0 | O168: 0 | P168: 0 | Q168: 0
A169: ED_OVE2102_00059
A170: ED_OVE2102_00060
A171: ED_OVE2102_00061
A172: ED_OVE2102_00062
A173: ED_OVE2102_00063
A174: ED_OVE2102_00064
A175: ED_OVE2102_00065

Sheet 2.11 Labour
C1: REGULATORY REPORTING STATEMENT
C2: =TradingName -> Ergon Energy
C3: =RCP_1to5 -> 2015-16 to 2019-20
C4: 2.11 LABOUR
C6: TABLE 2.11.1 - COST METRICS PER ANNUM | BC6: TABLE 2.11.2 - EXTRA DESCRIPTOR METRICS FOR CURRENT YEAR
C7: <<<GROUP-ROW>>>
F9: ASL (0's) | H9: ASL (0's) Current Period | M9: ASL (0's) Forthcoming Period | R9: TOTAL LABOUR COST ($000's) | T9: TOTAL LABOUR COST ($000's) Current Period | Y9: TOTAL LABOUR COST ($000's) Forthcoming Period | AD9: AVERAGE PRODUCTIVE WORK HOURS PER ASL (0's) | AF9: AVERAGE PRODUCTIVE WORK HOURS PER ASL (0's) Current Period | AK9: AVERAGE PRODUCTIVE WORK HOURS PER ASL (0's) Forthcoming Period | AP9: STAND-DOWN OCCURENCES PER ASL (0's) | AR9: STAND-DOWN OCCURENCES PER ASL (0's) Current Period | AW9: STAND-DOWN OCCURENCES PER ASL (0's) Forthcoming Period | BF9: AVERAGE PRODUCTIVE WORK HOURS ORDINARY TIME (0's) | BH9: AVERAGE PRODUCTIVE WORK HOURS OVERTIME (0's)
BF10: PER ASL | BG10: HOURLY RATE PER ASL | BH10: PER ASL | BI10: HOURLY RATE PER ASL
F11: =PRCP_y4 -> 2008-09 | G11: =PRCP_y5 -> 2009-10 | H11: =CRCP -> 2010-11 | I11: 2011-12 | J11: 2012-13 | K11: 2013-14 | L11: 2014-15 | M11: =FRCP -> 2015-16 | N11: 2016-17 | O11: 2017-18 | P11: 2018-19 | Q11: 2019-20 | R11: =PRCP_y4 -> 2008-09 | S11: =PRCP_y5 -> 2009-10 | T11: =CRCP -> 2010-11 | U11: 2011-12 | V11: 2012-13 | W11: 2013-14 | X11: 2014-15 | Y11: =FRCP -> 2015-16 | Z11: 2016-17 | AA11: 2017-18 | AB11: 2018-19 | AC11: 2019-20 | AD11: =PRCP_y4 -> 2008-09 | AE11: =PRCP_y5 -> 2009-10 | AF11: =CRCP -> 2010-11 | AG11: 2011-12 | AH11: 2012-13 | AI11: 2013-14 | AJ11: 2014-15 | AK11: =FRCP -> 2015-16 | AL11: 2016-17 | AM11: 2017-18 | AN11: 2018-19 | AO11: 2019-20 | AP11: =PRCP_y4 -> 2008-09 | AQ11: =PRCP_y5 -> 2009-10 | AR11: =CRCP -> 2010-11 | AS11: 2011-12 | AT11: 2012-13 | AU11: 2013-14 | AV11: 2014-15 | AW11: =FRCP -> 2015-16 | AX11: 2016-17 | AY11: 2017-18 | AZ11: 2018-19 | BA11: 2019-20 | BF11: =CRCP_y4 -> 2013-14 | BG11: =CRCP_y4 -> 2013-14 | BH11: =CRCP_y4 -> 2013-14 | BI11: =CRCP_y4 -> 2013-14
A12: ED_LAB2111_00001 | C12: CORPORATE OVERHEADS INTERNAL LABOUR COSTS | D12: LABOUR CLASSIFICATION LEVEL | E12: Executive manager | F12: 14.14774279 | G12: 14.52334176 | H12: 13.67664514 | I12: 15.47676569 | J12: 12.74413687 | K12: 5.671121308 | L12: 4.755988604 | M12: 4.811407703 | N12: 4.842477897 | O12: 4.735981934 | P12: 4.740277568 | Q12: 4.637543554 | R12: 3134.827449 | S12: 2985.555917 | T12: 3547.809738 | U12: 3655.990805 | V12: 2951.652421 | W12: 3810.048332 | X12: 3195.231677 | Y12: 3232.464075 | Z12: 3253.338067 | AA12: 3181.790529 | AB12: 3184.67648 | AC12: 3115.656345 | AD12: 188 | AE12: 188 | AF12: 188 | AG12: 188 | AH12: 188 | AI12: 188 | AJ12: 188 | AK12: 188 | AL12: 188 | AM12: 188 | AN12: 188 | AO12: 188 | AP12: 0 | AQ12: 0 | AR12: 0 | AS12: 0 | AT12: 0 | AU12: 0 | AV12: 0 | AW12: 0 | AX12: 0 | AY12: 0 | AZ12: 0 | BA12: 0 | BB12: ED_LAB2112_00001 | BC12: CORPORATE OVERHEADS INTERNAL LABOUR COSTS | BD12: LABOUR CLASSIFICATION LEVEL | BE12: Executive manager | BF12: 188 | BG12: 26.51 | BH12: 0 | BI12: 0
A13: ED_LAB2111_00002 | E13: Employee (optional) | W13: 0 | X13: 0 | Y13: 0 | Z13: 0 | AA13: 0 | AB13: 0 | AC13: 0 | AD13: 0 | AE13: 0 | AF13: 0 | AG13: 0 | AH13: 0 | AI13: 0 | AJ13: 0 | AK13: 0 | AL13: 0 | AM13: 0 | AN13: 0 | AO13: 0 | AP13: 0 | AQ13: 0 | AR13: 0 | AS13: 0 | AT13: 0 | AU13: 0 | AV13: 0 | AW13: 0 | AX13: 0 | AY13: 0 | AZ13: 0 | BA13: 0 | BB13: ED_LAB2112_00002 | BE13: Employee (optional) | BF13: 0 | BG13: 0 | BH13: 0 | BI13: 0
A14: ED_LAB2111_00003 | E14: Labour hire (optional) | W14: 0 | X14: 0 | Y14: 0 | Z14: 0 | AA14: 0 | AB14: 0 | AC14: 0 | AD14: 0 | AE14: 0 | AF14: 0 | AG14: 0 | AH14: 0 | AI14: 0 | AJ14: 0 | AK14: 0 | AL14: 0 | AM14: 0 | AN14: 0 | AO14: 0 | AP14: 0 | AQ14: 0 | AR14: 0 | AS14: 0 | AT14: 0 | AU14: 0 | AV14: 0 | AW14: 0 | AX14: 0 | AY14: 0 | AZ14: 0 | BA14: 0 | BB14: ED_LAB2112_00003 | BE14: Labour hire (optional) | BF14: 0 | BG14: 0 | BH14: 0 | BI14: 0
A15: ED_LAB2111_00004 | E15: Senior manager | F15: 10.74860978 | G15: 10.89250632 | H15: 13.00715901 | I15: 13.84257304 | J15: 11.88818738 | K15: 10.49157442 | L15: 8.798578917 | M15: 8.901104251 | N15: 8.95858411 | O15: 8.761566578 | P15: 8.769513501 | Q15: 8.579455575 | R15: 1715.386252 | S15: 1750.333598 | T15: 2117.400028 | U15: 2704.559998 | V15: 2218.693361 | W15: 4710.811433 | X15: 3950.6412 | Y15: 3996.675999 | Z15: 4022.484973 | AA15: 3934.022327 | AB15: 3937.590567 | AC15: 3852.252846 | AD15: 188 | AE15: 188 | AF15: 188 | AG15: 188 | AH15: 188 | AI15: 188 | AJ15: 188 | AK15: 188 | AL15: 188 | AM15: 188 | AN15: 188 | AO15: 188 | AP15: 0 | AQ15: 0 | AR15: 0 | AS15: 0 | AT15: 0 | AU15: 0 | AV15: 0 | AW15: 0 | AX15: 0 | AY15: 0 | AZ15: 0 | BA15: 0 | BB15: ED_LAB2112_00004 | BE15: Senior manager | BF15: 188 | BG15: 23.9 | BH15: 0 | BI15: 0
A16: ED_LAB2111_00005 | E16: Employee (optional) | W16: 0 | X16: 0 | Y16: 0 | Z16: 0 | AA16: 0 | AB16: 0 | AC16: 0 | AD16: 0 | AE16: 0 | AF16: 0 | AG16: 0 | AH16: 0 | AI16: 0 | AJ16: 0 | AK16: 0 | AL16: 0 | AM16: 0 | AN16: 0 | AO16: 0 | AP16: 0 | AQ16: 0 | AR16: 0 | AS16: 0 | AT16: 0 | AU16: 0 | AV16: 0 | AW16: 0 | AX16: 0 | AY16: 0 | AZ16: 0 | BA16: 0 | BB16: ED_LAB2112_00005 | BE16: Employee (optional) | BF16: 0 | BG16: 0 | BH16: 0 | BI16: 0
A17: ED_LAB2111_00006 | E17: Labour hire (optional) | W17: 0 | X17: 0 | Y17: 0 | Z17: 0 | AA17: 0 | AB17: 0 | AC17: 0 | AD17: 0 | AE17: 0 | AF17: 0 | AG17: 0 | AH17: 0 | AI17: 0 | AJ17: 0 | AK17: 0 | AL17: 0 | AM17: 0 | AN17: 0 | AO17: 0 | AP17: 0 | AQ17: 0 | AR17: 0 | AS17: 0 | AT17: 0 | AU17: 0 | AV17: 0 | AW17: 0 | AX17: 0 | AY17: 0 | AZ17: 0 | BA17: 0 | BB17: ED_LAB2112_00006 | BE17: Labour hire (optional) | BF17: 0 | BG17: 0 | BH17: 0 | BI17: 0
A18: ED_LAB2111_00007 | E18: Manager | F18: 51.17073203 | G18: 48.96972926 | H18: 50.30710029 | I18: 55.08190523 | J18: 49.07443749 | K18: 40.9265921 | L18: 34.32238442 | M18: 34.72232559 | N18: 34.94654883 | O18: 34.17800296 | P18: 34.20900312 | Q18: 33.46760598 | R18: 6631.358479 | S18: 6463.290198 | T18: 7181.549933 | U18: 8706.097902 | V18: 7777.370113 | W18: 9277.009272 | X18: 7780.004691 | Y18: 7870.661101 | Z18: 7921.48676 | AA18: 7747.277114 | AB18: 7754.304056 | AC18: 7586.248331 | AD18: 188 | AE18: 188 | AF18: 188 | AG18: 188 | AH18: 188 | AI18: 188 | AJ18: 188 | AK18: 188 | AL18: 188 | AM18: 188 | AN18: 188 | AO18: 188 | AP18: 0 | AQ18: 0 | AR18: 0 | AS18: 0 | AT18: 0 | AU18: 0 | AV18: 0 | AW18: 0 | AX18: 0 | AY18: 0 | AZ18: 0 | BA18: 0 | BB18: ED_LAB2112_00007 | BE18: Manager | BF18: 188.03 | BG18: 12 | BH18: -0.03 | BI18: 13.06
A19: ED_LAB2111_00008 | E19: Employee (optional) | W19: 0 | X19: 0 | Y19: 0 | Z19: 0 | AA19: 0 | AB19: 0 | AC19: 0 | AD19: 0 | AE19: 0 | AF19: 0 | AG19: 0 | AH19: 0 | AI19: 0 | AJ19: 0 | AK19: 0 | AL19: 0 | AM19: 0 | AN19: 0 | AO19: 0 | AP19: 0 | AQ19: 0 | AR19: 0 | AS19: 0 | AT19: 0 | AU19: 0 | AV19: 0 | AW19: 0 | AX19: 0 | AY19: 0 | AZ19: 0 | BA19: 0 | BB19: ED_LAB2112_00008 | BE19: Employee (optional) | BF19: 0 | BG19: 0 | BH19: 0 | BI19: 0
A20: ED_LAB2111_00009 | E20: Labour hire (optional) | W20: 0 | X20: 0 | Y20: 0 | Z20: 0 | AA20: 0 | AB20: 0 | AC20: 0 | AD20: 0 | AE20: 0 | AF20: 0 | AG20: 0 | AH20: 0 | AI20: 0 | AJ20: 0 | AK20: 0 | AL20: 0 | AM20: 0 | AN20: 0 | AO20: 0 | AP20: 0 | AQ20: 0 | AR20: 0 | AS20: 0 | AT20: 0 | AU20: 0 | AV20: 0 | AW20: 0 | AX20: 0 | AY20: 0 | AZ20: 0 | BA20: 0 | BB20: ED_LAB2112_00009 | BE20: Labour hire (optional) | BF20: 0 | BG20: 0 | BH20: 0 | BI20: 0
A21: ED_LAB2111_00010 | E21: Professional | F21: 218.0038548 | G21: 193.2721634 | H21: 212.9922288 | I21: 216.4824617 | J21: 170.2388432 | K21: 144.8971494 | L21: 121.5155088 | M21: 122.9314668 | N21: 123.7253103 | O21: 121.0043384 | P21: 121.1140919 | Q21: 118.4892378 | R21: 30646.97915 | S21: 26520.99432 | T21: 31142.66686 | U21: 31524.4164 | V21: 25900.30785 | W21: 24638.18652 | X21: 20662.39249 | Y21: 20903.16077 | Z21: 21038.14522 | AA21: 20575.47351 | AB21: 20594.1359 | AC21: 20147.80797 | AD21: 188 | AE21: 188 | AF21: 188 | AG21: 188 | AH21: 188 | AI21: 188 | AJ21: 188 | AK21: 188 | AL21: 188 | AM21: 188 | AN21: 188 | AO21: 188 | AP21: 0 | AQ21: 0 | AR21: 0 | AS21: 0 | AT21: 0 | AU21: 0 | AV21: 0 | AW21: 0 | AX21: 0 | AY21: 0 | AZ21: 0 | BA21: 0 | BB21: ED_LAB2112_00010 | BE21: Professional | BF21: 187.84 | BG21: 9.04 | BH21: 0.16 | BI21: 18.2
A22: ED_LAB2111_00011 | E22: Employee (optional) | W22: 0 | X22: 0 | Y22: 0 | Z22: 0 | AA22: 0 | AB22: 0 | AC22: 0 | AD22: 0 | AE22: 0 | AF22: 0 | AG22: 0 | AH22: 0 | AI22: 0 | AJ22: 0 | AK22: 0 | AL22: 0 | AM22: 0 | AN22: 0 | AO22: 0 | AP22: 0 | AQ22: 0 | AR22: 0 | AS22: 0 | AT22: 0 | AU22: 0 | AV22: 0 | AW22: 0 | AX22: 0 | AY22: 0 | AZ22: 0 | BA22: 0 | BB22: ED_LAB2112_00011 | BE22: Employee (optional) | BF22: 0 | BG22: 0 | BH22: 0 | BI22: 0
A23: ED_LAB2111_00012 | E23: Labour hire (optional) | W23: 0 | X23: 0 | Y23: 0 | Z23: 0 | AA23: 0 | AB23: 0 | AC23: 0 | AD23: 0 | AE23: 0 | AF23: 0 | AG23: 0 | AH23: 0 | AI23: 0 | AJ23: 0 | AK23: 0 | AL23: 0 | AM23: 0 | AN23: 0 | AO23: 0 | AP23: 0 | AQ23: 0 | AR23: 0 | AS23: 0 | AT23: 0 | AU23: 0 | AV23: 0 | AW23: 0 | AX23: 0 | AY23: 0 | AZ23: 0 | BA23: 0 | BB23: ED_LAB2112_00012 | BE23: Labour hire (optional) | BF23: 0 | BG23: 0 | BH23: 0 | BI23: 0
A24: ED_LAB2111_00013 | E24: Semi professional | F24: 7.900687531 | G24: 8.192654325 | H24: 19.60637939 | I24: 25.37805058 | J24: 22.44489777 | K24: 11.15320524 | L24: 9.353444254 | M24: 9.46243515 | N24: 9.523539865 | O24: 9.314097804 | P24: 9.322545884 | Q24: 9.120502323 | R24: 970.5222936 | S24: 954.942305 | T24: 2681.847606 | U24: 3121.285853 | V24: 2916.991222 | W24: 2161.642405 | X24: 1812.824323 | Y24: 1833.948236 | Z24: 1845.791159 | AA24: 1805.198447 | AB24: 1806.8358 | AC24: 1767.677018 | AD24: 188 | AE24: 188 | AF24: 188 | AG24: 188 | AH24: 188 | AI24: 188 | AJ24: 188 | AK24: 188 | AL24: 188 | AM24: 188 | AN24: 188 | AO24: 188 | AP24: 0 | AQ24: 0 | AR24: 0 | AS24: 2.3 | AT24: 2.8 | AU24: 0.25 | AV24: 0.8916666667 | AW24: 0.8916666667 | AX24: 0.8916666667 | AY24: 0.8916666667 | AZ24: 0.8916666667 | BA24: 0.8916666667 | BB24: ED_LAB2112_00013 | BE24: Semi professional | BF24: 182.97 | BG24: 9.63 | BH24: 5.03 | BI24: 35.14
A25: ED_LAB2111_00014 | E25: Employee (optional) | W25: 0 | X25: 0 | Y25: 0 | Z25: 0 | AA25: 0 | AB25: 0 | AC25: 0 | AD25: 0 | AE25: 0 | AF25: 0 | AG25: 0 | AH25: 0 | AI25: 0 | AJ25: 0 | AK25: 0 | AL25: 0 | AM25: 0 | AN25: 0 | AO25: 0 | AP25: 0 | AQ25: 0 | AR25: 0 | AS25: 0 | AT25: 0 | AU25: 0 | AV25: 0 | AW25: 0 | AX25: 0 | AY25: 0 | AZ25: 0 | BA25: 0 | BB25: ED_LAB2112_00014 | BE25: Employee (optional) | BF25: 0 | BG25: 0 | BH25: 0 | BI25: 0
A26: ED_LAB2111_00015 | E26: Labour hire (optional) | W26: 0 | X26: 0 | Y26: 0 | Z26: 0 | AA26: 0 | AB26: 0 | AC26: 0 | AD26: 0 | AE26: 0 | AF26: 0 | AG26: 0 | AH26: 0 | AI26: 0 | AJ26: 0 | AK26: 0 | AL26: 0 | AM26: 0 | AN26: 0 | AO26: 0 | AP26: 0 | AQ26: 0 | AR26: 0 | AS26: 0 | AT26: 0 | AU26: 0 | AV26: 0 | AW26: 0 | AX26: 0 | AY26: 0 | AZ26: 0 | BA26: 0 | BB26: ED_LAB2112_00015 | BE26: Labour hire (optional) | BF26: 0 | BG26: 0 | BH26: 0 | BI26: 0
A27: ED_LAB2111_00016 | E27: Support staff | F27: 191.0863961 | G27: 183.4037389 | H27: 253.4483189 | I27: 253.7805058 | J27: 209.2320978 | K27: 222.68603 | L27: 186.7518192 | M27: 188.9279425 | N27: 190.1479654 | O27: 185.9662239 | P27: 186.1348992 | Q27: 182.1008769 | R27: 17864.45128 | S27: 17379.86895 | T27: 27495.59529 | U27: 27215.90689 | V27: 22976.21225 | W27: 25777.13672 | X27: 21617.55353 | Y27: 21869.45181 | Z27: 22010.6762 | AA27: 21526.61655 | AB27: 21546.14164 | AC27: 21079.1813 | AD27: 188 | AE27: 188 | AF27: 188 | AG27: 188 | AH27: 188 | AI27: 188 | AJ27: 188 | AK27: 188 | AL27: 188 | AM27: 188 | AN27: 188 | AO27: 188 | AP27: 0.1 | AQ27: 0.5 | AR27: 14.3 | AS27: 0.7 | AT27: 2.1 | AU27: 0.642 | AV27: 3.057 | AW27: 3.057 | AX27: 3.057 | AY27: 3.057 | AZ27: 3.057 | BA27: 3.057 | BB27: ED_LAB2112_00016 | BE27: Support staff | BF27: 187.06 | BG27: 6.14 | BH27: 0.94 | BI27: 9.84
A28: ED_LAB2111_00017 | E28: Employee (optional) | W28: 0 | X28: 0 | Y28: 0 | Z28: 0 | AA28: 0 | AB28: 0 | AC28: 0 | AD28: 0 | AE28: 0 | AF28: 0 | AG28: 0 | AH28: 0 | AI28: 0 | AJ28: 0 | AK28: 0 | AL28: 0 | AM28: 0 | AN28: 0 | AO28: 0 | AP28: 0 | AQ28: 0 | AR28: 0 | AS28: 0 | AT28: 0 | AU28: 0 | AV28: 0 | AW28: 0 | AX28: 0 | AY28: 0 | AZ28: 0 | BA28: 0 | BB28: ED_LAB2112_00017 | BE28: Employee (optional) | BF28: 0 | BG28: 0 | BH28: 0 | BI28: 0
A29: ED_LAB2111_00018 | E29: Labour hire (optional) | W29: 0 | X29: 0 | Y29: 0 | Z29: 0 | AA29: 0 | AB29: 0 | AC29: 0 | AD29: 0 | AE29: 0 | AF29: 0 | AG29: 0 | AH29: 0 | AI29: 0 | AJ29: 0 | AK29: 0 | AL29: 0 | AM29: 0 | AN29: 0 | AO29: 0 | AP29: 0 | AQ29: 0 | AR29: 0 | AS29: 0 | AT29: 0 | AU29: 0 | AV29: 0 | AW29: 0 | AX29: 0 | AY29: 0 | AZ29: 0 | BA29: 0 | BB29: ED_LAB2112_00018 | BE29: Labour hire (optional) | BF29: 0 | BG29: 0 | BH29: 0 | BI29: 0
A30: ED_LAB2111_00019 | E30: Intern, junior staff, apprentice | K30: 1.984892458 | L30: 1.664596011 | M30: 1.683992696 | N30: 1.694867264 | O30: 1.657593677 | P30: 1.659097149 | Q30: 1.623140244 | W30: 840.2711404 | X30: 704.6789781 | Y30: 712.8902414 | Z30: 717.4938085 | AA30: 701.7146566 | AB30: 702.3511264 | AC30: 687.12937 | AD30: 0 | AE30: 0 | AF30: 0 | AG30: 0 | AH30: 0 | AI30: 188 | AJ30: 188 | AK30: 188 | AL30: 188 | AM30: 188 | AN30: 188 | AO30: 188 | AP30: 0 | AQ30: 0 | AR30: 0 | AS30: 0 | AT30: 0 | AU30: 0 | AV30: 0 | AW30: 0 | AX30: 0 | AY30: 0 | AZ30: 0 | BA30: 0 | BB30: ED_LAB2112_00019 | BE30: Intern, junior staff, apprentice | BF30: 196.74 | BG30: 10.12 | BH30: -8.74 | BI30: -262.03
A31: ED_LAB2111_00020 | E31: Employee (optional) | W31: 0 | X31: 0 | Y31: 0 | Z31: 0 | AA31: 0 | AB31: 0 | AC31: 0 | AD31: 0 | AE31: 0 | AF31: 0 | AG31: 0 | AH31: 0 | AI31: 0 | AJ31: 0 | AK31: 0 | AL31: 0 | AM31: 0 | AN31: 0 | AO31: 0 | AP31: 0 | AQ31: 0 | AR31: 0 | AS31: 0 | AT31: 0 | AU31: 0 | AV31: 0 | AW31: 0 | AX31: 0 | AY31: 0 | AZ31: 0 | BA31: 0 | BB31: ED_LAB2112_00020 | BE31: Employee (optional) | BF31: 0 | BG31: 0 | BH31: 0 | BI31: 0
A32: ED_LAB2111_00021 | E32: Labour hire (optional) | W32: 0 | X32: 0 | Y32: 0 | Z32: 0 | AA32: 0 | AB32: 0 | AC32: 0 | AD32: 0 | AE32: 0 | AF32: 0 | AG32: 0 | AH32: 0 | AI32: 0 | AJ32: 0 | AK32: 0 | AL32: 0 | AM32: 0 | AN32: 0 | AO32: 0 | AP32: 0 | AQ32: 0 | AR32: 0 | AS32: 0 | AT32: 0 | AU32: 0 | AV32: 0 | AW32: 0 | AX32: 0 | AY32: 0 | AZ32: 0 | BA32: 0 | BB32: ED_LAB2112_00021 | BE32: Labour hire (optional) | BF32: 0 | BG32: 0 | BH32: 0 | BI32: 0
A33: ED_LAB2111_00022 | C33: NETWORK OVERHEADS INTERNAL LABOUR COSTS | D33: LABOUR CLASSIFICATION LEVEL | E33: Executive manager | F33: 7.073871394 | G33: 3.630835439 | H33: 2.964867127 | I33: 2.307095507 | J33: 1.426582485 | K33: 0.1890373769 | L33: 0.1585329535 | M33: 0.1603802568 | N33: 0.1614159299 | O33: 0.1578660645 | P33: 0.1580092523 | Q33: 0.1545847851 | R33: 1024.017298 | S33: 510.7105199 | T33: 560.2326847 | U33: 570.8725187 | V33: 278.1255703 | W33: 76.56013765 | X33: 64.20584615 | Y33: 64.954004 | Z33: 65.37345161 | AA33: 63.93575611 | AB33: 63.99374717 | AC33: 62.60683798 | AD33: 188 | AE33: 188 | AF33: 188 | AG33: 188 | AH33: 188 | AI33: 188 | AJ33: 188 | AK33: 188 | AL33: 188 | AM33: 188 | AN33: 188 | AO33: 188 | AP33: 0 | AQ33: 0 | AR33: 0 | AS33: 0 | AT33: 0 | AU33: 0 | AV33: 0 | AW33: 0 | AX33: 0 | AY33: 0 | AZ33: 0 | BA33: 0 | BB33: ED_LAB2112_00022 | BC33: NETWORK OVERHEADS INTERNAL LABOUR COSTS | BD33: LABOUR CLASSIFICATION LEVEL | BE33: Executive manager | BF33: 188 | BG33: 26.51 | BH33: 0 | BI33: 0
A34: ED_LAB2111_00023 | E34: Employee (optional) | W34: 0 | X34: 0 | Y34: 0 | Z34: 0 | AA34: 0 | AB34: 0 | AC34: 0 | AD34: 0 | AE34: 0 | AF34: 0 | AG34: 0 | AH34: 0 | AI34: 0 | AJ34: 0 | AK34: 0 | AL34: 0 | AM34: 0 | AN34: 0 | AO34: 0 | AP34: 0 | AQ34: 0 | AR34: 0 | AS34: 0 | AT34: 0 | AU34: 0 | AV34: 0 | AW34: 0 | AX34: 0 | AY34: 0 | AZ34: 0 | BA34: 0 | BB34: ED_LAB2112_00023 | BE34: Employee (optional) | BF34: 0 | BG34: 0 | BH34: 0 | BI34: 0
A35: ED_LAB2111_00024 | E35: Labour hire (optional) | W35: 0 | X35: 0 | Y35: 0 | Z35: 0 | AA35: 0 | AB35: 0 | AC35: 0 | AD35: 0 | AE35: 0 | AF35: 0 | AG35: 0 | AH35: 0 | AI35: 0 | AJ35: 0 | AK35: 0 | AL35: 0 | AM35: 0 | AN35: 0 | AO35: 0 | AP35: 0 | AQ35: 0 | AR35: 0 | AS35: 0 | AT35: 0 | AU35: 0 | AV35: 0 | AW35: 0 | AX35: 0 | AY35: 0 | AZ35: 0 | BA35: 0 | BB35: ED_LAB2112_00024 | BE35: Labour hire (optional) | BF35: 0 | BG35: 0 | BH35: 0 | BI35: 0
A36: ED_LAB2111_00025 | E36: Senior manager | F36: 38.40101614 | G36: 30.07076531 | H36: 31.37020702 | I36: 29.70385465 | J36: 25.20295724 | K36: 14.36684065 | L36: 12.04850446 | M36: 12.18889952 | N36: 12.26761067 | O36: 11.9978209 | P36: 12.00870317 | Q36: 11.74844367 | R36: 5547.110381 | S36: 4542.196547 | T36: 5562.852032 | U36: 5589.468536 | V36: 5040.515363 | W36: 4767.522646 | X36: 3998.201086 | Y36: 4044.790076 | Z36: 4070.909752 | AA36: 3981.382146 | AB36: 3984.993342 | AC36: 3898.628281 | AD36: 188 | AE36: 188 | AF36: 188 | AG36: 188 | AH36: 188 | AI36: 188 | AJ36: 188 | AK36: 188 | AL36: 188 | AM36: 188 | AN36: 188 | AO36: 188 | AP36: 0 | AQ36: 0 | AR36: 0 | AS36: 0 | AT36: 0 | AU36: 0 | AV36: 0 | AW36: 0 | AX36: 0 | AY36: 0 | AZ36: 0 | BA36: 0 | BB36: ED_LAB2112_00025 | BE36: Senior manager | BF36: 188 | BG36: 17.69 | BH36: 0 | BI36: 0
A37: ED_LAB2111_00026 | E37: Employee (optional) | W37: 0 | X37: 0 | Y37: 0 | Z37: 0 | AA37: 0 | AB37: 0 | AC37: 0 | AD37: 0 | AE37: 0 | AF37: 0 | AG37: 0 | AH37: 0 | AI37: 0 | AJ37: 0 | AK37: 0 | AL37: 0 | AM37: 0 | AN37: 0 | AO37: 0 | AP37: 0 | AQ37: 0 | AR37: 0 | AS37: 0 | AT37: 0 | AU37: 0 | AV37: 0 | AW37: 0 | AX37: 0 | AY37: 0 | AZ37: 0 | BA37: 0 | BB37: ED_LAB2112_00026 | BE37: Employee (optional) | BF37: 0 | BG37: 0 | BH37: 0 | BI37: 0
A38: ED_LAB2111_00027 | E38: Labour hire (optional) | W38: 0 | X38: 0 | Y38: 0 | Z38: 0 | AA38: 0 | AB38: 0 | AC38: 0 | AD38: 0 | AE38: 0 | AF38: 0 | AG38: 0 | AH38: 0 | AI38: 0 | AJ38: 0 | AK38: 0 | AL38: 0 | AM38: 0 | AN38: 0 | AO38: 0 | AP38: 0 | AQ38: 0 | AR38: 0 | AS38: 0 | AT38: 0 | AU38: 0 | AV38: 0 | AW38: 0 | AX38: 0 | AY38: 0 | AZ38: 0 | BA38: 0 | BB38: ED_LAB2112_00027 | BE38: Labour hire (optional) | BF38: 0 | BG38: 0 | BH38: 0 | BI38: 0
A39: ED_LAB2111_00028 | E39: Manager | F39: 82.68161369 | G39: 93.37763963 | H39: 81.58166644 | I39: 91.61091742 | J39: 92.63275604 | K39: 62.94944651 | L39: 52.7914735 | M39: 53.40662551 | N39: 53.75150466 | O39: 52.56939947 | P39: 52.61708101 | Q39: 51.47673345 | R39: 9295.032101 | S39: 10691.33104 | T39: 10321.87981 | U39: 16958.55546 | V39: 12352.36783 | W39: 14852.6667 | X39: 12455.93415 | Y39: 12601.07678 | Z39: 12682.44961 | AA39: 12403.53669 | AB39: 12414.78695 | AC39: 12145.72657 | AD39: 188 | AE39: 188 | AF39: 188 | AG39: 188 | AH39: 188 | AI39: 188 | AJ39: 188 | AK39: 188 | AL39: 188 | AM39: 188 | AN39: 188 | AO39: 188 | AP39: 0 | AQ39: 0 | AR39: 0 | AS39: 0 | AT39: 0 | AU39: 0.058 | AV39: 0.009666666667 | AW39: 0.009666666667 | AX39: 0.009666666667 | AY39: 0.009666666667 | AZ39: 0.009666666667 | BA39: 0.009666666667 | BB39: ED_LAB2112_00028 | BE39: Manager | BF39: 187.54 | BG39: 12.54 | BH39: 0.46 | BI39: 16.94
A40: ED_LAB2111_00029 | E40: Employee (optional) | W40: 0 | X40: 0 | Y40: 0 | Z40: 0 | AA40: 0 | AB40: 0 | AC40: 0 | AD40: 0 | AE40: 0 | AF40: 0 | AG40: 0 | AH40: 0 | AI40: 0 | AJ40: 0 | AK40: 0 | AL40: 0 | AM40: 0 | AN40: 0 | AO40: 0 | AP40: 0 | AQ40: 0 | AR40: 0 | AS40: 0 | AT40: 0 | AU40: 0 | AV40: 0 | AW40: 0 | AX40: 0 | AY40: 0 | AZ40: 0 | BA40: 0 | BB40: ED_LAB2112_00029 | BE40: Employee (optional) | BF40: 0 | BG40: 0 | BH40: 0 | BI40: 0
A41: ED_LAB2111_00030 | E41: Labour hire (optional) | W41: 0 | X41: 0 | Y41: 0 | Z41: 0 | AA41: 0 | AB41: 0 | AC41: 0 | AD41: 0 | AE41: 0 | AF41: 0 | AG41: 0 | AH41: 0 | AI41: 0 | AJ41: 0 | AK41: 0 | AL41: 0 | AM41: 0 | AN41: 0 | AO41: 0 | AP41: 0 | AQ41: 0 | AR41: 0 | AS41: 0 | AT41: 0 | AU41: 0 | AV41: 0 | AW41: 0 | AX41: 0 | AY41: 0 | AZ41: 0 | BA41: 0 | BB41: ED_LAB2112_00030 | BE41: Labour hire (optional) | BF41: 0 | BG41: 0 | BH41: 0 | BI41: 0
A42: ED_LAB2111_00031 | E42: Professional | F42: 429.8525227 | G42: 447.9892342 | H42: 473.7092542 | I42: 548.8003437 | J42: 502.2521403 | K42: 301.6091349 | L42: 252.9393273 | M42: 255.8866997 | N42: 257.5391162 | O42: 251.8753059 | P42: 252.103762 | Q42: 246.6400247 | R42: 52066.74257 | S42: 54608.93898 | T42: 64273.65587 | U42: 74524.1211 | V42: 67862.38902 | W42: 52582.63676 | X42: 44097.52634 | Y42: 44611.37223 | Z42: 44899.45506 | AA42: 43912.02449 | AB42: 43951.85361 | AC42: 42999.30383 | AD42: 188 | AE42: 188 | AF42: 188 | AG42: 188 | AH42: 188 | AI42: 188 | AJ42: 188 | AK42: 188 | AL42: 188 | AM42: 188 | AN42: 188 | AO42: 188 | AP42: 2.7 | AQ42: 1.4 | AR42: 4.9 | AS42: 0.5 | AT42: 0.6 | AU42: 1.192 | AV42: 1.882 | AW42: 1.882 | AX42: 1.882 | AY42: 1.882 | AZ42: 1.882 | BA42: 1.882 | BB42: ED_LAB2112_00031 | BE42: Professional | BF42: 187.72 | BG42: 9.28 | BH42: 0.28 | BI42: 8.69
A43: ED_LAB2111_00032 | E43: Employee (optional) | W43: 0 | X43: 0 | Y43: 0 | Z43: 0 | AA43: 0 | AB43: 0 | AC43: 0 | AD43: 0 | AE43: 0 | AF43: 0 | AG43: 0 | AH43: 0 | AI43: 0 | AJ43: 0 | AK43: 0 | AL43: 0 | AM43: 0 | AN43: 0 | AO43: 0 | AP43: 0 | AQ43: 0 | AR43: 0 | AS43: 0 | AT43: 0 | AU43: 0 | AV43: 0 | AW43: 0 | AX43: 0 | AY43: 0 | AZ43: 0 | BA43: 0 | BB43: ED_LAB2112_00032 | BE43: Employee (optional) | BF43: 0 | BG43: 0 | BH43: 0 | BI43: 0
A44: ED_LAB2111_00033 | E44: Labour hire (optional) | W44: 0 | X44: 0 | Y44: 0 | Z44: 0 | AA44: 0 | AB44: 0 | AC44: 0 | AD44: 0 | AE44: 0 | AF44: 0 | AG44: 0 | AH44: 0 | AI44: 0 | AJ44: 0 | AK44: 0 | AL44: 0 | AM44: 0 | AN44: 0 | AO44: 0 | AP44: 0 | AQ44: 0 | AR44: 0 | AS44: 0 | AT44: 0 | AU44: 0 | AV44: 0 | AW44: 0 | AX44: 0 | AY44: 0 | AZ44: 0 | BA44: 0 | BB44: ED_LAB2112_00033 | BE44: Labour hire (optional) | BF44: 0 | BG44: 0 | BH44: 0 | BI44: 0
A45: ED_LAB2111_00034 | E45: Semi professional | F45: 458.6073506 | G45: 481.97013 | H45: 496.6630643 | I45: 512.8481054 | J45: 480.5680865 | K45: 240.1719874 | L45: 201.4161174 | M45: 203.7631162 | N45: 205.078939 | O45: 200.5688349 | P45: 200.750755 | Q45: 196.3999695 | R45: 56152.03743 | S45: 59473.0575 | T45: 66689.68497 | U45: 69980.30034 | V45: 66075.30343 | W45: 37404.82577 | X45: 31368.9155 | Y45: 31734.44141 | Z45: 31939.37005 | AA45: 31236.95818 | AB45: 31265.29075 | AC45: 30587.69144 | AD45: 188 | AE45: 188 | AF45: 188 | AG45: 188 | AH45: 188 | AI45: 188 | AJ45: 188 | AK45: 188 | AL45: 188 | AM45: 188 | AN45: 188 | AO45: 188 | AP45: 1 | AQ45: 3.2 | AR45: 2.3 | AS45: 0 | AT45: 0.2 | AU45: 4.99 | AV45: 1.948333333 | AW45: 1.948333333 | AX45: 1.948333333 | AY45: 1.948333333 | AZ45: 1.948333333 | BA45: 1.948333333 | BB45: ED_LAB2112_00034 | BE45: Semi professional | BF45: 185.39 | BG45: 8.26 | BH45: 2.61 | BI45: 9.97
A46: ED_LAB2111_00035 | E46: Employee (optional) | W46: 0 | X46: 0 | Y46: 0 | Z46: 0 | AA46: 0 | AB46: 0 | AC46: 0 | AD46: 0 | AE46: 0 | AF46: 0 | AG46: 0 | AH46: 0 | AI46: 0 | AJ46: 0 | AK46: 0 | AL46: 0 | AM46: 0 | AN46: 0 | AO46: 0 | AP46: 0 | AQ46: 0 | AR46: 0 | AS46: 0 | AT46: 0 | AU46: 0 | AV46: 0 | AW46: 0 | AX46: 0 | AY46: 0 | AZ46: 0 | BA46: 0 | BB46: ED_LAB2112_00035 | BE46: Employee (optional) | BF46: 0 | BG46: 0 | BH46: 0 | BI46: 0
A47: ED_LAB2111_00036 | E47: Labour hire (optional) | W47: 0 | X47: 0 | Y47: 0 | Z47: 0 | AA47: 0 | AB47: 0 | AC47: 0 | AD47: 0 | AE47: 0 | AF47: 0 | AG47: 0 | AH47: 0 | AI47: 0 | AJ47: 0 | AK47: 0 | AL47: 0 | AM47: 0 | AN47: 0 | AO47: 0 | AP47: 0 | AQ47: 0 | AR47: 0 | AS47: 0 | AT47: 0 | AU47: 0 | AV47: 0 | AW47: 0 | AX47: 0 | AY47: 0 | AZ47: 0 | BA47: 0 | BB47: ED_LAB2112_00036 | BE47: Labour hire (optional) | BF47: 0 | BG47: 0 | BH47: 0 | BI47: 0
A48: ED_LAB2111_00037 | E48: Support staff | F48: 425.3509682 | G48: 442.2171368 | H48: 423.6890766 | I48: 453.728783 | J48: 411.8068107 | K48: 305.200845 | L48: 255.9514534 | M48: 258.9339246 | N48: 260.6060188 | O48: 254.8747611 | P48: 255.1059378 | Q48: 249.5771356 | R48: 45686.82623 | S48: 46702.87208 | T48: 47869.859 | U48: 53006.50171 | V48: 50245.08442 | W48: 35739.40648 | X48: 29972.24018 | Y48: 30321.49135 | Z48: 30517.29571 | AA48: 29846.15815 | AB48: 29873.22924 | AC48: 29225.79948 | AD48: 188 | AE48: 188 | AF48: 188 | AG48: 188 | AH48: 188 | AI48: 188 | AJ48: 188 | AK48: 188 | AL48: 188 | AM48: 188 | AN48: 188 | AO48: 188 | AP48: 3 | AQ48: 2.6 | AR48: 14.7 | AS48: 4 | AT48: 5 | AU48: 2.448 | AV48: 5.291333333 | AW48: 5.291333333 | AX48: 5.291333333 | AY48: 5.291333333 | AZ48: 5.291333333 | BA48: 5.291333333 | BB48: ED_LAB2112_00037 | BE48: Support staff | BF48: 186.62 | BG48: 6.2 | BH48: 1.38 | BI48: 9.64
A49: ED_LAB2111_00038 | E49: Employee (optional) | W49: 0 | X49: 0 | Y49: 0 | Z49: 0 | AA49: 0 | AB49: 0 | AC49: 0 | AD49: 0 | AE49: 0 | AF49: 0 | AG49: 0 | AH49: 0 | AI49: 0 | AJ49: 0 | AK49: 0 | AL49: 0 | AM49: 0 | AN49: 0 | AO49: 0 | AP49: 0 | AQ49: 0 | AR49: 0 | AS49: 0 | AT49: 0 | AU49: 0 | AV49: 0 | AW49: 0 | AX49: 0 | AY49: 0 | AZ49: 0 | BA49: 0 | BB49: ED_LAB2112_00038 | BE49: Employee (optional) | BF49: 0 | BG49: 0 | BH49: 0 | BI49: 0
A50: ED_LAB2111_00039 | E50: Labour hire (optional) | W50: 0 | X50: 0 | Y50: 0 | Z50: 0 | AA50: 0 | AB50: 0 | AC50: 0 | AD50: 0 | AE50: 0 | AF50: 0 | AG50: 0 | AH50: 0 | AI50: 0 | AJ50: 0 | AK50: 0 | AL50: 0 | AM50: 0 | AN50: 0 | AO50: 0 | AP50: 0 | AQ50: 0 | AR50: 0 | AS50: 0 | AT50: 0 | AU50: 0 | AV50: 0 | AW50: 0 | AX50: 0 | AY50: 0 | AZ50: 0 | BA50: 0 | BB50: ED_LAB2112_00039 | BE50: Labour hire (optional) | BF50: 0 | BG50: 0 | BH50: 0 | BI50: 0
A51: ED_LAB2111_00040 | E51: Intern, junior staff, apprentice | K51: 277.601388 | L51: 232.8056422 | M51: 235.5184071 | N51: 237.0392931 | O51: 231.8263157 | P51: 232.036587 | Q51: 227.007757 | W51: 35196.86921 | X51: 29517.25061 | Y51: 29861.20001 | Z51: 30054.03199 | AA51: 29393.08254 | AB51: 29419.74268 | AC51: 28782.14115 | AD51: 0 | AE51: 0 | AF51: 0 | AG51: 0 | AH51: 0 | AI51: 188 | AJ51: 188 | AK51: 188 | AL51: 188 | AM51: 188 | AN51: 188 | AO51: 188 | AP51: 0 | AQ51: 0 | AR51: 0 | AS51: 0 | AT51: 0 | AU51: 0.083 | AV51: 0.01383333333 | AW51: 0.01383333333 | AX51: 0.01383333333 | AY51: 0.01383333333 | AZ51: 0.01383333333 | BA51: 0.01383333333 | BB51: ED_LAB2112_00040 | BE51: Intern, junior staff, apprentice | BF51: 184.05 | BG51: 6.58 | BH51: 3.95 | BI51: 14.18
A52: ED_LAB2111_00041 | E52: Employee (optional) | W52: 0 | X52: 0 | Y52: 0 | Z52: 0 | AA52: 0 | AB52: 0 | AC52: 0 | AD52: 0 | AE52: 0 | AF52: 0 | AG52: 0 | AH52: 0 | AI52: 0 | AJ52: 0 | AK52: 0 | AL52: 0 | AM52: 0 | AN52: 0 | AO52: 0 | AP52: 0 | AQ52: 0 | AR52: 0 | AS52: 0 | AT52: 0 | AU52: 0 | AV52: 0 | AW52: 0 | AX52: 0 | AY52: 0 | AZ52: 0 | BA52: 0 | BB52: ED_LAB2112_00041 | BE52: Employee (optional) | BF52: 0 | BG52: 0 | BH52: 0 | BI52: 0
A53: ED_LAB2111_00042 | E53: Labour hire (optional) | W53: 0 | X53: 0 | Y53: 0 | Z53: 0 | AA53: 0 | AB53: 0 | AC53: 0 | AD53: 0 | AE53: 0 | AF53: 0 | AG53: 0 | AH53: 0 | AI53: 0 | AJ53: 0 | AK53: 0 | AL53: 0 | AM53: 0 | AN53: 0 | AO53: 0 | AP53: 0 | AQ53: 0 | AR53: 0 | AS53: 0 | AT53: 0 | AU53: 0 | AV53: 0 | AW53: 0 | AX53: 0 | AY53: 0 | AZ53: 0 | BA53: 0 | BB53: ED_LAB2112_00042 | BE53: Labour hire (optional) | BF53: 0 | BG53: 0 | BH53: 0 | BI53: 0
A54: ED_LAB2111_00043 | C54: TOTAL DIRECT NETWORK LABOUR INTERNAL LABOUR COSTS | D54: LABOUR CLASSIFICATION LEVEL | E54: Skilled electrical worker | F54: 792.5800473 | G54: 959.0531732 | H54: 1025.652884 | I54: 1035.024713 | J54: 937.5433595 | K54: 622.225978 | L54: 521.819143 | M54: 527.8996342 | N54: 531.3086041 | O54: 519.6240445 | P54: 520.0953543 | Q54: 508.8235495 | R54: 92960.93263 | S54: 117379.2277 | T54: 129683.0617 | U54: 131650.377 | V54: 127964.7785 | W54: 88177.42965 | X54: 73948.48881 | Y54: 74810.17268 | Z54: 75293.26759 | AA54: 73637.4151 | AB54: 73704.20577 | AC54: 72106.84595 | AD54: 188 | AE54: 188 | AF54: 188 | AG54: 188 | AH54: 188 | AI54: 188 | AJ54: 188 | AK54: 188 | AL54: 188 | AM54: 188 | AN54: 188 | AO54: 188 | AP54: 488.7 | AQ54: 485.4 | AR54: 853.3 | AS54: 477.2 | AT54: 469 | AU54: 150.579 | AV54: 487.3631667 | AW54: 487.3631667 | AX54: 487.3631667 | AY54: 487.3631667 | AZ54: 487.3631667 | BA54: 487.3631667 | BB54: ED_LAB2112_00043 | BC54: TOTAL DIRECT NETWORK LABOUR INTERNAL LABOUR COSTS | BD54: LABOUR CLASSIFICATION LEVEL | BE54: Skilled electrical worker | BF54: 151.6 | BG54: 6.93 | BH54: 36.9 | BI54: 10.53
A55: ED_LAB2111_00044 | E55: Employee (optional) | R55: 0 | S55: 0 | T55: 0 | U55: 0 | V55: 0 | W55: 0 | X55: 0 | Y55: 0 | Z55: 0 | AA55: 0 | AB55: 0 | AC55: 0 | AD55: 0 | AE55: 0 | AF55: 0 | AG55: 0 | AH55: 0 | AI55: 0 | AJ55: 0 | AK55: 0 | AL55: 0 | AM55: 0 | AN55: 0 | AO55: 0 | AP55: 0 | AQ55: 0 | AR55: 0 | AS55: 0 | AT55: 0 | AU55: 0 | AV55: 0 | AW55: 0 | AX55: 0 | AY55: 0 | AZ55: 0 | BA55: 0 | BB55: ED_LAB2112_00044 | BE55: Employee (optional) | BF55: 0 | BG55: 0 | BH55: 0 | BI55: 0
A56: ED_LAB2111_00045 | E56: Labour hire (optional) | R56: 0 | S56: 0 | T56: 0 | U56: 0 | V56: 0 | W56: 0 | X56: 0 | Y56: 0 | Z56: 0 | AA56: 0 | AB56: 0 | AC56: 0 | AD56: 0 | AE56: 0 | AF56: 0 | AG56: 0 | AH56: 0 | AI56: 0 | AJ56: 0 | AK56: 0 | AL56: 0 | AM56: 0 | AN56: 0 | AO56: 0 | AP56: 0 | AQ56: 0 | AR56: 0 | AS56: 0 | AT56: 0 | AU56: 0 | AV56: 0 | AW56: 0 | AX56: 0 | AY56: 0 | AZ56: 0 | BA56: 0 | BB56: ED_LAB2112_00045 | BE56: Labour hire (optional) | BF56: 0 | BG56: 0 | BH56: 0 | BI56: 0
A57: ED_LAB2111_00046 | E57: Skilled non electical worker | K57: 374.9556371 | L57: 314.4501132 | M57: 318.1142393 | N57: 320.168497 | O57: 313.1273389 | P57: 313.4113519 | Q57: 306.6189213 | R57: 0 | S57: 0 | T57: 0 | U57: 0 | V57: 0 | W57: 54382.27259 | X57: 45606.76005 | Y57: 46138.19227 | Z57: 46436.13472 | AA57: 45414.90943 | AB57: 45456.1017 | AC57: 44470.95099 | AD57: 0 | AE57: 0 | AF57: 0 | AG57: 0 | AH57: 0 | AI57: 188 | AJ57: 188 | AK57: 188 | AL57: 188 | AM57: 188 | AN57: 188 | AO57: 188 | AP57: 0 | AQ57: 0 | AR57: 0 | AS57: 0 | AT57: 0 | AU57: 0 | AV57: 0 | AW57: 0 | AX57: 0 | AY57: 0 | AZ57: 0 | BA57: 0 | BB57: ED_LAB2112_00046 | BE57: Skilled non electical worker | BF57: 176.9 | BG57: 7.53 | BH57: 11.6 | BI57: 10.71
A58: ED_LAB2111_00047 | E58: Employee (optional) | R58: 0 | S58: 0 | T58: 0 | U58: 0 | V58: 0 | W58: 0 | X58: 0 | Y58: 0 | Z58: 0 | AA58: 0 | AB58: 0 | AC58: 0 | AD58: 0 | AE58: 0 | AF58: 0 | AG58: 0 | AH58: 0 | AI58: 0 | AJ58: 0 | AK58: 0 | AL58: 0 | AM58: 0 | AN58: 0 | AO58: 0 | AP58: 0 | AQ58: 0 | AR58: 0 | AS58: 0 | AT58: 0 | AU58: 0 | AV58: 0 | AW58: 0 | AX58: 0 | AY58: 0 | AZ58: 0 | BA58: 0 | BB58: ED_LAB2112_00047 | BE58: Employee (optional) | BF58: 0 | BG58: 0 | BH58: 0 | BI58: 0
A59: ED_LAB2111_00048 | E59: Labour hire (optional) | R59: 0 | S59: 0 | T59: 0 | U59: 0 | V59: 0 | W59: 0 | X59: 0 | Y59: 0 | Z59: 0 | AA59: 0 | AB59: 0 | AC59: 0 | AD59: 0 | AE59: 0 | AF59: 0 | AG59: 0 | AH59: 0 | AI59: 0 | AJ59: 0 | AK59: 0 | AL59: 0 | AM59: 0 | AN59: 0 | AO59: 0 | AP59: 0 | AQ59: 0 | AR59: 0 | AS59: 0 | AT59: 0 | AU59: 0 | AV59: 0 | AW59: 0 | AX59: 0 | AY59: 0 | AZ59: 0 | BA59: 0 | BB59: ED_LAB2112_00048 | BE59: Labour hire (optional) | BF59: 0 | BG59: 0 | BH59: 0 | BI59: 0
A60: ED_LAB2111_00049 | E60: Apprentice | F60: 328.5216117 | G60: 126.6137487 | H60: 126.8198003 | I60: 130.2547672 | J60: 120.9741947 | K60: 97.30698977 | L60: 81.6048378 | M60: 82.55573718 | N60: 83.08884992 | O60: 81.26155669 | P60: 81.33526261 | Q60: 79.57251815 | R60: 30242.0781 | S60: 14807.75813 | T60: 15557.04325 | U60: 16003.12088 | V60: 15472.55766 | W60: 9690.055941 | X60: 8126.399195 | Y60: 8221.091963 | Z60: 8274.180567 | AA60: 8092.214465 | AB60: 8099.554272 | AC60: 7924.016086 | AD60: 188 | AE60: 188 | AF60: 188 | AG60: 188 | AH60: 188 | AI60: 188 | AJ60: 188 | AK60: 188 | AL60: 188 | AM60: 188 | AN60: 188 | AO60: 188 | AP60: 35.1 | AQ60: 0.6 | AR60: 0 | AS60: 0 | AT60: 0 | AU60: 12.238 | AV60: 7.989666667 | AW60: 7.989666667 | AX60: 7.989666667 | AY60: 7.989666667 | AZ60: 7.989666667 | BA60: 7.989666667 | BB60: ED_LAB2112_00049 | BE60: Apprentice | BF60: 163.3 | BG60: 4.94 | BH60: 25.2 | BI60: 7.66
A61: ED_LAB2111_00050 | E61: Employee (optional) | R61: 0 | S61: 0 | T61: 0 | U61: 0 | V61: 0 | W61: 0 | X61: 0 | Y61: 0 | Z61: 0 | AA61: 0 | AB61: 0 | AC61: 0 | AD61: 0 | AE61: 0 | AF61: 0 | AG61: 0 | AH61: 0 | AI61: 0 | AJ61: 0 | AK61: 0 | AL61: 0 | AM61: 0 | AN61: 0 | AO61: 0 | AP61: 0 | AQ61: 0 | AR61: 0 | AS61: 0 | AT61: 0 | AU61: 0 | AV61: 0 | AW61: 0 | AX61: 0 | AY61: 0 | AZ61: 0 | BA61: 0 | BB61: ED_LAB2112_00050 | BE61: Employee (optional) | BF61: 0 | BG61: 0 | BH61: 0 | BI61: 0
A62: ED_LAB2111_00051 | E62: Labour hire (optional) | R62: 0 | S62: 0 | T62: 0 | U62: 0 | V62: 0 | W62: 0 | X62: 0 | Y62: 0 | Z62: 0 | AA62: 0 | AB62: 0 | AC62: 0 | AD62: 0 | AE62: 0 | AF62: 0 | AG62: 0 | AH62: 0 | AI62: 0 | AJ62: 0 | AK62: 0 | AL62: 0 | AM62: 0 | AN62: 0 | AO62: 0 | AP62: 0 | AQ62: 0 | AR62: 0 | AS62: 0 | AT62: 0 | AU62: 0 | AV62: 0 | AW62: 0 | AX62: 0 | AY62: 0 | AZ62: 0 | BA62: 0 | BB62: ED_LAB2112_00051 | BE62: Labour hire (optional) | BF62: 0 | BG62: 0 | BH62: 0 | BI62: 0
A63: ED_LAB2111_00052 | E63: Unskilled worker | F63: 109.7519634 | G63: 132.8042122 | H63: 142.0265602 | I63: 143.3243176 | J63: 129.8256559 | K63: 84.7076486 | L63: 71.03861645 | M63: 71.86639306 | N63: 72.33047819 | O63: 70.73978349 | P63: 70.80394595 | Q63: 69.26944222 | R63: 12872.69963 | S63: 16254.00582 | T63: 17957.77056 | U63: 18230.19317 | V63: 17719.83252 | W63: 9651.303279 | X63: 8093.899939 | Y63: 8188.21401 | Z63: 8241.090302 | AA63: 8059.851921 | AB63: 8067.162375 | AC63: 7892.326205 | AD63: 188 | AE63: 188 | AF63: 188 | AG63: 188 | AH63: 188 | AI63: 188 | AJ63: 188 | AK63: 188 | AL63: 188 | AM63: 188 | AN63: 188 | AO63: 188 | AP63: 0 | AQ63: 0 | AR63: 0 | AS63: 0 | AT63: 0 | AU63: 9.17 | AV63: 1.528333333 | AW63: 1.528333333 | AX63: 1.528333333 | AY63: 1.528333333 | AZ63: 1.528333333 | BA63: 1.528333333 | BB63: ED_LAB2112_00052 | BE63: Unskilled worker | BF63: 160.1 | BG63: 5.66 | BH63: 28.4 | BI63: 8.53
A64: ED_LAB2111_00053 | E64: Employee (optional) | W64: 0 | X64: 0 | Y64: 0 | Z64: 0 | AA64: 0 | AB64: 0 | AC64: 0 | AD64: 0 | AE64: 0 | AF64: 0 | AG64: 0 | AH64: 0 | AI64: 0 | AJ64: 0 | AK64: 0 | AL64: 0 | AM64: 0 | AN64: 0 | AO64: 0 | AP64: 0 | AQ64: 0 | AR64: 0 | AS64: 0 | AT64: 0 | AU64: 0 | AV64: 0 | AW64: 0 | AX64: 0 | AY64: 0 | AZ64: 0 | BA64: 0 | BB64: ED_LAB2112_00053 | BE64: Employee (optional) | BF64: 0 | BG64: 0 | BH64: 0 | BI64: 0
A65: ED_LAB2111_00054 | E65: Labour hire (optional) | W65: 0 | X65: 0 | Y65: 0 | Z65: 0 | AA65: 0 | AB65: 0 | AC65: 0 | AD65: 0 | AE65: 0 | AF65: 0 | AG65: 0 | AH65: 0 | AI65: 0 | AJ65: 0 | AK65: 0 | AL65: 0 | AM65: 0 | AN65: 0 | AO65: 0 | AP65: 0 | AQ65: 0 | AR65: 0 | AS65: 0 | AT65: 0 | AU65: 0 | AV65: 0 | AW65: 0 | AX65: 0 | AY65: 0 | AZ65: 0 | BA65: 0 | BB65: ED_LAB2112_00054 | BE65: Labour hire (optional) | BF65: 0 | BG65: 0 | BH65: 0 | BI65: 0
BB69: 0

Sheet 2.12 Input tables
C1: REGULATORY REPORTING STATEMENT
C2: =TradingName -> Ergon Energy
C3: =RCP_1to5 -> 2015-16 to 2019-20
C4: 2.12 INPUT TABLES
E7: DIRECT MATERIAL EXPENDITURE ($000's) | G7: DIRECT MATERIAL EXPENDITURE ($000's) Current Period | L7: DIRECT MATERIAL EXPENDITURE ($000's) Forthcoming Period | Q7: DIRECT LABOUR EXPENDITURE ($000's) | S7: DIRECT LABOUR EXPENDITURE ($000's) Current Period | X7: DIRECT LABOUR EXPENDITURE ($000's) Forthcoming Period | AC7: CONTRACT EXPENDITURE ($000's) | AE7: CONTRACT EXPENDITURE ($000's) Forthcoming Period | AJ7: CONTRACT EXPENDITURE ($000's) Forthcoming Period | AO7: OTHER EXPENDITURE ($000's) | AQ7: OTHER EXPENDITURE ($000's) Current Period | AV7: OTHER EXPENDITURE ($000's) Forthcoming Period | BA7: RELATED PARTY CONTRACT EXPENDITURE ($000's) | BC7: RELATED PARTY CONTRACT EXPENDITURE ($000's) Current Period | BH7: RELATED PARTY CONTRACT EXPENDITURE ($000's) Forthcoming Period | BM7: RELATED PARTY CONTRACT MARGIN | BO7: RELATED PARTY CONTRACT MARGIN Current Period | BT7: RELATED PARTY CONTRACT MARGIN Forthcoming Period
E8: =PRCP_y4 -> 2008-09 | F8: =PRCP_y5 -> 2009-10 | G8: =CRCP -> 2010-11 | H8: 2011-12 | I8: 2012-13 | J8: 2013-14 | K8: 2014-15 | L8: =FRCP -> 2015-16 | M8: 2016-17 | N8: 2017-18 | O8: 2018-19 | P8: 2019-20 | Q8: =PRCP_y4 -> 2008-09 | R8: =PRCP_y5 -> 2009-10 | S8: =CRCP -> 2010-11 | T8: 2011-12 | U8: 2012-13 | V8: 2013-14 | W8: 2014-15 | X8: =FRCP -> 2015-16 | Y8: 2016-17 | Z8: 2017-18 | AA8: 2018-19 | AB8: 2019-20 | AC8: =PRCP_y4 -> 2008-09 | AD8: =PRCP_y5 -> 2009-10 | AE8: =CRCP -> 2010-11 | AF8: 2011-12 | AG8: 2012-13 | AH8: 2013-14 | AI8: 2014-15 | AJ8: =FRCP -> 2015-16 | AK8: 2016-17 | AL8: 2017-18 | AM8: 2018-19 | AN8: 2019-20 | AO8: =PRCP_y4 -> 2008-09 | AP8: =PRCP_y5 -> 2009-10 | AQ8: =CRCP -> 2010-11 | AR8: 2011-12 | AS8: 2012-13 | AT8: 2013-14 | AU8: 2014-15 | AV8: =FRCP -> 2015-16 | AW8: 2016-17 | AX8: 2017-18 | AY8: 2018-19 | AZ8: 2019-20 | BA8: =PRCP_y4 -> 2008-09 | BB8: =PRCP_y5 -> 2009-10 | BC8: =CRCP -> 2010-11 | BD8: 2011-12 | BE8: 2012-13 | BF8: 2013-14 | BG8: 2014-15 | BH8: =FRCP -> 2015-16 | BI8: 2016-17 | BJ8: 2017-18 | BK8: 2018-19 | BL8: 2019-20 | BM8: =PRCP_y4 -> 2008-09 | BN8: =PRCP_y5 -> 2009-10 | BO8: =CRCP -> 2010-11 | BP8: 2011-12 | BQ8: 2012-13 | BR8: 2013-14 | BS8: 2014-15 | BT8: =FRCP -> 2015-16 | BU8: 2016-17 | BV8: 2017-18 | BW8: 2018-19 | BX8: 2019-20
A9: ED_INP212_00001 | C9: VEGETATION MANAGEMENT | D9: Northern Region | E9: 90 | F9: 78 | G9: 184 | H9: 165 | I9: 156 | J9: 788 | K9: 124.5205786 | L9: 125.0393646 | M9: 125.0274385 | N9: 124.8813436 | O9: 124.714378 | P9: 124.9171219 | Q9: 761 | R9: 756 | S9: 625 | T9: 682 | U9: 395 | V9: 392 | W9: 475.1401804 | X9: 484.2962345 | Y9: 492.0379889 | Z9: 499.4200191 | AA9: 506.832795 | AB9: 515.8812394 | AC9: 17784 | AD9: 19882 | AE9: 18536 | AF9: 22451 | AG9: 14106 | AH9: 12641 | AI9: 14100.1456 | AJ9: 14371.81442 | AK9: 14601.55878 | AL9: 14820.6727 | AM9: 15040.66552 | AN9: 15309.16533 | AO9: 1306 | AP9: 1292 | AQ9: 1507 | AR9: 2172 | AS9: 746 | AT9: 246 | AU9: 138.8437642 | AV9: 139.4241553 | AW9: 139.4063882 | AX9: 139.2435234 | AY9: 139.0599303 | AZ9: 139.2849799 | BA9: 0 | BB9: 0 | BC9: 0 | BD9: 0 | BE9: 0 | BF9: 0 | BG9: 0 | BH9: 0 | BI9: 0 | BJ9: 0 | BK9: 0 | BL9: 0 | BM9: 0 | BN9: 0 | BO9: 0 | BP9: 0 | BQ9: 0 | BR9: 0 | BS9: 0 | BT9: 0 | BU9: 0 | BV9: 0 | BW9: 0 | BX9: 0
A10: ED_INP212_00002 | D10: Central Region | E10: 61 | F10: 53 | G10: 124 | H10: 111 | I10: 142 | J10: 733 | K10: 123.1838582 | L10: 123.6970751 | M10: 123.685277 | N10: 123.5407504 | O10: 123.3755772 | P10: 123.5761447 | Q10: 513 | R10: 510 | S10: 421 | T10: 458 | U10: 359 | V10: 381 | W10: 490.0441356 | X10: 499.4873923 | Y10: 507.471986 | Z10: 515.085572 | AA10: 522.7308681 | AB10: 532.0631395 | AC10: 11991 | AD10: 13405 | AE10: 12499 | AF10: 15057 | AG10: 12818 | AH10: 12630 | AI10: 14599.95867 | AJ10: 14881.25744 | AK10: 15119.14563 | AL10: 15346.02656 | AM10: 15573.81755 | AN10: 15851.83498 | AO10: 881 | AP10: 871 | AQ10: 1016 | AR10: 1457 | AS10: 678 | AT10: 390 | AU10: 148.0982246 | AV10: 148.717301 | AW10: 148.6983497 | AX10: 148.5246293 | AY10: 148.328799 | AZ10: 148.568849 | BA10: 0 | BB10: 0 | BC10: 0 | BD10: 0 | BE10: 0 | BF10: 0 | BG10: 0 | BH10: 0 | BI10: 0 | BJ10: 0 | BK10: 0 | BL10: 0 | BM10: 0 | BN10: 0 | BO10: 0 | BP10: 0 | BQ10: 0 | BR10: 0 | BS10: 0 | BT10: 0 | BU10: 0 | BV10: 0 | BW10: 0 | BX10: 0
A11: ED_INP212_00003 | D11: Southern Region | E11: 73 | F11: 64 | G11: 150 | H11: 133 | I11: 145 | J11: 1092 | K11: 169.9355632 | L11: 170.6435602 | M11: 170.6272844 | N11: 170.427906 | O11: 170.2000449 | P11: 170.4767334 | Q11: 619 | R11: 615 | S11: 509 | T11: 551 | U11: 365 | V11: 487 | W11: 580.205684 | X11: 591.3863732 | Y11: 600.8400251 | Z11: 609.8544088 | AA11: 618.9063368 | AB11: 629.955621 | AC11: 14473 | AD11: 16180 | AE11: 15085 | AF11: 18119 | AG11: 13052 | AH11: 13772 | AI11: 16861.51573 | AJ11: 17186.38813 | AK11: 17461.12559 | AL11: 17723.15074 | AM11: 17986.22692 | AN11: 18307.30969 | AO11: 1063 | AP11: 1052 | AQ11: 1226 | AR11: 1753 | AS11: 691 | AT11: 767 | AU11: 181.9380112 | AV11: 182.6985437 | AW11: 182.6752621 | AX11: 182.4618474 | AY11: 182.2212707 | AZ11: 182.5161711 | BA11: 0 | BB11: 0 | BC11: 0 | BD11: 0 | BE11: 0 | BF11: 0 | BG11: 0 | BH11: 0 | BI11: 0 | BJ11: 0 | BK11: 0 | BL11: 0 | BM11: 0 | BN11: 0 | BO11: 0 | BP11: 0 | BQ11: 0 | BR11: 0 | BS11: 0 | BT11: 0 | BU11: 0 | BV11: 0 | BW11: 0 | BX11: 0
A12: ED_INP212_00004 | E12: 0 | F12: 0 | G12: 0 | H12: 0 | I12: 0 | J12: 0 | K12: 0 | L12: 0 | M12: 0 | N12: 0 | O12: 0 | P12: 0 | Q12: 0 | R12: 0 | S12: 0 | T12: 0 | U12: 0 | V12: 0 | W12: 0 | X12: 0 | Y12: 0 | Z12: 0 | AA12: 0 | AB12: 0 | AC12: 0 | AD12: 0 | AE12: 0 | AF12: 0 | AG12: 0 | AH12: 0 | AI12: 0 | AJ12: 0 | AK12: 0 | AL12: 0 | AM12: 0 | AN12: 0 | AO12: 0 | AP12: 0 | AQ12: 0 | AR12: 0 | AS12: 0 | AT12: 0 | AU12: 0 | AV12: 0 | AW12: 0 | AX12: 0 | AY12: 0 | AZ12: 0 | BA12: 0 | BB12: 0 | BC12: 0 | BD12: 0 | BE12: 0 | BF12: 0 | BG12: 0 | BH12: 0 | BI12: 0 | BJ12: 0 | BK12: 0 | BL12: 0 | BM12: 0 | BN12: 0 | BO12: 0 | BP12: 0 | BQ12: 0 | BR12: 0 | BS12: 0 | BT12: 0 | BU12: 0 | BV12: 0 | BW12: 0 | BX12: 0
A13: ED_INP212_00005 | E13: 0 | F13: 0 | G13: 0 | H13: 0 | I13: 0 | J13: 0 | K13: 0 | L13: 0 | M13: 0 | N13: 0 | O13: 0 | P13: 0 | Q13: 0 | R13: 0 | S13: 0 | T13: 0 | U13: 0 | V13: 0 | W13: 0 | X13: 0 | Y13: 0 | Z13: 0 | AA13: 0 | AB13: 0 | AC13: 0 | AD13: 0 | AE13: 0 | AF13: 0 | AG13: 0 | AH13: 0 | AI13: 0 | AJ13: 0 | AK13: 0 | AL13: 0 | AM13: 0 | AN13: 0 | AO13: 0 | AP13: 0 | AQ13: 0 | AR13: 0 | AS13: 0 | AT13: 0 | AU13: 0 | AV13: 0 | AW13: 0 | AX13: 0 | AY13: 0 | AZ13: 0 | BA13: 0 | BB13: 0 | BC13: 0 | BD13: 0 | BE13: 0 | BF13: 0 | BG13: 0 | BH13: 0 | BI13: 0 | BJ13: 0 | BK13: 0 | BL13: 0 | BM13: 0 | BN13: 0 | BO13: 0 | BP13: 0 | BQ13: 0 | BR13: 0 | BS13: 0 | BT13: 0 | BU13: 0 | BV13: 0 | BW13: 0 | BX13: 0
A14: ED_INP212_00006 | E14: 0 | F14: 0 | G14: 0 | H14: 0 | I14: 0 | J14: 0 | K14: 0 | L14: 0 | M14: 0 | N14: 0 | O14: 0 | P14: 0 | Q14: 0 | R14: 0 | S14: 0 | T14: 0 | U14: 0 | V14: 0 | W14: 0 | X14: 0 | Y14: 0 | Z14: 0 | AA14: 0 | AB14: 0 | AC14: 0 | AD14: 0 | AE14: 0 | AF14: 0 | AG14: 0 | AH14: 0 | AI14: 0 | AJ14: 0 | AK14: 0 | AL14: 0 | AM14: 0 | AN14: 0 | AO14: 0 | AP14: 0 | AQ14: 0 | AR14: 0 | AS14: 0 | AT14: 0 | AU14: 0 | AV14: 0 | AW14: 0 | AX14: 0 | AY14: 0 | AZ14: 0 | BA14: 0 | BB14: 0 | BC14: 0 | BD14: 0 | BE14: 0 | BF14: 0 | BG14: 0 | BH14: 0 | BI14: 0 | BJ14: 0 | BK14: 0 | BL14: 0 | BM14: 0 | BN14: 0 | BO14: 0 | BP14: 0 | BQ14: 0 | BR14: 0 | BS14: 0 | BT14: 0 | BU14: 0 | BV14: 0 | BW14: 0 | BX14: 0
A15: ED_INP212_00007 | E15: 0 | F15: 0 | G15: 0 | H15: 0 | I15: 0 | J15: 0 | K15: 0 | L15: 0 | M15: 0 | N15: 0 | O15: 0 | P15: 0 | Q15: 0 | R15: 0 | S15: 0 | T15: 0 | U15: 0 | V15: 0 | W15: 0 | X15: 0 | Y15: 0 | Z15: 0 | AA15: 0 | AB15: 0 | AC15: 0 | AD15: 0 | AE15: 0 | AF15: 0 | AG15: 0 | AH15: 0 | AI15: 0 | AJ15: 0 | AK15: 0 | AL15: 0 | AM15: 0 | AN15: 0 | AO15: 0 | AP15: 0 | AQ15: 0 | AR15: 0 | AS15: 0 | AT15: 0 | AU15: 0 | AV15: 0 | AW15: 0 | AX15: 0 | AY15: 0 | AZ15: 0 | BA15: 0 | BB15: 0 | BC15: 0 | BD15: 0 | BE15: 0 | BF15: 0 | BG15: 0 | BH15: 0 | BI15: 0 | BJ15: 0 | BK15: 0 | BL15: 0 | BM15: 0 | BN15: 0 | BO15: 0 | BP15: 0 | BQ15: 0 | BR15: 0 | BS15: 0 | BT15: 0 | BU15: 0 | BV15: 0 | BW15: 0 | BX15: 0
A16: ED_INP212_00008 | E16: 0 | F16: 0 | G16: 0 | H16: 0 | I16: 0 | J16: 0 | K16: 0 | L16: 0 | M16: 0 | N16: 0 | O16: 0 | P16: 0 | Q16: 0 | R16: 0 | S16: 0 | T16: 0 | U16: 0 | V16: 0 | W16: 0 | X16: 0 | Y16: 0 | Z16: 0 | AA16: 0 | AB16: 0 | AC16: 0 | AD16: 0 | AE16: 0 | AF16: 0 | AG16: 0 | AH16: 0 | AI16: 0 | AJ16: 0 | AK16: 0 | AL16: 0 | AM16: 0 | AN16: 0 | AO16: 0 | AP16: 0 | AQ16: 0 | AR16: 0 | AS16: 0 | AT16: 0 | AU16: 0 | AV16: 0 | AW16: 0 | AX16: 0 | AY16: 0 | AZ16: 0 | BA16: 0 | BB16: 0 | BC16: 0 | BD16: 0 | BE16: 0 | BF16: 0 | BG16: 0 | BH16: 0 | BI16: 0 | BJ16: 0 | BK16: 0 | BL16: 0 | BM16: 0 | BN16: 0 | BO16: 0 | BP16: 0 | BQ16: 0 | BR16: 0 | BS16: 0 | BT16: 0 | BU16: 0 | BV16: 0 | BW16: 0 | BX16: 0
A17: ED_INP212_00009 | E17: 0 | F17: 0 | G17: 0 | H17: 0 | I17: 0 | J17: 0 | K17: 0 | L17: 0 | M17: 0 | N17: 0 | O17: 0 | P17: 0 | Q17: 0 | R17: 0 | S17: 0 | T17: 0 | U17: 0 | V17: 0 | W17: 0 | X17: 0 | Y17: 0 | Z17: 0 | AA17: 0 | AB17: 0 | AC17: 0 | AD17: 0 | AE17: 0 | AF17: 0 | AG17: 0 | AH17: 0 | AI17: 0 | AJ17: 0 | AK17: 0 | AL17: 0 | AM17: 0 | AN17: 0 | AO17: 0 | AP17: 0 | AQ17: 0 | AR17: 0 | AS17: 0 | AT17: 0 | AU17: 0 | AV17: 0 | AW17: 0 | AX17: 0 | AY17: 0 | AZ17: 0 | BA17: 0 | BB17: 0 | BC17: 0 | BD17: 0 | BE17: 0 | BF17: 0 | BG17: 0 | BH17: 0 | BI17: 0 | BJ17: 0 | BK17: 0 | BL17: 0 | BM17: 0 | BN17: 0 | BO17: 0 | BP17: 0 | BQ17: 0 | BR17: 0 | BS17: 0 | BT17: 0 | BU17: 0 | BV17: 0 | BW17: 0 | BX17: 0
A18: ED_INP212_00010 | E18: 0 | F18: 0 | G18: 0 | H18: 0 | I18: 0 | J18: 0 | K18: 0 | L18: 0 | M18: 0 | N18: 0 | O18: 0 | P18: 0 | Q18: 0 | R18: 0 | S18: 0 | T18: 0 | U18: 0 | V18: 0 | W18: 0 | X18: 0 | Y18: 0 | Z18: 0 | AA18: 0 | AB18: 0 | AC18: 0 | AD18: 0 | AE18: 0 | AF18: 0 | AG18: 0 | AH18: 0 | AI18: 0 | AJ18: 0 | AK18: 0 | AL18: 0 | AM18: 0 | AN18: 0 | AO18: 0 | AP18: 0 | AQ18: 0 | AR18: 0 | AS18: 0 | AT18: 0 | AU18: 0 | AV18: 0 | AW18: 0 | AX18: 0 | AY18: 0 | AZ18: 0 | BA18: 0 | BB18: 0 | BC18: 0 | BD18: 0 | BE18: 0 | BF18: 0 | BG18: 0 | BH18: 0 | BI18: 0 | BJ18: 0 | BK18: 0 | BL18: 0 | BM18: 0 | BN18: 0 | BO18: 0 | BP18: 0 | BQ18: 0 | BR18: 0 | BS18: 0 | BT18: 0 | BU18: 0 | BV18: 0 | BW18: 0 | BX18: 0
A19: ED_INP212_00011 | E19: 0 | F19: 0 | G19: 0 | H19: 0 | I19: 0 | J19: 0 | K19: 0 | L19: 0 | M19: 0 | N19: 0 | O19: 0 | P19: 0 | Q19: 0 | R19: 0 | S19: 0 | T19: 0 | U19: 0 | V19: 0 | W19: 0 | X19: 0 | Y19: 0 | Z19: 0 | AA19: 0 | AB19: 0 | AC19: 0 | AD19: 0 | AE19: 0 | AF19: 0 | AG19: 0 | AH19: 0 | AI19: 0 | AJ19: 0 | AK19: 0 | AL19: 0 | AM19: 0 | AN19: 0 | AO19: 0 | AP19: 0 | AQ19: 0 | AR19: 0 | AS19: 0 | AT19: 0 | AU19: 0 | AV19: 0 | AW19: 0 | AX19: 0 | AY19: 0 | AZ19: 0 | BA19: 0 | BB19: 0 | BC19: 0 | BD19: 0 | BE19: 0 | BF19: 0 | BG19: 0 | BH19: 0 | BI19: 0 | BJ19: 0 | BK19: 0 | BL19: 0 | BM19: 0 | BN19: 0 | BO19: 0 | BP19: 0 | BQ19: 0 | BR19: 0 | BS19: 0 | BT19: 0 | BU19: 0 | BV19: 0 | BW19: 0 | BX19: 0
A20: ED_INP212_00012 | E20: 0 | F20: 0 | G20: 0 | H20: 0 | I20: 0 | J20: 0 | K20: 0 | L20: 0 | M20: 0 | N20: 0 | O20: 0 | P20: 0 | Q20: 0 | R20: 0 | S20: 0 | T20: 0 | U20: 0 | V20: 0 | W20: 0 | X20: 0 | Y20: 0 | Z20: 0 | AA20: 0 | AB20: 0 | AC20: 0 | AD20: 0 | AE20: 0 | AF20: 0 | AG20: 0 | AH20: 0 | AI20: 0 | AJ20: 0 | AK20: 0 | AL20: 0 | AM20: 0 | AN20: 0 | AO20: 0 | AP20: 0 | AQ20: 0 | AR20: 0 | AS20: 0 | AT20: 0 | AU20: 0 | AV20: 0 | AW20: 0 | AX20: 0 | AY20: 0 | AZ20: 0 | BA20: 0 | BB20: 0 | BC20: 0 | BD20: 0 | BE20: 0 | BF20: 0 | BG20: 0 | BH20: 0 | BI20: 0 | BJ20: 0 | BK20: 0 | BL20: 0 | BM20: 0 | BN20: 0 | BO20: 0 | BP20: 0 | BQ20: 0 | BR20: 0 | BS20: 0 | BT20: 0 | BU20: 0 | BV20: 0 | BW20: 0 | BX20: 0
A21: ED_INP212_00013 | E21: 0 | F21: 0 | G21: 0 | H21: 0 | I21: 0 | J21: 0 | K21: 0 | L21: 0 | M21: 0 | N21: 0 | O21: 0 | P21: 0 | Q21: 0 | R21: 0 | S21: 0 | T21: 0 | U21: 0 | V21: 0 | W21: 0 | X21: 0 | Y21: 0 | Z21: 0 | AA21: 0 | AB21: 0 | AC21: 0 | AD21: 0 | AE21: 0 | AF21: 0 | AG21: 0 | AH21: 0 | AI21: 0 | AJ21: 0 | AK21: 0 | AL21: 0 | AM21: 0 | AN21: 0 | AO21: 0 | AP21: 0 | AQ21: 0 | AR21: 0 | AS21: 0 | AT21: 0 | AU21: 0 | AV21: 0 | AW21: 0 | AX21: 0 | AY21: 0 | AZ21: 0 | BA21: 0 | BB21: 0 | BC21: 0 | BD21: 0 | BE21: 0 | BF21: 0 | BG21: 0 | BH21: 0 | BI21: 0 | BJ21: 0 | BK21: 0 | BL21: 0 | BM21: 0 | BN21: 0 | BO21: 0 | BP21: 0 | BQ21: 0 | BR21: 0 | BS21: 0 | BT21: 0 | BU21: 0 | BV21: 0 | BW21: 0 | BX21: 0
